Workbook

Sheet Read Me

Sheet Data Dictionary
A1: Term | B1: Who reports it? | C1: Definition
A2: Agency | B2: All | C2: The transit agency's name.
A3: City | B3: All | C3: The city in which the agency is headquartered.
A4: State | B4: All | C4: The state in which the agency is headquartered.
A5: Legacy NTD ID | B5: All | C5: A four-digit identifying number for each agency used in the legacy NTD system.
A6: NTD ID | B6: All | C6: A five-digit identifying number for each agency used in the current NTD system.
A7: Organization Type | B7: All | C7: Description of the agency's legal entity.
A8: Reporter Type | B8: All | C8: The type of NTD report that the agency completed this year.
A9: Primary UZA Population | B9: DOES NOT APPLY TO: Rural General Public Transit Sub-recipients, Intercity Bus Sub-recipients | C9: The population of the urbanized area primarily served by the agency.
A10: Agency VOMS | B10: DOES NOT APPLY TO: Building Reporters, Planning Reporters, Separate Service Reporters, Tribal Subsidy Reporters, Intercity Bus Sub-recipients | C10: The number of revenue vehicles operated across the whole agency to meet the annual maximum service requirement. This is the revenue vehicle count during the peak season of the year; on the week and day that maximum service is provided. Vehicles operated in maximum service (VOMS) exclude atypical days and one-time special events.
A11: Mode | B11: DOES NOT APPLY TO: Planning Reporters, Tribal Subsidy Reporters, Intercity Bus Sub-recipients | C11: A system for carrying transit passengers described by specific right-of-way (ROW), technology and operational features.
A12: Type of Service | B12: DOES NOT APPLY TO: Planning Reporters, Tribal Subsidy Reporters, Intercity Bus Sub-recipients | C12: Describes how public transportation services are provided by the transit agency: directly operated (DO) or purchased transportation (PT) services.
A13: Mode VOMS | B13: DOES NOT APPLY TO: Building Reporters, Planning Reporters, Separate Service Reporters, Tribal Subsidy Reporters, Intercity Bus Sub-recipients | C13: The number of revenue vehicles operated by the given mode and type of service to meet the annual maximum service requirement. This is the revenue vehicle count during the peak season of the year; on the week and day that maximum service is provided. Vehicles operated in maximum service (VOMS) exclude atypical days and one-time special events.
A14: Major Mechanical Failures | B14: ONLY APPLIES TO: Full Reporters | C14: A failure of some mechanical element of the revenue vehicle that prevents the vehicle from completing a scheduled revenue trip or from starting the next scheduled revenue trip because actual movement is limited or because of safety concerns.
A15: Other Mechanical Failures | B15: ONLY APPLIES TO: Full Reporters | C15: A failure of some other mechanical element of the revenue vehicle that, because of local agency policy, prevents the revenue vehicle from completing a scheduled revenue trip or from starting the next scheduled revenue trip even though the vehicle is physically able to continue in revenue service. For example, a malfunction in the farebox or the air conditioner would be classified thus.
A16: Total Mechanical Failures | B16: ONLY APPLIES TO: Full Reporters | C16: The sum of major and other mechanical failures.
A17: Vehicle/Passenger Car Miles | B17: DOES NOT APPLY TO: Building Reporters, Planning Reporters, Separate Service Reporters, Tribal Subsidy Reporters, Intercity Bus Sub-recipients, Reduced Reporters | C17: The miles that vehicles (or passenger cars, for rail service) travel while in revenue service (vehicle revenue miles (VRM)) plus deadhead miles. Vehicle miles exclude miles for charter services, school bus service, operator training, and vehicle maintenance testing.
A18: Vehicle/Passenger Car Revenue Miles | B18: DOES NOT APPLY TO: Building Reporters, Planning Reporters, Separate Service Reporters, Tribal Subsidy Reporters, Intercity Bus Sub-recipients | C18: The miles that vehicles (or passenger cars, for rail service) travel while in revenue service. Vehicle revenue miles exclude deadhead, operator training, maintenance testing, and school bus and charter services.
A19: Train Miles | B19: ONLY APPLIES TO: Full Reporters | C19: The miles that trains travel while in revenue service (train revenue miles) plus deadhead miles. Train miles exclude miles for charter services, operator training, and vehicle maintenance testing.
A20: Train Revenue Miles | B20: ONLY APPLIES TO: Full Reporters | C20: The miles that trains travel while in revenue service. Train revenue miles exclude deadhead, operator training, maintenance testing, and charter services.
A21: Rural General Public Transit | C21: Reporter type for agencies that do not operate in an urban area and are not Tribes.
A22: Intercity Bus | C22: Reporter type for private bus lines providing non-transit service connecting wide-ranging areas.
A23: Building Reporter | C23: Reporter type for agencies that are building a new transit service but not yet operating it.
A24: Planning Reporter | C24: Reporter type for entities that expend funds in planning transit but do not operate service.
A25: Separate Service | C25: Reporter type for agencies that have a contractual relationship with another NTD reporter to provide service but do not report any service themselves.
A26: Tribal Subsidy | C26: Reporter type for Tribes that subsidize service but do not operate service or pay the full cost of service.
A27: Full Reporter | C27: Reporter type for agencies that operate urban service and complete the most detailed level of NTD report. Urban agencies that operate more than 30 vehicles or operate Fixed Guideway service are required to complete Full Reports; other urban agencies may do so if they wish.
A28: Reduced Reporter | C28: Reporter type for agencies that operate urban service but complete a simplified NTD report. Urban agencies that operate 30 or fewer vehicles and do not operate Fixed Guideway service are eligible to complete Reduced Reports. This is sometimes called a Small Systems Report.
A29: Urbanized Area (UZA) | C29: An area defined by the U. S. Census Bureau that includes: - One or more incorporated cities, villages, and towns (central place) - The adjacent densely settled surrounding territory (urban fringe) that together has a minimum of 50,000 persons The urban fringe generally consists of contiguous territory having a density of at least 1,000 persons per square mile. Urbanized areas do not conform to congressional districts or any other political boundaries.
A30: Alaska Railroad (AR) | C30: The passenger service portion of the Alaska Railroad Corporation. The service encompasses only car miles for passenger cars; car miles for freight cars are specifically excluded.
A31: Bus (MB) | C31: A transit mode comprised of rubber-tired passenger vehicles operating on fixed routes and schedules over roadways. Vehicles are powered by: - Diesel - Gasoline - Battery - Alternative fuel engines contained within the vehicle
A32: Bus Rapid Transit (RB) | C32: Fixed-route bus mode: - In which the majority of each line operates in a separated right-of-way dedicated for public transportation use during peak periods; and - That includes features that emulate the services provided by rail fixed guideway public transportation systems, including: o Defined stations o Traffic signal priority for public transportation vehicles o Short headway bidirectional services for a substantial part of weekdays and weekend days o Pre-board ticketing, platform level boarding, and separate branding This mode may include portions of service that are fixed-guideway and non-fixed-guideway.
A33: Cable Car (CC) | C33: A transit mode that is an electric railway with individually controlled transit vehicles attached to a moving cable located below the street surface and powered by engines or motors at a central location, not onboard the vehicle.
A34: Commuter Bus (CB) | C34: Fixed-route bus systems that are primarily connecting outlying areas with a central city through bus service that operates with at least five miles of continuous closed-door service. This service may operate motorcoaches (aka over-the-road buses), and usually features peak scheduling, multiple-trip tickets, and limited stops in the central city.
A35: Commuter Rail (CR) | C35: A transit mode that is an electric or diesel propelled railway for urban passenger train service consisting of local short distance travel operating between a central city and adjacent suburbs. Service must be operated on a regular basis by or under contract with a transit operator for the purpose of transporting passengers within urbanized areas (UZAs), or between urbanized areas and outlying areas. Such rail service, using either locomotive hauled or self-propelled railroad passenger cars, is generally characterized by: - Multi-trip tickets - Specific station to station fares - Railroad employment practices - Usually only one or two stations in the central business district It does not include: - Heavy rail (HR) rapid transit - Light rail (LR)/streetcar transit service Intercity rail service is excluded, except for that portion of such service that is operated by or under contract with a public transit agency for predominantly commuter services. Predominantly commuter service means that for any given trip segment (i.e., distance between any two stations), more than 50 percent of the average daily ridership makes a return trip on the same day. Only the predominantly commuter service portion of an intercity route is eligible for inclusion when determining commuter rail (CR) route miles.
A36: Demand Response (DR) | C36: A transit mode comprised of automobiles, vans or small buses operating in response to calls from passengers or their agents to the transit operator, who then dispatches a vehicle to pick up the passengers and transport them to their destinations. A demand response (DR) operation is characterized by the following: - The vehicles do not operate over a fixed route or on a fixed schedule except, perhaps, on a temporary basis to satisfy a special need; and - Typically, the vehicle may be dispatched to pick up several passengers at different pick-up points before taking them to their respective destinations and may even be interrupted en route to these destinations to pick up other passengers. The following types of operations fall under the above definitions provided they are not on a scheduled fixed route basis: - Many origins—many destinations - Many origins—one destination - One origin—many destinations - One origin—one destination
A37: Demand Response Taxi (DT) | C37: A special form of the demand response mode operated through taxicab providers. The mode is always purchased transportation type of service. In order to be reportable, there must be a system in place through which passengers can share rides.
A38: Ferryboat (FB) | C38: A transit mode comprised of vessels carrying passengers and/or vehicles over a body of water that are generally steam or diesel powered. Intercity ferryboat (FB) service is excluded, except for that portion of such service that is operated by or under contract with a public transit agency for predominantly commuter services. Predominantly commuter service means that for any given trip segment (i.e., distance between any two piers), more than 50 percent of the average daily ridership makes a return trip on the ferryboat on the same day. Only the predominantly commuter service portion of an intercity route is eligible for inclusion when determining ferryboat (FB) route miles.
A39: Heavy Rail (HR) | C39: A transit mode that is an electric railway with the capacity for a heavy volume of traffic. It is characterized by: - High speed and rapid acceleration passenger rail cars operating singly or in multi-car trains on fixed rails - Separate rights-of-way (ROW) from which all other vehicular and foot traffic are excluded - Sophisticated signaling - Raised platform loading
A40: Hybrid Rail (YR) | C40: Rail systems primarily operating routes on the National system of railroads, but not operating with the characteristics of commuter rail. This service typically operates light rail-type vehicles as diesel multipleunit trains (DMU’s). These trains do not meet Federal Railroad Administration standards, and so must operate with temporal separation from freight rail traffic.
A41: Inclined Plane (IP) | C41: A transit mode that is a railway operating over exclusive right-of-way (ROW) on steep grades (slopes) with powerless vehicles propelled by moving cables attached to the vehicles and powered by engines or motors at a central location not onboard the vehicle. The special tramway types of vehicles have passenger seats that remain horizontal while the undercarriage (truck) is angled parallel to the slope.
A42: Light Rail (LR) | C42: A transit mode that is typically an electric railway with a light volume traffic capacity compared to heavy rail (HR). It is characterized by: - Passenger rail cars operating singly (or in short, usually two car, trains) on fixed rails in shared or exclusive right-of-way (ROW) - Low or high platform loading - Vehicle power drawn from an overhead electric line via a trolley or a pantograph
A43: Monorail/Automated Guideway (MG) | C43: Monorail and Automated Guideway modes operate on exclusive guideway without using steel wheels on rails.
A44: Streetcar Rail (SR) | C44: This mode is for rail transit systems operating entire routes predominantly on streets in mixed-traffic. This service typically operates with single-car trains powered by overhead catenaries and with frequent stops.
A45: Trolleybus (TB) | C45: A transit mode comprised of electric rubber-tired passenger vehicles, manually steered and operating singly on city streets. Vehicles are propelled by a motor drawing current through overhead wires via trolleys, from a central power source not onboard the vehicle.
A46: Vanpool (VP) | C46: A transit mode comprised of vans, small buses and other vehicles operating as a ride sharing arrangement, providing transportation to a group of individuals traveling directly between their homes and a regular destination within the same geographical area.
A47: Jitney (JT) | C47: A transit mode comprising passenger cars or vans operating on fixed routes (sometimes with minor deviations) as demand warrants without fixed schedules or fixed stops.
A48: Aerial Tramway (TR) | C48: A transit mode that is an electric system of aerial cables with suspended powerless passenger vehicles. The vehicles are propelled by separate cables attached to the vehicle suspension system and powered by engines or motors at a central location not on-board the vehicle.
A49: Publico (PB) | C49: A transit mode comprised of passenger vans or small buses operating with fixed routes but no fixed schedules in Puerto Rico. Publicos (PB) are a privately owned and operated public transit service which is market oriented and unsubsidized, but regulated through a public service commission, state or local government. Publicos (PB) are operated under franchise agreements, fares are regulated by route and there are special insurance requirements. Vehicle capacity varies from 8 to 24, and the vehicles may be owned or leased by the operator.
A50: Questionable (Q) | C50: FTA marks a data point as Questionable when there is reason to believe it is incorrect, but the reporting agency has been unable to correct the data or offer an explanation for its anomalous appearance.
A51: Waived (W) | C51: FTA marks a data point as Waived when the reporting agency has not reported the data point according to NTD reporting requirements, but has received a waiver to report the data as-is for one year.

Sheet Breakdowns
A1: Agency | B1: City | C1: State | D1: Legacy NTD ID | E1: NTD ID | F1: Organization Type | G1: Reporter Type | H1: Primary UZA Population | I1: Agency VOMS | J1: Mode | K1: Type of Service | L1: Mode VOMS | M1: Major Mechanical Failures | N1: Major Mechanical Failures Questionable | O1: Other Mechanical Failures | P1: Other Mechanical Failures Questionable | Q1: Total Mechanical Failures | R1: Total Mechanical Failures Questionable | S1: Vehicle/Passenger Car Miles | T1: Vehicle/Passenger Car Miles Questionable | U1: Vehicle/Passenger Car Revenue Miles | V1: Vehicle/Passenger Car Revenue Miles Questionable | W1: Train Miles | X1: Train Miles Questionable | Y1: Train Revenue Miles | Z1: Train Revenue Miles Questionable | AA1: Any Data Questionable? | AC1: =IF(AC4=1,1,0) -> 1
A2: MTA New York City Transit | B2: New York | C2: NY | D2: 2008 | E2: 20008 | F2: Subsidiary Unit of a Transit Agency, Reporting Separately | G2: Full Reporter | H2: 18351295 | I2: 11000 | J2: HR | K2: DO | L2: 5282 | M2: 2631 | O2: 10058 | Q2: 12689 | S2: 356180741 | U2: 345386041 | W2: 39164971 | Y2: 37962110 | AA2: =IF(OR(Z2="Q",X2="Q",V2="Q",T2="Q",R2="Q",P2="Q",N2="Q"),"Yes","No") -> No | AC2: Hide Questionable Data Tags
A3: MTA New York City Transit | B3: New York | C3: NY | D3: 2008 | E3: 20008 | F3: Subsidiary Unit of a Transit Agency, Reporting Separately | G3: Full Reporter | H3: 18351295 | I3: 11000 | J3: MB | K3: DO | L3: 3314 | M3: 11845 | O3: 4192 | Q3: 16037 | S3: 99825341 | U3: 87657339 | AA3: No | AC3: Show Questionable Data Tags
A4: MTA New York City Transit | B4: New York | C4: NY | D4: 2008 | E4: 20008 | F4: Subsidiary Unit of a Transit Agency, Reporting Separately | G4: Full Reporter | H4: 18351295 | I4: 11000 | J4: DR | K4: PT | L4: 1840 | M4: 2437 | O4: 2453 | Q4: 4890 | S4: 66019158 | U4: 54071891 | AA4: No | AC4: 1
A5: MTA New York City Transit | B5: New York | C5: NY | D5: 2008 | E5: 20008 | F5: Subsidiary Unit of a Transit Agency, Reporting Separately | G5: Full Reporter | H5: 18351295 | I5: 11000 | J5: CB | K5: DO | L5: 456 | M5: 438 | O5: 152 | Q5: 590 | S5: 15676591 | U5: 9258644 | AA5: No
A6: MTA New York City Transit | B6: New York | C6: NY | D6: 2008 | E6: 20008 | F6: Subsidiary Unit of a Transit Agency, Reporting Separately | G6: Full Reporter | H6: 18351295 | I6: 11000 | J6: RB | K6: DO | L6: 108 | M6: 253 | O6: 92 | Q6: 345 | S6: 1947786 | U6: 1818831 | AA6: No
A7: New Jersey Transit Corporation | B7: Newark | C7: NJ | D7: 2080 | E7: 20080 | F7: Other Publicly-Owned or Privately Chartered Corporation | G7: Full Reporter | H7: 18351295 | I7: 4020 | J7: MB | K7: DO | L7: 1870 | M7: 6370 | O7: 3293 | Q7: 9663 | S7: 93927426 | U7: 72336027 | AA7: No
A8: New Jersey Transit Corporation | B8: Newark | C8: NJ | D8: 2080 | E8: 20080 | F8: Other Publicly-Owned or Privately Chartered Corporation | G8: Full Reporter | H8: 18351295 | I8: 4020 | J8: CR | K8: DO | L8: 1267 | M8: 240 | O8: 300 | Q8: 540 | S8: 66758780 | U8: 63090304 | W8: 9878893 | Y8: 9305813 | AA8: No
A9: New Jersey Transit Corporation | B9: Newark | C9: NJ | D9: 2080 | E9: 20080 | F9: Other Publicly-Owned or Privately Chartered Corporation | G9: Full Reporter | H9: 18351295 | I9: 4020 | J9: DR | K9: PT | L9: 432 | M9: 265 | O9: 70 | Q9: 335 | S9: 16677181 | U9: 13833948 | AA9: No
A10: New Jersey Transit Corporation | B10: Newark | C10: NJ | D10: 2080 | E10: 20080 | F10: Other Publicly-Owned or Privately Chartered Corporation | G10: Full Reporter | H10: 18351295 | I10: 4020 | J10: VP | K10: PT | L10: 198 | M10: 18 | O10: 21 | Q10: 39 | S10: 4543569 | U10: 4543569 | AA10: No
A11: New Jersey Transit Corporation | B11: Newark | C11: NJ | D11: 2080 | E11: 20080 | F11: Other Publicly-Owned or Privately Chartered Corporation | G11: Full Reporter | H11: 18351295 | I11: 4020 | J11: MB | K11: PT | L11: 181 | M11: 168 | O11: 669 | Q11: 837 | S11: 8324702 | U11: 7239350 | AA11: No
A12: New Jersey Transit Corporation | B12: Newark | C12: NJ | D12: 2080 | E12: 20080 | F12: Other Publicly-Owned or Privately Chartered Corporation | G12: Full Reporter | H12: 18351295 | I12: 4020 | J12: LR | K12: PT | L12: 42 | M12: 49 | O12: 0 | Q12: 49 | S12: 1866693 | U12: 1866693 | W12: 1165017 | Y12: 1165017 | AA12: No
A13: New Jersey Transit Corporation | B13: Newark | C13: NJ | D13: 2080 | E13: 20080 | F13: Other Publicly-Owned or Privately Chartered Corporation | G13: Full Reporter | H13: 18351295 | I13: 4020 | J13: YR | K13: PT | L13: 16 | M13: 60 | O13: 3 | Q13: 63 | S13: 1329165 | U13: 1299746 | W13: 1021412 | Y13: 1021412 | AA13: No
A14: New Jersey Transit Corporation | B14: Newark | C14: NJ | D14: 2080 | E14: 20080 | F14: Other Publicly-Owned or Privately Chartered Corporation | G14: Full Reporter | H14: 18351295 | I14: 4020 | J14: LR | K14: DO | L14: 14 | M14: 23 | O14: 57 | Q14: 80 | S14: 533505 | U14: 522772 | W14: 533505 | Y14: 522772 | AA14: No
A15: Los Angeles County Metropolitan Transportation Authority dba: Metro | B15: Los Angeles | C15: CA | D15: 9154 | E15: 90154 | F15: Independent Public Agency or Authority of Transit Service | G15: Full Reporter | H15: 12150996 | I15: 3516 | J15: MB | K15: DO | L15: 1766 | M15: 6592 | O15: 12012 | Q15: 18604 | S15: 81030866 | U15: 67707430 | AA15: No
A16: Los Angeles County Metropolitan Transportation Authority dba: Metro | B16: Los Angeles | C16: CA | D16: 9154 | E16: 90154 | F16: Independent Public Agency or Authority of Transit Service | G16: Full Reporter | H16: 12150996 | I16: 3516 | J16: VP | K16: PT | L16: 1378 | M16: 0 | O16: 17 | Q16: 17 | S16: 32006362 | U16: 32006362 | AA16: No
A17: Los Angeles County Metropolitan Transportation Authority dba: Metro | B17: Los Angeles | C17: CA | D17: 9154 | E17: 90154 | F17: Independent Public Agency or Authority of Transit Service | G17: Full Reporter | H17: 12150996 | I17: 3516 | J17: LR | K17: DO | L17: 144 | M17: 464 | O17: 104 | Q17: 568 | S17: 14138070 | U17: 13702192 | W17: 6151933 | Y17: 5969890 | AA17: No
A18: Los Angeles County Metropolitan Transportation Authority dba: Metro | B18: Los Angeles | C18: CA | D18: 9154 | E18: 90154 | F18: Independent Public Agency or Authority of Transit Service | G18: Full Reporter | H18: 12150996 | I18: 3516 | J18: MB | K18: PT | L18: 125 | M18: 617 | O18: 242 | Q18: 859 | S18: 6754720 | U18: 5529518 | AA18: No
A19: Los Angeles County Metropolitan Transportation Authority dba: Metro | B19: Los Angeles | C19: CA | D19: 9154 | E19: 90154 | F19: Independent Public Agency or Authority of Transit Service | G19: Full Reporter | H19: 12150996 | I19: 3516 | J19: HR | K19: DO | L19: 70 | M19: 65 | O19: 24 | Q19: 89 | S19: 7192811 | U19: 6977414 | W19: 1483854 | Y19: 1440487 | AA19: No
A20: Los Angeles County Metropolitan Transportation Authority dba: Metro | B20: Los Angeles | C20: CA | D20: 9154 | E20: 90154 | F20: Independent Public Agency or Authority of Transit Service | G20: Full Reporter | H20: 12150996 | I20: 3516 | J20: RB | K20: DO | L20: 33 | M20: 187 | O20: 351 | Q20: 538 | S20: 2056780 | U20: 1969431 | AA20: No
A21: Washington Metropolitan Area Transit Authority | B21: Washington | C21: DC | D21: 3030 | E21: 30030 | F21: Independent Public Agency or Authority of Transit Service | G21: Full Reporter | H21: 4586770 | I21: 3200 | J21: MB | K21: DO | L21: 1300 | M21: 5420 | O21: 1690 | Q21: 7110 | S21: 50431724 | U21: 38258564 | AA21: No
A22: Washington Metropolitan Area Transit Authority | B22: Washington | C22: DC | D22: 3030 | E22: 30030 | F22: Independent Public Agency or Authority of Transit Service | G22: Full Reporter | H22: 4586770 | I22: 3200 | J22: HR | K22: DO | L22: 954 | M22: 1644 | O22: 151 | Q22: 1795 | S22: 88593984 | U22: 85523746 | W22: 13968996 | Y22: 13505592 | AA22: No
A23: Washington Metropolitan Area Transit Authority | B23: Washington | C23: DC | D23: 3030 | E23: 30030 | F23: Independent Public Agency or Authority of Transit Service | G23: Full Reporter | H23: 4586770 | I23: 3200 | J23: DR | K23: PT | L23: 654 | M23: 306 | O23: 1406 | Q23: 1712 | S23: 21858126 | U23: 18860231 | AA23: No
A24: Washington Metropolitan Area Transit Authority | B24: Washington | C24: DC | D24: 3030 | E24: 30030 | F24: Independent Public Agency or Authority of Transit Service | G24: Full Reporter | H24: 4586770 | I24: 3200 | J24: MB | K24: PT | L24: 44 | M24: 80 | O24: 0 | Q24: 80 | S24: 312005 | U24: 282505 | AA24: No
A25: King County Department of Transportation - Metro Transit Division | B25: Seattle | C25: WA | D25: 1 | E25: 1 | F25: City, County or Local Government Unit or Department of Transportation | G25: Full Reporter | H25: 3059393 | I25: 2875 | J25: VP | K25: DO | L25: 1476 | M25: 52 | O25: 0 | Q25: 52 | S25: 14693548 | U25: 14693548 | V25: Q | AA25: Yes
A26: King County Department of Transportation - Metro Transit Division | B26: Seattle | C26: WA | D26: 1 | E26: 1 | F26: City, County or Local Government Unit or Department of Transportation | G26: Full Reporter | H26: 3059393 | I26: 2875 | J26: MB | K26: DO | L26: 871 | M26: 6557 | O26: 6765 | Q26: 13322 | S26: 39444808 | U26: 31651853 | V26: Q | AA26: Yes
A27: King County Department of Transportation - Metro Transit Division | B27: Seattle | C27: WA | D27: 1 | E27: 1 | F27: City, County or Local Government Unit or Department of Transportation | G27: Full Reporter | H27: 3059393 | I27: 2875 | J27: DR | K27: PT | L27: 321 | M27: 53 | O27: 73 | Q27: 126 | S27: 8109136 | U27: 6705640 | V27: Q | AA27: Yes
A28: King County Department of Transportation - Metro Transit Division | B28: Seattle | C28: WA | D28: 1 | E28: 1 | F28: City, County or Local Government Unit or Department of Transportation | G28: Full Reporter | H28: 3059393 | I28: 2875 | J28: TB | K28: DO | L28: 129 | M28: 1988 | O28: 1997 | Q28: 3985 | S28: 2952113 | U28: 2827567 | V28: Q | AA28: Yes
A29: King County Department of Transportation - Metro Transit Division | B29: Seattle | C29: WA | D29: 1 | E29: 1 | F29: City, County or Local Government Unit or Department of Transportation | G29: Full Reporter | H29: 3059393 | I29: 2875 | J29: MB | K29: PT | L29: 30 | M29: 43 | O29: 69 | Q29: 112 | S29: 1326685 | U29: 1068355 | V29: Q | AA29: Yes
A30: King County Department of Transportation - Metro Transit Division | B30: Seattle | C30: WA | D30: 1 | E30: 1 | F30: City, County or Local Government Unit or Department of Transportation | G30: Full Reporter | H30: 3059393 | I30: 2875 | J30: SR | K30: DO | L30: 3 | M30: 3 | O30: 10 | Q30: 13 | S30: 60336 | U30: 59960 | V30: Q | W30: 60336 | Y30: 59960 | AA30: Yes
A31: Chicago Transit Authority | B31: Chicago | C31: IL | D31: 5066 | E31: 50066 | F31: Independent Public Agency or Authority of Transit Service | G31: Full Reporter | H31: 8608208 | I31: 2728 | J31: MB | K31: DO | L31: 1594 | M31: 5760 | O31: 8953 | Q31: 14713 | S31: 57763221 | U31: 52277748 | AA31: No
A32: Chicago Transit Authority | B32: Chicago | C32: IL | D32: 5066 | E32: 50066 | F32: Independent Public Agency or Authority of Transit Service | G32: Full Reporter | H32: 8608208 | I32: 2728 | J32: HR | K32: DO | L32: 1134 | M32: 247 | O32: 11094 | Q32: 11341 | S32: 72140527 | U32: 71297563 | W32: 11934438 | Y32: 11806097 | AA32: No
A33: Massachusetts Bay Transportation Authority | B33: Boston | C33: MA | D33: 1003 | E33: 10003 | F33: Independent Public Agency or Authority of Transit Service | G33: Full Reporter | H33: 4181019 | I33: 2344 | J33: MB | K33: DO | L33: 790 | M33: 1472 | O33: 415 | Q33: 1887 | S33: 24479775 | U33: 21693197 | AA33: No
A34: Massachusetts Bay Transportation Authority | B34: Boston | C34: MA | D34: 1003 | E34: 10003 | F34: Independent Public Agency or Authority of Transit Service | G34: Full Reporter | H34: 4181019 | I34: 2344 | J34: DR | K34: PT | L34: 590 | M34: 153 | O34: 723 | Q34: 876 | S34: 22754991 | U34: 19141547 | AA34: No
A35: Massachusetts Bay Transportation Authority | B35: Boston | C35: MA | D35: 1003 | E35: 10003 | F35: Independent Public Agency or Authority of Transit Service | G35: Full Reporter | H35: 4181019 | I35: 2344 | J35: CR | K35: PT | L35: 421 | M35: 302 | O35: 54 | Q35: 356 | S35: 23143695 | U35: 21927049 | W35: 4194164 | Y35: 4091626 | AA35: No
A36: Massachusetts Bay Transportation Authority | B36: Boston | C36: MA | D36: 1003 | E36: 10003 | F36: Independent Public Agency or Authority of Transit Service | G36: Full Reporter | H36: 4181019 | I36: 2344 | J36: HR | K36: DO | L36: 336 | M36: 452 | O36: 37 | Q36: 489 | S36: 23056534 | U36: 22437774 | W36: 3842756 | Y36: 3739629 | AA36: No
A37: Massachusetts Bay Transportation Authority | B37: Boston | C37: MA | D37: 1003 | E37: 10003 | F37: Independent Public Agency or Authority of Transit Service | G37: Full Reporter | H37: 4181019 | I37: 2344 | J37: LR | K37: DO | L37: 151 | M37: 1345 | O37: 129 | Q37: 1474 | S37: 6229312 | U37: 6215412 | W37: 3481555 | Y37: 3473786 | AA37: No
A38: Massachusetts Bay Transportation Authority | B38: Boston | C38: MA | D38: 1003 | E38: 10003 | F38: Independent Public Agency or Authority of Transit Service | G38: Full Reporter | H38: 4181019 | I38: 2344 | J38: RB | K38: DO | L38: 30 | M38: 106 | O38: 33 | Q38: 139 | S38: 1212064 | U38: 1049824 | AA38: No
A39: Massachusetts Bay Transportation Authority | B39: Boston | C39: MA | D39: 1003 | E39: 10003 | F39: Independent Public Agency or Authority of Transit Service | G39: Full Reporter | H39: 4181019 | I39: 2344 | J39: TB | K39: DO | L39: 10 | M39: 1 | O39: 11 | Q39: 12 | S39: 239974 | U39: 238787 | AA39: No
A40: Massachusetts Bay Transportation Authority | B40: Boston | C40: MA | D40: 1003 | E40: 10003 | F40: Independent Public Agency or Authority of Transit Service | G40: Full Reporter | H40: 4181019 | I40: 2344 | J40: FB | K40: PT | L40: 8 | M40: 6 | O40: 0 | Q40: 6 | S40: 229735 | U40: 226027 | AA40: No
A41: Massachusetts Bay Transportation Authority | B41: Boston | C41: MA | D41: 1003 | E41: 10003 | F41: Independent Public Agency or Authority of Transit Service | G41: Full Reporter | H41: 4181019 | I41: 2344 | J41: MB | K41: PT | L41: 8 | M41: 9 | O41: 4 | Q41: 13 | S41: 410602 | U41: 395604 | AA41: No
A42: Southeastern Pennsylvania Transportation Authority | B42: Philadelphia | C42: PA | D42: 3019 | E42: 30019 | F42: Independent Public Agency or Authority of Transit Service | G42: Full Reporter | H42: 5441567 | I42: 2340 | J42: MB | K42: DO | L42: 1172 | M42: 6335 | O42: 2996 | Q42: 9331 | S42: 45415773 | U42: 39751731 | AA42: No
A43: Southeastern Pennsylvania Transportation Authority | B43: Philadelphia | C43: PA | D43: 3019 | E43: 30019 | F43: Independent Public Agency or Authority of Transit Service | G43: Full Reporter | H43: 5441567 | I43: 2340 | J43: DR | K43: PT | L43: 388 | M43: 704 | O43: 374 | Q43: 1078 | S43: 13360767 | U43: 11199795 | AA43: No
A44: Southeastern Pennsylvania Transportation Authority | B44: Philadelphia | C44: PA | D44: 3019 | E44: 30019 | F44: Independent Public Agency or Authority of Transit Service | G44: Full Reporter | H44: 5441567 | I44: 2340 | J44: CR | K44: DO | L44: 339 | M44: 27 | O44: 90 | Q44: 117 | S44: 20487192 | U44: 19286247 | W44: 5309851 | Y44: 5005802 | AA44: No
A45: Southeastern Pennsylvania Transportation Authority | B45: Philadelphia | C45: PA | D45: 3019 | E45: 30019 | F45: Independent Public Agency or Authority of Transit Service | G45: Full Reporter | H45: 5441567 | I45: 2340 | J45: HR | K45: DO | L45: 287 | M45: 72 | O45: 3724 | Q45: 3796 | S45: 17272028 | U45: 17112209 | W45: 3328081 | Y45: 3295115 | AA45: No
A46: Southeastern Pennsylvania Transportation Authority | B46: Philadelphia | C46: PA | D46: 3019 | E46: 30019 | F46: Independent Public Agency or Authority of Transit Service | G46: Full Reporter | H46: 5441567 | I46: 2340 | J46: SR | K46: DO | L46: 124 | M46: 34 | O46: 808 | Q46: 842 | S46: 3568369 | U46: 3431721 | W46: 3568369 | Y46: 3431721 | AA46: No
A47: Southeastern Pennsylvania Transportation Authority | B47: Philadelphia | C47: PA | D47: 3019 | E47: 30019 | F47: Independent Public Agency or Authority of Transit Service | G47: Full Reporter | H47: 5441567 | I47: 2340 | J47: TB | K47: DO | L47: 30 | M47: 154 | O47: 26 | Q47: 180 | S47: 951419 | U47: 932389 | AA47: No
A48: Metropolitan Transit Authority of Harris County, Texas | B48: Houston | C48: TX | D48: 6008 | E48: 60008 | F48: Independent Public Agency or Authority of Transit Service | G48: Full Reporter | H48: 4944332 | I48: 2240 | J48: VP | K48: PT | L48: 720 | M48: 31 | O48: 56 | Q48: 87 | S48: 10120643 | U48: 10120643 | AA48: No
A49: Metropolitan Transit Authority of Harris County, Texas | B49: Houston | C49: TX | D49: 6008 | E49: 60008 | F49: Independent Public Agency or Authority of Transit Service | G49: Full Reporter | H49: 4944332 | I49: 2240 | J49: MB | K49: DO | L49: 610 | M49: 2852 | O49: 1167 | Q49: 4019 | S49: 30362765 | U49: 26331312 | AA49: No
A50: Metropolitan Transit Authority of Harris County, Texas | B50: Houston | C50: TX | D50: 6008 | E50: 60008 | F50: Independent Public Agency or Authority of Transit Service | G50: Full Reporter | H50: 4944332 | I50: 2240 | J50: DR | K50: PT | L50: 332 | M50: 164 | O50: 600 | Q50: 764 | S50: 19564434 | U50: 15473092 | AA50: No
A51: Metropolitan Transit Authority of Harris County, Texas | B51: Houston | C51: TX | D51: 6008 | E51: 60008 | F51: Independent Public Agency or Authority of Transit Service | G51: Full Reporter | H51: 4944332 | I51: 2240 | J51: CB | K51: DO | L51: 232 | M51: 355 | O51: 131 | Q51: 486 | S51: 8166187 | U51: 6142718 | AA51: No
A52: Metropolitan Transit Authority of Harris County, Texas | B52: Houston | C52: TX | D52: 6008 | E52: 60008 | F52: Independent Public Agency or Authority of Transit Service | G52: Full Reporter | H52: 4944332 | I52: 2240 | J52: MB | K52: PT | L52: 143 | M52: 765 | O52: 293 | Q52: 1058 | S52: 8738934 | U52: 7237868 | AA52: No
A53: Metropolitan Transit Authority of Harris County, Texas | B53: Houston | C53: TX | D53: 6008 | E53: 60008 | F53: Independent Public Agency or Authority of Transit Service | G53: Full Reporter | H53: 4944332 | I53: 2240 | J53: CB | K53: PT | L53: 60 | M53: 99 | O53: 63 | Q53: 162 | S53: 2817387 | U53: 2056309 | AA53: No
A54: Metropolitan Transit Authority of Harris County, Texas | B54: Houston | C54: TX | D54: 6008 | E54: 60008 | F54: Independent Public Agency or Authority of Transit Service | G54: Full Reporter | H54: 4944332 | I54: 2240 | J54: LR | K54: DO | L54: 51 | M54: 28 | O54: 42 | Q54: 70 | S54: 2358132 | U54: 2350774 | W54: 1505008 | Y54: 1497650 | AA54: No
A55: Pace - Suburban Bus Division | B55: Arlington Heights | C55: IL | D55: 5113 | E55: 50113 | F55: Independent Public Agency or Authority of Transit Service | G55: Full Reporter | H55: 8608208 | I55: 1638 | J55: VP | K55: DO | L55: 710 | M55: 71 | O55: 6 | Q55: 77 | S55: 10010513 | U55: 10010513 | AA55: No
A56: Pace - Suburban Bus Division | B56: Arlington Heights | C56: IL | D56: 5113 | E56: 50113 | F56: Independent Public Agency or Authority of Transit Service | G56: Full Reporter | H56: 8608208 | I56: 1638 | J56: MB | K56: DO | L56: 520 | M56: 2142 | O56: 622 | Q56: 2764 | S56: 24615272 | U56: 19977845 | AA56: No
A57: Pace - Suburban Bus Division | B57: Arlington Heights | C57: IL | D57: 5113 | E57: 50113 | F57: Independent Public Agency or Authority of Transit Service | G57: Full Reporter | H57: 8608208 | I57: 1638 | J57: DR | K57: PT | L57: 254 | M57: 62 | O57: 43 | Q57: 105 | S57: 5530074 | U57: 4663608 | AA57: No
A58: Pace - Suburban Bus Division | B58: Arlington Heights | C58: IL | D58: 5113 | E58: 50113 | F58: Independent Public Agency or Authority of Transit Service | G58: Full Reporter | H58: 8608208 | I58: 1638 | J58: MB | K58: PT | L58: 93 | M58: 24 | O58: 25 | Q58: 49 | S58: 2421081 | U58: 1684544 | AA58: No
A59: Pace - Suburban Bus Division | B59: Arlington Heights | C59: IL | D59: 5113 | E59: 50113 | F59: Independent Public Agency or Authority of Transit Service | G59: Full Reporter | H59: 8608208 | I59: 1638 | J59: DR | K59: DO | L59: 7 | M59: 1 | O59: 0 | Q59: 1 | S59: 220263 | U59: 189807 | AA59: No
A60: Orange County Transportation Authority | B60: Orange | C60: CA | D60: 9036 | E60: 90036 | F60: Independent Public Agency or Authority of Transit Service | G60: Full Reporter | H60: 12150996 | I60: 1528 | J60: VP | K60: PT | L60: 490 | M60: 7 | O60: 8 | Q60: 15 | S60: 8277276 | U60: 8277276 | AA60: No
A61: Orange County Transportation Authority | B61: Orange | C61: CA | D61: 9036 | E61: 90036 | F61: Independent Public Agency or Authority of Transit Service | G61: Full Reporter | H61: 12150996 | I61: 1528 | J61: DR | K61: PT | L61: 473 | M61: 373 | O61: 177 | Q61: 550 | S61: 13428521 | U61: 12075258 | AA61: No
A62: Orange County Transportation Authority | B62: Orange | C62: CA | D62: 9036 | E62: 90036 | F62: Independent Public Agency or Authority of Transit Service | G62: Full Reporter | H62: 12150996 | I62: 1528 | J62: MB | K62: DO | L62: 293 | M62: 1144 | O62: 18 | Q62: 1162 | S62: 15409100 | U62: 12972564 | AA62: No
A63: Orange County Transportation Authority | B63: Orange | C63: CA | D63: 9036 | E63: 90036 | F63: Independent Public Agency or Authority of Transit Service | G63: Full Reporter | H63: 12150996 | I63: 1528 | J63: MB | K63: PT | L63: 158 | M63: 642 | O63: 305 | Q63: 947 | S63: 7569688 | U63: 5967824 | AA63: No
A64: Orange County Transportation Authority | B64: Orange | C64: CA | D64: 9036 | E64: 90036 | F64: Independent Public Agency or Authority of Transit Service | G64: Full Reporter | H64: 12150996 | I64: 1528 | J64: CB | K64: PT | L64: 23 | M64: 49 | O64: 0 | Q64: 49 | S64: 896809 | U64: 444625 | AA64: No
A65: Orange County Transportation Authority | B65: Orange | C65: CA | D65: 9036 | E65: 90036 | F65: Independent Public Agency or Authority of Transit Service | G65: Full Reporter | H65: 12150996 | I65: 1528 | J65: CB | K65: DO | L65: 6 | M65: 18 | O65: 0 | Q65: 18 | S65: 395405 | U65: 229460 | AA65: No
A66: San Francisco Municipal Railway | B66: San Francisco | C66: CA | D66: 9015 | E66: 90015 | F66: City, County or Local Government Unit or Department of Transportation | G66: Full Reporter | H66: 3281212 | I66: 1524 | J66: MB | K66: DO | L66: 430 | M66: 1923 | O66: 178 | Q66: 2101 | S66: 13404941 | U66: 11806194 | AA66: =IF(OR(Z66="Q",X66="Q",V66="Q",T66="Q",R66="Q",P66="Q",N66="Q"),"Yes","No") -> No
A67: San Francisco Municipal Railway | B67: San Francisco | C67: CA | D67: 9015 | E67: 90015 | F67: City, County or Local Government Unit or Department of Transportation | G67: Full Reporter | H67: 3281212 | I67: 1524 | J67: TB | K67: DO | L67: 196 | M67: 1809 | O67: 310 | Q67: 2119 | S67: 5925177 | U67: 5690212 | AA67: No
A68: San Francisco Municipal Railway | B68: San Francisco | C68: CA | D68: 9015 | E68: 90015 | F68: City, County or Local Government Unit or Department of Transportation | G68: Full Reporter | H68: 3281212 | I68: 1524 | J68: DR | K68: PT | L68: 135 | M68: 84 | O68: 178 | Q68: 262 | S68: 2335651 | U68: 1802314 | AA68: No
A69: San Francisco Municipal Railway | B69: San Francisco | C69: CA | D69: 9015 | E69: 90015 | F69: City, County or Local Government Unit or Department of Transportation | G69: Full Reporter | H69: 3281212 | I69: 1524 | J69: LR | K69: DO | L69: 131 | M69: 1108 | O69: 5097 | Q69: 6205 | S69: 4861651 | U69: 4853748 | W69: 3340334 | Y69: 3334980 | AA69: No
A70: San Francisco Municipal Railway | B70: San Francisco | C70: CA | D70: 9015 | E70: 90015 | F70: City, County or Local Government Unit or Department of Transportation | G70: Full Reporter | H70: 3281212 | I70: 1524 | J70: CC | K70: DO | L70: 27 | M70: 54 | O70: 2001 | Q70: 2055 | S70: 284716 | U70: 278250 | W70: 284716 | Y70: 278250 | AA70: No
A71: San Francisco Municipal Railway | B71: San Francisco | C71: CA | D71: 9015 | E71: 90015 | F71: City, County or Local Government Unit or Department of Transportation | G71: Full Reporter | H71: 3281212 | I71: 1524 | J71: SR | K71: DO | L71: 24 | M71: 283 | O71: 1222 | Q71: 1505 | S71: 418899 | U71: 418055 | W71: 418899 | Y71: 418055 | AA71: No
A72: Maryland Transit Administration | B72: Baltimore | C72: MD | D72: 3034 | E72: 30034 | F72: State Government Unit or Department of Transportation | G72: Full Reporter | H72: 2203663 | I72: 1491 | J72: MB | K72: DO | L72: 620 | M72: 3681 | O72: 3558 | Q72: 7239 | S72: 22887863 | U72: 20069580 | V72: Q | AA72: Yes
A73: Maryland Transit Administration | B73: Baltimore | C73: MD | D73: 3034 | E73: 30034 | F73: State Government Unit or Department of Transportation | G73: Full Reporter | H73: 2203663 | I73: 1491 | J73: DR | K73: PT | L73: 410 | M73: 110 | O73: 40 | Q73: 150 | S73: 18090583 | U73: 15644797 | V73: Q | AA73: Yes
A74: Maryland Transit Administration | B74: Baltimore | C74: MD | D74: 3034 | E74: 30034 | F74: State Government Unit or Department of Transportation | G74: Full Reporter | H74: 2203663 | I74: 1491 | J74: CB | K74: PT | L74: 192 | M74: 919 | O74: 677 | Q74: 1596 | S74: 6086835 | U74: 5909549 | V74: Q | AA74: Yes
A75: Maryland Transit Administration | B75: Baltimore | C75: MD | D75: 3034 | E75: 30034 | F75: State Government Unit or Department of Transportation | G75: Full Reporter | H75: 2203663 | I75: 1491 | J75: CR | K75: PT | L75: 142 | M75: 25 | O75: 0 | Q75: 25 | S75: 6552608 | U75: 6159398 | V75: Q | W75: 1248988 | Y75: 1181501 | AA75: Yes
A76: Maryland Transit Administration | B76: Baltimore | C76: MD | D76: 3034 | E76: 30034 | F76: State Government Unit or Department of Transportation | G76: Full Reporter | H76: 2203663 | I76: 1491 | J76: HR | K76: DO | L76: 54 | M76: 573 | O76: 2505 | Q76: 3078 | S76: 5214403 | U76: 5010749 | V76: Q | W76: 1131910 | Y76: 1090286 | AA76: Yes
A77: Maryland Transit Administration | B77: Baltimore | C77: MD | D77: 3034 | E77: 30034 | F77: State Government Unit or Department of Transportation | G77: Full Reporter | H77: 2203663 | I77: 1491 | J77: LR | K77: DO | L77: 38 | M77: 192 | O77: 788 | Q77: 980 | S77: 3012633 | U77: 2982965 | W77: 1635121 | Y77: 1619088 | Z77: Q | AA77: Yes
A78: Denver Regional Transportation District | B78: Denver | C78: CO | D78: 8006 | E78: 80006 | F78: Independent Public Agency or Authority of Transit Service | G78: Full Reporter | H78: 2374203 | I78: 1395 | J78: MB | K78: DO | L78: 482 | M78: 396 | O78: 295 | Q78: 691 | S78: 26118143 | U78: 20991989 | AA78: No
A79: Denver Regional Transportation District | B79: Denver | C79: CO | D79: 8006 | E79: 80006 | F79: Independent Public Agency or Authority of Transit Service | G79: Full Reporter | H79: 2374203 | I79: 1395 | J79: DR | K79: PT | L79: 404 | M79: 154 | O79: 153 | Q79: 307 | S79: 13380202 | U79: 10910711 | AA79: No
A80: Denver Regional Transportation District | B80: Denver | C80: CO | D80: 8006 | E80: 80006 | F80: Independent Public Agency or Authority of Transit Service | G80: Full Reporter | H80: 2374203 | I80: 1395 | J80: MB | K80: PT | L80: 372 | M80: 231 | O80: 298 | Q80: 529 | S80: 18354611 | U80: 15197960 | AA80: No
A81: Denver Regional Transportation District | B81: Denver | C81: CO | D81: 8006 | E81: 80006 | F81: Independent Public Agency or Authority of Transit Service | G81: Full Reporter | H81: 2374203 | I81: 1395 | J81: LR | K81: DO | L81: 137 | M81: 303 | O81: 174 | Q81: 477 | S81: 11549087 | U81: 11101915 | W81: 4140200 | Y81: 3925372 | AA81: No
A82: Metro-North Commuter Railroad Company, dba: MTA Metro-North Railroad | B82: New York | C82: NY | D82: 2078 | E82: 20078 | F82: Subsidiary Unit of a Transit Agency, Reporting Separately | G82: Full Reporter | H82: 18351295 | I82: 1199 | J82: CR | K82: DO | L82: 1188 | M82: 98 | O82: 0 | Q82: 98 | S82: 77909780 | U82: 69733353 | W82: 10664264 | Y82: 9522845 | AA82: No
A83: Metro-North Commuter Railroad Company, dba: MTA Metro-North Railroad | B83: New York | C83: NY | D83: 2078 | E83: 20078 | F83: Subsidiary Unit of a Transit Agency, Reporting Separately | G83: Full Reporter | H83: 18351295 | I83: 1199 | J83: MB | K83: PT | L83: 9 | M83: 2 | O83: 11 | Q83: 13 | S83: 260397 | U83: 194147 | AA83: No
A84: Metro-North Commuter Railroad Company, dba: MTA Metro-North Railroad | B84: New York | C84: NY | D84: 2078 | E84: 20078 | F84: Subsidiary Unit of a Transit Agency, Reporting Separately | G84: Full Reporter | H84: 18351295 | I84: 1199 | J84: FB | K84: PT | L84: 2 | M84: 2 | O84: 6 | Q84: 8 | S84: 42343 | U84: 42343 | AA84: No
A85: Miami-Dade Transit | B85: Miami | C85: FL | D85: 4034 | E85: 40034 | F85: City, County or Local Government Unit or Department of Transportation | G85: Full Reporter | H85: 5502379 | I85: 1129 | J85: MB | K85: DO | L85: 672 | M85: 9289 | O85: 10009 | Q85: 19298 | S85: 33508707 | U85: 28096442 | AA85: No
A86: Miami-Dade Transit | B86: Miami | C86: FL | D86: 4034 | E86: 40034 | F86: City, County or Local Government Unit or Department of Transportation | G86: Full Reporter | H86: 5502379 | I86: 1129 | J86: DR | K86: PT | L86: 347 | M86: 67 | O86: 96 | Q86: 163 | S86: 16244581 | U86: 14159764 | AA86: No
A87: Miami-Dade Transit | B87: Miami | C87: FL | D87: 4034 | E87: 40034 | F87: City, County or Local Government Unit or Department of Transportation | G87: Full Reporter | H87: 5502379 | I87: 1129 | J87: HR | K87: DO | L87: 80 | M87: 228 | O87: 2059 | Q87: 2287 | S87: 8415839 | U87: 8306783 | W87: 2058193 | Y87: 1942938 | AA87: No
A88: Miami-Dade Transit | B88: Miami | C88: FL | D88: 4034 | E88: 40034 | F88: City, County or Local Government Unit or Department of Transportation | G88: Full Reporter | H88: 5502379 | I88: 1129 | J88: MG | K88: DO | L88: 23 | M88: 189 | O88: 616 | Q88: 805 | S88: 1167775 | U88: 1133951 | W88: 983806 | Y88: 959211 | AA88: No
A89: Miami-Dade Transit | B89: Miami | C89: FL | D89: 4034 | E89: 40034 | F89: City, County or Local Government Unit or Department of Transportation | G89: Full Reporter | H89: 5502379 | I89: 1129 | J89: CB | K89: PT | L89: 7 | M89: 21 | O89: 143 | Q89: 164 | S89: 663205 | U89: 653715 | AA89: No
A90: Utah Transit Authority | B90: Salt Lake City | C90: UT | D90: 8001 | E90: 80001 | F90: Independent Public Agency or Authority of Transit Service | G90: Full Reporter | H90: 1021243 | I90: 1104 | J90: VP | K90: DO | L90: 424 | M90: 6 | O90: 2 | Q90: 8 | S90: 6734487 | U90: 6734487 | AA90: No
A91: Utah Transit Authority | B91: Salt Lake City | C91: UT | D91: 8001 | E91: 80001 | F91: Independent Public Agency or Authority of Transit Service | G91: Full Reporter | H91: 1021243 | I91: 1104 | J91: MB | K91: DO | L91: 401 | M91: 1621 | O91: 348 | Q91: 1969 | S91: 15897052 | U91: 13994940 | AA91: No
A92: Utah Transit Authority | B92: Salt Lake City | C92: UT | D92: 8001 | E92: 80001 | F92: Independent Public Agency or Authority of Transit Service | G92: Full Reporter | H92: 1021243 | I92: 1104 | J92: LR | K92: DO | L92: 91 | M92: 98 | O92: 108 | Q92: 206 | S92: 6672346 | U92: 6613633 | W92: 2854816 | Y92: 2828821 | AA92: No
A93: Utah Transit Authority | B93: Salt Lake City | C93: UT | D93: 8001 | E93: 80001 | F93: Independent Public Agency or Authority of Transit Service | G93: Full Reporter | H93: 1021243 | I93: 1104 | J93: DR | K93: DO | L93: 59 | M93: 109 | O93: 23 | Q93: 132 | S93: 1879828 | U93: 1265225 | AA93: No
A94: Utah Transit Authority | B94: Salt Lake City | C94: UT | D94: 8001 | E94: 80001 | F94: Independent Public Agency or Authority of Transit Service | G94: Full Reporter | H94: 1021243 | I94: 1104 | J94: DR | K94: PT | L94: 46 | M94: 51 | O94: 7 | Q94: 58 | S94: 1312539 | U94: 1028662 | AA94: No
A95: Utah Transit Authority | B95: Salt Lake City | C95: UT | D95: 8001 | E95: 80001 | F95: Independent Public Agency or Authority of Transit Service | G95: Full Reporter | H95: 1021243 | I95: 1104 | J95: CB | K95: DO | L95: 42 | M95: 179 | O95: 40 | Q95: 219 | S95: 1515894 | U95: 1145658 | AA95: No
A96: Utah Transit Authority | B96: Salt Lake City | C96: UT | D96: 8001 | E96: 80001 | F96: Independent Public Agency or Authority of Transit Service | G96: Full Reporter | H96: 1021243 | I96: 1104 | J96: CR | K96: DO | L96: 36 | M96: 80 | O96: 10 | Q96: 90 | S96: 5396588 | U96: 5374372 | W96: 1349147 | Y96: 1343594 | AA96: No
A97: Utah Transit Authority | B97: Salt Lake City | C97: UT | D97: 8001 | E97: 80001 | F97: Independent Public Agency or Authority of Transit Service | G97: Full Reporter | H97: 1021243 | I97: 1104 | J97: MB | K97: PT | L97: 5 | M97: 57 | O97: 9 | Q97: 66 | S97: 249540 | U97: 226912 | AA97: No
A98: MTA Bus Company | B98: New York | C98: NY | D98: 2188 | E98: 20188 | F98: Subsidiary Unit of a Transit Agency, Reporting Separately | G98: Full Reporter | H98: 18351295 | I98: 1091 | J98: MB | K98: DO | L98: 1091 | M98: 4543 | O98: 3568 | Q98: 8111 | S98: 36820133 | U98: 27003958 | AA98: No
A99: Northeast Illinois Regional Commuter Railroad Corporation dba: Metra Rail | B99: Chicago | C99: IL | D99: 5118 | E99: 50118 | F99: Independent Public Agency or Authority of Transit Service | G99: Full Reporter | H99: 8608208 | I99: 1062 | J99: CR | K99: DO | L99: 1062 | M99: 68 | O99: 0 | Q99: 68 | S99: 45461543 | U99: 43419650 | W99: 7207927 | Y99: 6890101 | AA99: No
A100: Dallas Area Rapid Transit | B100: Dallas | C100: TX | D100: 6056 | E100: 60056 | F100: Independent Public Agency or Authority of Transit Service | G100: Full Reporter | H100: 5121892 | I100: 1042 | J100: MB | K100: DO | L100: 535 | M100: 1620 | O100: 1299 | Q100: 2919 | S100: 31523966 | U100: 27343486 | AA100: No
A101: Dallas Area Rapid Transit | B101: Dallas | C101: TX | D101: 6056 | E101: 60056 | F101: Independent Public Agency or Authority of Transit Service | G101: Full Reporter | H101: 5121892 | I101: 1042 | J101: VP | K101: DO | L101: 164 | M101: 1 | O101: 1 | Q101: 2 | S101: 2695134 | U101: 2695134 | AA101: No
A102: Dallas Area Rapid Transit | B102: Dallas | C102: TX | D102: 6056 | E102: 60056 | F102: Independent Public Agency or Authority of Transit Service | G102: Full Reporter | H102: 5121892 | I102: 1042 | J102: DR | K102: PT | L102: 109 | M102: 23 | O102: 216 | Q102: 239 | S102: 3930310 | U102: 2373541 | AA102: No
A103: Dallas Area Rapid Transit | B103: Dallas | C103: TX | D103: 6056 | E103: 60056 | F103: Independent Public Agency or Authority of Transit Service | G103: Full Reporter | H103: 5121892 | I103: 1042 | J103: LR | K103: DO | L103: 105 | M103: 102 | O103: 152 | Q103: 254 | S103: 9798389 | U103: 9721956 | W103: 5389156 | Y103: 5346770 | AA103: No
A104: Dallas Area Rapid Transit | B104: Dallas | C104: TX | D104: 6056 | E104: 60056 | F104: Independent Public Agency or Authority of Transit Service | G104: Full Reporter | H104: 5121892 | I104: 1042 | J104: CR | K104: PT | L104: 23 | M104: 6 | O104: 0 | Q104: 6 | S104: 1366293 | U104: 1153406 | W104: 490402 | Y104: 416059 | AA104: No
A105: Dallas Area Rapid Transit | B105: Dallas | C105: TX | D105: 6056 | E105: 60056 | F105: Independent Public Agency or Authority of Transit Service | G105: Full Reporter | H105: 5121892 | I105: 1042 | J105: SR | K105: DO | L105: 1 | M105: 5 | O105: 45 | Q105: 50 | S105: 13112 | U105: 12882 | AA105: No
A106: MTA Long Island Rail Road | B106: Jamaica | C106: NY | D106: 2100 | E106: 20100 | F106: Subsidiary Unit of a Transit Agency, Reporting Separately | G106: Full Reporter | H106: 18351295 | I106: 1019 | J106: CR | K106: DO | L106: 1019 | M106: 94 | O106: 3 | Q106: 97 | S106: 76164503 | U106: 67522769 | W106: 8784450 | Y106: 7695281 | AA106: No
A107: Tri-County Metropolitan Transportation District of Oregon | B107: Portland | C107: OR | D107: 8 | E107: 8 | F107: Independent Public Agency or Authority of Transit Service | G107: Full Reporter | H107: 1849898 | I107: 918 | J107: MB | K107: DO | L107: 534 | M107: 1318 | O107: 4394 | Q107: 5712 | S107: 23643525 | U107: 20177176 | AA107: No
A108: Tri-County Metropolitan Transportation District of Oregon | B108: Portland | C108: OR | D108: 8 | E108: 8 | F108: Independent Public Agency or Authority of Transit Service | G108: Full Reporter | H108: 1849898 | I108: 918 | J108: DR | K108: PT | L108: 219 | M108: 244 | O108: 1015 | Q108: 1259 | S108: 7540709 | U108: 6321642 | AA108: No
A109: Tri-County Metropolitan Transportation District of Oregon | B109: Portland | C109: OR | D109: 8 | E109: 8 | F109: Independent Public Agency or Authority of Transit Service | G109: Full Reporter | H109: 1849898 | I109: 918 | J109: LR | K109: DO | L109: 104 | M109: 232 | O109: 78 | Q109: 310 | S109: 7946024 | U109: 7836651 | W109: 3973345 | Y109: 3918643 | AA109: No
A110: Tri-County Metropolitan Transportation District of Oregon | B110: Portland | C110: OR | D110: 8 | E110: 8 | F110: Independent Public Agency or Authority of Transit Service | G110: Full Reporter | H110: 1849898 | I110: 918 | J110: YR | K110: PT | L110: 4 | M110: 3 | O110: 0 | Q110: 3 | S110: 164409 | U110: 162199 | W110: 119540 | Y110: 117883 | AA110: No
A111: Port Authority of Allegheny County | B111: Pittsburgh | C111: PA | D111: 3022 | E111: 30022 | F111: Independent Public Agency or Authority of Transit Service | G111: Full Reporter | H111: 1733853 | I111: 912 | J111: MB | K111: DO | L111: 575 | M111: 2772 | O111: 317 | Q111: 3089 | S111: 25914991 | U111: 20187249 | AA111: No
A112: Port Authority of Allegheny County | B112: Pittsburgh | C112: PA | D112: 3022 | E112: 30022 | F112: Independent Public Agency or Authority of Transit Service | G112: Full Reporter | H112: 1733853 | I112: 912 | J112: DR | K112: PT | L112: 279 | M112: 236 | O112: 155 | Q112: 391 | S112: 10529456 | U112: 9315640 | AA112: No
A113: Port Authority of Allegheny County | B113: Pittsburgh | C113: PA | D113: 3022 | E113: 30022 | F113: Independent Public Agency or Authority of Transit Service | G113: Full Reporter | H113: 1733853 | I113: 912 | J113: LR | K113: DO | L113: 56 | M113: 160 | O113: 161 | Q113: 321 | S113: 2216163 | U113: 2136358 | W113: 1502650 | Y113: 1422845 | AA113: No
A114: Port Authority of Allegheny County | B114: Pittsburgh | C114: PA | D114: 3022 | E114: 30022 | F114: Independent Public Agency or Authority of Transit Service | G114: Full Reporter | H114: 1733853 | I114: 912 | J114: IP | K114: DO | L114: 2 | M114: 27 | O114: 1 | Q114: 28 | S114: 19602 | U114: 19602 | W114: 19602 | Y114: 19602 | AA114: No
A115: Metro Transit | B115: Minneapolis | C115: MN | D115: 5027 | E115: 50027 | F115: Subsidiary Unit of a Transit Agency, Reporting Separately | G115: Full Reporter | H115: 2650890 | I115: 885 | J115: MB | K115: DO | L115: 793 | M115: 853 | O115: 7557 | Q115: 8410 | S115: 31198704 | U115: 24173773 | AA115: No
A116: Metro Transit | B116: Minneapolis | C116: MN | D116: 5027 | E116: 50027 | F116: Subsidiary Unit of a Transit Agency, Reporting Separately | G116: Full Reporter | H116: 2650890 | I116: 885 | J116: LR | K116: DO | L116: 72 | M116: 179 | O116: 169 | Q116: 348 | S116: 5202174 | U116: 5139496 | W116: 1933612 | Y116: 1910100 | AA116: No
A117: Metro Transit | B117: Minneapolis | C117: MN | D117: 5027 | E117: 50027 | F117: Subsidiary Unit of a Transit Agency, Reporting Separately | G117: Full Reporter | H117: 2650890 | I117: 885 | J117: CR | K117: PT | L117: 20 | M117: 0 | O117: 0 | Q117: 0 | S117: 547051 | U117: 533070 | W117: 150077 | Y117: 146257 | AA117: No
A118: Pace-Suburban Bus Division, ADA Paratransit Services | B118: Arlington Heights | C118: IL | D118: 5182 | E118: 50182 | F118: Independent Public Agency or Authority of Transit Service | G118: Full Reporter | H118: 8608208 | I118: 873 | J118: DR | K118: PT | L118: 853 | M118: 724 | O118: 412 | Q118: 1136 | S118: 39186239 | U118: 34220158 | AA118: No
A119: Metropolitan Atlanta Rapid Transit Authority | B119: Atlanta | C119: GA | D119: 4022 | E119: 40022 | F119: Independent Public Agency or Authority of Transit Service | G119: Full Reporter | H119: 4515419 | I119: 838 | J119: MB | K119: DO | L119: 451 | M119: 4882 | O119: 1714 | Q119: 6596 | S119: 26268900 | U119: 23137711 | AA119: No
A120: Metropolitan Atlanta Rapid Transit Authority | B120: Atlanta | C120: GA | D120: 4022 | E120: 40022 | F120: Independent Public Agency or Authority of Transit Service | G120: Full Reporter | H120: 4515419 | I120: 838 | J120: HR | K120: DO | L120: 224 | M120: 736 | O120: 216 | Q120: 952 | S120: 23075361 | U120: 22215414 | W120: 4029299 | Y120: 3928481 | AA120: No
A121: Metropolitan Atlanta Rapid Transit Authority | B121: Atlanta | C121: GA | D121: 4022 | E121: 40022 | F121: Independent Public Agency or Authority of Transit Service | G121: Full Reporter | H121: 4515419 | I121: 838 | J121: DR | K121: DO | L121: 163 | M121: 428 | O121: 135 | Q121: 563 | S121: 8237740 | U121: 6720600 | AA121: No
A122: City and County of Honolulu Department of Transportation Services | B122: Honolulu | C122: HI | D122: 9002 | E122: 90002 | F122: City, County or Local Government Unit or Department of Transportation | G122: Full Reporter | H122: 802459 | I122: 799 | J122: MB | K122: PT | L122: 442 | M122: 1688 | O122: 4834 | Q122: 6522 | S122: 21229733 | U122: 17761917 | AA122: No
A123: City and County of Honolulu Department of Transportation Services | B123: Honolulu | C123: HI | D123: 9002 | E123: 90002 | F123: City, County or Local Government Unit or Department of Transportation | G123: Full Reporter | H123: 802459 | I123: 799 | J123: DR | K123: PT | L123: 221 | M123: 236 | O123: 196 | Q123: 432 | S123: 7320802 | U123: 5976410 | AA123: No
A124: VIA Metropolitan Transit | B124: San Antonio | C124: TX | D124: 6011 | E124: 60011 | F124: Independent Public Agency or Authority of Transit Service | G124: Full Reporter | H124: 1758210 | I124: 786 | J124: MB | K124: DO | L124: 372 | M124: 3574 | O124: 2045 | Q124: 5619 | S124: 23783378 | U124: 21300820 | AA124: No
A125: VIA Metropolitan Transit | B125: San Antonio | C125: TX | D125: 6011 | E125: 60011 | F125: Independent Public Agency or Authority of Transit Service | G125: Full Reporter | H125: 1758210 | I125: 786 | J125: VP | K125: PT | L125: 195 | M125: 0 | O125: 7 | Q125: 7 | S125: 3739483 | U125: 3739483 | AA125: No
A126: VIA Metropolitan Transit | B126: San Antonio | C126: TX | D126: 6011 | E126: 60011 | F126: Independent Public Agency or Authority of Transit Service | G126: Full Reporter | H126: 1758210 | I126: 786 | J126: DR | K126: PT | L126: 117 | M126: 171 | O126: 308 | Q126: 479 | S126: 6905238 | U126: 5820371 | AA126: No
A127: VIA Metropolitan Transit | B127: San Antonio | C127: TX | D127: 6011 | E127: 60011 | F127: Independent Public Agency or Authority of Transit Service | G127: Full Reporter | H127: 1758210 | I127: 786 | J127: DR | K127: DO | L127: 102 | M127: 338 | O127: 235 | Q127: 573 | S127: 4620731 | U127: 3827077 | AA127: No
A128: San Diego Metropolitan Transit System | B128: San Diego | C128: CA | D128: 9026 | E128: 90026 | F128: Independent Public Agency or Authority of Transit Service | G128: Full Reporter | H128: 2956746 | I128: 732 | J128: MB | K128: PT | L128: 255 | M128: 1108 | O128: 181 | Q128: 1289 | S128: 10227582 | U128: 8833448 | AA128: No
A129: San Diego Metropolitan Transit System | B129: San Diego | C129: CA | D129: 9026 | E129: 90026 | F129: Independent Public Agency or Authority of Transit Service | G129: Full Reporter | H129: 2956746 | I129: 732 | J129: MB | K129: DO | L129: 215 | M129: 830 | O129: 66 | Q129: 896 | S129: 11142180 | U129: 9561390 | AA129: No
A130: San Diego Metropolitan Transit System | B130: San Diego | C130: CA | D130: 9026 | E130: 90026 | F130: Independent Public Agency or Authority of Transit Service | G130: Full Reporter | H130: 2956746 | I130: 732 | J130: DR | K130: PT | L130: 147 | M130: 88 | O130: 2 | Q130: 90 | S130: 5615911 | U130: 4150107 | AA130: =IF(OR(Z130="Q",X130="Q",V130="Q",T130="Q",R130="Q",P130="Q",N130="Q"),"Yes","No") -> No
A131: San Diego Metropolitan Transit System | B131: San Diego | C131: CA | D131: 9026 | E131: 90026 | F131: Independent Public Agency or Authority of Transit Service | G131: Full Reporter | H131: 2956746 | I131: 732 | J131: LR | K131: DO | L131: 97 | M131: 407 | O131: 957 | Q131: 1364 | S131: 8690330 | U131: 8596143 | W131: 3111347 | Y131: 3076927 | AA131: No
A132: San Diego Metropolitan Transit System | B132: San Diego | C132: CA | D132: 9026 | E132: 90026 | F132: Independent Public Agency or Authority of Transit Service | G132: Full Reporter | H132: 2956746 | I132: 732 | J132: CB | K132: PT | L132: 18 | M132: 43 | O132: 1 | Q132: 44 | S132: 810829 | U132: 344334 | AA132: No
A133: San Diego Association of Governments | B133: San Diego | C133: CA | D133: 9095 | E133: 90095 | F133: MPO, COG or Other Planning Agency | G133: Full Reporter | H133: 2956746 | I133: 714 | J133: VP | K133: PT | L133: 714 | M133: 3 | O133: 20 | Q133: 23 | S133: 17165366 | U133: 17165366 | AA133: No
A134: Access Services | B134: El Monte | C134: CA | D134: 9157 | E134: 90157 | F134: Independent Public Agency or Authority of Transit Service | G134: Full Reporter | H134: 12150996 | I134: 709 | J134: DR | K134: PT | L134: 709 | M134: 702 | O134: 663 | Q134: 1365 | S134: 44095541 | U134: 37598967 | AA134: No
A135: Santa Clara Valley Transportation Authority | B135: San Jose | C135: CA | D135: 9013 | E135: 90013 | F135: Independent Public Agency or Authority of Transit Service | G135: Full Reporter | H135: 1664496 | I135: 679 | J135: MB | K135: DO | L135: 384 | M135: 1864 | O135: 364 | Q135: 2228 | S135: 18369158 | U135: 15248535 | AA135: No
A136: Santa Clara Valley Transportation Authority | B136: San Jose | C136: CA | D136: 9013 | E136: 90013 | F136: Independent Public Agency or Authority of Transit Service | G136: Full Reporter | H136: 1664496 | I136: 679 | J136: DR | K136: PT | L136: 225 | M136: 1 | O136: 15 | Q136: 16 | S136: 6760442 | U136: 5922864 | AA136: No
A137: Santa Clara Valley Transportation Authority | B137: San Jose | C137: CA | D137: 9013 | E137: 90013 | F137: Independent Public Agency or Authority of Transit Service | G137: Full Reporter | H137: 1664496 | I137: 679 | J137: LR | K137: DO | L137: 59 | M137: 110 | O137: 0 | Q137: 110 | S137: 3812580 | U137: 3519186 | W137: 2231184 | Y137: 2081092 | AA137: No
A138: Santa Clara Valley Transportation Authority | B138: San Jose | C138: CA | D138: 9013 | E138: 90013 | F138: Independent Public Agency or Authority of Transit Service | G138: Full Reporter | H138: 1664496 | I138: 679 | J138: MB | K138: PT | L138: 11 | M138: 1 | O138: 2 | Q138: 3 | S138: 233125 | U138: 192100 | AA138: No
A139: Capital Metropolitan Transportation Authority | B139: Austin | C139: TX | D139: 6048 | E139: 60048 | F139: Independent Public Agency or Authority of Transit Service | G139: Full Reporter | H139: 1362416 | I139: 674 | J139: MB | K139: PT | L139: 301 | M139: 4902 | O139: 418 | Q139: 5320 | S139: 15616894 | U139: 14001707 | AA139: No
A140: Capital Metropolitan Transportation Authority | B140: Austin | C140: TX | D140: 6048 | E140: 60048 | F140: Independent Public Agency or Authority of Transit Service | G140: Full Reporter | H140: 1362416 | I140: 674 | J140: VP | K140: PT | L140: 179 | M140: 2 | O140: 0 | Q140: 2 | S140: 2241335 | U140: 2241335 | AA140: No
A141: Capital Metropolitan Transportation Authority | B141: Austin | C141: TX | D141: 6048 | E141: 60048 | F141: Independent Public Agency or Authority of Transit Service | G141: Full Reporter | H141: 1362416 | I141: 674 | J141: DR | K141: PT | L141: 137 | M141: 173 | O141: 131 | Q141: 304 | S141: 5933117 | U141: 4942463 | AA141: No
A142: Capital Metropolitan Transportation Authority | B142: Austin | C142: TX | D142: 6048 | E142: 60048 | F142: Independent Public Agency or Authority of Transit Service | G142: Full Reporter | H142: 1362416 | I142: 674 | J142: CB | K142: PT | L142: 35 | M142: 99 | O142: 22 | Q142: 121 | S142: 1130597 | U142: 747633 | AA142: No
A143: Capital Metropolitan Transportation Authority | B143: Austin | C143: TX | D143: 6048 | E143: 60048 | F143: Independent Public Agency or Authority of Transit Service | G143: Full Reporter | H143: 1362416 | I143: 674 | J143: YR | K143: PT | L143: 4 | M143: 15 | O143: 16 | Q143: 31 | S143: 335520 | U143: 287997 | W143: 335520 | Y143: 287997 | AA143: No
A144: Alameda-Contra Costa Transit District | B144: Oakland | C144: CA | D144: 9014 | E144: 90014 | F144: Independent Public Agency or Authority of Transit Service | G144: Full Reporter | H144: 3281212 | I144: 667 | J144: MB | K144: DO | L144: 362 | M144: 2229 | O144: 1305 | Q144: 3534 | S144: 19281252 | U144: 16880097 | AA144: No
A145: Alameda-Contra Costa Transit District | B145: Oakland | C145: CA | D145: 9014 | E145: 90014 | F145: Independent Public Agency or Authority of Transit Service | G145: Full Reporter | H145: 3281212 | I145: 667 | J145: DR | K145: PT | L145: 187 | M145: 154 | O145: 156 | Q145: 310 | S145: 7905602 | U145: 6524042 | AA145: No
A146: Alameda-Contra Costa Transit District | B146: Oakland | C146: CA | D146: 9014 | E146: 90014 | F146: Independent Public Agency or Authority of Transit Service | G146: Full Reporter | H146: 3281212 | I146: 667 | J146: CB | K146: DO | L146: 104 | M146: 123 | O146: 87 | Q146: 210 | S146: 2801678 | U146: 1529419 | AA146: No
A147: Alameda-Contra Costa Transit District | B147: Oakland | C147: CA | D147: 9014 | E147: 90014 | F147: Independent Public Agency or Authority of Transit Service | G147: Full Reporter | H147: 3281212 | I147: 667 | J147: MB | K147: PT | L147: 14 | M147: 8 | O147: 0 | Q147: 8 | S147: 502829 | U147: 425628 | AA147: No
A148: Regional Transportation Commission of Southern Nevada | B148: Las Vegas | C148: NV | D148: 9045 | E148: 90045 | F148: Independent Public Agency or Authority of Transit Service | G148: Full Reporter | H148: 1886011 | I148: 660 | J148: DR | K148: PT | L148: 327 | M148: 280 | O148: 28 | Q148: 308 | S148: 11217598 | U148: 9720920 | AA148: No
A149: Regional Transportation Commission of Southern Nevada | B149: Las Vegas | C149: NV | D149: 9045 | E149: 90045 | F149: Independent Public Agency or Authority of Transit Service | G149: Full Reporter | H149: 1886011 | I149: 660 | J149: MB | K149: PT | L149: 300 | M149: 732 | O149: 794 | Q149: 1526 | S149: 16475991 | U149: 14787743 | AA149: No
A150: Regional Transportation Commission of Southern Nevada | B150: Las Vegas | C150: NV | D150: 9045 | E150: 90045 | F150: Independent Public Agency or Authority of Transit Service | G150: Full Reporter | H150: 1886011 | I150: 660 | J150: RB | K150: PT | L150: 33 | M150: 94 | O150: 46 | Q150: 140 | S150: 1130663 | U150: 968708 | AA150: No
A151: Snohomish County Public Transportation Benefit Area Corporation | B151: Everett | C151: WA | D151: 29 | E151: 29 | F151: Independent Public Agency or Authority of Transit Service | G151: Full Reporter | H151: 3059393 | I151: 608 | J151: VP | K151: DO | L151: 368 | M151: 3 | O151: 6 | Q151: 9 | S151: 4711901 | U151: 4711901 | AA151: No
A152: Snohomish County Public Transportation Benefit Area Corporation | B152: Everett | C152: WA | D152: 29 | E152: 29 | F152: Independent Public Agency or Authority of Transit Service | G152: Full Reporter | H152: 3059393 | I152: 608 | J152: MB | K152: DO | L152: 93 | M152: 918 | O152: 148 | Q152: 1066 | S152: 5797571 | U152: 4953326 | AA152: No
A153: Snohomish County Public Transportation Benefit Area Corporation | B153: Everett | C153: WA | D153: 29 | E153: 29 | F153: Independent Public Agency or Authority of Transit Service | G153: Full Reporter | H153: 3059393 | I153: 608 | J153: CB | K153: PT | L153: 53 | M153: 43 | O153: 61 | Q153: 104 | S153: 1851701 | U153: 894394 | AA153: No
A154: Snohomish County Public Transportation Benefit Area Corporation | B154: Everett | C154: WA | D154: 29 | E154: 29 | F154: Independent Public Agency or Authority of Transit Service | G154: Full Reporter | H154: 3059393 | I154: 608 | J154: CB | K154: DO | L154: 49 | M154: 169 | O154: 10 | Q154: 179 | S154: 1671705 | U154: 789259 | AA154: No
A155: Snohomish County Public Transportation Benefit Area Corporation | B155: Everett | C155: WA | D155: 29 | E155: 29 | F155: Independent Public Agency or Authority of Transit Service | G155: Full Reporter | H155: 3059393 | I155: 608 | J155: DR | K155: PT | L155: 45 | M155: 58 | O155: 54 | Q155: 112 | S155: 1828552 | U155: 1566883 | AA155: No
A156: City of Phoenix Public Transit Department dba Valley Metro | B156: Phoenix | C156: AZ | D156: 9032 | E156: 90032 | F156: City, County or Local Government Unit or Department of Transportation | G156: Full Reporter | H156: 3629114 | I156: 571 | J156: MB | K156: PT | L156: 447 | M156: 1393 | O156: 110 | Q156: 1503 | S156: 20829366 | U156: 16514131 | AA156: No
A157: City of Phoenix Public Transit Department dba Valley Metro | B157: Phoenix | C157: AZ | D157: 9032 | E157: 90032 | F157: City, County or Local Government Unit or Department of Transportation | G157: Full Reporter | H157: 3629114 | I157: 571 | J157: DR | K157: PT | L157: 124 | M157: 132 | O157: 354 | Q157: 486 | S157: 4520913 | U157: 3823261 | AA157: No
A158: Central Florida Regional Transportation Authority | B158: Orlando | C158: FL | D158: 4035 | E158: 40035 | F158: Independent Public Agency or Authority of Transit Service | G158: Full Reporter | H158: 1510516 | I158: 560 | J158: MB | K158: DO | L158: 238 | M158: 962 | O158: 135 | Q158: 1097 | S158: 16112196 | U158: 14493326 | AA158: No
A159: Central Florida Regional Transportation Authority | B159: Orlando | C159: FL | D159: 4035 | E159: 40035 | F159: Independent Public Agency or Authority of Transit Service | G159: Full Reporter | H159: 1510516 | I159: 560 | J159: DR | K159: PT | L159: 161 | M159: 21 | O159: 145 | Q159: 166 | S159: 8038762 | U159: 7425844 | AA159: No
A160: Central Florida Regional Transportation Authority | B160: Orlando | C160: FL | D160: 4035 | E160: 40035 | F160: Independent Public Agency or Authority of Transit Service | G160: Full Reporter | H160: 1510516 | I160: 560 | J160: VP | K160: PT | L160: 132 | M160: 0 | O160: 8 | Q160: 8 | S160: 2543356 | U160: 2543356 | AA160: No
A161: Central Florida Regional Transportation Authority | B161: Orlando | C161: FL | D161: 4035 | E161: 40035 | F161: Independent Public Agency or Authority of Transit Service | G161: Full Reporter | H161: 1510516 | I161: 560 | J161: MB | K161: PT | L161: 15 | M161: 25 | O161: 85 | Q161: 110 | S161: 929422 | U161: 682007 | AA161: No
A162: Central Florida Regional Transportation Authority | B162: Orlando | C162: FL | D162: 4035 | E162: 40035 | F162: Independent Public Agency or Authority of Transit Service | G162: Full Reporter | H162: 1510516 | I162: 560 | J162: RB | K162: DO | L162: 12 | M162: 12 | O162: 5 | Q162: 17 | S162: 255111 | U162: 235577 | AA162: No
A163: Central Florida Regional Transportation Authority | B163: Orlando | C163: FL | D163: 4035 | E163: 40035 | F163: Independent Public Agency or Authority of Transit Service | G163: Full Reporter | H163: 1510516 | I163: 560 | J163: CB | K163: PT | L163: 2 | M163: 0 | O163: 3 | Q163: 3 | S163: 103354 | U163: 62579 | AA163: No
A164: The Greater Cleveland Regional Transit Authority | B164: Cleveland | C164: OH | D164: 5015 | E164: 50015 | F164: Independent Public Agency or Authority of Transit Service | G164: Full Reporter | H164: 1780673 | I164: 547 | J164: MB | K164: DO | L164: 350 | M164: 869 | O164: 277 | Q164: 1146 | S164: 15859533 | U164: 13416573 | AA164: No
A165: The Greater Cleveland Regional Transit Authority | B165: Cleveland | C165: OH | D165: 5015 | E165: 50015 | F165: Independent Public Agency or Authority of Transit Service | G165: Full Reporter | H165: 1780673 | I165: 547 | J165: DR | K165: PT | L165: 74 | M165: 52 | O165: 27 | Q165: 79 | S165: 3495766 | U165: 2777455 | AA165: No
A166: The Greater Cleveland Regional Transit Authority | B166: Cleveland | C166: OH | D166: 5015 | E166: 50015 | F166: Independent Public Agency or Authority of Transit Service | G166: Full Reporter | H166: 1780673 | I166: 547 | J166: DR | K166: DO | L166: 73 | M166: 40 | O166: 8 | Q166: 48 | S166: 3018485 | U166: 2534482 | AA166: No
A167: The Greater Cleveland Regional Transit Authority | B167: Cleveland | C167: OH | D167: 5015 | E167: 50015 | F167: Independent Public Agency or Authority of Transit Service | G167: Full Reporter | H167: 1780673 | I167: 547 | J167: HR | K167: DO | L167: 20 | M167: 7 | O167: 13 | Q167: 20 | S167: 2540779 | U167: 2528661 | W167: 1263901 | Y167: 1257867 | AA167: No
A168: The Greater Cleveland Regional Transit Authority | B168: Cleveland | C168: OH | D168: 5015 | E168: 50015 | F168: Independent Public Agency or Authority of Transit Service | G168: Full Reporter | H168: 1780673 | I168: 547 | J168: RB | K168: DO | L168: 16 | M168: 52 | O168: 53 | Q168: 105 | S168: 612637 | U168: 600242 | AA168: No
A169: The Greater Cleveland Regional Transit Authority | B169: Cleveland | C169: OH | D169: 5015 | E169: 50015 | F169: Independent Public Agency or Authority of Transit Service | G169: Full Reporter | H169: 1780673 | I169: 547 | J169: LR | K169: DO | L169: 14 | M169: 31 | O169: 4 | Q169: 35 | S169: 857079 | U169: 844272 | W169: 834517 | Y169: 821914 | AA169: No
A170: VRide, Inc. - Michigan | B170: Farmington Hills | C170: MI | D170: 5193 | E170: 50193 | F170: Private Provider Reporting on Behalf of a Public Entity | G170: Full Reporter | H170: 3734090 | I170: 539 | J170: VP | K170: DO | L170: 539 | M170: 1 | O170: 0 | Q170: 1 | S170: 9489820 | U170: 9489820 | AA170: No
A171: San Francisco Bay Area Rapid Transit District | B171: Oakland | C171: CA | D171: 9003 | E171: 90003 | F171: Independent Public Agency or Authority of Transit Service | G171: Full Reporter | H171: 3281212 | I171: 538 | J171: HR | K171: DO | L171: 534 | M171: 165 | O171: 94 | Q171: 259 | S171: 68856495 | U171: 67269149 | W171: 9132938 | Y171: 8921934 | AA171: No
A172: San Francisco Bay Area Rapid Transit District | B172: Oakland | C172: CA | D172: 9003 | E172: 90003 | F172: Independent Public Agency or Authority of Transit Service | G172: Full Reporter | H172: 3281212 | I172: 538 | J172: MG | K172: PT | L172: 4 | M172: 2 | O172: 5 | Q172: 7 | S172: 259607 | U172: 258192 | W172: 259607 | Y172: 258192 | AA172: No
A173: Pierce County Transportation Benefit Area Authority | B173: Tacoma | C173: WA | D173: 3 | E173: 3 | F173: Independent Public Agency or Authority of Transit Service | G173: Full Reporter | H173: 3059393 | I173: 507 | J173: VP | K173: DO | L173: 303 | M173: 29 | O173: 1 | Q173: 30 | S173: 4580152 | U173: 4580152 | AA173: No
A174: Pierce County Transportation Benefit Area Authority | B174: Tacoma | C174: WA | D174: 3 | E174: 3 | F174: Independent Public Agency or Authority of Transit Service | G174: Full Reporter | H174: 3059393 | I174: 507 | J174: MB | K174: DO | L174: 116 | M174: 573 | O174: 1099 | Q174: 1672 | S174: 5247115 | U174: 4411207 | AA174: No
A175: Pierce County Transportation Benefit Area Authority | B175: Tacoma | C175: WA | D175: 3 | E175: 3 | F175: Independent Public Agency or Authority of Transit Service | G175: Full Reporter | H175: 3059393 | I175: 507 | J175: DR | K175: PT | L175: 58 | M175: 22 | O175: 19 | Q175: 41 | S175: 1984747 | U175: 1724342 | AA175: No
A176: Pierce County Transportation Benefit Area Authority | B176: Tacoma | C176: WA | D176: 3 | E176: 3 | F176: Independent Public Agency or Authority of Transit Service | G176: Full Reporter | H176: 3059393 | I176: 507 | J176: DR | K176: DO | L176: 30 | M176: 3 | O176: 30 | Q176: 33 | S176: 688348 | U176: 612036 | AA176: No
A177: California Vanpool Authority | B177: Hanford | C177: CA | D177: 9230 | E177: 90230 | F177: City, County or Local Government Unit or Department of Transportation | G177: Full Reporter | H177: 87941 | I177: 505 | J177: VP | K177: DO | L177: 505 | M177: 8 | O177: 45 | Q177: 53 | S177: 9360517 | U177: 9360517 | AA177: No
A178: Broward County Transit Division | B178: Plantation | C178: FL | D178: 4029 | E178: 40029 | F178: City, County or Local Government Unit or Department of Transportation | G178: Full Reporter | H178: 5502379 | I178: 474 | J178: MB | K178: DO | L178: 274 | M178: 1715 | O178: 98 | Q178: 1813 | S178: 17326950 | U178: 14748949 | AA178: No
A179: Broward County Transit Division | B179: Plantation | C179: FL | D179: 4029 | E179: 40029 | F179: City, County or Local Government Unit or Department of Transportation | G179: Full Reporter | H179: 5502379 | I179: 474 | J179: DR | K179: PT | L179: 193 | M179: 33 | O179: 0 | Q179: 33 | S179: 7421361 | U179: 6105741 | AA179: No
A180: Broward County Transit Division | B180: Plantation | C180: FL | D180: 4029 | E180: 40029 | F180: City, County or Local Government Unit or Department of Transportation | G180: Full Reporter | H180: 5502379 | I180: 474 | J180: MB | K180: PT | L180: 7 | M180: 28 | O180: 4 | Q180: 32 | S180: 317627 | U180: 236604 | AA180: No
A181: Potomac and Rappahannock Transportation Commission | B181: Woodbridge | C181: VA | D181: 3070 | E181: 30070 | F181: Independent Public Agency or Authority of Transit Service | G181: Full Reporter | H181: 4586770 | I181: 473 | J181: VP | K181: PT | L181: 351 | M181: 0 | O181: 0 | Q181: 0 | S181: 6954443 | U181: 6954443 | AA181: No
A182: Bi-State Development Agency of the Missouri-Illinois Metropolitan District, d.b.a.(St. Louis) Metro | B182: St. Louis | C182: MO | D182: 7006 | E182: 70006 | F182: Independent Public Agency or Authority of Transit Service | G182: Full Reporter | H182: 2150706 | I182: 473 | J182: MB | K182: DO | L182: 317 | M182: 338 | O182: 200 | Q182: 538 | S182: 20966310 | U182: 18400386 | AA182: No
A183: Bi-State Development Agency of the Missouri-Illinois Metropolitan District, d.b.a.(St. Louis) Metro | B183: St. Louis | C183: MO | D183: 7006 | E183: 70006 | F183: Independent Public Agency or Authority of Transit Service | G183: Full Reporter | H183: 2150706 | I183: 473 | J183: DR | K183: DO | L183: 98 | M183: 174 | O183: 54 | Q183: 228 | S183: 5678747 | U183: 5335156 | AA183: No
A184: Potomac and Rappahannock Transportation Commission | B184: Woodbridge | C184: VA | D184: 3070 | E184: 30070 | F184: Independent Public Agency or Authority of Transit Service | G184: Full Reporter | H184: 4586770 | I184: 473 | J184: CB | K184: PT | L184: 86 | M184: 256 | O184: 346 | Q184: 602 | S184: 3181722 | U184: 1890230 | AA184: No
A185: Bi-State Development Agency of the Missouri-Illinois Metropolitan District, d.b.a.(St. Louis) Metro | B185: St. Louis | C185: MO | D185: 7006 | E185: 70006 | F185: Independent Public Agency or Authority of Transit Service | G185: Full Reporter | H185: 2150706 | I185: 473 | J185: LR | K185: DO | L185: 58 | M185: 240 | O185: 80 | Q185: 320 | S185: 6302403 | U185: 6247433 | W185: 3150960 | Y185: 3123475 | AA185: No
A186: Potomac and Rappahannock Transportation Commission | B186: Woodbridge | C186: VA | D186: 3070 | E186: 30070 | F186: Independent Public Agency or Authority of Transit Service | G186: Full Reporter | H186: 4586770 | I186: 473 | J186: MB | K186: PT | L186: 36 | M186: 249 | O186: 163 | Q186: 412 | S186: 1673296 | U186: 1448905 | AA186: No
A187: LACMTA - Small Operators | B187: Los Angeles | C187: CA | D187: 9166 | E187: 90166 | F187: Other | G187: Full Reporter | H187: 12150996 | I187: 462 | J187: MB | K187: PT | L187: 195 | M187: 119 | O187: 592 | Q187: 711 | S187: 6178828 | U187: 5592376 | AA187: No
A188: LACMTA - Small Operators | B188: Los Angeles | C188: CA | D188: 9166 | E188: 90166 | F188: Other | G188: Full Reporter | H188: 12150996 | I188: 462 | J188: DR | K188: PT | L188: 180 | M188: 45 | O188: 95 | Q188: 140 | S188: 3232651 | U188: 2716152 | AA188: No
A189: City of Detroit Department of Transportation | B189: Detroit | C189: MI | D189: 5119 | E189: 50119 | F189: City, County or Local Government Unit or Department of Transportation | G189: Full Reporter | H189: 3734090 | I189: 454 | J189: MB | K189: DO | L189: 229 | M189: 4146 | O189: 2150 | Q189: 6296 | S189: 10598758 | U189: 9010295 | AA189: No
A190: City of Detroit Department of Transportation | B190: Detroit | C190: MI | D190: 5119 | E190: 50119 | F190: City, County or Local Government Unit or Department of Transportation | G190: Full Reporter | H190: 3734090 | I190: 454 | J190: DR | K190: PT | L190: 2 | M190: 0 | O190: 0 | Q190: 0 | S190: 73937 | U190: 57674 | AA190: No
A191: Board of County Commissioners, Palm Beach County, PalmTran, Inc. | B191: West Palm Beach | C191: FL | D191: 4037 | E191: 40037 | F191: City, County or Local Government Unit or Department of Transportation | G191: Full Reporter | H191: 5502379 | I191: 450 | J191: DR | K191: PT | L191: 279 | M191: 432 | O191: 396 | Q191: 828 | S191: 10503918 | U191: 8933822 | AA191: No
A192: Board of County Commissioners, Palm Beach County, PalmTran, Inc. | B192: West Palm Beach | C192: FL | D192: 4037 | E192: 40037 | F192: City, County or Local Government Unit or Department of Transportation | G192: Full Reporter | H192: 5502379 | I192: 450 | J192: MB | K192: DO | L192: 131 | M192: 1963 | O192: 384 | Q192: 2347 | S192: 8060845 | U192: 7269862 | AA192: No
A193: Metro Mobility | B193: St. Paul | C193: MN | D193: 5155 | E193: 50155 | F193: Subsidiary Unit of a Transit Agency, Reporting Separately | G193: Full Reporter | H193: 2650890 | I193: 446 | J193: DR | K193: PT | L193: 446 | M193: 182 | O193: 169 | Q193: 351 | S193: 22457367 | U193: 18954293 | AA193: No
A194: Delaware Transit Corporation | B194: Dover | C194: DE | D194: 3075 | E194: 30075 | F194: Independent Public Agency or Authority of Transit Service | G194: Full Reporter | H194: 5441567 | I194: 445 | J194: DR | K194: DO | L194: 240 | M194: 259 | O194: 83 | Q194: 342 | S194: 9870252 | U194: 8383068 | AA194: =IF(OR(Z194="Q",X194="Q",V194="Q",T194="Q",R194="Q",P194="Q",N194="Q"),"Yes","No") -> No
A195: Delaware Transit Corporation | B195: Dover | C195: DE | D195: 3075 | E195: 30075 | F195: Independent Public Agency or Authority of Transit Service | G195: Full Reporter | H195: 5441567 | I195: 445 | J195: MB | K195: DO | L195: 173 | M195: 687 | O195: 472 | Q195: 1159 | S195: 6744314 | U195: 6305832 | AA195: No
A196: Delaware Transit Corporation | B196: Dover | C196: DE | D196: 3075 | E196: 30075 | F196: Independent Public Agency or Authority of Transit Service | G196: Full Reporter | H196: 5441567 | I196: 445 | J196: MB | K196: PT | L196: 23 | M196: 39 | O196: 39 | Q196: 78 | S196: 1122828 | U196: 981300 | AA196: No
A197: Delaware Transit Corporation | B197: Dover | C197: DE | D197: 3075 | E197: 30075 | F197: Independent Public Agency or Authority of Transit Service | G197: Full Reporter | H197: 5441567 | I197: 445 | J197: DR | K197: PT | L197: 9 | M197: 0 | O197: 4 | Q197: 4 | S197: 353543 | U197: 283006 | AA197: No
A198: Ben Franklin Transit | B198: Richland | C198: WA | D198: 18 | E198: 18 | F198: Independent Public Agency or Authority of Transit Service | G198: Full Reporter | H198: 210975 | I198: 440 | J198: VP | K198: DO | L198: 276 | M198: 6 | O198: 0 | Q198: 6 | S198: 3804373 | U198: 3804373 | AA198: No
A199: Ben Franklin Transit | B199: Richland | C199: WA | D199: 18 | E199: 18 | F199: Independent Public Agency or Authority of Transit Service | G199: Full Reporter | H199: 210975 | I199: 440 | J199: DR | K199: DO | L199: 61 | M199: 44 | O199: 0 | Q199: 44 | S199: 2178655 | U199: 1877660 | AA199: No
A200: Ben Franklin Transit | B200: Richland | C200: WA | D200: 18 | E200: 18 | F200: Independent Public Agency or Authority of Transit Service | G200: Full Reporter | H200: 210975 | I200: 440 | J200: MB | K200: DO | L200: 52 | M200: 31 | O200: 0 | Q200: 31 | S200: 2331260 | U200: 2148656 | AA200: No
... 1038 more rows

Sheet Summary
A1: To bring up the accessible control panel, press ctrl + a. Some screen reading functionality will not work while the sheet is protected. To unprotect the sheet press alt h o p and enter the password ntd. | F1: National Totals | P1: =IF(P4=1,0,1) -> 0
F2: VOMS | G2: Major Mechanical Failures | H2: Other Mechanical Failures | I2: Total Mechanical Failures | J2: Vehicle/Passenger Car Miles | K2: Vehicle/Passenger Car Revenue Miles | L2: Train Miles | M2: Train Revenue Miles | P2: Include Questionable Data
F3: =IF($P$1,SUMIFS(Breakdowns!L:L,Breakdowns!$AA:$AA,"=No"),SUM(Breakdowns!L:L)) -> 105445 | G3: =IF($P$1,SUMIFS(Breakdowns!M:M,Breakdowns!$AA:$AA,"=No"),SUM(Breakdowns!M:M)) -> 253908 | H3: =IF($P$1,SUMIFS(Breakdowns!O:O,Breakdowns!$AA:$AA,"=No"),SUM(Breakdowns!O:O)) -> 264253 | I3: =IF($P$1,SUMIFS(Breakdowns!Q:Q,Breakdowns!$AA:$AA,"=No"),SUM(Breakdowns!Q:Q)) -> 518161 | J3: =IF($P$1,SUMIFS(Breakdowns!S:S,Breakdowns!$AA:$AA,"=No"),SUM(Breakdowns!S:S)) -> 4474007675 | K3: =IF($P$1,SUMIFS(Breakdowns!U:U,Breakdowns!$AA:$AA,"=No"),SUM(Breakdowns!U:U)) -> 3974001824 | L3: =IF($P$1,SUMIFS(Breakdowns!W:W,Breakdowns!$AA:$AA,"=No"),SUM(Breakdowns!W:W)) -> 218474633 | M3: =IF($P$1,SUMIFS(Breakdowns!Y:Y,Breakdowns!$AA:$AA,"=No"),SUM(Breakdowns!Y:Y)) -> 210428016 | P3: Exclude Questionable Data
P4: 1
A5: By Urbanized Area Size
D6: edit bins below | E6: Column1 | F6: VOMS | G6: Major Mechanical Failures | H6: Other Mechanical Failures | I6: Total Mechanical Failures | J6: Vehicle/Passenger Car Miles | K6: Vehicle/Passenger Car Revenue Miles | L6: Train Miles | M6: Train Revenue Miles | S6: ="under "&FIXED(B7,0,0) -> under 200,000 | T6: =IFERROR($K7/$G7,"") -> 18336.45859
A7: under | B7: =D7 -> 200000 | D7: 200000 | E7: =A7&" "&FIXED(B7,0,0) -> under 200,000 | F7: =IF($P$1,SUMIFS(Breakdowns!L:L,Breakdowns!$H:$H,"<"&$D7,Breakdowns!$AA:$AA,"=No"),SUMIFS(Breakdowns!L:L,Breakdowns!$H:$H,"<"&$D7)) -> 6859 | G7: =IF($P$1,SUMIFS(Breakdowns!M:M,Breakdowns!$H:$H,"<"&$D7,Breakdowns!$AA:$AA,"=No"),SUMIFS(Breakdowns!M:M,Breakdowns!$H:$H,"<"&$D7)) -> 10709 | H7: =IF($P$1,SUMIFS(Breakdowns!O:O,Breakdowns!$H:$H,"<"&$D7,Breakdowns!$AA:$AA,"=No"),SUMIFS(Breakdowns!O:O,Breakdowns!$H:$H,"<"&$D7)) -> 13288 | I7: =IF($P$1,SUMIFS(Breakdowns!Q:Q,Breakdowns!$H:$H,"<"&$D7,Breakdowns!$AA:$AA,"=No"),SUMIFS(Breakdowns!Q:Q,Breakdowns!$H:$H,"<"&$D7)) -> 23997 | J7: =IF($P$1,SUMIFS(Breakdowns!S:S,Breakdowns!$H:$H,"<"&$D7,Breakdowns!$AA:$AA,"=No"),SUMIFS(Breakdowns!S:S,Breakdowns!$H:$H,"<"&$D7)) -> 214058499 | K7: =IF($P$1,SUMIFS(Breakdowns!U:U,Breakdowns!$H:$H,"<"&$D7,Breakdowns!$AA:$AA,"=No"),SUMIFS(Breakdowns!U:U,Breakdowns!$H:$H,"<"&$D7)) -> 196365135 | L7: =IF($P$1,SUMIFS(Breakdowns!W:W,Breakdowns!$H:$H,"<"&$D7,Breakdowns!$AA:$AA,"=No"),SUMIFS(Breakdowns!W:W,Breakdowns!$H:$H,"<"&$D7)) -> 777947 | M7: =IF($P$1,SUMIFS(Breakdowns!Y:Y,Breakdowns!$H:$H,"<"&$D7,Breakdowns!$AA:$AA,"=No"),SUMIFS(Breakdowns!Y:Y,Breakdowns!$H:$H,"<"&$D7)) -> 755808 | S7: =IFERROR(IF(A8="over","over "&FIXED(B8,0,0),FIXED(B8,0,0)&" to "&FIXED(D8,0,0)),"") -> 200,000 to 1,000,000 | T7: =IFERROR($K8/$G8,"") -> 13743.00923
A8: =IF(D8<>"","between","over") -> between | B8: =D7 -> 200000 | C8: =IF(D8<>"","and","") -> and | D8: 1000000 | E8: =IFERROR(IF(A8="between",A8&" "&FIXED(B8,0,0)&" "&C8&" "&FIXED(D8,0,0),A8&" "&FIXED(B8,0,0)),"invalid bin") -> between 200,000 and 1,000,000 | F8: =IF($P$1,IF($A8="between",SUMIFS(Breakdowns!L:L,Breakdowns!$H:$H,">="&$B8,Breakdowns!$H:$H,"<"&$D8,Breakdowns!$AA:$AA,"=No"),SUMIFS(Breakdowns!L:L,Breakdowns!$H:$H,">="&$B8,Breakdowns!$AA:$AA,"=No")),IF($A8="between",SUMIFS(Breakdowns!L:L,Breakdowns!$H:$H,">="&$B8,Breakdowns!$H:$H,"<"&$D8),SUMIFS(Breakdowns!L:L,Breakdowns!$H:$H,">="&$B8))) -> 16325 | G8: =IF($P$1,IF($A8="between",SUMIFS(Breakdowns!M:M,Breakdowns!$H:$H,">="&$B8,Breakdowns!$H:$H,"<"&$D8,Breakdowns!$AA:$AA,"=No"),SUMIFS(Breakdowns!M:M,Breakdowns!$H:$H,">="&$B8,Breakdowns!$AA:$AA,"=No")),IF($A8="between",SUMIFS(Breakdowns!M:M,Breakdowns!$H:$H,">="&$B8,Breakdowns!$H:$H,"<"&$D8),SUMIFS(Breakdowns!M:M,Breakdowns!$H:$H,">="&$B8))) -> 39536 | H8: =IF($P$1,IF($A8="between",SUMIFS(Breakdowns!O:O,Breakdowns!$H:$H,">="&$B8,Breakdowns!$H:$H,"<"&$D8,Breakdowns!$AA:$AA,"=No"),SUMIFS(Breakdowns!O:O,Breakdowns!$H:$H,">="&$B8,Breakdowns!$AA:$AA,"=No")),IF($A8="between",SUMIFS(Breakdowns!O:O,Breakdowns!$H:$H,">="&$B8,Breakdowns!$H:$H,"<"&$D8),SUMIFS(Breakdowns!O:O,Breakdowns!$H:$H,">="&$B8))) -> 57973 | I8: =IF($P$1,IF($A8="between",SUMIFS(Breakdowns!Q:Q,Breakdowns!$H:$H,">="&$B8,Breakdowns!$H:$H,"<"&$D8,Breakdowns!$AA:$AA,"=No"),SUMIFS(Breakdowns!Q:Q,Breakdowns!$H:$H,">="&$B8,Breakdowns!$AA:$AA,"=No")),IF($A8="between",SUMIFS(Breakdowns!Q:Q,Breakdowns!$H:$H,">="&$B8,Breakdowns!$H:$H,"<"&$D8),SUMIFS(Breakdowns!Q:Q,Breakdowns!$H:$H,">="&$B8))) -> 97509 | J8: =IF($P$1,IF($A8="between",SUMIFS(Breakdowns!S:S,Breakdowns!$H:$H,">="&$B8,Breakdowns!$H:$H,"<"&$D8,Breakdowns!$AA:$AA,"=No"),SUMIFS(Breakdowns!S:S,Breakdowns!$H:$H,">="&$B8,Breakdowns!$AA:$AA,"=No")),IF($A8="between",SUMIFS(Breakdowns!S:S,Breakdowns!$H:$H,">="&$B8,Breakdowns!$H:$H,"<"&$D8),SUMIFS(Breakdowns!S:S,Breakdowns!$H:$H,">="&$B8))) -> 604315856 | K8: =IF($P$1,IF($A8="between",SUMIFS(Breakdowns!U:U,Breakdowns!$H:$H,">="&$B8,Breakdowns!$H:$H,"<"&$D8,Breakdowns!$AA:$AA,"=No"),SUMIFS(Breakdowns!U:U,Breakdowns!$H:$H,">="&$B8,Breakdowns!$AA:$AA,"=No")),IF($A8="between",SUMIFS(Breakdowns!U:U,Breakdowns!$H:$H,">="&$B8,Breakdowns!$H:$H,"<"&$D8),SUMIFS(Breakdowns!U:U,Breakdowns!$H:$H,">="&$B8))) -> 543343613 | L8: =IF($P$1,IF($A8="between",SUMIFS(Breakdowns!W:W,Breakdowns!$H:$H,">="&$B8,Breakdowns!$H:$H,"<"&$D8,Breakdowns!$AA:$AA,"=No"),SUMIFS(Breakdowns!W:W,Breakdowns!$H:$H,">="&$B8,Breakdowns!$AA:$AA,"=No")),IF($A8="between",SUMIFS(Breakdowns!W:W,Breakdowns!$H:$H,">="&$B8,Breakdowns!$H:$H,"<"&$D8),SUMIFS(Breakdowns!W:W,Breakdowns!$H:$H,">="&$B8))) -> 3842026 | M8: =IF($P$1,IF($A8="between",SUMIFS(Breakdowns!Y:Y,Breakdowns!$H:$H,">="&$B8,Breakdowns!$H:$H,"<"&$D8,Breakdowns!$AA:$AA,"=No"),SUMIFS(Breakdowns!Y:Y,Breakdowns!$H:$H,">="&$B8,Breakdowns!$AA:$AA,"=No")),IF($A8="between",SUMIFS(Breakdowns!Y:Y,Breakdowns!$H:$H,">="&$B8,Breakdowns!$H:$H,"<"&$D8),SUMIFS(Breakdowns!Y:Y,Breakdowns!$H:$H,">="&$B8))) -> 3644899 | S8: =IFERROR(IF(A9="over","over "&FIXED(B9,0,0),FIXED(B9,0,0)&" to "&FIXED(D9,0,0)),"") -> over 1,000,000 | T8: 15880.61197
A9: =IF(OR(A8="over",A8=""),"",IF(D9="","over","between")) -> over | B9: =IF(D8="","",D8) -> 1000000 | C9: =IF(D9<>"","and","") ->  | E9: =IFERROR(IF(A9="between",A9&" "&FIXED(B9,0,0)&" "&C9&" "&FIXED(D9,0,0),A9&" "&FIXED(B9,0,0)),"invalid bin") -> over 1,000,000 | F9: =IF($P$1,IF($A9="","",IF($A9="between",SUMIFS(Breakdowns!L:L,Breakdowns!$H:$H,">="&$B9,Breakdowns!$H:$H,"<"&$D9,Breakdowns!$AA:$AA,"=No"),SUMIFS(Breakdowns!L:L,Breakdowns!$H:$H,">="&$B9,Breakdowns!$AA:$AA,"=No"))),IF($A9="","",IF($A9="between",SUMIFS(Breakdowns!L:L,Breakdowns!$H:$H,">="&$B9,Breakdowns!$H:$H,"<"&$D9),SUMIFS(Breakdowns!L:L,Breakdowns!$H:$H,">="&$B9)))) -> 82261 | G9: =IF($P$1,IF($A9="","",IF($A9="between",SUMIFS(Breakdowns!M:M,Breakdowns!$H:$H,">="&$B9,Breakdowns!$H:$H,"<"&$D9,Breakdowns!$AA:$AA,"=No"),SUMIFS(Breakdowns!M:M,Breakdowns!$H:$H,">="&$B9,Breakdowns!$AA:$AA,"=No"))),IF($A9="","",IF($A9="between",SUMIFS(Breakdowns!M:M,Breakdowns!$H:$H,">="&$B9,Breakdowns!$H:$H,"<"&$D9),SUMIFS(Breakdowns!M:M,Breakdowns!$H:$H,">="&$B9)))) -> 203663 | H9: =IF($P$1,IF($A9="","",IF($A9="between",SUMIFS(Breakdowns!O:O,Breakdowns!$H:$H,">="&$B9,Breakdowns!$H:$H,"<"&$D9,Breakdowns!$AA:$AA,"=No"),SUMIFS(Breakdowns!O:O,Breakdowns!$H:$H,">="&$B9,Breakdowns!$AA:$AA,"=No"))),IF($A9="","",IF($A9="between",SUMIFS(Breakdowns!O:O,Breakdowns!$H:$H,">="&$B9,Breakdowns!$H:$H,"<"&$D9),SUMIFS(Breakdowns!O:O,Breakdowns!$H:$H,">="&$B9)))) -> 192992 | I9: =IF($P$1,IF($A9="","",IF($A9="between",SUMIFS(Breakdowns!Q:Q,Breakdowns!$H:$H,">="&$B9,Breakdowns!$H:$H,"<"&$D9,Breakdowns!$AA:$AA,"=No"),SUMIFS(Breakdowns!Q:Q,Breakdowns!$H:$H,">="&$B9,Breakdowns!$AA:$AA,"=No"))),IF($A9="","",IF($A9="between",SUMIFS(Breakdowns!Q:Q,Breakdowns!$H:$H,">="&$B9,Breakdowns!$H:$H,"<"&$D9),SUMIFS(Breakdowns!Q:Q,Breakdowns!$H:$H,">="&$B9)))) -> 396655 | J9: =IF($P$1,IF($A9="","",IF($A9="between",SUMIFS(Breakdowns!S:S,Breakdowns!$H:$H,">="&$B9,Breakdowns!$H:$H,"<"&$D9,Breakdowns!$AA:$AA,"=No"),SUMIFS(Breakdowns!S:S,Breakdowns!$H:$H,">="&$B9,Breakdowns!$AA:$AA,"=No"))),IF($A9="","",IF($A9="between",SUMIFS(Breakdowns!S:S,Breakdowns!$H:$H,">="&$B9,Breakdowns!$H:$H,"<"&$D9),SUMIFS(Breakdowns!S:S,Breakdowns!$H:$H,">="&$B9)))) -> 3655633320 | K9: =IF($P$1,IF($A9="","",IF($A9="between",SUMIFS(Breakdowns!U:U,Breakdowns!$H:$H,">="&$B9,Breakdowns!$H:$H,"<"&$D9,Breakdowns!$AA:$AA,"=No"),SUMIFS(Breakdowns!U:U,Breakdowns!$H:$H,">="&$B9,Breakdowns!$AA:$AA,"=No"))),IF($A9="","",IF($A9="between",SUMIFS(Breakdowns!U:U,Breakdowns!$H:$H,">="&$B9,Breakdowns!$H:$H,"<"&$D9),SUMIFS(Breakdowns!U:U,Breakdowns!$H:$H,">="&$B9)))) -> 3234293076 | L9: =IF($P$1,IF($A9="","",IF($A9="between",SUMIFS(Breakdowns!W:W,Breakdowns!$H:$H,">="&$B9,Breakdowns!$H:$H,"<"&$D9,Breakdowns!$AA:$AA,"=No"),SUMIFS(Breakdowns!W:W,Breakdowns!$H:$H,">="&$B9,Breakdowns!$AA:$AA,"=No"))),IF($A9="","",IF($A9="between",SUMIFS(Breakdowns!W:W,Breakdowns!$H:$H,">="&$B9,Breakdowns!$H:$H,"<"&$D9),SUMIFS(Breakdowns!W:W,Breakdowns!$H:$H,">="&$B9)))) -> 213854660 | M9: =IF($P$1,IF($A9="","",IF($A9="between",SUMIFS(Breakdowns!Y:Y,Breakdowns!$H:$H,">="&$B9,Breakdowns!$H:$H,"<"&$D9,Breakdowns!$AA:$AA,"=No"),SUMIFS(Breakdowns!Y:Y,Breakdowns!$H:$H,">="&$B9,Breakdowns!$AA:$AA,"=No"))),IF($A9="","",IF($A9="between",SUMIFS(Breakdowns!Y:Y,Breakdowns!$H:$H,">="&$B9,Breakdowns!$H:$H,"<"&$D9),SUMIFS(Breakdowns!Y:Y,Breakdowns!$H:$H,">="&$B9)))) -> 206027309
C10: =IF(D10<>"","and","") ->  | E10: invalid bin | F10: =IF($P$1,IF($A10="","",IF($A10="between",SUMIFS(Breakdowns!L:L,Breakdowns!$H:$H,">="&$B10,Breakdowns!$H:$H,"<"&$D10,Breakdowns!$AA:$AA,"=No"),SUMIFS(Breakdowns!L:L,Breakdowns!$H:$H,">="&$B10,Breakdowns!$AA:$AA,"=No"))),IF($A10="","",IF($A10="between",SUMIFS(Breakdowns!L:L,Breakdowns!$H:$H,">="&$B10,Breakdowns!$H:$H,"<"&$D10),SUMIFS(Breakdowns!L:L,Breakdowns!$H:$H,">="&$B10)))) ->  | G10: =IF($P$1,IF($A10="","",IF($A10="between",SUMIFS(Breakdowns!M:M,Breakdowns!$H:$H,">="&$B10,Breakdowns!$H:$H,"<"&$D10,Breakdowns!$AA:$AA,"=No"),SUMIFS(Breakdowns!M:M,Breakdowns!$H:$H,">="&$B10,Breakdowns!$AA:$AA,"=No"))),IF($A10="","",IF($A10="between",SUMIFS(Breakdowns!M:M,Breakdowns!$H:$H,">="&$B10,Breakdowns!$H:$H,"<"&$D10),SUMIFS(Breakdowns!M:M,Breakdowns!$H:$H,">="&$B10)))) ->  | H10: =IF($P$1,IF($A10="","",IF($A10="between",SUMIFS(Breakdowns!O:O,Breakdowns!$H:$H,">="&$B10,Breakdowns!$H:$H,"<"&$D10,Breakdowns!$AA:$AA,"=No"),SUMIFS(Breakdowns!O:O,Breakdowns!$H:$H,">="&$B10,Breakdowns!$AA:$AA,"=No"))),IF($A10="","",IF($A10="between",SUMIFS(Breakdowns!O:O,Breakdowns!$H:$H,">="&$B10,Breakdowns!$H:$H,"<"&$D10),SUMIFS(Breakdowns!O:O,Breakdowns!$H:$H,">="&$B10)))) ->  | I10: =IF($P$1,IF($A10="","",IF($A10="between",SUMIFS(Breakdowns!Q:Q,Breakdowns!$H:$H,">="&$B10,Breakdowns!$H:$H,"<"&$D10,Breakdowns!$AA:$AA,"=No"),SUMIFS(Breakdowns!Q:Q,Breakdowns!$H:$H,">="&$B10,Breakdowns!$AA:$AA,"=No"))),IF($A10="","",IF($A10="between",SUMIFS(Breakdowns!Q:Q,Breakdowns!$H:$H,">="&$B10,Breakdowns!$H:$H,"<"&$D10),SUMIFS(Breakdowns!Q:Q,Breakdowns!$H:$H,">="&$B10)))) ->  | J10: =IF($P$1,IF($A10="","",IF($A10="between",SUMIFS(Breakdowns!S:S,Breakdowns!$H:$H,">="&$B10,Breakdowns!$H:$H,"<"&$D10,Breakdowns!$AA:$AA,"=No"),SUMIFS(Breakdowns!S:S,Breakdowns!$H:$H,">="&$B10,Breakdowns!$AA:$AA,"=No"))),IF($A10="","",IF($A10="between",SUMIFS(Breakdowns!S:S,Breakdowns!$H:$H,">="&$B10,Breakdowns!$H:$H,"<"&$D10),SUMIFS(Breakdowns!S:S,Breakdowns!$H:$H,">="&$B10)))) ->  | K10: =IF($P$1,IF($A10="","",IF($A10="between",SUMIFS(Breakdowns!U:U,Breakdowns!$H:$H,">="&$B10,Breakdowns!$H:$H,"<"&$D10,Breakdowns!$AA:$AA,"=No"),SUMIFS(Breakdowns!U:U,Breakdowns!$H:$H,">="&$B10,Breakdowns!$AA:$AA,"=No"))),IF($A10="","",IF($A10="between",SUMIFS(Breakdowns!U:U,Breakdowns!$H:$H,">="&$B10,Breakdowns!$H:$H,"<"&$D10),SUMIFS(Breakdowns!U:U,Breakdowns!$H:$H,">="&$B10)))) ->  | L10: =IF($P$1,IF($A10="","",IF($A10="between",SUMIFS(Breakdowns!W:W,Breakdowns!$H:$H,">="&$B10,Breakdowns!$H:$H,"<"&$D10,Breakdowns!$AA:$AA,"=No"),SUMIFS(Breakdowns!W:W,Breakdowns!$H:$H,">="&$B10,Breakdowns!$AA:$AA,"=No"))),IF($A10="","",IF($A10="between",SUMIFS(Breakdowns!W:W,Breakdowns!$H:$H,">="&$B10,Breakdowns!$H:$H,"<"&$D10),SUMIFS(Breakdowns!W:W,Breakdowns!$H:$H,">="&$B10)))) ->  | M10: =IF($P$1,IF($A10="","",IF($A10="between",SUMIFS(Breakdowns!Y:Y,Breakdowns!$H:$H,">="&$B10,Breakdowns!$H:$H,"<"&$D10,Breakdowns!$AA:$AA,"=No"),SUMIFS(Breakdowns!Y:Y,Breakdowns!$H:$H,">="&$B10,Breakdowns!$AA:$AA,"=No"))),IF($A10="","",IF($A10="between",SUMIFS(Breakdowns!Y:Y,Breakdowns!$H:$H,">="&$B10,Breakdowns!$H:$H,"<"&$D10),SUMIFS(Breakdowns!Y:Y,Breakdowns!$H:$H,">="&$B10)))) -> 
E11: invalid bin | F11: =IF($P$1,IF($A11="","",IF($A11="between",SUMIFS(Breakdowns!L:L,Breakdowns!$H:$H,">="&$B11,Breakdowns!$H:$H,"<"&$D11,Breakdowns!$AA:$AA,"=No"),SUMIFS(Breakdowns!L:L,Breakdowns!$H:$H,">="&$B11,Breakdowns!$AA:$AA,"=No"))),IF($A11="","",IF($A11="between",SUMIFS(Breakdowns!L:L,Breakdowns!$H:$H,">="&$B11,Breakdowns!$H:$H,"<"&$D11),SUMIFS(Breakdowns!L:L,Breakdowns!$H:$H,">="&$B11)))) ->  | G11: =IF($P$1,IF($A11="","",IF($A11="between",SUMIFS(Breakdowns!M:M,Breakdowns!$H:$H,">="&$B11,Breakdowns!$H:$H,"<"&$D11,Breakdowns!$AA:$AA,"=No"),SUMIFS(Breakdowns!M:M,Breakdowns!$H:$H,">="&$B11,Breakdowns!$AA:$AA,"=No"))),IF($A11="","",IF($A11="between",SUMIFS(Breakdowns!M:M,Breakdowns!$H:$H,">="&$B11,Breakdowns!$H:$H,"<"&$D11),SUMIFS(Breakdowns!M:M,Breakdowns!$H:$H,">="&$B11)))) ->  | H11: =IF($P$1,IF($A11="","",IF($A11="between",SUMIFS(Breakdowns!O:O,Breakdowns!$H:$H,">="&$B11,Breakdowns!$H:$H,"<"&$D11,Breakdowns!$AA:$AA,"=No"),SUMIFS(Breakdowns!O:O,Breakdowns!$H:$H,">="&$B11,Breakdowns!$AA:$AA,"=No"))),IF($A11="","",IF($A11="between",SUMIFS(Breakdowns!O:O,Breakdowns!$H:$H,">="&$B11,Breakdowns!$H:$H,"<"&$D11),SUMIFS(Breakdowns!O:O,Breakdowns!$H:$H,">="&$B11)))) ->  | I11: =IF($P$1,IF($A11="","",IF($A11="between",SUMIFS(Breakdowns!Q:Q,Breakdowns!$H:$H,">="&$B11,Breakdowns!$H:$H,"<"&$D11,Breakdowns!$AA:$AA,"=No"),SUMIFS(Breakdowns!Q:Q,Breakdowns!$H:$H,">="&$B11,Breakdowns!$AA:$AA,"=No"))),IF($A11="","",IF($A11="between",SUMIFS(Breakdowns!Q:Q,Breakdowns!$H:$H,">="&$B11,Breakdowns!$H:$H,"<"&$D11),SUMIFS(Breakdowns!Q:Q,Breakdowns!$H:$H,">="&$B11)))) ->  | J11: =IF($P$1,IF($A11="","",IF($A11="between",SUMIFS(Breakdowns!S:S,Breakdowns!$H:$H,">="&$B11,Breakdowns!$H:$H,"<"&$D11,Breakdowns!$AA:$AA,"=No"),SUMIFS(Breakdowns!S:S,Breakdowns!$H:$H,">="&$B11,Breakdowns!$AA:$AA,"=No"))),IF($A11="","",IF($A11="between",SUMIFS(Breakdowns!S:S,Breakdowns!$H:$H,">="&$B11,Breakdowns!$H:$H,"<"&$D11),SUMIFS(Breakdowns!S:S,Breakdowns!$H:$H,">="&$B11)))) ->  | K11: =IF($P$1,IF($A11="","",IF($A11="between",SUMIFS(Breakdowns!U:U,Breakdowns!$H:$H,">="&$B11,Breakdowns!$H:$H,"<"&$D11,Breakdowns!$AA:$AA,"=No"),SUMIFS(Breakdowns!U:U,Breakdowns!$H:$H,">="&$B11,Breakdowns!$AA:$AA,"=No"))),IF($A11="","",IF($A11="between",SUMIFS(Breakdowns!U:U,Breakdowns!$H:$H,">="&$B11,Breakdowns!$H:$H,"<"&$D11),SUMIFS(Breakdowns!U:U,Breakdowns!$H:$H,">="&$B11)))) ->  | L11: =IF($P$1,IF($A11="","",IF($A11="between",SUMIFS(Breakdowns!W:W,Breakdowns!$H:$H,">="&$B11,Breakdowns!$H:$H,"<"&$D11,Breakdowns!$AA:$AA,"=No"),SUMIFS(Breakdowns!W:W,Breakdowns!$H:$H,">="&$B11,Breakdowns!$AA:$AA,"=No"))),IF($A11="","",IF($A11="between",SUMIFS(Breakdowns!W:W,Breakdowns!$H:$H,">="&$B11,Breakdowns!$H:$H,"<"&$D11),SUMIFS(Breakdowns!W:W,Breakdowns!$H:$H,">="&$B11)))) ->  | M11: =IF($P$1,IF($A11="","",IF($A11="between",SUMIFS(Breakdowns!Y:Y,Breakdowns!$H:$H,">="&$B11,Breakdowns!$H:$H,"<"&$D11,Breakdowns!$AA:$AA,"=No"),SUMIFS(Breakdowns!Y:Y,Breakdowns!$H:$H,">="&$B11,Breakdowns!$AA:$AA,"=No"))),IF($A11="","",IF($A11="between",SUMIFS(Breakdowns!Y:Y,Breakdowns!$H:$H,">="&$B11,Breakdowns!$H:$H,"<"&$D11),SUMIFS(Breakdowns!Y:Y,Breakdowns!$H:$H,">="&$B11)))) -> 
E12: invalid bin | F12: =IF($P$1,IF($A12="","",IF($A12="between",SUMIFS(Breakdowns!L:L,Breakdowns!$H:$H,">="&$B12,Breakdowns!$H:$H,"<"&$D12,Breakdowns!$AA:$AA,"=No"),SUMIFS(Breakdowns!L:L,Breakdowns!$H:$H,">="&$B12,Breakdowns!$AA:$AA,"=No"))),IF($A12="","",IF($A12="between",SUMIFS(Breakdowns!L:L,Breakdowns!$H:$H,">="&$B12,Breakdowns!$H:$H,"<"&$D12),SUMIFS(Breakdowns!L:L,Breakdowns!$H:$H,">="&$B12)))) ->  | G12: =IF($P$1,IF($A12="","",IF($A12="between",SUMIFS(Breakdowns!M:M,Breakdowns!$H:$H,">="&$B12,Breakdowns!$H:$H,"<"&$D12,Breakdowns!$AA:$AA,"=No"),SUMIFS(Breakdowns!M:M,Breakdowns!$H:$H,">="&$B12,Breakdowns!$AA:$AA,"=No"))),IF($A12="","",IF($A12="between",SUMIFS(Breakdowns!M:M,Breakdowns!$H:$H,">="&$B12,Breakdowns!$H:$H,"<"&$D12),SUMIFS(Breakdowns!M:M,Breakdowns!$H:$H,">="&$B12)))) ->  | H12: =IF($P$1,IF($A12="","",IF($A12="between",SUMIFS(Breakdowns!O:O,Breakdowns!$H:$H,">="&$B12,Breakdowns!$H:$H,"<"&$D12,Breakdowns!$AA:$AA,"=No"),SUMIFS(Breakdowns!O:O,Breakdowns!$H:$H,">="&$B12,Breakdowns!$AA:$AA,"=No"))),IF($A12="","",IF($A12="between",SUMIFS(Breakdowns!O:O,Breakdowns!$H:$H,">="&$B12,Breakdowns!$H:$H,"<"&$D12),SUMIFS(Breakdowns!O:O,Breakdowns!$H:$H,">="&$B12)))) ->  | I12: =IF($P$1,IF($A12="","",IF($A12="between",SUMIFS(Breakdowns!Q:Q,Breakdowns!$H:$H,">="&$B12,Breakdowns!$H:$H,"<"&$D12,Breakdowns!$AA:$AA,"=No"),SUMIFS(Breakdowns!Q:Q,Breakdowns!$H:$H,">="&$B12,Breakdowns!$AA:$AA,"=No"))),IF($A12="","",IF($A12="between",SUMIFS(Breakdowns!Q:Q,Breakdowns!$H:$H,">="&$B12,Breakdowns!$H:$H,"<"&$D12),SUMIFS(Breakdowns!Q:Q,Breakdowns!$H:$H,">="&$B12)))) ->  | J12: =IF($P$1,IF($A12="","",IF($A12="between",SUMIFS(Breakdowns!S:S,Breakdowns!$H:$H,">="&$B12,Breakdowns!$H:$H,"<"&$D12,Breakdowns!$AA:$AA,"=No"),SUMIFS(Breakdowns!S:S,Breakdowns!$H:$H,">="&$B12,Breakdowns!$AA:$AA,"=No"))),IF($A12="","",IF($A12="between",SUMIFS(Breakdowns!S:S,Breakdowns!$H:$H,">="&$B12,Breakdowns!$H:$H,"<"&$D12),SUMIFS(Breakdowns!S:S,Breakdowns!$H:$H,">="&$B12)))) ->  | K12: =IF($P$1,IF($A12="","",IF($A12="between",SUMIFS(Breakdowns!U:U,Breakdowns!$H:$H,">="&$B12,Breakdowns!$H:$H,"<"&$D12,Breakdowns!$AA:$AA,"=No"),SUMIFS(Breakdowns!U:U,Breakdowns!$H:$H,">="&$B12,Breakdowns!$AA:$AA,"=No"))),IF($A12="","",IF($A12="between",SUMIFS(Breakdowns!U:U,Breakdowns!$H:$H,">="&$B12,Breakdowns!$H:$H,"<"&$D12),SUMIFS(Breakdowns!U:U,Breakdowns!$H:$H,">="&$B12)))) ->  | L12: =IF($P$1,IF($A12="","",IF($A12="between",SUMIFS(Breakdowns!W:W,Breakdowns!$H:$H,">="&$B12,Breakdowns!$H:$H,"<"&$D12,Breakdowns!$AA:$AA,"=No"),SUMIFS(Breakdowns!W:W,Breakdowns!$H:$H,">="&$B12,Breakdowns!$AA:$AA,"=No"))),IF($A12="","",IF($A12="between",SUMIFS(Breakdowns!W:W,Breakdowns!$H:$H,">="&$B12,Breakdowns!$H:$H,"<"&$D12),SUMIFS(Breakdowns!W:W,Breakdowns!$H:$H,">="&$B12)))) ->  | M12: =IF($P$1,IF($A12="","",IF($A12="between",SUMIFS(Breakdowns!Y:Y,Breakdowns!$H:$H,">="&$B12,Breakdowns!$H:$H,"<"&$D12,Breakdowns!$AA:$AA,"=No"),SUMIFS(Breakdowns!Y:Y,Breakdowns!$H:$H,">="&$B12,Breakdowns!$AA:$AA,"=No"))),IF($A12="","",IF($A12="between",SUMIFS(Breakdowns!Y:Y,Breakdowns!$H:$H,">="&$B12,Breakdowns!$H:$H,"<"&$D12),SUMIFS(Breakdowns!Y:Y,Breakdowns!$H:$H,">="&$B12)))) -> 
E13: invalid bin | F13: =IF($P$1,IF($A13="","",IF($A13="between",SUMIFS(Breakdowns!L:L,Breakdowns!$H:$H,">="&$B13,Breakdowns!$H:$H,"<"&$D13,Breakdowns!$AA:$AA,"=No"),SUMIFS(Breakdowns!L:L,Breakdowns!$H:$H,">="&$B13,Breakdowns!$AA:$AA,"=No"))),IF($A13="","",IF($A13="between",SUMIFS(Breakdowns!L:L,Breakdowns!$H:$H,">="&$B13,Breakdowns!$H:$H,"<"&$D13),SUMIFS(Breakdowns!L:L,Breakdowns!$H:$H,">="&$B13)))) ->  | G13: =IF($P$1,IF($A13="","",IF($A13="between",SUMIFS(Breakdowns!M:M,Breakdowns!$H:$H,">="&$B13,Breakdowns!$H:$H,"<"&$D13,Breakdowns!$AA:$AA,"=No"),SUMIFS(Breakdowns!M:M,Breakdowns!$H:$H,">="&$B13,Breakdowns!$AA:$AA,"=No"))),IF($A13="","",IF($A13="between",SUMIFS(Breakdowns!M:M,Breakdowns!$H:$H,">="&$B13,Breakdowns!$H:$H,"<"&$D13),SUMIFS(Breakdowns!M:M,Breakdowns!$H:$H,">="&$B13)))) ->  | H13: =IF($P$1,IF($A13="","",IF($A13="between",SUMIFS(Breakdowns!O:O,Breakdowns!$H:$H,">="&$B13,Breakdowns!$H:$H,"<"&$D13,Breakdowns!$AA:$AA,"=No"),SUMIFS(Breakdowns!O:O,Breakdowns!$H:$H,">="&$B13,Breakdowns!$AA:$AA,"=No"))),IF($A13="","",IF($A13="between",SUMIFS(Breakdowns!O:O,Breakdowns!$H:$H,">="&$B13,Breakdowns!$H:$H,"<"&$D13),SUMIFS(Breakdowns!O:O,Breakdowns!$H:$H,">="&$B13)))) ->  | I13: =IF($P$1,IF($A13="","",IF($A13="between",SUMIFS(Breakdowns!Q:Q,Breakdowns!$H:$H,">="&$B13,Breakdowns!$H:$H,"<"&$D13,Breakdowns!$AA:$AA,"=No"),SUMIFS(Breakdowns!Q:Q,Breakdowns!$H:$H,">="&$B13,Breakdowns!$AA:$AA,"=No"))),IF($A13="","",IF($A13="between",SUMIFS(Breakdowns!Q:Q,Breakdowns!$H:$H,">="&$B13,Breakdowns!$H:$H,"<"&$D13),SUMIFS(Breakdowns!Q:Q,Breakdowns!$H:$H,">="&$B13)))) ->  | J13: =IF($P$1,IF($A13="","",IF($A13="between",SUMIFS(Breakdowns!S:S,Breakdowns!$H:$H,">="&$B13,Breakdowns!$H:$H,"<"&$D13,Breakdowns!$AA:$AA,"=No"),SUMIFS(Breakdowns!S:S,Breakdowns!$H:$H,">="&$B13,Breakdowns!$AA:$AA,"=No"))),IF($A13="","",IF($A13="between",SUMIFS(Breakdowns!S:S,Breakdowns!$H:$H,">="&$B13,Breakdowns!$H:$H,"<"&$D13),SUMIFS(Breakdowns!S:S,Breakdowns!$H:$H,">="&$B13)))) ->  | K13: =IF($P$1,IF($A13="","",IF($A13="between",SUMIFS(Breakdowns!U:U,Breakdowns!$H:$H,">="&$B13,Breakdowns!$H:$H,"<"&$D13,Breakdowns!$AA:$AA,"=No"),SUMIFS(Breakdowns!U:U,Breakdowns!$H:$H,">="&$B13,Breakdowns!$AA:$AA,"=No"))),IF($A13="","",IF($A13="between",SUMIFS(Breakdowns!U:U,Breakdowns!$H:$H,">="&$B13,Breakdowns!$H:$H,"<"&$D13),SUMIFS(Breakdowns!U:U,Breakdowns!$H:$H,">="&$B13)))) ->  | L13: =IF($P$1,IF($A13="","",IF($A13="between",SUMIFS(Breakdowns!W:W,Breakdowns!$H:$H,">="&$B13,Breakdowns!$H:$H,"<"&$D13,Breakdowns!$AA:$AA,"=No"),SUMIFS(Breakdowns!W:W,Breakdowns!$H:$H,">="&$B13,Breakdowns!$AA:$AA,"=No"))),IF($A13="","",IF($A13="between",SUMIFS(Breakdowns!W:W,Breakdowns!$H:$H,">="&$B13,Breakdowns!$H:$H,"<"&$D13),SUMIFS(Breakdowns!W:W,Breakdowns!$H:$H,">="&$B13)))) ->  | M13: =IF($P$1,IF($A13="","",IF($A13="between",SUMIFS(Breakdowns!Y:Y,Breakdowns!$H:$H,">="&$B13,Breakdowns!$H:$H,"<"&$D13,Breakdowns!$AA:$AA,"=No"),SUMIFS(Breakdowns!Y:Y,Breakdowns!$H:$H,">="&$B13,Breakdowns!$AA:$AA,"=No"))),IF($A13="","",IF($A13="between",SUMIFS(Breakdowns!Y:Y,Breakdowns!$H:$H,">="&$B13,Breakdowns!$H:$H,"<"&$D13),SUMIFS(Breakdowns!Y:Y,Breakdowns!$H:$H,">="&$B13)))) -> 
E14: invalid bin | F14: =IF($P$1,IF($A14="","",IF($A14="between",SUMIFS(Breakdowns!L:L,Breakdowns!$H:$H,">="&$B14,Breakdowns!$H:$H,"<"&$D14,Breakdowns!$AA:$AA,"=No"),SUMIFS(Breakdowns!L:L,Breakdowns!$H:$H,">="&$B14,Breakdowns!$AA:$AA,"=No"))),IF($A14="","",IF($A14="between",SUMIFS(Breakdowns!L:L,Breakdowns!$H:$H,">="&$B14,Breakdowns!$H:$H,"<"&$D14),SUMIFS(Breakdowns!L:L,Breakdowns!$H:$H,">="&$B14)))) ->  | G14: =IF($P$1,IF($A14="","",IF($A14="between",SUMIFS(Breakdowns!M:M,Breakdowns!$H:$H,">="&$B14,Breakdowns!$H:$H,"<"&$D14,Breakdowns!$AA:$AA,"=No"),SUMIFS(Breakdowns!M:M,Breakdowns!$H:$H,">="&$B14,Breakdowns!$AA:$AA,"=No"))),IF($A14="","",IF($A14="between",SUMIFS(Breakdowns!M:M,Breakdowns!$H:$H,">="&$B14,Breakdowns!$H:$H,"<"&$D14),SUMIFS(Breakdowns!M:M,Breakdowns!$H:$H,">="&$B14)))) ->  | H14: =IF($P$1,IF($A14="","",IF($A14="between",SUMIFS(Breakdowns!O:O,Breakdowns!$H:$H,">="&$B14,Breakdowns!$H:$H,"<"&$D14,Breakdowns!$AA:$AA,"=No"),SUMIFS(Breakdowns!O:O,Breakdowns!$H:$H,">="&$B14,Breakdowns!$AA:$AA,"=No"))),IF($A14="","",IF($A14="between",SUMIFS(Breakdowns!O:O,Breakdowns!$H:$H,">="&$B14,Breakdowns!$H:$H,"<"&$D14),SUMIFS(Breakdowns!O:O,Breakdowns!$H:$H,">="&$B14)))) ->  | I14: =IF($P$1,IF($A14="","",IF($A14="between",SUMIFS(Breakdowns!Q:Q,Breakdowns!$H:$H,">="&$B14,Breakdowns!$H:$H,"<"&$D14,Breakdowns!$AA:$AA,"=No"),SUMIFS(Breakdowns!Q:Q,Breakdowns!$H:$H,">="&$B14,Breakdowns!$AA:$AA,"=No"))),IF($A14="","",IF($A14="between",SUMIFS(Breakdowns!Q:Q,Breakdowns!$H:$H,">="&$B14,Breakdowns!$H:$H,"<"&$D14),SUMIFS(Breakdowns!Q:Q,Breakdowns!$H:$H,">="&$B14)))) ->  | J14: =IF($P$1,IF($A14="","",IF($A14="between",SUMIFS(Breakdowns!S:S,Breakdowns!$H:$H,">="&$B14,Breakdowns!$H:$H,"<"&$D14,Breakdowns!$AA:$AA,"=No"),SUMIFS(Breakdowns!S:S,Breakdowns!$H:$H,">="&$B14,Breakdowns!$AA:$AA,"=No"))),IF($A14="","",IF($A14="between",SUMIFS(Breakdowns!S:S,Breakdowns!$H:$H,">="&$B14,Breakdowns!$H:$H,"<"&$D14),SUMIFS(Breakdowns!S:S,Breakdowns!$H:$H,">="&$B14)))) ->  | K14: =IF($P$1,IF($A14="","",IF($A14="between",SUMIFS(Breakdowns!U:U,Breakdowns!$H:$H,">="&$B14,Breakdowns!$H:$H,"<"&$D14,Breakdowns!$AA:$AA,"=No"),SUMIFS(Breakdowns!U:U,Breakdowns!$H:$H,">="&$B14,Breakdowns!$AA:$AA,"=No"))),IF($A14="","",IF($A14="between",SUMIFS(Breakdowns!U:U,Breakdowns!$H:$H,">="&$B14,Breakdowns!$H:$H,"<"&$D14),SUMIFS(Breakdowns!U:U,Breakdowns!$H:$H,">="&$B14)))) ->  | L14: =IF($P$1,IF($A14="","",IF($A14="between",SUMIFS(Breakdowns!W:W,Breakdowns!$H:$H,">="&$B14,Breakdowns!$H:$H,"<"&$D14,Breakdowns!$AA:$AA,"=No"),SUMIFS(Breakdowns!W:W,Breakdowns!$H:$H,">="&$B14,Breakdowns!$AA:$AA,"=No"))),IF($A14="","",IF($A14="between",SUMIFS(Breakdowns!W:W,Breakdowns!$H:$H,">="&$B14,Breakdowns!$H:$H,"<"&$D14),SUMIFS(Breakdowns!W:W,Breakdowns!$H:$H,">="&$B14)))) ->  | M14: =IF($P$1,IF($A14="","",IF($A14="between",SUMIFS(Breakdowns!Y:Y,Breakdowns!$H:$H,">="&$B14,Breakdowns!$H:$H,"<"&$D14,Breakdowns!$AA:$AA,"=No"),SUMIFS(Breakdowns!Y:Y,Breakdowns!$H:$H,">="&$B14,Breakdowns!$AA:$AA,"=No"))),IF($A14="","",IF($A14="between",SUMIFS(Breakdowns!Y:Y,Breakdowns!$H:$H,">="&$B14,Breakdowns!$H:$H,"<"&$D14),SUMIFS(Breakdowns!Y:Y,Breakdowns!$H:$H,">="&$B14)))) -> 
E15: invalid bin | F15: =IF($P$1,IF($A15="","",IF($A15="between",SUMIFS(Breakdowns!L:L,Breakdowns!$H:$H,">="&$B15,Breakdowns!$H:$H,"<"&$D15,Breakdowns!$AA:$AA,"=No"),SUMIFS(Breakdowns!L:L,Breakdowns!$H:$H,">="&$B15,Breakdowns!$AA:$AA,"=No"))),IF($A15="","",IF($A15="between",SUMIFS(Breakdowns!L:L,Breakdowns!$H:$H,">="&$B15,Breakdowns!$H:$H,"<"&$D15),SUMIFS(Breakdowns!L:L,Breakdowns!$H:$H,">="&$B15)))) ->  | G15: =IF($P$1,IF($A15="","",IF($A15="between",SUMIFS(Breakdowns!M:M,Breakdowns!$H:$H,">="&$B15,Breakdowns!$H:$H,"<"&$D15,Breakdowns!$AA:$AA,"=No"),SUMIFS(Breakdowns!M:M,Breakdowns!$H:$H,">="&$B15,Breakdowns!$AA:$AA,"=No"))),IF($A15="","",IF($A15="between",SUMIFS(Breakdowns!M:M,Breakdowns!$H:$H,">="&$B15,Breakdowns!$H:$H,"<"&$D15),SUMIFS(Breakdowns!M:M,Breakdowns!$H:$H,">="&$B15)))) ->  | H15: =IF($P$1,IF($A15="","",IF($A15="between",SUMIFS(Breakdowns!O:O,Breakdowns!$H:$H,">="&$B15,Breakdowns!$H:$H,"<"&$D15,Breakdowns!$AA:$AA,"=No"),SUMIFS(Breakdowns!O:O,Breakdowns!$H:$H,">="&$B15,Breakdowns!$AA:$AA,"=No"))),IF($A15="","",IF($A15="between",SUMIFS(Breakdowns!O:O,Breakdowns!$H:$H,">="&$B15,Breakdowns!$H:$H,"<"&$D15),SUMIFS(Breakdowns!O:O,Breakdowns!$H:$H,">="&$B15)))) ->  | I15: =IF($P$1,IF($A15="","",IF($A15="between",SUMIFS(Breakdowns!Q:Q,Breakdowns!$H:$H,">="&$B15,Breakdowns!$H:$H,"<"&$D15,Breakdowns!$AA:$AA,"=No"),SUMIFS(Breakdowns!Q:Q,Breakdowns!$H:$H,">="&$B15,Breakdowns!$AA:$AA,"=No"))),IF($A15="","",IF($A15="between",SUMIFS(Breakdowns!Q:Q,Breakdowns!$H:$H,">="&$B15,Breakdowns!$H:$H,"<"&$D15),SUMIFS(Breakdowns!Q:Q,Breakdowns!$H:$H,">="&$B15)))) ->  | J15: =IF($P$1,IF($A15="","",IF($A15="between",SUMIFS(Breakdowns!S:S,Breakdowns!$H:$H,">="&$B15,Breakdowns!$H:$H,"<"&$D15,Breakdowns!$AA:$AA,"=No"),SUMIFS(Breakdowns!S:S,Breakdowns!$H:$H,">="&$B15,Breakdowns!$AA:$AA,"=No"))),IF($A15="","",IF($A15="between",SUMIFS(Breakdowns!S:S,Breakdowns!$H:$H,">="&$B15,Breakdowns!$H:$H,"<"&$D15),SUMIFS(Breakdowns!S:S,Breakdowns!$H:$H,">="&$B15)))) ->  | K15: =IF($P$1,IF($A15="","",IF($A15="between",SUMIFS(Breakdowns!U:U,Breakdowns!$H:$H,">="&$B15,Breakdowns!$H:$H,"<"&$D15,Breakdowns!$AA:$AA,"=No"),SUMIFS(Breakdowns!U:U,Breakdowns!$H:$H,">="&$B15,Breakdowns!$AA:$AA,"=No"))),IF($A15="","",IF($A15="between",SUMIFS(Breakdowns!U:U,Breakdowns!$H:$H,">="&$B15,Breakdowns!$H:$H,"<"&$D15),SUMIFS(Breakdowns!U:U,Breakdowns!$H:$H,">="&$B15)))) ->  | L15: =IF($P$1,IF($A15="","",IF($A15="between",SUMIFS(Breakdowns!W:W,Breakdowns!$H:$H,">="&$B15,Breakdowns!$H:$H,"<"&$D15,Breakdowns!$AA:$AA,"=No"),SUMIFS(Breakdowns!W:W,Breakdowns!$H:$H,">="&$B15,Breakdowns!$AA:$AA,"=No"))),IF($A15="","",IF($A15="between",SUMIFS(Breakdowns!W:W,Breakdowns!$H:$H,">="&$B15,Breakdowns!$H:$H,"<"&$D15),SUMIFS(Breakdowns!W:W,Breakdowns!$H:$H,">="&$B15)))) ->  | M15: =IF($P$1,IF($A15="","",IF($A15="between",SUMIFS(Breakdowns!Y:Y,Breakdowns!$H:$H,">="&$B15,Breakdowns!$H:$H,"<"&$D15,Breakdowns!$AA:$AA,"=No"),SUMIFS(Breakdowns!Y:Y,Breakdowns!$H:$H,">="&$B15,Breakdowns!$AA:$AA,"=No"))),IF($A15="","",IF($A15="between",SUMIFS(Breakdowns!Y:Y,Breakdowns!$H:$H,">="&$B15,Breakdowns!$H:$H,"<"&$D15),SUMIFS(Breakdowns!Y:Y,Breakdowns!$H:$H,">="&$B15)))) -> 
S16: =IFERROR(S6&": "&FIXED(T6,0,0)&CHAR(10),"")&IFERROR(S7&": "&FIXED(T7,0,0)&CHAR(10),"")&IFERROR(S8&": "&FIXED(T8,0,0)&CHAR(10),"")&IFERROR(S9&": "&FIXED(T9,0,0)&CHAR(10),"")&IFERROR(S10&": "&FIXED(T10,0,0)&CHAR(10),"")&IFERROR(S11&": "&FIXED(T11,0,0)&CHAR(10),"")&IFERROR(S12&": "&FIXED(T12,0,0)&CHAR(10),"")&IFERROR(S13&": "&FIXED(T13,0,0)&CHAR(10),"")&IFERROR(S14&": "&FIXED(T14,0,0),"") -> under 200,000: 18,336 200,000 to 1,000,000: 13,743 over 1,000,000: 15,881
A19: By Mode/Type of Service
A20: Mode | B20: Type | C20: Description | D20: Column1 | E20: Column2 | F20: VOMS | G20: Major Mechanical Failures | H20: Other Mechanical Failures | I20: Total Mechanical Failures | J20: Vehicle/Passenger Car Miles | K20: Vehicle/Passenger Car Revenue Miles | L20: Train Miles | M20: Train Revenue Miles
A21: TR | B21: PT | C21: Aerial Tramway - Purchased Transportation | F21: =IF($P$1,SUMIFS(Breakdowns!L:L,Breakdowns!$J:$J,"="&$A21,Breakdowns!$K:$K,"="&$B21,Breakdowns!$AA:$AA,"=No"),SUMIFS(Breakdowns!L:L,Breakdowns!$J:$J,"="&$A21,Breakdowns!$K:$K,"="&$B21)) -> 2 | G21: =IF($P$1,SUMIFS(Breakdowns!M:M,Breakdowns!$J:$J,"="&$A21,Breakdowns!$K:$K,"="&$B21,Breakdowns!$AA:$AA,"=No"),SUMIFS(Breakdowns!M:M,Breakdowns!$J:$J,"="&$A21,Breakdowns!$K:$K,"="&$B21)) -> 0 | H21: =IF($P$1,SUMIFS(Breakdowns!O:O,Breakdowns!$J:$J,"="&$A21,Breakdowns!$K:$K,"="&$B21,Breakdowns!$AA:$AA,"=No"),SUMIFS(Breakdowns!O:O,Breakdowns!$J:$J,"="&$A21,Breakdowns!$K:$K,"="&$B21)) -> 0 | I21: =IF($P$1,SUMIFS(Breakdowns!Q:Q,Breakdowns!$J:$J,"="&$A21,Breakdowns!$K:$K,"="&$B21,Breakdowns!$AA:$AA,"=No"),SUMIFS(Breakdowns!Q:Q,Breakdowns!$J:$J,"="&$A21,Breakdowns!$K:$K,"="&$B21)) -> 0 | J21: =IF($P$1,SUMIFS(Breakdowns!S:S,Breakdowns!$J:$J,"="&$A21,Breakdowns!$K:$K,"="&$B21,Breakdowns!$AA:$AA,"=No"),SUMIFS(Breakdowns!S:S,Breakdowns!$J:$J,"="&$A21,Breakdowns!$K:$K,"="&$B21)) -> 31194 | K21: =IF($P$1,SUMIFS(Breakdowns!U:U,Breakdowns!$J:$J,"="&$A21,Breakdowns!$K:$K,"="&$B21,Breakdowns!$AA:$AA,"=No"),SUMIFS(Breakdowns!U:U,Breakdowns!$J:$J,"="&$A21,Breakdowns!$K:$K,"="&$B21)) -> 31194 | L21: =IF($P$1,SUMIFS(Breakdowns!W:W,Breakdowns!$J:$J,"="&$A21,Breakdowns!$K:$K,"="&$B21,Breakdowns!$AA:$AA,"=No"),SUMIFS(Breakdowns!W:W,Breakdowns!$J:$J,"="&$A21,Breakdowns!$K:$K,"="&$B21)) -> 0 | M21: =IF($P$1,SUMIFS(Breakdowns!Y:Y,Breakdowns!$J:$J,"="&$A21,Breakdowns!$K:$K,"="&$B21,Breakdowns!$AA:$AA,"=No"),SUMIFS(Breakdowns!Y:Y,Breakdowns!$J:$J,"="&$A21,Breakdowns!$K:$K,"="&$B21)) -> 0
A22: AR | B22: DO | C22: Alaska Railroad - Directly Operated | F22: =IF($P$1,SUMIFS(Breakdowns!L:L,Breakdowns!$J:$J,"="&$A22,Breakdowns!$K:$K,"="&$B22,Breakdowns!$AA:$AA,"=No"),SUMIFS(Breakdowns!L:L,Breakdowns!$J:$J,"="&$A22,Breakdowns!$K:$K,"="&$B22)) -> 39 | G22: =IF($P$1,SUMIFS(Breakdowns!M:M,Breakdowns!$J:$J,"="&$A22,Breakdowns!$K:$K,"="&$B22,Breakdowns!$AA:$AA,"=No"),SUMIFS(Breakdowns!M:M,Breakdowns!$J:$J,"="&$A22,Breakdowns!$K:$K,"="&$B22)) -> 3 | H22: =IF($P$1,SUMIFS(Breakdowns!O:O,Breakdowns!$J:$J,"="&$A22,Breakdowns!$K:$K,"="&$B22,Breakdowns!$AA:$AA,"=No"),SUMIFS(Breakdowns!O:O,Breakdowns!$J:$J,"="&$A22,Breakdowns!$K:$K,"="&$B22)) -> 2 | I22: =IF($P$1,SUMIFS(Breakdowns!Q:Q,Breakdowns!$J:$J,"="&$A22,Breakdowns!$K:$K,"="&$B22,Breakdowns!$AA:$AA,"=No"),SUMIFS(Breakdowns!Q:Q,Breakdowns!$J:$J,"="&$A22,Breakdowns!$K:$K,"="&$B22)) -> 5 | J22: =IF($P$1,SUMIFS(Breakdowns!S:S,Breakdowns!$J:$J,"="&$A22,Breakdowns!$K:$K,"="&$B22,Breakdowns!$AA:$AA,"=No"),SUMIFS(Breakdowns!S:S,Breakdowns!$J:$J,"="&$A22,Breakdowns!$K:$K,"="&$B22)) -> 1061704 | K22: =IF($P$1,SUMIFS(Breakdowns!U:U,Breakdowns!$J:$J,"="&$A22,Breakdowns!$K:$K,"="&$B22,Breakdowns!$AA:$AA,"=No"),SUMIFS(Breakdowns!U:U,Breakdowns!$J:$J,"="&$A22,Breakdowns!$K:$K,"="&$B22)) -> 1060672 | L22: =IF($P$1,SUMIFS(Breakdowns!W:W,Breakdowns!$J:$J,"="&$A22,Breakdowns!$K:$K,"="&$B22,Breakdowns!$AA:$AA,"=No"),SUMIFS(Breakdowns!W:W,Breakdowns!$J:$J,"="&$A22,Breakdowns!$K:$K,"="&$B22)) -> 176963 | M22: =IF($P$1,SUMIFS(Breakdowns!Y:Y,Breakdowns!$J:$J,"="&$A22,Breakdowns!$K:$K,"="&$B22,Breakdowns!$AA:$AA,"=No"),SUMIFS(Breakdowns!Y:Y,Breakdowns!$J:$J,"="&$A22,Breakdowns!$K:$K,"="&$B22)) -> 176738
A23: MB | B23: DO | C23: Bus - Directly Operated | F23: =IF($P$1,SUMIFS(Breakdowns!L:L,Breakdowns!$J:$J,"="&$A23,Breakdowns!$K:$K,"="&$B23,Breakdowns!$AA:$AA,"=No"),SUMIFS(Breakdowns!L:L,Breakdowns!$J:$J,"="&$A23,Breakdowns!$K:$K,"="&$B23)) -> 38052 | G23: =IF($P$1,SUMIFS(Breakdowns!M:M,Breakdowns!$J:$J,"="&$A23,Breakdowns!$K:$K,"="&$B23,Breakdowns!$AA:$AA,"=No"),SUMIFS(Breakdowns!M:M,Breakdowns!$J:$J,"="&$A23,Breakdowns!$K:$K,"="&$B23)) -> 170544 | H23: =IF($P$1,SUMIFS(Breakdowns!O:O,Breakdowns!$J:$J,"="&$A23,Breakdowns!$K:$K,"="&$B23,Breakdowns!$AA:$AA,"=No"),SUMIFS(Breakdowns!O:O,Breakdowns!$J:$J,"="&$A23,Breakdowns!$K:$K,"="&$B23)) -> 157171 | I23: =IF($P$1,SUMIFS(Breakdowns!Q:Q,Breakdowns!$J:$J,"="&$A23,Breakdowns!$K:$K,"="&$B23,Breakdowns!$AA:$AA,"=No"),SUMIFS(Breakdowns!Q:Q,Breakdowns!$J:$J,"="&$A23,Breakdowns!$K:$K,"="&$B23)) -> 327715 | J23: =IF($P$1,SUMIFS(Breakdowns!S:S,Breakdowns!$J:$J,"="&$A23,Breakdowns!$K:$K,"="&$B23,Breakdowns!$AA:$AA,"=No"),SUMIFS(Breakdowns!S:S,Breakdowns!$J:$J,"="&$A23,Breakdowns!$K:$K,"="&$B23)) -> 1648610491 | K23: =IF($P$1,SUMIFS(Breakdowns!U:U,Breakdowns!$J:$J,"="&$A23,Breakdowns!$K:$K,"="&$B23,Breakdowns!$AA:$AA,"=No"),SUMIFS(Breakdowns!U:U,Breakdowns!$J:$J,"="&$A23,Breakdowns!$K:$K,"="&$B23)) -> 1422967794 | L23: =IF($P$1,SUMIFS(Breakdowns!W:W,Breakdowns!$J:$J,"="&$A23,Breakdowns!$K:$K,"="&$B23,Breakdowns!$AA:$AA,"=No"),SUMIFS(Breakdowns!W:W,Breakdowns!$J:$J,"="&$A23,Breakdowns!$K:$K,"="&$B23)) -> 0 | M23: =IF($P$1,SUMIFS(Breakdowns!Y:Y,Breakdowns!$J:$J,"="&$A23,Breakdowns!$K:$K,"="&$B23,Breakdowns!$AA:$AA,"=No"),SUMIFS(Breakdowns!Y:Y,Breakdowns!$J:$J,"="&$A23,Breakdowns!$K:$K,"="&$B23)) -> 0
A24: MB | B24: PT | C24: Bus - Purchased Transportation | F24: =IF($P$1,SUMIFS(Breakdowns!L:L,Breakdowns!$J:$J,"="&$A24,Breakdowns!$K:$K,"="&$B24,Breakdowns!$AA:$AA,"=No"),SUMIFS(Breakdowns!L:L,Breakdowns!$J:$J,"="&$A24,Breakdowns!$K:$K,"="&$B24)) -> 8502 | G24: =IF($P$1,SUMIFS(Breakdowns!M:M,Breakdowns!$J:$J,"="&$A24,Breakdowns!$K:$K,"="&$B24,Breakdowns!$AA:$AA,"=No"),SUMIFS(Breakdowns!M:M,Breakdowns!$J:$J,"="&$A24,Breakdowns!$K:$K,"="&$B24)) -> 34504 | H24: =IF($P$1,SUMIFS(Breakdowns!O:O,Breakdowns!$J:$J,"="&$A24,Breakdowns!$K:$K,"="&$B24,Breakdowns!$AA:$AA,"=No"),SUMIFS(Breakdowns!O:O,Breakdowns!$J:$J,"="&$A24,Breakdowns!$K:$K,"="&$B24)) -> 26612 | I24: =IF($P$1,SUMIFS(Breakdowns!Q:Q,Breakdowns!$J:$J,"="&$A24,Breakdowns!$K:$K,"="&$B24,Breakdowns!$AA:$AA,"=No"),SUMIFS(Breakdowns!Q:Q,Breakdowns!$J:$J,"="&$A24,Breakdowns!$K:$K,"="&$B24)) -> 61116 | J24: =IF($P$1,SUMIFS(Breakdowns!S:S,Breakdowns!$J:$J,"="&$A24,Breakdowns!$K:$K,"="&$B24,Breakdowns!$AA:$AA,"=No"),SUMIFS(Breakdowns!S:S,Breakdowns!$J:$J,"="&$A24,Breakdowns!$K:$K,"="&$B24)) -> 388976043 | K24: =IF($P$1,SUMIFS(Breakdowns!U:U,Breakdowns!$J:$J,"="&$A24,Breakdowns!$K:$K,"="&$B24,Breakdowns!$AA:$AA,"=No"),SUMIFS(Breakdowns!U:U,Breakdowns!$J:$J,"="&$A24,Breakdowns!$K:$K,"="&$B24)) -> 332063890 | L24: =IF($P$1,SUMIFS(Breakdowns!W:W,Breakdowns!$J:$J,"="&$A24,Breakdowns!$K:$K,"="&$B24,Breakdowns!$AA:$AA,"=No"),SUMIFS(Breakdowns!W:W,Breakdowns!$J:$J,"="&$A24,Breakdowns!$K:$K,"="&$B24)) -> 0 | M24: =IF($P$1,SUMIFS(Breakdowns!Y:Y,Breakdowns!$J:$J,"="&$A24,Breakdowns!$K:$K,"="&$B24,Breakdowns!$AA:$AA,"=No"),SUMIFS(Breakdowns!Y:Y,Breakdowns!$J:$J,"="&$A24,Breakdowns!$K:$K,"="&$B24)) -> 0
A25: RB | B25: DO | C25: Bus Rapid Transit - Directly Operated | F25: =IF($P$1,SUMIFS(Breakdowns!L:L,Breakdowns!$J:$J,"="&$A25,Breakdowns!$K:$K,"="&$B25,Breakdowns!$AA:$AA,"=No"),SUMIFS(Breakdowns!L:L,Breakdowns!$J:$J,"="&$A25,Breakdowns!$K:$K,"="&$B25)) -> 241 | G25: =IF($P$1,SUMIFS(Breakdowns!M:M,Breakdowns!$J:$J,"="&$A25,Breakdowns!$K:$K,"="&$B25,Breakdowns!$AA:$AA,"=No"),SUMIFS(Breakdowns!M:M,Breakdowns!$J:$J,"="&$A25,Breakdowns!$K:$K,"="&$B25)) -> 837 | H25: =IF($P$1,SUMIFS(Breakdowns!O:O,Breakdowns!$J:$J,"="&$A25,Breakdowns!$K:$K,"="&$B25,Breakdowns!$AA:$AA,"=No"),SUMIFS(Breakdowns!O:O,Breakdowns!$J:$J,"="&$A25,Breakdowns!$K:$K,"="&$B25)) -> 790 | I25: =IF($P$1,SUMIFS(Breakdowns!Q:Q,Breakdowns!$J:$J,"="&$A25,Breakdowns!$K:$K,"="&$B25,Breakdowns!$AA:$AA,"=No"),SUMIFS(Breakdowns!Q:Q,Breakdowns!$J:$J,"="&$A25,Breakdowns!$K:$K,"="&$B25)) -> 1627 | J25: =IF($P$1,SUMIFS(Breakdowns!S:S,Breakdowns!$J:$J,"="&$A25,Breakdowns!$K:$K,"="&$B25,Breakdowns!$AA:$AA,"=No"),SUMIFS(Breakdowns!S:S,Breakdowns!$J:$J,"="&$A25,Breakdowns!$K:$K,"="&$B25)) -> 7976202 | K25: =IF($P$1,SUMIFS(Breakdowns!U:U,Breakdowns!$J:$J,"="&$A25,Breakdowns!$K:$K,"="&$B25,Breakdowns!$AA:$AA,"=No"),SUMIFS(Breakdowns!U:U,Breakdowns!$J:$J,"="&$A25,Breakdowns!$K:$K,"="&$B25)) -> 7466055 | L25: =IF($P$1,SUMIFS(Breakdowns!W:W,Breakdowns!$J:$J,"="&$A25,Breakdowns!$K:$K,"="&$B25,Breakdowns!$AA:$AA,"=No"),SUMIFS(Breakdowns!W:W,Breakdowns!$J:$J,"="&$A25,Breakdowns!$K:$K,"="&$B25)) -> 0 | M25: =IF($P$1,SUMIFS(Breakdowns!Y:Y,Breakdowns!$J:$J,"="&$A25,Breakdowns!$K:$K,"="&$B25,Breakdowns!$AA:$AA,"=No"),SUMIFS(Breakdowns!Y:Y,Breakdowns!$J:$J,"="&$A25,Breakdowns!$K:$K,"="&$B25)) -> 0
A26: RB | B26: PT | C26: Bus Rapid Transit - Purchased Transportation | F26: =IF($P$1,SUMIFS(Breakdowns!L:L,Breakdowns!$J:$J,"="&$A26,Breakdowns!$K:$K,"="&$B26,Breakdowns!$AA:$AA,"=No"),SUMIFS(Breakdowns!L:L,Breakdowns!$J:$J,"="&$A26,Breakdowns!$K:$K,"="&$B26)) -> 33 | G26: =IF($P$1,SUMIFS(Breakdowns!M:M,Breakdowns!$J:$J,"="&$A26,Breakdowns!$K:$K,"="&$B26,Breakdowns!$AA:$AA,"=No"),SUMIFS(Breakdowns!M:M,Breakdowns!$J:$J,"="&$A26,Breakdowns!$K:$K,"="&$B26)) -> 94 | H26: =IF($P$1,SUMIFS(Breakdowns!O:O,Breakdowns!$J:$J,"="&$A26,Breakdowns!$K:$K,"="&$B26,Breakdowns!$AA:$AA,"=No"),SUMIFS(Breakdowns!O:O,Breakdowns!$J:$J,"="&$A26,Breakdowns!$K:$K,"="&$B26)) -> 46 | I26: =IF($P$1,SUMIFS(Breakdowns!Q:Q,Breakdowns!$J:$J,"="&$A26,Breakdowns!$K:$K,"="&$B26,Breakdowns!$AA:$AA,"=No"),SUMIFS(Breakdowns!Q:Q,Breakdowns!$J:$J,"="&$A26,Breakdowns!$K:$K,"="&$B26)) -> 140 | J26: =IF($P$1,SUMIFS(Breakdowns!S:S,Breakdowns!$J:$J,"="&$A26,Breakdowns!$K:$K,"="&$B26,Breakdowns!$AA:$AA,"=No"),SUMIFS(Breakdowns!S:S,Breakdowns!$J:$J,"="&$A26,Breakdowns!$K:$K,"="&$B26)) -> 1130663 | K26: =IF($P$1,SUMIFS(Breakdowns!U:U,Breakdowns!$J:$J,"="&$A26,Breakdowns!$K:$K,"="&$B26,Breakdowns!$AA:$AA,"=No"),SUMIFS(Breakdowns!U:U,Breakdowns!$J:$J,"="&$A26,Breakdowns!$K:$K,"="&$B26)) -> 968708 | L26: =IF($P$1,SUMIFS(Breakdowns!W:W,Breakdowns!$J:$J,"="&$A26,Breakdowns!$K:$K,"="&$B26,Breakdowns!$AA:$AA,"=No"),SUMIFS(Breakdowns!W:W,Breakdowns!$J:$J,"="&$A26,Breakdowns!$K:$K,"="&$B26)) -> 0 | M26: =IF($P$1,SUMIFS(Breakdowns!Y:Y,Breakdowns!$J:$J,"="&$A26,Breakdowns!$K:$K,"="&$B26,Breakdowns!$AA:$AA,"=No"),SUMIFS(Breakdowns!Y:Y,Breakdowns!$J:$J,"="&$A26,Breakdowns!$K:$K,"="&$B26)) -> 0
A27: CC | B27: DO | C27: Cable Car - Directly Operated | F27: =IF($P$1,SUMIFS(Breakdowns!L:L,Breakdowns!$J:$J,"="&$A27,Breakdowns!$K:$K,"="&$B27,Breakdowns!$AA:$AA,"=No"),SUMIFS(Breakdowns!L:L,Breakdowns!$J:$J,"="&$A27,Breakdowns!$K:$K,"="&$B27)) -> 27 | G27: =IF($P$1,SUMIFS(Breakdowns!M:M,Breakdowns!$J:$J,"="&$A27,Breakdowns!$K:$K,"="&$B27,Breakdowns!$AA:$AA,"=No"),SUMIFS(Breakdowns!M:M,Breakdowns!$J:$J,"="&$A27,Breakdowns!$K:$K,"="&$B27)) -> 54 | H27: =IF($P$1,SUMIFS(Breakdowns!O:O,Breakdowns!$J:$J,"="&$A27,Breakdowns!$K:$K,"="&$B27,Breakdowns!$AA:$AA,"=No"),SUMIFS(Breakdowns!O:O,Breakdowns!$J:$J,"="&$A27,Breakdowns!$K:$K,"="&$B27)) -> 2001 | I27: =IF($P$1,SUMIFS(Breakdowns!Q:Q,Breakdowns!$J:$J,"="&$A27,Breakdowns!$K:$K,"="&$B27,Breakdowns!$AA:$AA,"=No"),SUMIFS(Breakdowns!Q:Q,Breakdowns!$J:$J,"="&$A27,Breakdowns!$K:$K,"="&$B27)) -> 2055 | J27: =IF($P$1,SUMIFS(Breakdowns!S:S,Breakdowns!$J:$J,"="&$A27,Breakdowns!$K:$K,"="&$B27,Breakdowns!$AA:$AA,"=No"),SUMIFS(Breakdowns!S:S,Breakdowns!$J:$J,"="&$A27,Breakdowns!$K:$K,"="&$B27)) -> 284716 | K27: =IF($P$1,SUMIFS(Breakdowns!U:U,Breakdowns!$J:$J,"="&$A27,Breakdowns!$K:$K,"="&$B27,Breakdowns!$AA:$AA,"=No"),SUMIFS(Breakdowns!U:U,Breakdowns!$J:$J,"="&$A27,Breakdowns!$K:$K,"="&$B27)) -> 278250 | L27: =IF($P$1,SUMIFS(Breakdowns!W:W,Breakdowns!$J:$J,"="&$A27,Breakdowns!$K:$K,"="&$B27,Breakdowns!$AA:$AA,"=No"),SUMIFS(Breakdowns!W:W,Breakdowns!$J:$J,"="&$A27,Breakdowns!$K:$K,"="&$B27)) -> 284716 | M27: =IF($P$1,SUMIFS(Breakdowns!Y:Y,Breakdowns!$J:$J,"="&$A27,Breakdowns!$K:$K,"="&$B27,Breakdowns!$AA:$AA,"=No"),SUMIFS(Breakdowns!Y:Y,Breakdowns!$J:$J,"="&$A27,Breakdowns!$K:$K,"="&$B27)) -> 278250
A28: CB | B28: DO | C28: Commuter Bus - Directly Operated | F28: =IF($P$1,SUMIFS(Breakdowns!L:L,Breakdowns!$J:$J,"="&$A28,Breakdowns!$K:$K,"="&$B28,Breakdowns!$AA:$AA,"=No"),SUMIFS(Breakdowns!L:L,Breakdowns!$J:$J,"="&$A28,Breakdowns!$K:$K,"="&$B28)) -> 2286 | G28: =IF($P$1,SUMIFS(Breakdowns!M:M,Breakdowns!$J:$J,"="&$A28,Breakdowns!$K:$K,"="&$B28,Breakdowns!$AA:$AA,"=No"),SUMIFS(Breakdowns!M:M,Breakdowns!$J:$J,"="&$A28,Breakdowns!$K:$K,"="&$B28)) -> 3417 | H28: =IF($P$1,SUMIFS(Breakdowns!O:O,Breakdowns!$J:$J,"="&$A28,Breakdowns!$K:$K,"="&$B28,Breakdowns!$AA:$AA,"=No"),SUMIFS(Breakdowns!O:O,Breakdowns!$J:$J,"="&$A28,Breakdowns!$K:$K,"="&$B28)) -> 5261 | I28: =IF($P$1,SUMIFS(Breakdowns!Q:Q,Breakdowns!$J:$J,"="&$A28,Breakdowns!$K:$K,"="&$B28,Breakdowns!$AA:$AA,"=No"),SUMIFS(Breakdowns!Q:Q,Breakdowns!$J:$J,"="&$A28,Breakdowns!$K:$K,"="&$B28)) -> 8678 | J28: =IF($P$1,SUMIFS(Breakdowns!S:S,Breakdowns!$J:$J,"="&$A28,Breakdowns!$K:$K,"="&$B28,Breakdowns!$AA:$AA,"=No"),SUMIFS(Breakdowns!S:S,Breakdowns!$J:$J,"="&$A28,Breakdowns!$K:$K,"="&$B28)) -> 102499262 | K28: =IF($P$1,SUMIFS(Breakdowns!U:U,Breakdowns!$J:$J,"="&$A28,Breakdowns!$K:$K,"="&$B28,Breakdowns!$AA:$AA,"=No"),SUMIFS(Breakdowns!U:U,Breakdowns!$J:$J,"="&$A28,Breakdowns!$K:$K,"="&$B28)) -> 79483964 | L28: =IF($P$1,SUMIFS(Breakdowns!W:W,Breakdowns!$J:$J,"="&$A28,Breakdowns!$K:$K,"="&$B28,Breakdowns!$AA:$AA,"=No"),SUMIFS(Breakdowns!W:W,Breakdowns!$J:$J,"="&$A28,Breakdowns!$K:$K,"="&$B28)) -> 0 | M28: =IF($P$1,SUMIFS(Breakdowns!Y:Y,Breakdowns!$J:$J,"="&$A28,Breakdowns!$K:$K,"="&$B28,Breakdowns!$AA:$AA,"=No"),SUMIFS(Breakdowns!Y:Y,Breakdowns!$J:$J,"="&$A28,Breakdowns!$K:$K,"="&$B28)) -> 0
A29: CB | B29: PT | C29: Commuter Bus - Purchased Transportation | F29: =IF($P$1,SUMIFS(Breakdowns!L:L,Breakdowns!$J:$J,"="&$A29,Breakdowns!$K:$K,"="&$B29,Breakdowns!$AA:$AA,"=No"),SUMIFS(Breakdowns!L:L,Breakdowns!$J:$J,"="&$A29,Breakdowns!$K:$K,"="&$B29)) -> 1305 | G29: =IF($P$1,SUMIFS(Breakdowns!M:M,Breakdowns!$J:$J,"="&$A29,Breakdowns!$K:$K,"="&$B29,Breakdowns!$AA:$AA,"=No"),SUMIFS(Breakdowns!M:M,Breakdowns!$J:$J,"="&$A29,Breakdowns!$K:$K,"="&$B29)) -> 2639 | H29: =IF($P$1,SUMIFS(Breakdowns!O:O,Breakdowns!$J:$J,"="&$A29,Breakdowns!$K:$K,"="&$B29,Breakdowns!$AA:$AA,"=No"),SUMIFS(Breakdowns!O:O,Breakdowns!$J:$J,"="&$A29,Breakdowns!$K:$K,"="&$B29)) -> 2336 | I29: =IF($P$1,SUMIFS(Breakdowns!Q:Q,Breakdowns!$J:$J,"="&$A29,Breakdowns!$K:$K,"="&$B29,Breakdowns!$AA:$AA,"=No"),SUMIFS(Breakdowns!Q:Q,Breakdowns!$J:$J,"="&$A29,Breakdowns!$K:$K,"="&$B29)) -> 4975 | J29: =IF($P$1,SUMIFS(Breakdowns!S:S,Breakdowns!$J:$J,"="&$A29,Breakdowns!$K:$K,"="&$B29,Breakdowns!$AA:$AA,"=No"),SUMIFS(Breakdowns!S:S,Breakdowns!$J:$J,"="&$A29,Breakdowns!$K:$K,"="&$B29)) -> 55983233 | K29: =IF($P$1,SUMIFS(Breakdowns!U:U,Breakdowns!$J:$J,"="&$A29,Breakdowns!$K:$K,"="&$B29,Breakdowns!$AA:$AA,"=No"),SUMIFS(Breakdowns!U:U,Breakdowns!$J:$J,"="&$A29,Breakdowns!$K:$K,"="&$B29)) -> 39537351 | L29: =IF($P$1,SUMIFS(Breakdowns!W:W,Breakdowns!$J:$J,"="&$A29,Breakdowns!$K:$K,"="&$B29,Breakdowns!$AA:$AA,"=No"),SUMIFS(Breakdowns!W:W,Breakdowns!$J:$J,"="&$A29,Breakdowns!$K:$K,"="&$B29)) -> 0 | M29: =IF($P$1,SUMIFS(Breakdowns!Y:Y,Breakdowns!$J:$J,"="&$A29,Breakdowns!$K:$K,"="&$B29,Breakdowns!$AA:$AA,"=No"),SUMIFS(Breakdowns!Y:Y,Breakdowns!$J:$J,"="&$A29,Breakdowns!$K:$K,"="&$B29)) -> 0
A30: CR | B30: DO | C30: Commuter Rail - Directly Operated | F30: =IF($P$1,SUMIFS(Breakdowns!L:L,Breakdowns!$J:$J,"="&$A30,Breakdowns!$K:$K,"="&$B30,Breakdowns!$AA:$AA,"=No"),SUMIFS(Breakdowns!L:L,Breakdowns!$J:$J,"="&$A30,Breakdowns!$K:$K,"="&$B30)) -> 4981 | G30: =IF($P$1,SUMIFS(Breakdowns!M:M,Breakdowns!$J:$J,"="&$A30,Breakdowns!$K:$K,"="&$B30,Breakdowns!$AA:$AA,"=No"),SUMIFS(Breakdowns!M:M,Breakdowns!$J:$J,"="&$A30,Breakdowns!$K:$K,"="&$B30)) -> 613 | H30: =IF($P$1,SUMIFS(Breakdowns!O:O,Breakdowns!$J:$J,"="&$A30,Breakdowns!$K:$K,"="&$B30,Breakdowns!$AA:$AA,"=No"),SUMIFS(Breakdowns!O:O,Breakdowns!$J:$J,"="&$A30,Breakdowns!$K:$K,"="&$B30)) -> 406 | I30: =IF($P$1,SUMIFS(Breakdowns!Q:Q,Breakdowns!$J:$J,"="&$A30,Breakdowns!$K:$K,"="&$B30,Breakdowns!$AA:$AA,"=No"),SUMIFS(Breakdowns!Q:Q,Breakdowns!$J:$J,"="&$A30,Breakdowns!$K:$K,"="&$B30)) -> 1019 | J30: =IF($P$1,SUMIFS(Breakdowns!S:S,Breakdowns!$J:$J,"="&$A30,Breakdowns!$K:$K,"="&$B30,Breakdowns!$AA:$AA,"=No"),SUMIFS(Breakdowns!S:S,Breakdowns!$J:$J,"="&$A30,Breakdowns!$K:$K,"="&$B30)) -> 296324611 | K30: =IF($P$1,SUMIFS(Breakdowns!U:U,Breakdowns!$J:$J,"="&$A30,Breakdowns!$K:$K,"="&$B30,Breakdowns!$AA:$AA,"=No"),SUMIFS(Breakdowns!U:U,Breakdowns!$J:$J,"="&$A30,Breakdowns!$K:$K,"="&$B30)) -> 272453508 | L30: =IF($P$1,SUMIFS(Breakdowns!W:W,Breakdowns!$J:$J,"="&$A30,Breakdowns!$K:$K,"="&$B30,Breakdowns!$AA:$AA,"=No"),SUMIFS(Breakdowns!W:W,Breakdowns!$J:$J,"="&$A30,Breakdowns!$K:$K,"="&$B30)) -> 43985885 | M30: =IF($P$1,SUMIFS(Breakdowns!Y:Y,Breakdowns!$J:$J,"="&$A30,Breakdowns!$K:$K,"="&$B30,Breakdowns!$AA:$AA,"=No"),SUMIFS(Breakdowns!Y:Y,Breakdowns!$J:$J,"="&$A30,Breakdowns!$K:$K,"="&$B30)) -> 40540878
A31: CR | B31: PT | C31: Commuter Rail - Purchased Transportation | F31: =IF($P$1,SUMIFS(Breakdowns!L:L,Breakdowns!$J:$J,"="&$A31,Breakdowns!$K:$K,"="&$B31,Breakdowns!$AA:$AA,"=No"),SUMIFS(Breakdowns!L:L,Breakdowns!$J:$J,"="&$A31,Breakdowns!$K:$K,"="&$B31)) -> 1297 | G31: =IF($P$1,SUMIFS(Breakdowns!M:M,Breakdowns!$J:$J,"="&$A31,Breakdowns!$K:$K,"="&$B31,Breakdowns!$AA:$AA,"=No"),SUMIFS(Breakdowns!M:M,Breakdowns!$J:$J,"="&$A31,Breakdowns!$K:$K,"="&$B31)) -> 701 | H31: =IF($P$1,SUMIFS(Breakdowns!O:O,Breakdowns!$J:$J,"="&$A31,Breakdowns!$K:$K,"="&$B31,Breakdowns!$AA:$AA,"=No"),SUMIFS(Breakdowns!O:O,Breakdowns!$J:$J,"="&$A31,Breakdowns!$K:$K,"="&$B31)) -> 167 | I31: =IF($P$1,SUMIFS(Breakdowns!Q:Q,Breakdowns!$J:$J,"="&$A31,Breakdowns!$K:$K,"="&$B31,Breakdowns!$AA:$AA,"=No"),SUMIFS(Breakdowns!Q:Q,Breakdowns!$J:$J,"="&$A31,Breakdowns!$K:$K,"="&$B31)) -> 868 | J31: =IF($P$1,SUMIFS(Breakdowns!S:S,Breakdowns!$J:$J,"="&$A31,Breakdowns!$K:$K,"="&$B31,Breakdowns!$AA:$AA,"=No"),SUMIFS(Breakdowns!S:S,Breakdowns!$J:$J,"="&$A31,Breakdowns!$K:$K,"="&$B31)) -> 73134832 | K31: =IF($P$1,SUMIFS(Breakdowns!U:U,Breakdowns!$J:$J,"="&$A31,Breakdowns!$K:$K,"="&$B31,Breakdowns!$AA:$AA,"=No"),SUMIFS(Breakdowns!U:U,Breakdowns!$J:$J,"="&$A31,Breakdowns!$K:$K,"="&$B31)) -> 69625199 | L31: =IF($P$1,SUMIFS(Breakdowns!W:W,Breakdowns!$J:$J,"="&$A31,Breakdowns!$K:$K,"="&$B31,Breakdowns!$AA:$AA,"=No"),SUMIFS(Breakdowns!W:W,Breakdowns!$J:$J,"="&$A31,Breakdowns!$K:$K,"="&$B31)) -> 15301555 | M31: =IF($P$1,SUMIFS(Breakdowns!Y:Y,Breakdowns!$J:$J,"="&$A31,Breakdowns!$K:$K,"="&$B31,Breakdowns!$AA:$AA,"=No"),SUMIFS(Breakdowns!Y:Y,Breakdowns!$J:$J,"="&$A31,Breakdowns!$K:$K,"="&$B31)) -> 14673379
A32: DR | B32: DO | C32: Demand Response - Directly Operated | F32: =IF($P$1,SUMIFS(Breakdowns!L:L,Breakdowns!$J:$J,"="&$A32,Breakdowns!$K:$K,"="&$B32,Breakdowns!$AA:$AA,"=No"),SUMIFS(Breakdowns!L:L,Breakdowns!$J:$J,"="&$A32,Breakdowns!$K:$K,"="&$B32)) -> 5719 | G32: =IF($P$1,SUMIFS(Breakdowns!M:M,Breakdowns!$J:$J,"="&$A32,Breakdowns!$K:$K,"="&$B32,Breakdowns!$AA:$AA,"=No"),SUMIFS(Breakdowns!M:M,Breakdowns!$J:$J,"="&$A32,Breakdowns!$K:$K,"="&$B32)) -> 6715 | H32: =IF($P$1,SUMIFS(Breakdowns!O:O,Breakdowns!$J:$J,"="&$A32,Breakdowns!$K:$K,"="&$B32,Breakdowns!$AA:$AA,"=No"),SUMIFS(Breakdowns!O:O,Breakdowns!$J:$J,"="&$A32,Breakdowns!$K:$K,"="&$B32)) -> 6938 | I32: =IF($P$1,SUMIFS(Breakdowns!Q:Q,Breakdowns!$J:$J,"="&$A32,Breakdowns!$K:$K,"="&$B32,Breakdowns!$AA:$AA,"=No"),SUMIFS(Breakdowns!Q:Q,Breakdowns!$J:$J,"="&$A32,Breakdowns!$K:$K,"="&$B32)) -> 13653 | J32: =IF($P$1,SUMIFS(Breakdowns!S:S,Breakdowns!$J:$J,"="&$A32,Breakdowns!$K:$K,"="&$B32,Breakdowns!$AA:$AA,"=No"),SUMIFS(Breakdowns!S:S,Breakdowns!$J:$J,"="&$A32,Breakdowns!$K:$K,"="&$B32)) -> 182570515 | K32: =IF($P$1,SUMIFS(Breakdowns!U:U,Breakdowns!$J:$J,"="&$A32,Breakdowns!$K:$K,"="&$B32,Breakdowns!$AA:$AA,"=No"),SUMIFS(Breakdowns!U:U,Breakdowns!$J:$J,"="&$A32,Breakdowns!$K:$K,"="&$B32)) -> 155302972 | L32: =IF($P$1,SUMIFS(Breakdowns!W:W,Breakdowns!$J:$J,"="&$A32,Breakdowns!$K:$K,"="&$B32,Breakdowns!$AA:$AA,"=No"),SUMIFS(Breakdowns!W:W,Breakdowns!$J:$J,"="&$A32,Breakdowns!$K:$K,"="&$B32)) -> 0 | M32: =IF($P$1,SUMIFS(Breakdowns!Y:Y,Breakdowns!$J:$J,"="&$A32,Breakdowns!$K:$K,"="&$B32,Breakdowns!$AA:$AA,"=No"),SUMIFS(Breakdowns!Y:Y,Breakdowns!$J:$J,"="&$A32,Breakdowns!$K:$K,"="&$B32)) -> 0
A33: DR | B33: PT | C33: Demand Response - Purchased Transportation | F33: =IF($P$1,SUMIFS(Breakdowns!L:L,Breakdowns!$J:$J,"="&$A33,Breakdowns!$K:$K,"="&$B33,Breakdowns!$AA:$AA,"=No"),SUMIFS(Breakdowns!L:L,Breakdowns!$J:$J,"="&$A33,Breakdowns!$K:$K,"="&$B33)) -> 17944 | G33: =IF($P$1,SUMIFS(Breakdowns!M:M,Breakdowns!$J:$J,"="&$A33,Breakdowns!$K:$K,"="&$B33,Breakdowns!$AA:$AA,"=No"),SUMIFS(Breakdowns!M:M,Breakdowns!$J:$J,"="&$A33,Breakdowns!$K:$K,"="&$B33)) -> 13800 | H33: =IF($P$1,SUMIFS(Breakdowns!O:O,Breakdowns!$J:$J,"="&$A33,Breakdowns!$K:$K,"="&$B33,Breakdowns!$AA:$AA,"=No"),SUMIFS(Breakdowns!O:O,Breakdowns!$J:$J,"="&$A33,Breakdowns!$K:$K,"="&$B33)) -> 16698 | I33: =IF($P$1,SUMIFS(Breakdowns!Q:Q,Breakdowns!$J:$J,"="&$A33,Breakdowns!$K:$K,"="&$B33,Breakdowns!$AA:$AA,"=No"),SUMIFS(Breakdowns!Q:Q,Breakdowns!$J:$J,"="&$A33,Breakdowns!$K:$K,"="&$B33)) -> 30498 | J33: =IF($P$1,SUMIFS(Breakdowns!S:S,Breakdowns!$J:$J,"="&$A33,Breakdowns!$K:$K,"="&$B33,Breakdowns!$AA:$AA,"=No"),SUMIFS(Breakdowns!S:S,Breakdowns!$J:$J,"="&$A33,Breakdowns!$K:$K,"="&$B33)) -> 659459541 | K33: =IF($P$1,SUMIFS(Breakdowns!U:U,Breakdowns!$J:$J,"="&$A33,Breakdowns!$K:$K,"="&$B33,Breakdowns!$AA:$AA,"=No"),SUMIFS(Breakdowns!U:U,Breakdowns!$J:$J,"="&$A33,Breakdowns!$K:$K,"="&$B33)) -> 559325904 | L33: =IF($P$1,SUMIFS(Breakdowns!W:W,Breakdowns!$J:$J,"="&$A33,Breakdowns!$K:$K,"="&$B33,Breakdowns!$AA:$AA,"=No"),SUMIFS(Breakdowns!W:W,Breakdowns!$J:$J,"="&$A33,Breakdowns!$K:$K,"="&$B33)) -> 0 | M33: =IF($P$1,SUMIFS(Breakdowns!Y:Y,Breakdowns!$J:$J,"="&$A33,Breakdowns!$K:$K,"="&$B33,Breakdowns!$AA:$AA,"=No"),SUMIFS(Breakdowns!Y:Y,Breakdowns!$J:$J,"="&$A33,Breakdowns!$K:$K,"="&$B33)) -> 0
A34: FB | B34: DO | C34: Ferryboat - Directly Operated | F34: =IF($P$1,SUMIFS(Breakdowns!L:L,Breakdowns!$J:$J,"="&$A34,Breakdowns!$K:$K,"="&$B34,Breakdowns!$AA:$AA,"=No"),SUMIFS(Breakdowns!L:L,Breakdowns!$J:$J,"="&$A34,Breakdowns!$K:$K,"="&$B34)) -> 75 | G34: =IF($P$1,SUMIFS(Breakdowns!M:M,Breakdowns!$J:$J,"="&$A34,Breakdowns!$K:$K,"="&$B34,Breakdowns!$AA:$AA,"=No"),SUMIFS(Breakdowns!M:M,Breakdowns!$J:$J,"="&$A34,Breakdowns!$K:$K,"="&$B34)) -> 215 | H34: =IF($P$1,SUMIFS(Breakdowns!O:O,Breakdowns!$J:$J,"="&$A34,Breakdowns!$K:$K,"="&$B34,Breakdowns!$AA:$AA,"=No"),SUMIFS(Breakdowns!O:O,Breakdowns!$J:$J,"="&$A34,Breakdowns!$K:$K,"="&$B34)) -> 39 | I34: =IF($P$1,SUMIFS(Breakdowns!Q:Q,Breakdowns!$J:$J,"="&$A34,Breakdowns!$K:$K,"="&$B34,Breakdowns!$AA:$AA,"=No"),SUMIFS(Breakdowns!Q:Q,Breakdowns!$J:$J,"="&$A34,Breakdowns!$K:$K,"="&$B34)) -> 254 | J34: =IF($P$1,SUMIFS(Breakdowns!S:S,Breakdowns!$J:$J,"="&$A34,Breakdowns!$K:$K,"="&$B34,Breakdowns!$AA:$AA,"=No"),SUMIFS(Breakdowns!S:S,Breakdowns!$J:$J,"="&$A34,Breakdowns!$K:$K,"="&$B34)) -> 2675916 | K34: =IF($P$1,SUMIFS(Breakdowns!U:U,Breakdowns!$J:$J,"="&$A34,Breakdowns!$K:$K,"="&$B34,Breakdowns!$AA:$AA,"=No"),SUMIFS(Breakdowns!U:U,Breakdowns!$J:$J,"="&$A34,Breakdowns!$K:$K,"="&$B34)) -> 2642047 | L34: =IF($P$1,SUMIFS(Breakdowns!W:W,Breakdowns!$J:$J,"="&$A34,Breakdowns!$K:$K,"="&$B34,Breakdowns!$AA:$AA,"=No"),SUMIFS(Breakdowns!W:W,Breakdowns!$J:$J,"="&$A34,Breakdowns!$K:$K,"="&$B34)) -> 0 | M34: =IF($P$1,SUMIFS(Breakdowns!Y:Y,Breakdowns!$J:$J,"="&$A34,Breakdowns!$K:$K,"="&$B34,Breakdowns!$AA:$AA,"=No"),SUMIFS(Breakdowns!Y:Y,Breakdowns!$J:$J,"="&$A34,Breakdowns!$K:$K,"="&$B34)) -> 0
A35: FB | B35: PT | C35: Ferryboat - Purchased Transportation | F35: =IF($P$1,SUMIFS(Breakdowns!L:L,Breakdowns!$J:$J,"="&$A35,Breakdowns!$K:$K,"="&$B35,Breakdowns!$AA:$AA,"=No"),SUMIFS(Breakdowns!L:L,Breakdowns!$J:$J,"="&$A35,Breakdowns!$K:$K,"="&$B35)) -> 44 | G35: =IF($P$1,SUMIFS(Breakdowns!M:M,Breakdowns!$J:$J,"="&$A35,Breakdowns!$K:$K,"="&$B35,Breakdowns!$AA:$AA,"=No"),SUMIFS(Breakdowns!M:M,Breakdowns!$J:$J,"="&$A35,Breakdowns!$K:$K,"="&$B35)) -> 57 | H35: =IF($P$1,SUMIFS(Breakdowns!O:O,Breakdowns!$J:$J,"="&$A35,Breakdowns!$K:$K,"="&$B35,Breakdowns!$AA:$AA,"=No"),SUMIFS(Breakdowns!O:O,Breakdowns!$J:$J,"="&$A35,Breakdowns!$K:$K,"="&$B35)) -> 63 | I35: =IF($P$1,SUMIFS(Breakdowns!Q:Q,Breakdowns!$J:$J,"="&$A35,Breakdowns!$K:$K,"="&$B35,Breakdowns!$AA:$AA,"=No"),SUMIFS(Breakdowns!Q:Q,Breakdowns!$J:$J,"="&$A35,Breakdowns!$K:$K,"="&$B35)) -> 120 | J35: =IF($P$1,SUMIFS(Breakdowns!S:S,Breakdowns!$J:$J,"="&$A35,Breakdowns!$K:$K,"="&$B35,Breakdowns!$AA:$AA,"=No"),SUMIFS(Breakdowns!S:S,Breakdowns!$J:$J,"="&$A35,Breakdowns!$K:$K,"="&$B35)) -> 1001774 | K35: =IF($P$1,SUMIFS(Breakdowns!U:U,Breakdowns!$J:$J,"="&$A35,Breakdowns!$K:$K,"="&$B35,Breakdowns!$AA:$AA,"=No"),SUMIFS(Breakdowns!U:U,Breakdowns!$J:$J,"="&$A35,Breakdowns!$K:$K,"="&$B35)) -> 942990 | L35: =IF($P$1,SUMIFS(Breakdowns!W:W,Breakdowns!$J:$J,"="&$A35,Breakdowns!$K:$K,"="&$B35,Breakdowns!$AA:$AA,"=No"),SUMIFS(Breakdowns!W:W,Breakdowns!$J:$J,"="&$A35,Breakdowns!$K:$K,"="&$B35)) -> 0 | M35: =IF($P$1,SUMIFS(Breakdowns!Y:Y,Breakdowns!$J:$J,"="&$A35,Breakdowns!$K:$K,"="&$B35,Breakdowns!$AA:$AA,"=No"),SUMIFS(Breakdowns!Y:Y,Breakdowns!$J:$J,"="&$A35,Breakdowns!$K:$K,"="&$B35)) -> 0
A36: HR | B36: DO | C36: Heavy Rail - Directly Operated | F36: =IF($P$1,SUMIFS(Breakdowns!L:L,Breakdowns!$J:$J,"="&$A36,Breakdowns!$K:$K,"="&$B36,Breakdowns!$AA:$AA,"=No"),SUMIFS(Breakdowns!L:L,Breakdowns!$J:$J,"="&$A36,Breakdowns!$K:$K,"="&$B36)) -> 9396 | G36: =IF($P$1,SUMIFS(Breakdowns!M:M,Breakdowns!$J:$J,"="&$A36,Breakdowns!$K:$K,"="&$B36,Breakdowns!$AA:$AA,"=No"),SUMIFS(Breakdowns!M:M,Breakdowns!$J:$J,"="&$A36,Breakdowns!$K:$K,"="&$B36)) -> 7266 | H36: =IF($P$1,SUMIFS(Breakdowns!O:O,Breakdowns!$J:$J,"="&$A36,Breakdowns!$K:$K,"="&$B36,Breakdowns!$AA:$AA,"=No"),SUMIFS(Breakdowns!O:O,Breakdowns!$J:$J,"="&$A36,Breakdowns!$K:$K,"="&$B36)) -> 30224 | I36: =IF($P$1,SUMIFS(Breakdowns!Q:Q,Breakdowns!$J:$J,"="&$A36,Breakdowns!$K:$K,"="&$B36,Breakdowns!$AA:$AA,"=No"),SUMIFS(Breakdowns!Q:Q,Breakdowns!$J:$J,"="&$A36,Breakdowns!$K:$K,"="&$B36)) -> 37490 | J36: =IF($P$1,SUMIFS(Breakdowns!S:S,Breakdowns!$J:$J,"="&$A36,Breakdowns!$K:$K,"="&$B36,Breakdowns!$AA:$AA,"=No"),SUMIFS(Breakdowns!S:S,Breakdowns!$J:$J,"="&$A36,Breakdowns!$K:$K,"="&$B36)) -> 693473654 | K36: =IF($P$1,SUMIFS(Breakdowns!U:U,Breakdowns!$J:$J,"="&$A36,Breakdowns!$K:$K,"="&$B36,Breakdowns!$AA:$AA,"=No"),SUMIFS(Breakdowns!U:U,Breakdowns!$J:$J,"="&$A36,Breakdowns!$K:$K,"="&$B36)) -> 673957175 | L36: =IF($P$1,SUMIFS(Breakdowns!W:W,Breakdowns!$J:$J,"="&$A36,Breakdowns!$K:$K,"="&$B36,Breakdowns!$AA:$AA,"=No"),SUMIFS(Breakdowns!W:W,Breakdowns!$J:$J,"="&$A36,Breakdowns!$K:$K,"="&$B36)) -> 94740069 | M36: =IF($P$1,SUMIFS(Breakdowns!Y:Y,Breakdowns!$J:$J,"="&$A36,Breakdowns!$K:$K,"="&$B36,Breakdowns!$AA:$AA,"=No"),SUMIFS(Breakdowns!Y:Y,Breakdowns!$J:$J,"="&$A36,Breakdowns!$K:$K,"="&$B36)) -> 92106196
A37: HR | B37: PT | C37: Heavy Rail - Purchased Transportation | F37: =IF($P$1,SUMIFS(Breakdowns!L:L,Breakdowns!$J:$J,"="&$A37,Breakdowns!$K:$K,"="&$B37,Breakdowns!$AA:$AA,"=No"),SUMIFS(Breakdowns!L:L,Breakdowns!$J:$J,"="&$A37,Breakdowns!$K:$K,"="&$B37)) -> 32 | G37: =IF($P$1,SUMIFS(Breakdowns!M:M,Breakdowns!$J:$J,"="&$A37,Breakdowns!$K:$K,"="&$B37,Breakdowns!$AA:$AA,"=No"),SUMIFS(Breakdowns!M:M,Breakdowns!$J:$J,"="&$A37,Breakdowns!$K:$K,"="&$B37)) -> 48 | H37: =IF($P$1,SUMIFS(Breakdowns!O:O,Breakdowns!$J:$J,"="&$A37,Breakdowns!$K:$K,"="&$B37,Breakdowns!$AA:$AA,"=No"),SUMIFS(Breakdowns!O:O,Breakdowns!$J:$J,"="&$A37,Breakdowns!$K:$K,"="&$B37)) -> 474 | I37: =IF($P$1,SUMIFS(Breakdowns!Q:Q,Breakdowns!$J:$J,"="&$A37,Breakdowns!$K:$K,"="&$B37,Breakdowns!$AA:$AA,"=No"),SUMIFS(Breakdowns!Q:Q,Breakdowns!$J:$J,"="&$A37,Breakdowns!$K:$K,"="&$B37)) -> 522 | J37: =IF($P$1,SUMIFS(Breakdowns!S:S,Breakdowns!$J:$J,"="&$A37,Breakdowns!$K:$K,"="&$B37,Breakdowns!$AA:$AA,"=No"),SUMIFS(Breakdowns!S:S,Breakdowns!$J:$J,"="&$A37,Breakdowns!$K:$K,"="&$B37)) -> 1996888 | K37: =IF($P$1,SUMIFS(Breakdowns!U:U,Breakdowns!$J:$J,"="&$A37,Breakdowns!$K:$K,"="&$B37,Breakdowns!$AA:$AA,"=No"),SUMIFS(Breakdowns!U:U,Breakdowns!$J:$J,"="&$A37,Breakdowns!$K:$K,"="&$B37)) -> 1928641 | L37: =IF($P$1,SUMIFS(Breakdowns!W:W,Breakdowns!$J:$J,"="&$A37,Breakdowns!$K:$K,"="&$B37,Breakdowns!$AA:$AA,"=No"),SUMIFS(Breakdowns!W:W,Breakdowns!$J:$J,"="&$A37,Breakdowns!$K:$K,"="&$B37)) -> 612762 | M37: =IF($P$1,SUMIFS(Breakdowns!Y:Y,Breakdowns!$J:$J,"="&$A37,Breakdowns!$K:$K,"="&$B37,Breakdowns!$AA:$AA,"=No"),SUMIFS(Breakdowns!Y:Y,Breakdowns!$J:$J,"="&$A37,Breakdowns!$K:$K,"="&$B37)) -> 590548
A38: YR | B38: PT | C38: Hybrid Rail - Purchased Transportation | F38: =IF($P$1,SUMIFS(Breakdowns!L:L,Breakdowns!$J:$J,"="&$A38,Breakdowns!$K:$K,"="&$B38,Breakdowns!$AA:$AA,"=No"),SUMIFS(Breakdowns!L:L,Breakdowns!$J:$J,"="&$A38,Breakdowns!$K:$K,"="&$B38)) -> 40 | G38: =IF($P$1,SUMIFS(Breakdowns!M:M,Breakdowns!$J:$J,"="&$A38,Breakdowns!$K:$K,"="&$B38,Breakdowns!$AA:$AA,"=No"),SUMIFS(Breakdowns!M:M,Breakdowns!$J:$J,"="&$A38,Breakdowns!$K:$K,"="&$B38)) -> 93 | H38: =IF($P$1,SUMIFS(Breakdowns!O:O,Breakdowns!$J:$J,"="&$A38,Breakdowns!$K:$K,"="&$B38,Breakdowns!$AA:$AA,"=No"),SUMIFS(Breakdowns!O:O,Breakdowns!$J:$J,"="&$A38,Breakdowns!$K:$K,"="&$B38)) -> 134 | I38: =IF($P$1,SUMIFS(Breakdowns!Q:Q,Breakdowns!$J:$J,"="&$A38,Breakdowns!$K:$K,"="&$B38,Breakdowns!$AA:$AA,"=No"),SUMIFS(Breakdowns!Q:Q,Breakdowns!$J:$J,"="&$A38,Breakdowns!$K:$K,"="&$B38)) -> 227 | J38: =IF($P$1,SUMIFS(Breakdowns!S:S,Breakdowns!$J:$J,"="&$A38,Breakdowns!$K:$K,"="&$B38,Breakdowns!$AA:$AA,"=No"),SUMIFS(Breakdowns!S:S,Breakdowns!$J:$J,"="&$A38,Breakdowns!$K:$K,"="&$B38)) -> 3199404 | K38: =IF($P$1,SUMIFS(Breakdowns!U:U,Breakdowns!$J:$J,"="&$A38,Breakdowns!$K:$K,"="&$B38,Breakdowns!$AA:$AA,"=No"),SUMIFS(Breakdowns!U:U,Breakdowns!$J:$J,"="&$A38,Breakdowns!$K:$K,"="&$B38)) -> 3088127 | L38: =IF($P$1,SUMIFS(Breakdowns!W:W,Breakdowns!$J:$J,"="&$A38,Breakdowns!$K:$K,"="&$B38,Breakdowns!$AA:$AA,"=No"),SUMIFS(Breakdowns!W:W,Breakdowns!$J:$J,"="&$A38,Breakdowns!$K:$K,"="&$B38)) -> 2336931 | M38: =IF($P$1,SUMIFS(Breakdowns!Y:Y,Breakdowns!$J:$J,"="&$A38,Breakdowns!$K:$K,"="&$B38,Breakdowns!$AA:$AA,"=No"),SUMIFS(Breakdowns!Y:Y,Breakdowns!$J:$J,"="&$A38,Breakdowns!$K:$K,"="&$B38)) -> 2271421
A39: IP | B39: DO | C39: Inclined Plane - Directly Operated | F39: =IF($P$1,SUMIFS(Breakdowns!L:L,Breakdowns!$J:$J,"="&$A39,Breakdowns!$K:$K,"="&$B39,Breakdowns!$AA:$AA,"=No"),SUMIFS(Breakdowns!L:L,Breakdowns!$J:$J,"="&$A39,Breakdowns!$K:$K,"="&$B39)) -> 6 | G39: =IF($P$1,SUMIFS(Breakdowns!M:M,Breakdowns!$J:$J,"="&$A39,Breakdowns!$K:$K,"="&$B39,Breakdowns!$AA:$AA,"=No"),SUMIFS(Breakdowns!M:M,Breakdowns!$J:$J,"="&$A39,Breakdowns!$K:$K,"="&$B39)) -> 37 | H39: =IF($P$1,SUMIFS(Breakdowns!O:O,Breakdowns!$J:$J,"="&$A39,Breakdowns!$K:$K,"="&$B39,Breakdowns!$AA:$AA,"=No"),SUMIFS(Breakdowns!O:O,Breakdowns!$J:$J,"="&$A39,Breakdowns!$K:$K,"="&$B39)) -> 1 | I39: =IF($P$1,SUMIFS(Breakdowns!Q:Q,Breakdowns!$J:$J,"="&$A39,Breakdowns!$K:$K,"="&$B39,Breakdowns!$AA:$AA,"=No"),SUMIFS(Breakdowns!Q:Q,Breakdowns!$J:$J,"="&$A39,Breakdowns!$K:$K,"="&$B39)) -> 38 | J39: =IF($P$1,SUMIFS(Breakdowns!S:S,Breakdowns!$J:$J,"="&$A39,Breakdowns!$K:$K,"="&$B39,Breakdowns!$AA:$AA,"=No"),SUMIFS(Breakdowns!S:S,Breakdowns!$J:$J,"="&$A39,Breakdowns!$K:$K,"="&$B39)) -> 39955 | K39: =IF($P$1,SUMIFS(Breakdowns!U:U,Breakdowns!$J:$J,"="&$A39,Breakdowns!$K:$K,"="&$B39,Breakdowns!$AA:$AA,"=No"),SUMIFS(Breakdowns!U:U,Breakdowns!$J:$J,"="&$A39,Breakdowns!$K:$K,"="&$B39)) -> 38350 | L39: =IF($P$1,SUMIFS(Breakdowns!W:W,Breakdowns!$J:$J,"="&$A39,Breakdowns!$K:$K,"="&$B39,Breakdowns!$AA:$AA,"=No"),SUMIFS(Breakdowns!W:W,Breakdowns!$J:$J,"="&$A39,Breakdowns!$K:$K,"="&$B39)) -> 39955 | M39: =IF($P$1,SUMIFS(Breakdowns!Y:Y,Breakdowns!$J:$J,"="&$A39,Breakdowns!$K:$K,"="&$B39,Breakdowns!$AA:$AA,"=No"),SUMIFS(Breakdowns!Y:Y,Breakdowns!$J:$J,"="&$A39,Breakdowns!$K:$K,"="&$B39)) -> 38350
A40: LR | B40: DO | C40: Light Rail - Directly Operated | F40: =IF($P$1,SUMIFS(Breakdowns!L:L,Breakdowns!$J:$J,"="&$A40,Breakdowns!$K:$K,"="&$B40,Breakdowns!$AA:$AA,"=No"),SUMIFS(Breakdowns!L:L,Breakdowns!$J:$J,"="&$A40,Breakdowns!$K:$K,"="&$B40)) -> 1460 | G40: =IF($P$1,SUMIFS(Breakdowns!M:M,Breakdowns!$J:$J,"="&$A40,Breakdowns!$K:$K,"="&$B40,Breakdowns!$AA:$AA,"=No"),SUMIFS(Breakdowns!M:M,Breakdowns!$J:$J,"="&$A40,Breakdowns!$K:$K,"="&$B40)) -> 5496 | H40: =IF($P$1,SUMIFS(Breakdowns!O:O,Breakdowns!$J:$J,"="&$A40,Breakdowns!$K:$K,"="&$B40,Breakdowns!$AA:$AA,"=No"),SUMIFS(Breakdowns!O:O,Breakdowns!$J:$J,"="&$A40,Breakdowns!$K:$K,"="&$B40)) -> 8222 | I40: =IF($P$1,SUMIFS(Breakdowns!Q:Q,Breakdowns!$J:$J,"="&$A40,Breakdowns!$K:$K,"="&$B40,Breakdowns!$AA:$AA,"=No"),SUMIFS(Breakdowns!Q:Q,Breakdowns!$J:$J,"="&$A40,Breakdowns!$K:$K,"="&$B40)) -> 13718 | J40: =IF($P$1,SUMIFS(Breakdowns!S:S,Breakdowns!$J:$J,"="&$A40,Breakdowns!$K:$K,"="&$B40,Breakdowns!$AA:$AA,"=No"),SUMIFS(Breakdowns!S:S,Breakdowns!$J:$J,"="&$A40,Breakdowns!$K:$K,"="&$B40)) -> 103332040 | K40: =IF($P$1,SUMIFS(Breakdowns!U:U,Breakdowns!$J:$J,"="&$A40,Breakdowns!$K:$K,"="&$B40,Breakdowns!$AA:$AA,"=No"),SUMIFS(Breakdowns!U:U,Breakdowns!$J:$J,"="&$A40,Breakdowns!$K:$K,"="&$B40)) -> 101280787 | L40: =IF($P$1,SUMIFS(Breakdowns!W:W,Breakdowns!$J:$J,"="&$A40,Breakdowns!$K:$K,"="&$B40,Breakdowns!$AA:$AA,"=No"),SUMIFS(Breakdowns!W:W,Breakdowns!$J:$J,"="&$A40,Breakdowns!$K:$K,"="&$B40)) -> 49912892 | M40: =IF($P$1,SUMIFS(Breakdowns!Y:Y,Breakdowns!$J:$J,"="&$A40,Breakdowns!$K:$K,"="&$B40,Breakdowns!$AA:$AA,"=No"),SUMIFS(Breakdowns!Y:Y,Breakdowns!$J:$J,"="&$A40,Breakdowns!$K:$K,"="&$B40)) -> 48902234
A41: LR | B41: PT | C41: Light Rail - Purchased Transportation | F41: =IF($P$1,SUMIFS(Breakdowns!L:L,Breakdowns!$J:$J,"="&$A41,Breakdowns!$K:$K,"="&$B41,Breakdowns!$AA:$AA,"=No"),SUMIFS(Breakdowns!L:L,Breakdowns!$J:$J,"="&$A41,Breakdowns!$K:$K,"="&$B41)) -> 70 | G41: =IF($P$1,SUMIFS(Breakdowns!M:M,Breakdowns!$J:$J,"="&$A41,Breakdowns!$K:$K,"="&$B41,Breakdowns!$AA:$AA,"=No"),SUMIFS(Breakdowns!M:M,Breakdowns!$J:$J,"="&$A41,Breakdowns!$K:$K,"="&$B41)) -> 120 | H41: =IF($P$1,SUMIFS(Breakdowns!O:O,Breakdowns!$J:$J,"="&$A41,Breakdowns!$K:$K,"="&$B41,Breakdowns!$AA:$AA,"=No"),SUMIFS(Breakdowns!O:O,Breakdowns!$J:$J,"="&$A41,Breakdowns!$K:$K,"="&$B41)) -> 186 | I41: =IF($P$1,SUMIFS(Breakdowns!Q:Q,Breakdowns!$J:$J,"="&$A41,Breakdowns!$K:$K,"="&$B41,Breakdowns!$AA:$AA,"=No"),SUMIFS(Breakdowns!Q:Q,Breakdowns!$J:$J,"="&$A41,Breakdowns!$K:$K,"="&$B41)) -> 306 | J41: =IF($P$1,SUMIFS(Breakdowns!S:S,Breakdowns!$J:$J,"="&$A41,Breakdowns!$K:$K,"="&$B41,Breakdowns!$AA:$AA,"=No"),SUMIFS(Breakdowns!S:S,Breakdowns!$J:$J,"="&$A41,Breakdowns!$K:$K,"="&$B41)) -> 4385559 | K41: =IF($P$1,SUMIFS(Breakdowns!U:U,Breakdowns!$J:$J,"="&$A41,Breakdowns!$K:$K,"="&$B41,Breakdowns!$AA:$AA,"=No"),SUMIFS(Breakdowns!U:U,Breakdowns!$J:$J,"="&$A41,Breakdowns!$K:$K,"="&$B41)) -> 4349249 | L41: =IF($P$1,SUMIFS(Breakdowns!W:W,Breakdowns!$J:$J,"="&$A41,Breakdowns!$K:$K,"="&$B41,Breakdowns!$AA:$AA,"=No"),SUMIFS(Breakdowns!W:W,Breakdowns!$J:$J,"="&$A41,Breakdowns!$K:$K,"="&$B41)) -> 2264040 | M41: =IF($P$1,SUMIFS(Breakdowns!Y:Y,Breakdowns!$J:$J,"="&$A41,Breakdowns!$K:$K,"="&$B41,Breakdowns!$AA:$AA,"=No"),SUMIFS(Breakdowns!Y:Y,Breakdowns!$J:$J,"="&$A41,Breakdowns!$K:$K,"="&$B41)) -> 2248198
A42: MG | B42: DO | C42: Monorail/Automated Guideway - Directly Operated | F42: =IF($P$1,SUMIFS(Breakdowns!L:L,Breakdowns!$J:$J,"="&$A42,Breakdowns!$K:$K,"="&$B42,Breakdowns!$AA:$AA,"=No"),SUMIFS(Breakdowns!L:L,Breakdowns!$J:$J,"="&$A42,Breakdowns!$K:$K,"="&$B42)) -> 126 | G42: =IF($P$1,SUMIFS(Breakdowns!M:M,Breakdowns!$J:$J,"="&$A42,Breakdowns!$K:$K,"="&$B42,Breakdowns!$AA:$AA,"=No"),SUMIFS(Breakdowns!M:M,Breakdowns!$J:$J,"="&$A42,Breakdowns!$K:$K,"="&$B42)) -> 628 | H42: =IF($P$1,SUMIFS(Breakdowns!O:O,Breakdowns!$J:$J,"="&$A42,Breakdowns!$K:$K,"="&$B42,Breakdowns!$AA:$AA,"=No"),SUMIFS(Breakdowns!O:O,Breakdowns!$J:$J,"="&$A42,Breakdowns!$K:$K,"="&$B42)) -> 1158 | I42: =IF($P$1,SUMIFS(Breakdowns!Q:Q,Breakdowns!$J:$J,"="&$A42,Breakdowns!$K:$K,"="&$B42,Breakdowns!$AA:$AA,"=No"),SUMIFS(Breakdowns!Q:Q,Breakdowns!$J:$J,"="&$A42,Breakdowns!$K:$K,"="&$B42)) -> 1786 | J42: =IF($P$1,SUMIFS(Breakdowns!S:S,Breakdowns!$J:$J,"="&$A42,Breakdowns!$K:$K,"="&$B42,Breakdowns!$AA:$AA,"=No"),SUMIFS(Breakdowns!S:S,Breakdowns!$J:$J,"="&$A42,Breakdowns!$K:$K,"="&$B42)) -> 4162512 | K42: =IF($P$1,SUMIFS(Breakdowns!U:U,Breakdowns!$J:$J,"="&$A42,Breakdowns!$K:$K,"="&$B42,Breakdowns!$AA:$AA,"=No"),SUMIFS(Breakdowns!U:U,Breakdowns!$J:$J,"="&$A42,Breakdowns!$K:$K,"="&$B42)) -> 4090594 | L42: =IF($P$1,SUMIFS(Breakdowns!W:W,Breakdowns!$J:$J,"="&$A42,Breakdowns!$K:$K,"="&$B42,Breakdowns!$AA:$AA,"=No"),SUMIFS(Breakdowns!W:W,Breakdowns!$J:$J,"="&$A42,Breakdowns!$K:$K,"="&$B42)) -> 2567513 | M42: =IF($P$1,SUMIFS(Breakdowns!Y:Y,Breakdowns!$J:$J,"="&$A42,Breakdowns!$K:$K,"="&$B42,Breakdowns!$AA:$AA,"=No"),SUMIFS(Breakdowns!Y:Y,Breakdowns!$J:$J,"="&$A42,Breakdowns!$K:$K,"="&$B42)) -> 2514677
A43: MG | B43: PT | C43: Monorail/Automated Guideway - Purchased Transportation | F43: =IF($P$1,SUMIFS(Breakdowns!L:L,Breakdowns!$J:$J,"="&$A43,Breakdowns!$K:$K,"="&$B43,Breakdowns!$AA:$AA,"=No"),SUMIFS(Breakdowns!L:L,Breakdowns!$J:$J,"="&$A43,Breakdowns!$K:$K,"="&$B43)) -> 36 | G43: =IF($P$1,SUMIFS(Breakdowns!M:M,Breakdowns!$J:$J,"="&$A43,Breakdowns!$K:$K,"="&$B43,Breakdowns!$AA:$AA,"=No"),SUMIFS(Breakdowns!M:M,Breakdowns!$J:$J,"="&$A43,Breakdowns!$K:$K,"="&$B43)) -> 6 | H43: =IF($P$1,SUMIFS(Breakdowns!O:O,Breakdowns!$J:$J,"="&$A43,Breakdowns!$K:$K,"="&$B43,Breakdowns!$AA:$AA,"=No"),SUMIFS(Breakdowns!O:O,Breakdowns!$J:$J,"="&$A43,Breakdowns!$K:$K,"="&$B43)) -> 30 | I43: =IF($P$1,SUMIFS(Breakdowns!Q:Q,Breakdowns!$J:$J,"="&$A43,Breakdowns!$K:$K,"="&$B43,Breakdowns!$AA:$AA,"=No"),SUMIFS(Breakdowns!Q:Q,Breakdowns!$J:$J,"="&$A43,Breakdowns!$K:$K,"="&$B43)) -> 36 | J43: =IF($P$1,SUMIFS(Breakdowns!S:S,Breakdowns!$J:$J,"="&$A43,Breakdowns!$K:$K,"="&$B43,Breakdowns!$AA:$AA,"=No"),SUMIFS(Breakdowns!S:S,Breakdowns!$J:$J,"="&$A43,Breakdowns!$K:$K,"="&$B43)) -> 756330 | K43: =IF($P$1,SUMIFS(Breakdowns!U:U,Breakdowns!$J:$J,"="&$A43,Breakdowns!$K:$K,"="&$B43,Breakdowns!$AA:$AA,"=No"),SUMIFS(Breakdowns!U:U,Breakdowns!$J:$J,"="&$A43,Breakdowns!$K:$K,"="&$B43)) -> 752983 | L43: =IF($P$1,SUMIFS(Breakdowns!W:W,Breakdowns!$J:$J,"="&$A43,Breakdowns!$K:$K,"="&$B43,Breakdowns!$AA:$AA,"=No"),SUMIFS(Breakdowns!W:W,Breakdowns!$J:$J,"="&$A43,Breakdowns!$K:$K,"="&$B43)) -> 383787 | M43: =IF($P$1,SUMIFS(Breakdowns!Y:Y,Breakdowns!$J:$J,"="&$A43,Breakdowns!$K:$K,"="&$B43,Breakdowns!$AA:$AA,"=No"),SUMIFS(Breakdowns!Y:Y,Breakdowns!$J:$J,"="&$A43,Breakdowns!$K:$K,"="&$B43)) -> 381889
A44: SR | B44: DO | C44: Street Car Rail - Directly Operated | F44: =IF($P$1,SUMIFS(Breakdowns!L:L,Breakdowns!$J:$J,"="&$A44,Breakdowns!$K:$K,"="&$B44,Breakdowns!$AA:$AA,"=No"),SUMIFS(Breakdowns!L:L,Breakdowns!$J:$J,"="&$A44,Breakdowns!$K:$K,"="&$B44)) -> 173 | G44: =IF($P$1,SUMIFS(Breakdowns!M:M,Breakdowns!$J:$J,"="&$A44,Breakdowns!$K:$K,"="&$B44,Breakdowns!$AA:$AA,"=No"),SUMIFS(Breakdowns!M:M,Breakdowns!$J:$J,"="&$A44,Breakdowns!$K:$K,"="&$B44)) -> 556 | H44: =IF($P$1,SUMIFS(Breakdowns!O:O,Breakdowns!$J:$J,"="&$A44,Breakdowns!$K:$K,"="&$B44,Breakdowns!$AA:$AA,"=No"),SUMIFS(Breakdowns!O:O,Breakdowns!$J:$J,"="&$A44,Breakdowns!$K:$K,"="&$B44)) -> 2183 | I44: =IF($P$1,SUMIFS(Breakdowns!Q:Q,Breakdowns!$J:$J,"="&$A44,Breakdowns!$K:$K,"="&$B44,Breakdowns!$AA:$AA,"=No"),SUMIFS(Breakdowns!Q:Q,Breakdowns!$J:$J,"="&$A44,Breakdowns!$K:$K,"="&$B44)) -> 2739 | J44: =IF($P$1,SUMIFS(Breakdowns!S:S,Breakdowns!$J:$J,"="&$A44,Breakdowns!$K:$K,"="&$B44,Breakdowns!$AA:$AA,"=No"),SUMIFS(Breakdowns!S:S,Breakdowns!$J:$J,"="&$A44,Breakdowns!$K:$K,"="&$B44)) -> 4548990 | K44: =IF($P$1,SUMIFS(Breakdowns!U:U,Breakdowns!$J:$J,"="&$A44,Breakdowns!$K:$K,"="&$B44,Breakdowns!$AA:$AA,"=No"),SUMIFS(Breakdowns!U:U,Breakdowns!$J:$J,"="&$A44,Breakdowns!$K:$K,"="&$B44)) -> 4406652 | L44: =IF($P$1,SUMIFS(Breakdowns!W:W,Breakdowns!$J:$J,"="&$A44,Breakdowns!$K:$K,"="&$B44,Breakdowns!$AA:$AA,"=No"),SUMIFS(Breakdowns!W:W,Breakdowns!$J:$J,"="&$A44,Breakdowns!$K:$K,"="&$B44)) -> 4535878 | M44: =IF($P$1,SUMIFS(Breakdowns!Y:Y,Breakdowns!$J:$J,"="&$A44,Breakdowns!$K:$K,"="&$B44,Breakdowns!$AA:$AA,"=No"),SUMIFS(Breakdowns!Y:Y,Breakdowns!$J:$J,"="&$A44,Breakdowns!$K:$K,"="&$B44)) -> 4393770
A45: SR | B45: PT | C45: Street Car Rail - Purchased Transportation | F45: =IF($P$1,SUMIFS(Breakdowns!L:L,Breakdowns!$J:$J,"="&$A45,Breakdowns!$K:$K,"="&$B45,Breakdowns!$AA:$AA,"=No"),SUMIFS(Breakdowns!L:L,Breakdowns!$J:$J,"="&$A45,Breakdowns!$K:$K,"="&$B45)) -> 39 | G45: =IF($P$1,SUMIFS(Breakdowns!M:M,Breakdowns!$J:$J,"="&$A45,Breakdowns!$K:$K,"="&$B45,Breakdowns!$AA:$AA,"=No"),SUMIFS(Breakdowns!M:M,Breakdowns!$J:$J,"="&$A45,Breakdowns!$K:$K,"="&$B45)) -> 107 | H45: =IF($P$1,SUMIFS(Breakdowns!O:O,Breakdowns!$J:$J,"="&$A45,Breakdowns!$K:$K,"="&$B45,Breakdowns!$AA:$AA,"=No"),SUMIFS(Breakdowns!O:O,Breakdowns!$J:$J,"="&$A45,Breakdowns!$K:$K,"="&$B45)) -> 159 | I45: =IF($P$1,SUMIFS(Breakdowns!Q:Q,Breakdowns!$J:$J,"="&$A45,Breakdowns!$K:$K,"="&$B45,Breakdowns!$AA:$AA,"=No"),SUMIFS(Breakdowns!Q:Q,Breakdowns!$J:$J,"="&$A45,Breakdowns!$K:$K,"="&$B45)) -> 266 | J45: =IF($P$1,SUMIFS(Breakdowns!S:S,Breakdowns!$J:$J,"="&$A45,Breakdowns!$K:$K,"="&$B45,Breakdowns!$AA:$AA,"=No"),SUMIFS(Breakdowns!S:S,Breakdowns!$J:$J,"="&$A45,Breakdowns!$K:$K,"="&$B45)) -> 1331687 | K45: =IF($P$1,SUMIFS(Breakdowns!U:U,Breakdowns!$J:$J,"="&$A45,Breakdowns!$K:$K,"="&$B45,Breakdowns!$AA:$AA,"=No"),SUMIFS(Breakdowns!U:U,Breakdowns!$J:$J,"="&$A45,Breakdowns!$K:$K,"="&$B45)) -> 1311488 | L45: =IF($P$1,SUMIFS(Breakdowns!W:W,Breakdowns!$J:$J,"="&$A45,Breakdowns!$K:$K,"="&$B45,Breakdowns!$AA:$AA,"=No"),SUMIFS(Breakdowns!W:W,Breakdowns!$J:$J,"="&$A45,Breakdowns!$K:$K,"="&$B45)) -> 1331687 | M45: =IF($P$1,SUMIFS(Breakdowns!Y:Y,Breakdowns!$J:$J,"="&$A45,Breakdowns!$K:$K,"="&$B45,Breakdowns!$AA:$AA,"=No"),SUMIFS(Breakdowns!Y:Y,Breakdowns!$J:$J,"="&$A45,Breakdowns!$K:$K,"="&$B45)) -> 1311488
A46: TB | B46: DO | C46: Trolleybus - Directly Operated | F46: =IF($P$1,SUMIFS(Breakdowns!L:L,Breakdowns!$J:$J,"="&$A46,Breakdowns!$K:$K,"="&$B46,Breakdowns!$AA:$AA,"=No"),SUMIFS(Breakdowns!L:L,Breakdowns!$J:$J,"="&$A46,Breakdowns!$K:$K,"="&$B46)) -> 391 | G46: =IF($P$1,SUMIFS(Breakdowns!M:M,Breakdowns!$J:$J,"="&$A46,Breakdowns!$K:$K,"="&$B46,Breakdowns!$AA:$AA,"=No"),SUMIFS(Breakdowns!M:M,Breakdowns!$J:$J,"="&$A46,Breakdowns!$K:$K,"="&$B46)) -> 4908 | H46: =IF($P$1,SUMIFS(Breakdowns!O:O,Breakdowns!$J:$J,"="&$A46,Breakdowns!$K:$K,"="&$B46,Breakdowns!$AA:$AA,"=No"),SUMIFS(Breakdowns!O:O,Breakdowns!$J:$J,"="&$A46,Breakdowns!$K:$K,"="&$B46)) -> 2454 | I46: =IF($P$1,SUMIFS(Breakdowns!Q:Q,Breakdowns!$J:$J,"="&$A46,Breakdowns!$K:$K,"="&$B46,Breakdowns!$AA:$AA,"=No"),SUMIFS(Breakdowns!Q:Q,Breakdowns!$J:$J,"="&$A46,Breakdowns!$K:$K,"="&$B46)) -> 7362 | J46: =IF($P$1,SUMIFS(Breakdowns!S:S,Breakdowns!$J:$J,"="&$A46,Breakdowns!$K:$K,"="&$B46,Breakdowns!$AA:$AA,"=No"),SUMIFS(Breakdowns!S:S,Breakdowns!$J:$J,"="&$A46,Breakdowns!$K:$K,"="&$B46)) -> 10989075 | K46: =IF($P$1,SUMIFS(Breakdowns!U:U,Breakdowns!$J:$J,"="&$A46,Breakdowns!$K:$K,"="&$B46,Breakdowns!$AA:$AA,"=No"),SUMIFS(Breakdowns!U:U,Breakdowns!$J:$J,"="&$A46,Breakdowns!$K:$K,"="&$B46)) -> 10586742 | L46: =IF($P$1,SUMIFS(Breakdowns!W:W,Breakdowns!$J:$J,"="&$A46,Breakdowns!$K:$K,"="&$B46,Breakdowns!$AA:$AA,"=No"),SUMIFS(Breakdowns!W:W,Breakdowns!$J:$J,"="&$A46,Breakdowns!$K:$K,"="&$B46)) -> 0 | M46: =IF($P$1,SUMIFS(Breakdowns!Y:Y,Breakdowns!$J:$J,"="&$A46,Breakdowns!$K:$K,"="&$B46,Breakdowns!$AA:$AA,"=No"),SUMIFS(Breakdowns!Y:Y,Breakdowns!$J:$J,"="&$A46,Breakdowns!$K:$K,"="&$B46)) -> 0
A47: VP | B47: DO | C47: Vanpool - Directly Operated | F47: =IF($P$1,SUMIFS(Breakdowns!L:L,Breakdowns!$J:$J,"="&$A47,Breakdowns!$K:$K,"="&$B47,Breakdowns!$AA:$AA,"=No"),SUMIFS(Breakdowns!L:L,Breakdowns!$J:$J,"="&$A47,Breakdowns!$K:$K,"="&$B47)) -> 7694 | G47: =IF($P$1,SUMIFS(Breakdowns!M:M,Breakdowns!$J:$J,"="&$A47,Breakdowns!$K:$K,"="&$B47,Breakdowns!$AA:$AA,"=No"),SUMIFS(Breakdowns!M:M,Breakdowns!$J:$J,"="&$A47,Breakdowns!$K:$K,"="&$B47)) -> 363 | H47: =IF($P$1,SUMIFS(Breakdowns!O:O,Breakdowns!$J:$J,"="&$A47,Breakdowns!$K:$K,"="&$B47,Breakdowns!$AA:$AA,"=No"),SUMIFS(Breakdowns!O:O,Breakdowns!$J:$J,"="&$A47,Breakdowns!$K:$K,"="&$B47)) -> 331 | I47: =IF($P$1,SUMIFS(Breakdowns!Q:Q,Breakdowns!$J:$J,"="&$A47,Breakdowns!$K:$K,"="&$B47,Breakdowns!$AA:$AA,"=No"),SUMIFS(Breakdowns!Q:Q,Breakdowns!$J:$J,"="&$A47,Breakdowns!$K:$K,"="&$B47)) -> 694 | J47: =IF($P$1,SUMIFS(Breakdowns!S:S,Breakdowns!$J:$J,"="&$A47,Breakdowns!$K:$K,"="&$B47,Breakdowns!$AA:$AA,"=No"),SUMIFS(Breakdowns!S:S,Breakdowns!$J:$J,"="&$A47,Breakdowns!$K:$K,"="&$B47)) -> 113583848 | K47: =IF($P$1,SUMIFS(Breakdowns!U:U,Breakdowns!$J:$J,"="&$A47,Breakdowns!$K:$K,"="&$B47,Breakdowns!$AA:$AA,"=No"),SUMIFS(Breakdowns!U:U,Breakdowns!$J:$J,"="&$A47,Breakdowns!$K:$K,"="&$B47)) -> 113573502 | L47: =IF($P$1,SUMIFS(Breakdowns!W:W,Breakdowns!$J:$J,"="&$A47,Breakdowns!$K:$K,"="&$B47,Breakdowns!$AA:$AA,"=No"),SUMIFS(Breakdowns!W:W,Breakdowns!$J:$J,"="&$A47,Breakdowns!$K:$K,"="&$B47)) -> 0 | M47: =IF($P$1,SUMIFS(Breakdowns!Y:Y,Breakdowns!$J:$J,"="&$A47,Breakdowns!$K:$K,"="&$B47,Breakdowns!$AA:$AA,"=No"),SUMIFS(Breakdowns!Y:Y,Breakdowns!$J:$J,"="&$A47,Breakdowns!$K:$K,"="&$B47)) -> 0
A48: VP | B48: PT | C48: Vanpool - Purchased Transportation | F48: =IF($P$1,SUMIFS(Breakdowns!L:L,Breakdowns!$J:$J,"="&$A48,Breakdowns!$K:$K,"="&$B48,Breakdowns!$AA:$AA,"=No"),SUMIFS(Breakdowns!L:L,Breakdowns!$J:$J,"="&$A48,Breakdowns!$K:$K,"="&$B48)) -> 5435 | G48: =IF($P$1,SUMIFS(Breakdowns!M:M,Breakdowns!$J:$J,"="&$A48,Breakdowns!$K:$K,"="&$B48,Breakdowns!$AA:$AA,"=No"),SUMIFS(Breakdowns!M:M,Breakdowns!$J:$J,"="&$A48,Breakdowns!$K:$K,"="&$B48)) -> 87 | H48: =IF($P$1,SUMIFS(Breakdowns!O:O,Breakdowns!$J:$J,"="&$A48,Breakdowns!$K:$K,"="&$B48,Breakdowns!$AA:$AA,"=No"),SUMIFS(Breakdowns!O:O,Breakdowns!$J:$J,"="&$A48,Breakdowns!$K:$K,"="&$B48)) -> 167 | I48: =IF($P$1,SUMIFS(Breakdowns!Q:Q,Breakdowns!$J:$J,"="&$A48,Breakdowns!$K:$K,"="&$B48,Breakdowns!$AA:$AA,"=No"),SUMIFS(Breakdowns!Q:Q,Breakdowns!$J:$J,"="&$A48,Breakdowns!$K:$K,"="&$B48)) -> 254 | J48: =IF($P$1,SUMIFS(Breakdowns!S:S,Breakdowns!$J:$J,"="&$A48,Breakdowns!$K:$K,"="&$B48,Breakdowns!$AA:$AA,"=No"),SUMIFS(Breakdowns!S:S,Breakdowns!$J:$J,"="&$A48,Breakdowns!$K:$K,"="&$B48)) -> 110487036 | K48: =IF($P$1,SUMIFS(Breakdowns!U:U,Breakdowns!$J:$J,"="&$A48,Breakdowns!$K:$K,"="&$B48,Breakdowns!$AA:$AA,"=No"),SUMIFS(Breakdowns!U:U,Breakdowns!$J:$J,"="&$A48,Breakdowns!$K:$K,"="&$B48)) -> 110487036 | L48: =IF($P$1,SUMIFS(Breakdowns!W:W,Breakdowns!$J:$J,"="&$A48,Breakdowns!$K:$K,"="&$B48,Breakdowns!$AA:$AA,"=No"),SUMIFS(Breakdowns!W:W,Breakdowns!$J:$J,"="&$A48,Breakdowns!$K:$K,"="&$B48)) -> 0 | M48: =IF($P$1,SUMIFS(Breakdowns!Y:Y,Breakdowns!$J:$J,"="&$A48,Breakdowns!$K:$K,"="&$B48,Breakdowns!$AA:$AA,"=No"),SUMIFS(Breakdowns!Y:Y,Breakdowns!$J:$J,"="&$A48,Breakdowns!$K:$K,"="&$B48)) -> 0
A50: By Agency Size (Vehicles)
D51: edit bins below | E51: Column1 | F51: VOMS | G51: Major Mechanical Failures | H51: Other Mechanical Failures | I51: Total Mechanical Failures | J51: Vehicle/Passenger Car Miles | K51: Vehicle/Passenger Car Revenue Miles | L51: Train Miles | M51: Train Revenue Miles | U51: ="under "&FIXED(B52,0,0) -> under 10 | V51: =IFERROR($K52/$G52,"") -> 18649.69903
A52: under | B52: =D52 -> 10 | D52: 10 | E52: =A52&" "&FIXED(B52,0,0) -> under 10 | F52: =IF($P$1,SUMIFS(Breakdowns!L:L,Breakdowns!$I:$I,"<"&$D52,Breakdowns!$AA:$AA,"=No"),SUMIFS(Breakdowns!L:L,Breakdowns!$I:$I,"<"&$D52)) -> 174 | G52: =IF($P$1,SUMIFS(Breakdowns!M:M,Breakdowns!$I:$I,"<"&$D52,Breakdowns!$AA:$AA,"=No"),SUMIFS(Breakdowns!M:M,Breakdowns!$I:$I,"<"&$D52)) -> 309 | H52: =IF($P$1,SUMIFS(Breakdowns!O:O,Breakdowns!$I:$I,"<"&$D52,Breakdowns!$AA:$AA,"=No"),SUMIFS(Breakdowns!O:O,Breakdowns!$I:$I,"<"&$D52)) -> 411 | I52: =IF($P$1,SUMIFS(Breakdowns!Q:Q,Breakdowns!$I:$I,"<"&$D52,Breakdowns!$AA:$AA,"=No"),SUMIFS(Breakdowns!Q:Q,Breakdowns!$I:$I,"<"&$D52)) -> 720 | J52: =IF($P$1,SUMIFS(Breakdowns!S:S,Breakdowns!$I:$I,"<"&$D52,Breakdowns!$AA:$AA,"=No"),SUMIFS(Breakdowns!S:S,Breakdowns!$I:$I,"<"&$D52)) -> 6114010 | K52: =IF($P$1,SUMIFS(Breakdowns!U:U,Breakdowns!$I:$I,"<"&$D52,Breakdowns!$AA:$AA,"=No"),SUMIFS(Breakdowns!U:U,Breakdowns!$I:$I,"<"&$D52)) -> 5762757 | L52: =IF($P$1,SUMIFS(Breakdowns!W:W,Breakdowns!$I:$I,"<"&$D52,Breakdowns!$AA:$AA,"=No"),SUMIFS(Breakdowns!W:W,Breakdowns!$I:$I,"<"&$D52)) -> 149865 | M52: =IF($P$1,SUMIFS(Breakdowns!Y:Y,Breakdowns!$I:$I,"<"&$D52,Breakdowns!$AA:$AA,"=No"),SUMIFS(Breakdowns!Y:Y,Breakdowns!$I:$I,"<"&$D52)) -> 148698 | U52: =IFERROR(IF(A53="over","over "&FIXED(B53,0,0),FIXED(B53,0,0)&" to "&FIXED(D53,0,0)),"") -> 10 to 25 | V52: =IFERROR($K53/$G53,"") -> 14840.51258
A53: =IF(D53<>"","between","over") -> between | B53: =D52 -> 10 | C53: =IF(D53<>"","and","") -> and | D53: 25 | E53: =IFERROR(IF(A53="between",A53&" "&FIXED(B53,0,0)&" "&C53&" "&FIXED(D53,0,0),A53&" "&FIXED(B53,0,0)),"invalid bin") -> between 10 and 25 | F53: =IF($P$1,IF($A53="between",SUMIFS(Breakdowns!L:L,Breakdowns!$I:$I,">="&$B53,Breakdowns!$I:$I,"<"&$D53,Breakdowns!$AA:$AA,"=No"),SUMIFS(Breakdowns!L:L,Breakdowns!$I:$I,">="&$B53,Breakdowns!$AA:$AA,"=No")),IF($A53="between",SUMIFS(Breakdowns!L:L,Breakdowns!$I:$I,">="&$B53,Breakdowns!$I:$I,"<"&$D53),SUMIFS(Breakdowns!L:L,Breakdowns!$I:$I,">="&$B53))) -> 1255 | G53: =IF($P$1,IF($A53="between",SUMIFS(Breakdowns!M:M,Breakdowns!$I:$I,">="&$B53,Breakdowns!$I:$I,"<"&$D53,Breakdowns!$AA:$AA,"=No"),SUMIFS(Breakdowns!M:M,Breakdowns!$I:$I,">="&$B53,Breakdowns!$AA:$AA,"=No")),IF($A53="between",SUMIFS(Breakdowns!M:M,Breakdowns!$I:$I,">="&$B53,Breakdowns!$I:$I,"<"&$D53),SUMIFS(Breakdowns!M:M,Breakdowns!$I:$I,">="&$B53))) -> 3260 | H53: =IF($P$1,IF($A53="between",SUMIFS(Breakdowns!O:O,Breakdowns!$I:$I,">="&$B53,Breakdowns!$I:$I,"<"&$D53,Breakdowns!$AA:$AA,"=No"),SUMIFS(Breakdowns!O:O,Breakdowns!$I:$I,">="&$B53,Breakdowns!$AA:$AA,"=No")),IF($A53="between",SUMIFS(Breakdowns!O:O,Breakdowns!$I:$I,">="&$B53,Breakdowns!$I:$I,"<"&$D53),SUMIFS(Breakdowns!O:O,Breakdowns!$I:$I,">="&$B53))) -> 6898 | I53: =IF($P$1,IF($A53="between",SUMIFS(Breakdowns!Q:Q,Breakdowns!$I:$I,">="&$B53,Breakdowns!$I:$I,"<"&$D53,Breakdowns!$AA:$AA,"=No"),SUMIFS(Breakdowns!Q:Q,Breakdowns!$I:$I,">="&$B53,Breakdowns!$AA:$AA,"=No")),IF($A53="between",SUMIFS(Breakdowns!Q:Q,Breakdowns!$I:$I,">="&$B53,Breakdowns!$I:$I,"<"&$D53),SUMIFS(Breakdowns!Q:Q,Breakdowns!$I:$I,">="&$B53))) -> 10158 | J53: =IF($P$1,IF($A53="between",SUMIFS(Breakdowns!S:S,Breakdowns!$I:$I,">="&$B53,Breakdowns!$I:$I,"<"&$D53,Breakdowns!$AA:$AA,"=No"),SUMIFS(Breakdowns!S:S,Breakdowns!$I:$I,">="&$B53,Breakdowns!$AA:$AA,"=No")),IF($A53="between",SUMIFS(Breakdowns!S:S,Breakdowns!$I:$I,">="&$B53,Breakdowns!$I:$I,"<"&$D53),SUMIFS(Breakdowns!S:S,Breakdowns!$I:$I,">="&$B53))) -> 52052758 | K53: =IF($P$1,IF($A53="between",SUMIFS(Breakdowns!U:U,Breakdowns!$I:$I,">="&$B53,Breakdowns!$I:$I,"<"&$D53,Breakdowns!$AA:$AA,"=No"),SUMIFS(Breakdowns!U:U,Breakdowns!$I:$I,">="&$B53,Breakdowns!$AA:$AA,"=No")),IF($A53="between",SUMIFS(Breakdowns!U:U,Breakdowns!$I:$I,">="&$B53,Breakdowns!$I:$I,"<"&$D53),SUMIFS(Breakdowns!U:U,Breakdowns!$I:$I,">="&$B53))) -> 48380071 | L53: =IF($P$1,IF($A53="between",SUMIFS(Breakdowns!W:W,Breakdowns!$I:$I,">="&$B53,Breakdowns!$I:$I,"<"&$D53,Breakdowns!$AA:$AA,"=No"),SUMIFS(Breakdowns!W:W,Breakdowns!$I:$I,">="&$B53,Breakdowns!$AA:$AA,"=No")),IF($A53="between",SUMIFS(Breakdowns!W:W,Breakdowns!$I:$I,">="&$B53,Breakdowns!$I:$I,"<"&$D53),SUMIFS(Breakdowns!W:W,Breakdowns!$I:$I,">="&$B53))) -> 1039401 | M53: =IF($P$1,IF($A53="between",SUMIFS(Breakdowns!Y:Y,Breakdowns!$I:$I,">="&$B53,Breakdowns!$I:$I,"<"&$D53,Breakdowns!$AA:$AA,"=No"),SUMIFS(Breakdowns!Y:Y,Breakdowns!$I:$I,">="&$B53,Breakdowns!$AA:$AA,"=No")),IF($A53="between",SUMIFS(Breakdowns!Y:Y,Breakdowns!$I:$I,">="&$B53,Breakdowns!$I:$I,"<"&$D53),SUMIFS(Breakdowns!Y:Y,Breakdowns!$I:$I,">="&$B53))) -> 1015209 | U53: =IFERROR(IF(A54="over","over "&FIXED(B54,0,0),FIXED(B54,0,0)&" to "&FIXED(D54,0,0)),"") -> 25 to 50 | V53: 16325.83673
A54: =IF(OR(A53="over",A53=""),"",IF(D54="","over","between")) -> between | B54: =IF(D53="","",D53) -> 25 | C54: =IF(D54<>"","and","") -> and | D54: 50 | E54: =IFERROR(IF(A54="between",A54&" "&FIXED(B54,0,0)&" "&C54&" "&FIXED(D54,0,0),A54&" "&FIXED(B54,0,0)),"invalid bin") -> between 25 and 50 | F54: =IF($P$1,IF($A54="","",IF($A54="between",SUMIFS(Breakdowns!L:L,Breakdowns!$I:$I,">="&$B54,Breakdowns!$I:$I,"<"&$D54,Breakdowns!$AA:$AA,"=No"),SUMIFS(Breakdowns!L:L,Breakdowns!$I:$I,">="&$B54,Breakdowns!$AA:$AA,"=No"))),IF($A54="","",IF($A54="between",SUMIFS(Breakdowns!L:L,Breakdowns!$I:$I,">="&$B54,Breakdowns!$I:$I,"<"&$D54),SUMIFS(Breakdowns!L:L,Breakdowns!$I:$I,">="&$B54)))) -> 5005 | G54: =IF($P$1,IF($A54="","",IF($A54="between",SUMIFS(Breakdowns!M:M,Breakdowns!$I:$I,">="&$B54,Breakdowns!$I:$I,"<"&$D54,Breakdowns!$AA:$AA,"=No"),SUMIFS(Breakdowns!M:M,Breakdowns!$I:$I,">="&$B54,Breakdowns!$AA:$AA,"=No"))),IF($A54="","",IF($A54="between",SUMIFS(Breakdowns!M:M,Breakdowns!$I:$I,">="&$B54,Breakdowns!$I:$I,"<"&$D54),SUMIFS(Breakdowns!M:M,Breakdowns!$I:$I,">="&$B54)))) -> 10565 | H54: =IF($P$1,IF($A54="","",IF($A54="between",SUMIFS(Breakdowns!O:O,Breakdowns!$I:$I,">="&$B54,Breakdowns!$I:$I,"<"&$D54,Breakdowns!$AA:$AA,"=No"),SUMIFS(Breakdowns!O:O,Breakdowns!$I:$I,">="&$B54,Breakdowns!$AA:$AA,"=No"))),IF($A54="","",IF($A54="between",SUMIFS(Breakdowns!O:O,Breakdowns!$I:$I,">="&$B54,Breakdowns!$I:$I,"<"&$D54),SUMIFS(Breakdowns!O:O,Breakdowns!$I:$I,">="&$B54)))) -> 13078 | I54: =IF($P$1,IF($A54="","",IF($A54="between",SUMIFS(Breakdowns!Q:Q,Breakdowns!$I:$I,">="&$B54,Breakdowns!$I:$I,"<"&$D54,Breakdowns!$AA:$AA,"=No"),SUMIFS(Breakdowns!Q:Q,Breakdowns!$I:$I,">="&$B54,Breakdowns!$AA:$AA,"=No"))),IF($A54="","",IF($A54="between",SUMIFS(Breakdowns!Q:Q,Breakdowns!$I:$I,">="&$B54,Breakdowns!$I:$I,"<"&$D54),SUMIFS(Breakdowns!Q:Q,Breakdowns!$I:$I,">="&$B54)))) -> 23643 | J54: =IF($P$1,IF($A54="","",IF($A54="between",SUMIFS(Breakdowns!S:S,Breakdowns!$I:$I,">="&$B54,Breakdowns!$I:$I,"<"&$D54,Breakdowns!$AA:$AA,"=No"),SUMIFS(Breakdowns!S:S,Breakdowns!$I:$I,">="&$B54,Breakdowns!$AA:$AA,"=No"))),IF($A54="","",IF($A54="between",SUMIFS(Breakdowns!S:S,Breakdowns!$I:$I,">="&$B54,Breakdowns!$I:$I,"<"&$D54),SUMIFS(Breakdowns!S:S,Breakdowns!$I:$I,">="&$B54)))) -> 191059406 | K54: =IF($P$1,IF($A54="","",IF($A54="between",SUMIFS(Breakdowns!U:U,Breakdowns!$I:$I,">="&$B54,Breakdowns!$I:$I,"<"&$D54,Breakdowns!$AA:$AA,"=No"),SUMIFS(Breakdowns!U:U,Breakdowns!$I:$I,">="&$B54,Breakdowns!$AA:$AA,"=No"))),IF($A54="","",IF($A54="between",SUMIFS(Breakdowns!U:U,Breakdowns!$I:$I,">="&$B54,Breakdowns!$I:$I,"<"&$D54),SUMIFS(Breakdowns!U:U,Breakdowns!$I:$I,">="&$B54)))) -> 172482465 | L54: =IF($P$1,IF($A54="","",IF($A54="between",SUMIFS(Breakdowns!W:W,Breakdowns!$I:$I,">="&$B54,Breakdowns!$I:$I,"<"&$D54,Breakdowns!$AA:$AA,"=No"),SUMIFS(Breakdowns!W:W,Breakdowns!$I:$I,">="&$B54,Breakdowns!$AA:$AA,"=No"))),IF($A54="","",IF($A54="between",SUMIFS(Breakdowns!W:W,Breakdowns!$I:$I,">="&$B54,Breakdowns!$I:$I,"<"&$D54),SUMIFS(Breakdowns!W:W,Breakdowns!$I:$I,">="&$B54)))) -> 4354106 | M54: =IF($P$1,IF($A54="","",IF($A54="between",SUMIFS(Breakdowns!Y:Y,Breakdowns!$I:$I,">="&$B54,Breakdowns!$I:$I,"<"&$D54,Breakdowns!$AA:$AA,"=No"),SUMIFS(Breakdowns!Y:Y,Breakdowns!$I:$I,">="&$B54,Breakdowns!$AA:$AA,"=No"))),IF($A54="","",IF($A54="between",SUMIFS(Breakdowns!Y:Y,Breakdowns!$I:$I,">="&$B54,Breakdowns!$I:$I,"<"&$D54),SUMIFS(Breakdowns!Y:Y,Breakdowns!$I:$I,">="&$B54)))) -> 4149994 | U54: 50 to 100 | V54: 16709.84127
A55: between | B55: 50 | C55: =IF(D55<>"","and","") -> and | D55: 100 | E55: between 50 and 100 | F55: =IF($P$1,IF($A55="","",IF($A55="between",SUMIFS(Breakdowns!L:L,Breakdowns!$I:$I,">="&$B55,Breakdowns!$I:$I,"<"&$D55,Breakdowns!$AA:$AA,"=No"),SUMIFS(Breakdowns!L:L,Breakdowns!$I:$I,">="&$B55,Breakdowns!$AA:$AA,"=No"))),IF($A55="","",IF($A55="between",SUMIFS(Breakdowns!L:L,Breakdowns!$I:$I,">="&$B55,Breakdowns!$I:$I,"<"&$D55),SUMIFS(Breakdowns!L:L,Breakdowns!$I:$I,">="&$B55)))) -> 8515 | G55: =IF($P$1,IF($A55="","",IF($A55="between",SUMIFS(Breakdowns!M:M,Breakdowns!$I:$I,">="&$B55,Breakdowns!$I:$I,"<"&$D55,Breakdowns!$AA:$AA,"=No"),SUMIFS(Breakdowns!M:M,Breakdowns!$I:$I,">="&$B55,Breakdowns!$AA:$AA,"=No"))),IF($A55="","",IF($A55="between",SUMIFS(Breakdowns!M:M,Breakdowns!$I:$I,">="&$B55,Breakdowns!$I:$I,"<"&$D55),SUMIFS(Breakdowns!M:M,Breakdowns!$I:$I,">="&$B55)))) -> 16487 | H55: =IF($P$1,IF($A55="","",IF($A55="between",SUMIFS(Breakdowns!O:O,Breakdowns!$I:$I,">="&$B55,Breakdowns!$I:$I,"<"&$D55,Breakdowns!$AA:$AA,"=No"),SUMIFS(Breakdowns!O:O,Breakdowns!$I:$I,">="&$B55,Breakdowns!$AA:$AA,"=No"))),IF($A55="","",IF($A55="between",SUMIFS(Breakdowns!O:O,Breakdowns!$I:$I,">="&$B55,Breakdowns!$I:$I,"<"&$D55),SUMIFS(Breakdowns!O:O,Breakdowns!$I:$I,">="&$B55)))) -> 21525 | I55: =IF($P$1,IF($A55="","",IF($A55="between",SUMIFS(Breakdowns!Q:Q,Breakdowns!$I:$I,">="&$B55,Breakdowns!$I:$I,"<"&$D55,Breakdowns!$AA:$AA,"=No"),SUMIFS(Breakdowns!Q:Q,Breakdowns!$I:$I,">="&$B55,Breakdowns!$AA:$AA,"=No"))),IF($A55="","",IF($A55="between",SUMIFS(Breakdowns!Q:Q,Breakdowns!$I:$I,">="&$B55,Breakdowns!$I:$I,"<"&$D55),SUMIFS(Breakdowns!Q:Q,Breakdowns!$I:$I,">="&$B55)))) -> 38012 | J55: =IF($P$1,IF($A55="","",IF($A55="between",SUMIFS(Breakdowns!S:S,Breakdowns!$I:$I,">="&$B55,Breakdowns!$I:$I,"<"&$D55,Breakdowns!$AA:$AA,"=No"),SUMIFS(Breakdowns!S:S,Breakdowns!$I:$I,">="&$B55,Breakdowns!$AA:$AA,"=No"))),IF($A55="","",IF($A55="between",SUMIFS(Breakdowns!S:S,Breakdowns!$I:$I,">="&$B55,Breakdowns!$I:$I,"<"&$D55),SUMIFS(Breakdowns!S:S,Breakdowns!$I:$I,">="&$B55)))) -> 308011169 | K55: =IF($P$1,IF($A55="","",IF($A55="between",SUMIFS(Breakdowns!U:U,Breakdowns!$I:$I,">="&$B55,Breakdowns!$I:$I,"<"&$D55,Breakdowns!$AA:$AA,"=No"),SUMIFS(Breakdowns!U:U,Breakdowns!$I:$I,">="&$B55,Breakdowns!$AA:$AA,"=No"))),IF($A55="","",IF($A55="between",SUMIFS(Breakdowns!U:U,Breakdowns!$I:$I,">="&$B55,Breakdowns!$I:$I,"<"&$D55),SUMIFS(Breakdowns!U:U,Breakdowns!$I:$I,">="&$B55)))) -> 275495153 | L55: =IF($P$1,IF($A55="","",IF($A55="between",SUMIFS(Breakdowns!W:W,Breakdowns!$I:$I,">="&$B55,Breakdowns!$I:$I,"<"&$D55,Breakdowns!$AA:$AA,"=No"),SUMIFS(Breakdowns!W:W,Breakdowns!$I:$I,">="&$B55,Breakdowns!$AA:$AA,"=No"))),IF($A55="","",IF($A55="between",SUMIFS(Breakdowns!W:W,Breakdowns!$I:$I,">="&$B55,Breakdowns!$I:$I,"<"&$D55),SUMIFS(Breakdowns!W:W,Breakdowns!$I:$I,">="&$B55)))) -> 5607044 | M55: =IF($P$1,IF($A55="","",IF($A55="between",SUMIFS(Breakdowns!Y:Y,Breakdowns!$I:$I,">="&$B55,Breakdowns!$I:$I,"<"&$D55,Breakdowns!$AA:$AA,"=No"),SUMIFS(Breakdowns!Y:Y,Breakdowns!$I:$I,">="&$B55,Breakdowns!$AA:$AA,"=No"))),IF($A55="","",IF($A55="between",SUMIFS(Breakdowns!Y:Y,Breakdowns!$I:$I,">="&$B55,Breakdowns!$I:$I,"<"&$D55),SUMIFS(Breakdowns!Y:Y,Breakdowns!$I:$I,">="&$B55)))) -> 5397529 | U55: 100 to 250 | V55: 13908.49731
A56: between | B56: 100 | C56: and | D56: 250 | E56: between 100 and 250 | F56: =IF($P$1,IF($A56="","",IF($A56="between",SUMIFS(Breakdowns!L:L,Breakdowns!$I:$I,">="&$B56,Breakdowns!$I:$I,"<"&$D56,Breakdowns!$AA:$AA,"=No"),SUMIFS(Breakdowns!L:L,Breakdowns!$I:$I,">="&$B56,Breakdowns!$AA:$AA,"=No"))),IF($A56="","",IF($A56="between",SUMIFS(Breakdowns!L:L,Breakdowns!$I:$I,">="&$B56,Breakdowns!$I:$I,"<"&$D56),SUMIFS(Breakdowns!L:L,Breakdowns!$I:$I,">="&$B56)))) -> 12475 | G56: =IF($P$1,IF($A56="","",IF($A56="between",SUMIFS(Breakdowns!M:M,Breakdowns!$I:$I,">="&$B56,Breakdowns!$I:$I,"<"&$D56,Breakdowns!$AA:$AA,"=No"),SUMIFS(Breakdowns!M:M,Breakdowns!$I:$I,">="&$B56,Breakdowns!$AA:$AA,"=No"))),IF($A56="","",IF($A56="between",SUMIFS(Breakdowns!M:M,Breakdowns!$I:$I,">="&$B56,Breakdowns!$I:$I,"<"&$D56),SUMIFS(Breakdowns!M:M,Breakdowns!$I:$I,">="&$B56)))) -> 30466 | H56: =IF($P$1,IF($A56="","",IF($A56="between",SUMIFS(Breakdowns!O:O,Breakdowns!$I:$I,">="&$B56,Breakdowns!$I:$I,"<"&$D56,Breakdowns!$AA:$AA,"=No"),SUMIFS(Breakdowns!O:O,Breakdowns!$I:$I,">="&$B56,Breakdowns!$AA:$AA,"=No"))),IF($A56="","",IF($A56="between",SUMIFS(Breakdowns!O:O,Breakdowns!$I:$I,">="&$B56,Breakdowns!$I:$I,"<"&$D56),SUMIFS(Breakdowns!O:O,Breakdowns!$I:$I,">="&$B56)))) -> 35017 | I56: =IF($P$1,IF($A56="","",IF($A56="between",SUMIFS(Breakdowns!Q:Q,Breakdowns!$I:$I,">="&$B56,Breakdowns!$I:$I,"<"&$D56,Breakdowns!$AA:$AA,"=No"),SUMIFS(Breakdowns!Q:Q,Breakdowns!$I:$I,">="&$B56,Breakdowns!$AA:$AA,"=No"))),IF($A56="","",IF($A56="between",SUMIFS(Breakdowns!Q:Q,Breakdowns!$I:$I,">="&$B56,Breakdowns!$I:$I,"<"&$D56),SUMIFS(Breakdowns!Q:Q,Breakdowns!$I:$I,">="&$B56)))) -> 65483 | J56: =IF($P$1,IF($A56="","",IF($A56="between",SUMIFS(Breakdowns!S:S,Breakdowns!$I:$I,">="&$B56,Breakdowns!$I:$I,"<"&$D56,Breakdowns!$AA:$AA,"=No"),SUMIFS(Breakdowns!S:S,Breakdowns!$I:$I,">="&$B56,Breakdowns!$AA:$AA,"=No"))),IF($A56="","",IF($A56="between",SUMIFS(Breakdowns!S:S,Breakdowns!$I:$I,">="&$B56,Breakdowns!$I:$I,"<"&$D56),SUMIFS(Breakdowns!S:S,Breakdowns!$I:$I,">="&$B56)))) -> 476434145 | K56: =IF($P$1,IF($A56="","",IF($A56="between",SUMIFS(Breakdowns!U:U,Breakdowns!$I:$I,">="&$B56,Breakdowns!$I:$I,"<"&$D56,Breakdowns!$AA:$AA,"=No"),SUMIFS(Breakdowns!U:U,Breakdowns!$I:$I,">="&$B56,Breakdowns!$AA:$AA,"=No"))),IF($A56="","",IF($A56="between",SUMIFS(Breakdowns!U:U,Breakdowns!$I:$I,">="&$B56,Breakdowns!$I:$I,"<"&$D56),SUMIFS(Breakdowns!U:U,Breakdowns!$I:$I,">="&$B56)))) -> 423736279 | L56: =IF($P$1,IF($A56="","",IF($A56="between",SUMIFS(Breakdowns!W:W,Breakdowns!$I:$I,">="&$B56,Breakdowns!$I:$I,"<"&$D56,Breakdowns!$AA:$AA,"=No"),SUMIFS(Breakdowns!W:W,Breakdowns!$I:$I,">="&$B56,Breakdowns!$AA:$AA,"=No"))),IF($A56="","",IF($A56="between",SUMIFS(Breakdowns!W:W,Breakdowns!$I:$I,">="&$B56,Breakdowns!$I:$I,"<"&$D56),SUMIFS(Breakdowns!W:W,Breakdowns!$I:$I,">="&$B56)))) -> 7692820 | M56: =IF($P$1,IF($A56="","",IF($A56="between",SUMIFS(Breakdowns!Y:Y,Breakdowns!$I:$I,">="&$B56,Breakdowns!$I:$I,"<"&$D56,Breakdowns!$AA:$AA,"=No"),SUMIFS(Breakdowns!Y:Y,Breakdowns!$I:$I,">="&$B56,Breakdowns!$AA:$AA,"=No"))),IF($A56="","",IF($A56="between",SUMIFS(Breakdowns!Y:Y,Breakdowns!$I:$I,">="&$B56,Breakdowns!$I:$I,"<"&$D56),SUMIFS(Breakdowns!Y:Y,Breakdowns!$I:$I,">="&$B56)))) -> 7504391 | U56: 250 to 500 | V56: 10568.06108
A57: between | B57: 250 | C57: and | D57: 500 | E57: between 250 and 500 | F57: =IF($P$1,IF($A57="","",IF($A57="between",SUMIFS(Breakdowns!L:L,Breakdowns!$I:$I,">="&$B57,Breakdowns!$I:$I,"<"&$D57,Breakdowns!$AA:$AA,"=No"),SUMIFS(Breakdowns!L:L,Breakdowns!$I:$I,">="&$B57,Breakdowns!$AA:$AA,"=No"))),IF($A57="","",IF($A57="between",SUMIFS(Breakdowns!L:L,Breakdowns!$I:$I,">="&$B57,Breakdowns!$I:$I,"<"&$D57),SUMIFS(Breakdowns!L:L,Breakdowns!$I:$I,">="&$B57)))) -> 14791 | G57: =IF($P$1,IF($A57="","",IF($A57="between",SUMIFS(Breakdowns!M:M,Breakdowns!$I:$I,">="&$B57,Breakdowns!$I:$I,"<"&$D57,Breakdowns!$AA:$AA,"=No"),SUMIFS(Breakdowns!M:M,Breakdowns!$I:$I,">="&$B57,Breakdowns!$AA:$AA,"=No"))),IF($A57="","",IF($A57="between",SUMIFS(Breakdowns!M:M,Breakdowns!$I:$I,">="&$B57,Breakdowns!$I:$I,"<"&$D57),SUMIFS(Breakdowns!M:M,Breakdowns!$I:$I,">="&$B57)))) -> 49184 | H57: =IF($P$1,IF($A57="","",IF($A57="between",SUMIFS(Breakdowns!O:O,Breakdowns!$I:$I,">="&$B57,Breakdowns!$I:$I,"<"&$D57,Breakdowns!$AA:$AA,"=No"),SUMIFS(Breakdowns!O:O,Breakdowns!$I:$I,">="&$B57,Breakdowns!$AA:$AA,"=No"))),IF($A57="","",IF($A57="between",SUMIFS(Breakdowns!O:O,Breakdowns!$I:$I,">="&$B57,Breakdowns!$I:$I,"<"&$D57),SUMIFS(Breakdowns!O:O,Breakdowns!$I:$I,">="&$B57)))) -> 39759 | I57: =IF($P$1,IF($A57="","",IF($A57="between",SUMIFS(Breakdowns!Q:Q,Breakdowns!$I:$I,">="&$B57,Breakdowns!$I:$I,"<"&$D57,Breakdowns!$AA:$AA,"=No"),SUMIFS(Breakdowns!Q:Q,Breakdowns!$I:$I,">="&$B57,Breakdowns!$AA:$AA,"=No"))),IF($A57="","",IF($A57="between",SUMIFS(Breakdowns!Q:Q,Breakdowns!$I:$I,">="&$B57,Breakdowns!$I:$I,"<"&$D57),SUMIFS(Breakdowns!Q:Q,Breakdowns!$I:$I,">="&$B57)))) -> 88943 | J57: =IF($P$1,IF($A57="","",IF($A57="between",SUMIFS(Breakdowns!S:S,Breakdowns!$I:$I,">="&$B57,Breakdowns!$I:$I,"<"&$D57,Breakdowns!$AA:$AA,"=No"),SUMIFS(Breakdowns!S:S,Breakdowns!$I:$I,">="&$B57,Breakdowns!$AA:$AA,"=No"))),IF($A57="","",IF($A57="between",SUMIFS(Breakdowns!S:S,Breakdowns!$I:$I,">="&$B57,Breakdowns!$I:$I,"<"&$D57),SUMIFS(Breakdowns!S:S,Breakdowns!$I:$I,">="&$B57)))) -> 601191203 | K57: =IF($P$1,IF($A57="","",IF($A57="between",SUMIFS(Breakdowns!U:U,Breakdowns!$I:$I,">="&$B57,Breakdowns!$I:$I,"<"&$D57,Breakdowns!$AA:$AA,"=No"),SUMIFS(Breakdowns!U:U,Breakdowns!$I:$I,">="&$B57,Breakdowns!$AA:$AA,"=No"))),IF($A57="","",IF($A57="between",SUMIFS(Breakdowns!U:U,Breakdowns!$I:$I,">="&$B57,Breakdowns!$I:$I,"<"&$D57),SUMIFS(Breakdowns!U:U,Breakdowns!$I:$I,">="&$B57)))) -> 519779516 | L57: =IF($P$1,IF($A57="","",IF($A57="between",SUMIFS(Breakdowns!W:W,Breakdowns!$I:$I,">="&$B57,Breakdowns!$I:$I,"<"&$D57,Breakdowns!$AA:$AA,"=No"),SUMIFS(Breakdowns!W:W,Breakdowns!$I:$I,">="&$B57,Breakdowns!$AA:$AA,"=No"))),IF($A57="","",IF($A57="between",SUMIFS(Breakdowns!W:W,Breakdowns!$I:$I,">="&$B57,Breakdowns!$I:$I,"<"&$D57),SUMIFS(Breakdowns!W:W,Breakdowns!$I:$I,">="&$B57)))) -> 8158790 | M57: =IF($P$1,IF($A57="","",IF($A57="between",SUMIFS(Breakdowns!Y:Y,Breakdowns!$I:$I,">="&$B57,Breakdowns!$I:$I,"<"&$D57,Breakdowns!$AA:$AA,"=No"),SUMIFS(Breakdowns!Y:Y,Breakdowns!$I:$I,">="&$B57,Breakdowns!$AA:$AA,"=No"))),IF($A57="","",IF($A57="between",SUMIFS(Breakdowns!Y:Y,Breakdowns!$I:$I,">="&$B57,Breakdowns!$I:$I,"<"&$D57),SUMIFS(Breakdowns!Y:Y,Breakdowns!$I:$I,">="&$B57)))) -> 7954830 | U57: 500 to 1,000 | V57: 15746.3931
A58: between | B58: 500 | C58: and | D58: 1000 | E58: between 500 and 1,000 | F58: =IF($P$1,IF($A58="","",IF($A58="between",SUMIFS(Breakdowns!L:L,Breakdowns!$I:$I,">="&$B58,Breakdowns!$I:$I,"<"&$D58,Breakdowns!$AA:$AA,"=No"),SUMIFS(Breakdowns!L:L,Breakdowns!$I:$I,">="&$B58,Breakdowns!$AA:$AA,"=No"))),IF($A58="","",IF($A58="between",SUMIFS(Breakdowns!L:L,Breakdowns!$I:$I,">="&$B58,Breakdowns!$I:$I,"<"&$D58),SUMIFS(Breakdowns!L:L,Breakdowns!$I:$I,">="&$B58)))) -> 14990 | G58: =IF($P$1,IF($A58="","",IF($A58="between",SUMIFS(Breakdowns!M:M,Breakdowns!$I:$I,">="&$B58,Breakdowns!$I:$I,"<"&$D58,Breakdowns!$AA:$AA,"=No"),SUMIFS(Breakdowns!M:M,Breakdowns!$I:$I,">="&$B58,Breakdowns!$AA:$AA,"=No"))),IF($A58="","",IF($A58="between",SUMIFS(Breakdowns!M:M,Breakdowns!$I:$I,">="&$B58,Breakdowns!$I:$I,"<"&$D58),SUMIFS(Breakdowns!M:M,Breakdowns!$I:$I,">="&$B58)))) -> 38359 | H58: =IF($P$1,IF($A58="","",IF($A58="between",SUMIFS(Breakdowns!O:O,Breakdowns!$I:$I,">="&$B58,Breakdowns!$I:$I,"<"&$D58,Breakdowns!$AA:$AA,"=No"),SUMIFS(Breakdowns!O:O,Breakdowns!$I:$I,">="&$B58,Breakdowns!$AA:$AA,"=No"))),IF($A58="","",IF($A58="between",SUMIFS(Breakdowns!O:O,Breakdowns!$I:$I,">="&$B58,Breakdowns!$I:$I,"<"&$D58),SUMIFS(Breakdowns!O:O,Breakdowns!$I:$I,">="&$B58)))) -> 32022 | I58: =IF($P$1,IF($A58="","",IF($A58="between",SUMIFS(Breakdowns!Q:Q,Breakdowns!$I:$I,">="&$B58,Breakdowns!$I:$I,"<"&$D58,Breakdowns!$AA:$AA,"=No"),SUMIFS(Breakdowns!Q:Q,Breakdowns!$I:$I,">="&$B58,Breakdowns!$AA:$AA,"=No"))),IF($A58="","",IF($A58="between",SUMIFS(Breakdowns!Q:Q,Breakdowns!$I:$I,">="&$B58,Breakdowns!$I:$I,"<"&$D58),SUMIFS(Breakdowns!Q:Q,Breakdowns!$I:$I,">="&$B58)))) -> 70381 | J58: =IF($P$1,IF($A58="","",IF($A58="between",SUMIFS(Breakdowns!S:S,Breakdowns!$I:$I,">="&$B58,Breakdowns!$I:$I,"<"&$D58,Breakdowns!$AA:$AA,"=No"),SUMIFS(Breakdowns!S:S,Breakdowns!$I:$I,">="&$B58,Breakdowns!$AA:$AA,"=No"))),IF($A58="","",IF($A58="between",SUMIFS(Breakdowns!S:S,Breakdowns!$I:$I,">="&$B58,Breakdowns!$I:$I,"<"&$D58),SUMIFS(Breakdowns!S:S,Breakdowns!$I:$I,">="&$B58)))) -> 686831523 | K58: =IF($P$1,IF($A58="","",IF($A58="between",SUMIFS(Breakdowns!U:U,Breakdowns!$I:$I,">="&$B58,Breakdowns!$I:$I,"<"&$D58,Breakdowns!$AA:$AA,"=No"),SUMIFS(Breakdowns!U:U,Breakdowns!$I:$I,">="&$B58,Breakdowns!$AA:$AA,"=No"))),IF($A58="","",IF($A58="between",SUMIFS(Breakdowns!U:U,Breakdowns!$I:$I,">="&$B58,Breakdowns!$I:$I,"<"&$D58),SUMIFS(Breakdowns!U:U,Breakdowns!$I:$I,">="&$B58)))) -> 604015893 | L58: =IF($P$1,IF($A58="","",IF($A58="between",SUMIFS(Breakdowns!W:W,Breakdowns!$I:$I,">="&$B58,Breakdowns!$I:$I,"<"&$D58,Breakdowns!$AA:$AA,"=No"),SUMIFS(Breakdowns!W:W,Breakdowns!$I:$I,">="&$B58,Breakdowns!$AA:$AA,"=No"))),IF($A58="","",IF($A58="between",SUMIFS(Breakdowns!W:W,Breakdowns!$I:$I,">="&$B58,Breakdowns!$I:$I,"<"&$D58),SUMIFS(Breakdowns!W:W,Breakdowns!$I:$I,">="&$B58)))) -> 28897139 | M58: =IF($P$1,IF($A58="","",IF($A58="between",SUMIFS(Breakdowns!Y:Y,Breakdowns!$I:$I,">="&$B58,Breakdowns!$I:$I,"<"&$D58,Breakdowns!$AA:$AA,"=No"),SUMIFS(Breakdowns!Y:Y,Breakdowns!$I:$I,">="&$B58,Breakdowns!$AA:$AA,"=No"))),IF($A58="","",IF($A58="between",SUMIFS(Breakdowns!Y:Y,Breakdowns!$I:$I,">="&$B58,Breakdowns!$I:$I,"<"&$D58),SUMIFS(Breakdowns!Y:Y,Breakdowns!$I:$I,">="&$B58)))) -> 28169734 | U58: 1,000 to 2,000 | V58: 15893.54779
A59: between | B59: 1000 | C59: and | D59: 2000 | E59: between 1,000 and 2,000 | F59: =IF($P$1,IF($A59="","",IF($A59="between",SUMIFS(Breakdowns!L:L,Breakdowns!$I:$I,">="&$B59,Breakdowns!$I:$I,"<"&$D59,Breakdowns!$AA:$AA,"=No"),SUMIFS(Breakdowns!L:L,Breakdowns!$I:$I,">="&$B59,Breakdowns!$AA:$AA,"=No"))),IF($A59="","",IF($A59="between",SUMIFS(Breakdowns!L:L,Breakdowns!$I:$I,">="&$B59,Breakdowns!$I:$I,"<"&$D59),SUMIFS(Breakdowns!L:L,Breakdowns!$I:$I,">="&$B59)))) -> 14362 | G59: =IF($P$1,IF($A59="","",IF($A59="between",SUMIFS(Breakdowns!M:M,Breakdowns!$I:$I,">="&$B59,Breakdowns!$I:$I,"<"&$D59,Breakdowns!$AA:$AA,"=No"),SUMIFS(Breakdowns!M:M,Breakdowns!$I:$I,">="&$B59,Breakdowns!$AA:$AA,"=No"))),IF($A59="","",IF($A59="between",SUMIFS(Breakdowns!M:M,Breakdowns!$I:$I,">="&$B59,Breakdowns!$I:$I,"<"&$D59),SUMIFS(Breakdowns!M:M,Breakdowns!$I:$I,">="&$B59)))) -> 34937 | H59: =IF($P$1,IF($A59="","",IF($A59="between",SUMIFS(Breakdowns!O:O,Breakdowns!$I:$I,">="&$B59,Breakdowns!$I:$I,"<"&$D59,Breakdowns!$AA:$AA,"=No"),SUMIFS(Breakdowns!O:O,Breakdowns!$I:$I,">="&$B59,Breakdowns!$AA:$AA,"=No"))),IF($A59="","",IF($A59="between",SUMIFS(Breakdowns!O:O,Breakdowns!$I:$I,">="&$B59,Breakdowns!$I:$I,"<"&$D59),SUMIFS(Breakdowns!O:O,Breakdowns!$I:$I,">="&$B59)))) -> 37449 | I59: =IF($P$1,IF($A59="","",IF($A59="between",SUMIFS(Breakdowns!Q:Q,Breakdowns!$I:$I,">="&$B59,Breakdowns!$I:$I,"<"&$D59,Breakdowns!$AA:$AA,"=No"),SUMIFS(Breakdowns!Q:Q,Breakdowns!$I:$I,">="&$B59,Breakdowns!$AA:$AA,"=No"))),IF($A59="","",IF($A59="between",SUMIFS(Breakdowns!Q:Q,Breakdowns!$I:$I,">="&$B59,Breakdowns!$I:$I,"<"&$D59),SUMIFS(Breakdowns!Q:Q,Breakdowns!$I:$I,">="&$B59)))) -> 72386 | J59: =IF($P$1,IF($A59="","",IF($A59="between",SUMIFS(Breakdowns!S:S,Breakdowns!$I:$I,">="&$B59,Breakdowns!$I:$I,"<"&$D59,Breakdowns!$AA:$AA,"=No"),SUMIFS(Breakdowns!S:S,Breakdowns!$I:$I,">="&$B59,Breakdowns!$AA:$AA,"=No"))),IF($A59="","",IF($A59="between",SUMIFS(Breakdowns!S:S,Breakdowns!$I:$I,">="&$B59,Breakdowns!$I:$I,"<"&$D59),SUMIFS(Breakdowns!S:S,Breakdowns!$I:$I,">="&$B59)))) -> 632896289 | K59: =IF($P$1,IF($A59="","",IF($A59="between",SUMIFS(Breakdowns!U:U,Breakdowns!$I:$I,">="&$B59,Breakdowns!$I:$I,"<"&$D59,Breakdowns!$AA:$AA,"=No"),SUMIFS(Breakdowns!U:U,Breakdowns!$I:$I,">="&$B59,Breakdowns!$AA:$AA,"=No"))),IF($A59="","",IF($A59="between",SUMIFS(Breakdowns!U:U,Breakdowns!$I:$I,">="&$B59,Breakdowns!$I:$I,"<"&$D59),SUMIFS(Breakdowns!U:U,Breakdowns!$I:$I,">="&$B59)))) -> 555272879 | L59: =IF($P$1,IF($A59="","",IF($A59="between",SUMIFS(Breakdowns!W:W,Breakdowns!$I:$I,">="&$B59,Breakdowns!$I:$I,"<"&$D59,Breakdowns!$AA:$AA,"=No"),SUMIFS(Breakdowns!W:W,Breakdowns!$I:$I,">="&$B59,Breakdowns!$AA:$AA,"=No"))),IF($A59="","",IF($A59="between",SUMIFS(Breakdowns!W:W,Breakdowns!$I:$I,">="&$B59,Breakdowns!$I:$I,"<"&$D59),SUMIFS(Breakdowns!W:W,Breakdowns!$I:$I,">="&$B59)))) -> 51982329 | M59: =IF($P$1,IF($A59="","",IF($A59="between",SUMIFS(Breakdowns!Y:Y,Breakdowns!$I:$I,">="&$B59,Breakdowns!$I:$I,"<"&$D59,Breakdowns!$AA:$AA,"=No"),SUMIFS(Breakdowns!Y:Y,Breakdowns!$I:$I,">="&$B59,Breakdowns!$AA:$AA,"=No"))),IF($A59="","",IF($A59="between",SUMIFS(Breakdowns!Y:Y,Breakdowns!$I:$I,">="&$B59,Breakdowns!$I:$I,"<"&$D59),SUMIFS(Breakdowns!Y:Y,Breakdowns!$I:$I,">="&$B59)))) -> 48793152 | U59: over 2,000 | V59: 19463.42547
A60: over | B60: 2000 | E60: over 2,000 | F60: =IF($P$1,IF($A60="","",IF($A60="between",SUMIFS(Breakdowns!L:L,Breakdowns!$I:$I,">="&$B60,Breakdowns!$I:$I,"<"&$D60,Breakdowns!$AA:$AA,"=No"),SUMIFS(Breakdowns!L:L,Breakdowns!$I:$I,">="&$B60,Breakdowns!$AA:$AA,"=No"))),IF($A60="","",IF($A60="between",SUMIFS(Breakdowns!L:L,Breakdowns!$I:$I,">="&$B60,Breakdowns!$I:$I,"<"&$D60),SUMIFS(Breakdowns!L:L,Breakdowns!$I:$I,">="&$B60)))) -> 33878 | G60: =IF($P$1,IF($A60="","",IF($A60="between",SUMIFS(Breakdowns!M:M,Breakdowns!$I:$I,">="&$B60,Breakdowns!$I:$I,"<"&$D60,Breakdowns!$AA:$AA,"=No"),SUMIFS(Breakdowns!M:M,Breakdowns!$I:$I,">="&$B60,Breakdowns!$AA:$AA,"=No"))),IF($A60="","",IF($A60="between",SUMIFS(Breakdowns!M:M,Breakdowns!$I:$I,">="&$B60,Breakdowns!$I:$I,"<"&$D60),SUMIFS(Breakdowns!M:M,Breakdowns!$I:$I,">="&$B60)))) -> 70341 | H60: =IF($P$1,IF($A60="","",IF($A60="between",SUMIFS(Breakdowns!O:O,Breakdowns!$I:$I,">="&$B60,Breakdowns!$I:$I,"<"&$D60,Breakdowns!$AA:$AA,"=No"),SUMIFS(Breakdowns!O:O,Breakdowns!$I:$I,">="&$B60,Breakdowns!$AA:$AA,"=No"))),IF($A60="","",IF($A60="between",SUMIFS(Breakdowns!O:O,Breakdowns!$I:$I,">="&$B60,Breakdowns!$I:$I,"<"&$D60),SUMIFS(Breakdowns!O:O,Breakdowns!$I:$I,">="&$B60)))) -> 78094 | I60: =IF($P$1,IF($A60="","",IF($A60="between",SUMIFS(Breakdowns!Q:Q,Breakdowns!$I:$I,">="&$B60,Breakdowns!$I:$I,"<"&$D60,Breakdowns!$AA:$AA,"=No"),SUMIFS(Breakdowns!Q:Q,Breakdowns!$I:$I,">="&$B60,Breakdowns!$AA:$AA,"=No"))),IF($A60="","",IF($A60="between",SUMIFS(Breakdowns!Q:Q,Breakdowns!$I:$I,">="&$B60,Breakdowns!$I:$I,"<"&$D60),SUMIFS(Breakdowns!Q:Q,Breakdowns!$I:$I,">="&$B60)))) -> 148435 | J60: =IF($P$1,IF($A60="","",IF($A60="between",SUMIFS(Breakdowns!S:S,Breakdowns!$I:$I,">="&$B60,Breakdowns!$I:$I,"<"&$D60,Breakdowns!$AA:$AA,"=No"),SUMIFS(Breakdowns!S:S,Breakdowns!$I:$I,">="&$B60,Breakdowns!$AA:$AA,"=No"))),IF($A60="","",IF($A60="between",SUMIFS(Breakdowns!S:S,Breakdowns!$I:$I,">="&$B60,Breakdowns!$I:$I,"<"&$D60),SUMIFS(Breakdowns!S:S,Breakdowns!$I:$I,">="&$B60)))) -> 1519417172 | K60: =IF($P$1,IF($A60="","",IF($A60="between",SUMIFS(Breakdowns!U:U,Breakdowns!$I:$I,">="&$B60,Breakdowns!$I:$I,"<"&$D60,Breakdowns!$AA:$AA,"=No"),SUMIFS(Breakdowns!U:U,Breakdowns!$I:$I,">="&$B60,Breakdowns!$AA:$AA,"=No"))),IF($A60="","",IF($A60="between",SUMIFS(Breakdowns!U:U,Breakdowns!$I:$I,">="&$B60,Breakdowns!$I:$I,"<"&$D60),SUMIFS(Breakdowns!U:U,Breakdowns!$I:$I,">="&$B60)))) -> 1369076811 | L60: =IF($P$1,IF($A60="","",IF($A60="between",SUMIFS(Breakdowns!W:W,Breakdowns!$I:$I,">="&$B60,Breakdowns!$I:$I,"<"&$D60,Breakdowns!$AA:$AA,"=No"),SUMIFS(Breakdowns!W:W,Breakdowns!$I:$I,">="&$B60,Breakdowns!$AA:$AA,"=No"))),IF($A60="","",IF($A60="between",SUMIFS(Breakdowns!W:W,Breakdowns!$I:$I,">="&$B60,Breakdowns!$I:$I,"<"&$D60),SUMIFS(Breakdowns!W:W,Breakdowns!$I:$I,">="&$B60)))) -> 110593139 | M60: =IF($P$1,IF($A60="","",IF($A60="between",SUMIFS(Breakdowns!Y:Y,Breakdowns!$I:$I,">="&$B60,Breakdowns!$I:$I,"<"&$D60,Breakdowns!$AA:$AA,"=No"),SUMIFS(Breakdowns!Y:Y,Breakdowns!$I:$I,">="&$B60,Breakdowns!$AA:$AA,"=No"))),IF($A60="","",IF($A60="between",SUMIFS(Breakdowns!Y:Y,Breakdowns!$I:$I,">="&$B60,Breakdowns!$I:$I,"<"&$D60),SUMIFS(Breakdowns!Y:Y,Breakdowns!$I:$I,">="&$B60)))) -> 107294479
U61: =IFERROR(U51&": "&FIXED(V51,0,0)&CHAR(10),"")&IFERROR(U52&": "&FIXED(V52,0,0)&CHAR(10),"")&IFERROR(U53&": "&FIXED(V53,0,0)&CHAR(10),"")&IFERROR(U54&": "&FIXED(V54,0,0)&CHAR(10),"")&IFERROR(U55&": "&FIXED(V55,0,0)&CHAR(10),"")&IFERROR(U56&": "&FIXED(V56,0,0)&CHAR(10),"")&IFERROR(U57&": "&FIXED(V57,0,0)&CHAR(10),"")&IFERROR(U58&": "&FIXED(V58,0,0)&CHAR(10),"")&IFERROR(U59&": "&FIXED(V59,0,0),"") -> under 10: 18,650 10 to 25: 14,841 25 to 50: 16,326 50 to 100: 16,710 100 to 250: 13,908 250 to 500: 10,568 500 to 1,000: 15,746 1,000 to 2,000: 15,894 over 2,000: 19,463
A64: By State
A65: Abbreviation | B65: State | C65: Column1 | D65: Column2 | E65: Column3 | F65: VOMS | G65: Major Mechanical Failures | H65: Other Mechanical Failures | I65: Total Mechanical Failures | J65: Vehicle/Passenger Car Miles | K65: Vehicle/Passenger Car Revenue Miles | L65: Train Miles | M65: Train Revenue Miles
A66: AK | B66: Alaska | F66: =IF($P$1,SUMIFS(Breakdowns!L:L,Breakdowns!$C:$C,"="&$A66,Breakdowns!$AA:$AA,"=No"),SUMIFS(Breakdowns!L:L,Breakdowns!$C:$C,"="&$A66)) -> 194 | G66: =IF($P$1,SUMIFS(Breakdowns!M:M,Breakdowns!$C:$C,"="&$A66,Breakdowns!$AA:$AA,"=No"),SUMIFS(Breakdowns!M:M,Breakdowns!$C:$C,"="&$A66)) -> 487 | H66: =IF($P$1,SUMIFS(Breakdowns!O:O,Breakdowns!$C:$C,"="&$A66,Breakdowns!$AA:$AA,"=No"),SUMIFS(Breakdowns!O:O,Breakdowns!$C:$C,"="&$A66)) -> 289 | I66: =IF($P$1,SUMIFS(Breakdowns!Q:Q,Breakdowns!$C:$C,"="&$A66,Breakdowns!$AA:$AA,"=No"),SUMIFS(Breakdowns!Q:Q,Breakdowns!$C:$C,"="&$A66)) -> 776 | J66: =IF($P$1,SUMIFS(Breakdowns!S:S,Breakdowns!$C:$C,"="&$A66,Breakdowns!$AA:$AA,"=No"),SUMIFS(Breakdowns!S:S,Breakdowns!$C:$C,"="&$A66)) -> 5697647 | K66: =IF($P$1,SUMIFS(Breakdowns!U:U,Breakdowns!$C:$C,"="&$A66,Breakdowns!$AA:$AA,"=No"),SUMIFS(Breakdowns!U:U,Breakdowns!$C:$C,"="&$A66)) -> 5332568 | L66: =IF($P$1,SUMIFS(Breakdowns!W:W,Breakdowns!$C:$C,"="&$A66,Breakdowns!$AA:$AA,"=No"),SUMIFS(Breakdowns!W:W,Breakdowns!$C:$C,"="&$A66)) -> 176963 | M66: =IF($P$1,SUMIFS(Breakdowns!Y:Y,Breakdowns!$C:$C,"="&$A66,Breakdowns!$AA:$AA,"=No"),SUMIFS(Breakdowns!Y:Y,Breakdowns!$C:$C,"="&$A66)) -> 176738
A67: AL | B67: Alabama | F67: =IF($P$1,SUMIFS(Breakdowns!L:L,Breakdowns!$C:$C,"="&$A67,Breakdowns!$AA:$AA,"=No"),SUMIFS(Breakdowns!L:L,Breakdowns!$C:$C,"="&$A67)) -> 305 | G67: =IF($P$1,SUMIFS(Breakdowns!M:M,Breakdowns!$C:$C,"="&$A67,Breakdowns!$AA:$AA,"=No"),SUMIFS(Breakdowns!M:M,Breakdowns!$C:$C,"="&$A67)) -> 911 | H67: =IF($P$1,SUMIFS(Breakdowns!O:O,Breakdowns!$C:$C,"="&$A67,Breakdowns!$AA:$AA,"=No"),SUMIFS(Breakdowns!O:O,Breakdowns!$C:$C,"="&$A67)) -> 1336 | I67: =IF($P$1,SUMIFS(Breakdowns!Q:Q,Breakdowns!$C:$C,"="&$A67,Breakdowns!$AA:$AA,"=No"),SUMIFS(Breakdowns!Q:Q,Breakdowns!$C:$C,"="&$A67)) -> 2247 | J67: =IF($P$1,SUMIFS(Breakdowns!S:S,Breakdowns!$C:$C,"="&$A67,Breakdowns!$AA:$AA,"=No"),SUMIFS(Breakdowns!S:S,Breakdowns!$C:$C,"="&$A67)) -> 11178265 | K67: =IF($P$1,SUMIFS(Breakdowns!U:U,Breakdowns!$C:$C,"="&$A67,Breakdowns!$AA:$AA,"=No"),SUMIFS(Breakdowns!U:U,Breakdowns!$C:$C,"="&$A67)) -> 10486539 | L67: =IF($P$1,SUMIFS(Breakdowns!W:W,Breakdowns!$C:$C,"="&$A67,Breakdowns!$AA:$AA,"=No"),SUMIFS(Breakdowns!W:W,Breakdowns!$C:$C,"="&$A67)) -> 0 | M67: =IF($P$1,SUMIFS(Breakdowns!Y:Y,Breakdowns!$C:$C,"="&$A67,Breakdowns!$AA:$AA,"=No"),SUMIFS(Breakdowns!Y:Y,Breakdowns!$C:$C,"="&$A67)) -> 0
A68: AR | B68: Arkansas | F68: =IF($P$1,SUMIFS(Breakdowns!L:L,Breakdowns!$C:$C,"="&$A68,Breakdowns!$AA:$AA,"=No"),SUMIFS(Breakdowns!L:L,Breakdowns!$C:$C,"="&$A68)) -> 100 | G68: =IF($P$1,SUMIFS(Breakdowns!M:M,Breakdowns!$C:$C,"="&$A68,Breakdowns!$AA:$AA,"=No"),SUMIFS(Breakdowns!M:M,Breakdowns!$C:$C,"="&$A68)) -> 190 | H68: =IF($P$1,SUMIFS(Breakdowns!O:O,Breakdowns!$C:$C,"="&$A68,Breakdowns!$AA:$AA,"=No"),SUMIFS(Breakdowns!O:O,Breakdowns!$C:$C,"="&$A68)) -> 396 | I68: =IF($P$1,SUMIFS(Breakdowns!Q:Q,Breakdowns!$C:$C,"="&$A68,Breakdowns!$AA:$AA,"=No"),SUMIFS(Breakdowns!Q:Q,Breakdowns!$C:$C,"="&$A68)) -> 586 | J68: =IF($P$1,SUMIFS(Breakdowns!S:S,Breakdowns!$C:$C,"="&$A68,Breakdowns!$AA:$AA,"=No"),SUMIFS(Breakdowns!S:S,Breakdowns!$C:$C,"="&$A68)) -> 4594330 | K68: =IF($P$1,SUMIFS(Breakdowns!U:U,Breakdowns!$C:$C,"="&$A68,Breakdowns!$AA:$AA,"=No"),SUMIFS(Breakdowns!U:U,Breakdowns!$C:$C,"="&$A68)) -> 4251071 | L68: =IF($P$1,SUMIFS(Breakdowns!W:W,Breakdowns!$C:$C,"="&$A68,Breakdowns!$AA:$AA,"=No"),SUMIFS(Breakdowns!W:W,Breakdowns!$C:$C,"="&$A68)) -> 53772 | M68: =IF($P$1,SUMIFS(Breakdowns!Y:Y,Breakdowns!$C:$C,"="&$A68,Breakdowns!$AA:$AA,"=No"),SUMIFS(Breakdowns!Y:Y,Breakdowns!$C:$C,"="&$A68)) -> 53772
A69: AS | B69: American Samoa | F69: =IF($P$1,SUMIFS(Breakdowns!L:L,Breakdowns!$C:$C,"="&$A69,Breakdowns!$AA:$AA,"=No"),SUMIFS(Breakdowns!L:L,Breakdowns!$C:$C,"="&$A69)) -> 0 | G69: =IF($P$1,SUMIFS(Breakdowns!M:M,Breakdowns!$C:$C,"="&$A69,Breakdowns!$AA:$AA,"=No"),SUMIFS(Breakdowns!M:M,Breakdowns!$C:$C,"="&$A69)) -> 0 | H69: =IF($P$1,SUMIFS(Breakdowns!O:O,Breakdowns!$C:$C,"="&$A69,Breakdowns!$AA:$AA,"=No"),SUMIFS(Breakdowns!O:O,Breakdowns!$C:$C,"="&$A69)) -> 0 | I69: =IF($P$1,SUMIFS(Breakdowns!Q:Q,Breakdowns!$C:$C,"="&$A69,Breakdowns!$AA:$AA,"=No"),SUMIFS(Breakdowns!Q:Q,Breakdowns!$C:$C,"="&$A69)) -> 0 | J69: =IF($P$1,SUMIFS(Breakdowns!S:S,Breakdowns!$C:$C,"="&$A69,Breakdowns!$AA:$AA,"=No"),SUMIFS(Breakdowns!S:S,Breakdowns!$C:$C,"="&$A69)) -> 0 | K69: =IF($P$1,SUMIFS(Breakdowns!U:U,Breakdowns!$C:$C,"="&$A69,Breakdowns!$AA:$AA,"=No"),SUMIFS(Breakdowns!U:U,Breakdowns!$C:$C,"="&$A69)) -> 0 | L69: =IF($P$1,SUMIFS(Breakdowns!W:W,Breakdowns!$C:$C,"="&$A69,Breakdowns!$AA:$AA,"=No"),SUMIFS(Breakdowns!W:W,Breakdowns!$C:$C,"="&$A69)) -> 0 | M69: =IF($P$1,SUMIFS(Breakdowns!Y:Y,Breakdowns!$C:$C,"="&$A69,Breakdowns!$AA:$AA,"=No"),SUMIFS(Breakdowns!Y:Y,Breakdowns!$C:$C,"="&$A69)) -> 0
A70: AZ | B70: Arizona | F70: =IF($P$1,SUMIFS(Breakdowns!L:L,Breakdowns!$C:$C,"="&$A70,Breakdowns!$AA:$AA,"=No"),SUMIFS(Breakdowns!L:L,Breakdowns!$C:$C,"="&$A70)) -> 1763 | G70: =IF($P$1,SUMIFS(Breakdowns!M:M,Breakdowns!$C:$C,"="&$A70,Breakdowns!$AA:$AA,"=No"),SUMIFS(Breakdowns!M:M,Breakdowns!$C:$C,"="&$A70)) -> 4965 | H70: =IF($P$1,SUMIFS(Breakdowns!O:O,Breakdowns!$C:$C,"="&$A70,Breakdowns!$AA:$AA,"=No"),SUMIFS(Breakdowns!O:O,Breakdowns!$C:$C,"="&$A70)) -> 2561 | I70: =IF($P$1,SUMIFS(Breakdowns!Q:Q,Breakdowns!$C:$C,"="&$A70,Breakdowns!$AA:$AA,"=No"),SUMIFS(Breakdowns!Q:Q,Breakdowns!$C:$C,"="&$A70)) -> 7526 | J70: =IF($P$1,SUMIFS(Breakdowns!S:S,Breakdowns!$C:$C,"="&$A70,Breakdowns!$AA:$AA,"=No"),SUMIFS(Breakdowns!S:S,Breakdowns!$C:$C,"="&$A70)) -> 66577972 | K70: =IF($P$1,SUMIFS(Breakdowns!U:U,Breakdowns!$C:$C,"="&$A70,Breakdowns!$AA:$AA,"=No"),SUMIFS(Breakdowns!U:U,Breakdowns!$C:$C,"="&$A70)) -> 56952764 | L70: =IF($P$1,SUMIFS(Breakdowns!W:W,Breakdowns!$C:$C,"="&$A70,Breakdowns!$AA:$AA,"=No"),SUMIFS(Breakdowns!W:W,Breakdowns!$C:$C,"="&$A70)) -> 1280777 | M70: =IF($P$1,SUMIFS(Breakdowns!Y:Y,Breakdowns!$C:$C,"="&$A70,Breakdowns!$AA:$AA,"=No"),SUMIFS(Breakdowns!Y:Y,Breakdowns!$C:$C,"="&$A70)) -> 1262231
A71: CA | B71: California | F71: =IF($P$1,SUMIFS(Breakdowns!L:L,Breakdowns!$C:$C,"="&$A71,Breakdowns!$AA:$AA,"=No"),SUMIFS(Breakdowns!L:L,Breakdowns!$C:$C,"="&$A71)) -> 16645 | G71: =IF($P$1,SUMIFS(Breakdowns!M:M,Breakdowns!$C:$C,"="&$A71,Breakdowns!$AA:$AA,"=No"),SUMIFS(Breakdowns!M:M,Breakdowns!$C:$C,"="&$A71)) -> 36311 | H71: =IF($P$1,SUMIFS(Breakdowns!O:O,Breakdowns!$C:$C,"="&$A71,Breakdowns!$AA:$AA,"=No"),SUMIFS(Breakdowns!O:O,Breakdowns!$C:$C,"="&$A71)) -> 35315 | I71: =IF($P$1,SUMIFS(Breakdowns!Q:Q,Breakdowns!$C:$C,"="&$A71,Breakdowns!$AA:$AA,"=No"),SUMIFS(Breakdowns!Q:Q,Breakdowns!$C:$C,"="&$A71)) -> 71626 | J71: =IF($P$1,SUMIFS(Breakdowns!S:S,Breakdowns!$C:$C,"="&$A71,Breakdowns!$AA:$AA,"=No"),SUMIFS(Breakdowns!S:S,Breakdowns!$C:$C,"="&$A71)) -> 709799708 | K71: =IF($P$1,SUMIFS(Breakdowns!U:U,Breakdowns!$C:$C,"="&$A71,Breakdowns!$AA:$AA,"=No"),SUMIFS(Breakdowns!U:U,Breakdowns!$C:$C,"="&$A71)) -> 630369741 | L71: =IF($P$1,SUMIFS(Breakdowns!W:W,Breakdowns!$C:$C,"="&$A71,Breakdowns!$AA:$AA,"=No"),SUMIFS(Breakdowns!W:W,Breakdowns!$C:$C,"="&$A71)) -> 33078930 | M71: =IF($P$1,SUMIFS(Breakdowns!Y:Y,Breakdowns!$C:$C,"="&$A71,Breakdowns!$AA:$AA,"=No"),SUMIFS(Breakdowns!Y:Y,Breakdowns!$C:$C,"="&$A71)) -> 32267534
A72: CO | B72: Colorado | F72: =IF($P$1,SUMIFS(Breakdowns!L:L,Breakdowns!$C:$C,"="&$A72,Breakdowns!$AA:$AA,"=No"),SUMIFS(Breakdowns!L:L,Breakdowns!$C:$C,"="&$A72)) -> 1832 | G72: =IF($P$1,SUMIFS(Breakdowns!M:M,Breakdowns!$C:$C,"="&$A72,Breakdowns!$AA:$AA,"=No"),SUMIFS(Breakdowns!M:M,Breakdowns!$C:$C,"="&$A72)) -> 1615 | H72: =IF($P$1,SUMIFS(Breakdowns!O:O,Breakdowns!$C:$C,"="&$A72,Breakdowns!$AA:$AA,"=No"),SUMIFS(Breakdowns!O:O,Breakdowns!$C:$C,"="&$A72)) -> 1610 | I72: =IF($P$1,SUMIFS(Breakdowns!Q:Q,Breakdowns!$C:$C,"="&$A72,Breakdowns!$AA:$AA,"=No"),SUMIFS(Breakdowns!Q:Q,Breakdowns!$C:$C,"="&$A72)) -> 3225 | J72: =IF($P$1,SUMIFS(Breakdowns!S:S,Breakdowns!$C:$C,"="&$A72,Breakdowns!$AA:$AA,"=No"),SUMIFS(Breakdowns!S:S,Breakdowns!$C:$C,"="&$A72)) -> 81752981 | K72: =IF($P$1,SUMIFS(Breakdowns!U:U,Breakdowns!$C:$C,"="&$A72,Breakdowns!$AA:$AA,"=No"),SUMIFS(Breakdowns!U:U,Breakdowns!$C:$C,"="&$A72)) -> 69738416 | L72: =IF($P$1,SUMIFS(Breakdowns!W:W,Breakdowns!$C:$C,"="&$A72,Breakdowns!$AA:$AA,"=No"),SUMIFS(Breakdowns!W:W,Breakdowns!$C:$C,"="&$A72)) -> 4140200 | M72: =IF($P$1,SUMIFS(Breakdowns!Y:Y,Breakdowns!$C:$C,"="&$A72,Breakdowns!$AA:$AA,"=No"),SUMIFS(Breakdowns!Y:Y,Breakdowns!$C:$C,"="&$A72)) -> 3925372
A73: CT | B73: Connecticut | F73: =IF($P$1,SUMIFS(Breakdowns!L:L,Breakdowns!$C:$C,"="&$A73,Breakdowns!$AA:$AA,"=No"),SUMIFS(Breakdowns!L:L,Breakdowns!$C:$C,"="&$A73)) -> 1194 | G73: =IF($P$1,SUMIFS(Breakdowns!M:M,Breakdowns!$C:$C,"="&$A73,Breakdowns!$AA:$AA,"=No"),SUMIFS(Breakdowns!M:M,Breakdowns!$C:$C,"="&$A73)) -> 2161 | H73: =IF($P$1,SUMIFS(Breakdowns!O:O,Breakdowns!$C:$C,"="&$A73,Breakdowns!$AA:$AA,"=No"),SUMIFS(Breakdowns!O:O,Breakdowns!$C:$C,"="&$A73)) -> 10357 | I73: =IF($P$1,SUMIFS(Breakdowns!Q:Q,Breakdowns!$C:$C,"="&$A73,Breakdowns!$AA:$AA,"=No"),SUMIFS(Breakdowns!Q:Q,Breakdowns!$C:$C,"="&$A73)) -> 12518 | J73: =IF($P$1,SUMIFS(Breakdowns!S:S,Breakdowns!$C:$C,"="&$A73,Breakdowns!$AA:$AA,"=No"),SUMIFS(Breakdowns!S:S,Breakdowns!$C:$C,"="&$A73)) -> 35766470 | K73: =IF($P$1,SUMIFS(Breakdowns!U:U,Breakdowns!$C:$C,"="&$A73,Breakdowns!$AA:$AA,"=No"),SUMIFS(Breakdowns!U:U,Breakdowns!$C:$C,"="&$A73)) -> 31303528 | L73: =IF($P$1,SUMIFS(Breakdowns!W:W,Breakdowns!$C:$C,"="&$A73,Breakdowns!$AA:$AA,"=No"),SUMIFS(Breakdowns!W:W,Breakdowns!$C:$C,"="&$A73)) -> 607000 | M73: =IF($P$1,SUMIFS(Breakdowns!Y:Y,Breakdowns!$C:$C,"="&$A73,Breakdowns!$AA:$AA,"=No"),SUMIFS(Breakdowns!Y:Y,Breakdowns!$C:$C,"="&$A73)) -> 490316
A74: DC | B74: District of Columbia | F74: =IF($P$1,SUMIFS(Breakdowns!L:L,Breakdowns!$C:$C,"="&$A74,Breakdowns!$AA:$AA,"=No"),SUMIFS(Breakdowns!L:L,Breakdowns!$C:$C,"="&$A74)) -> 3002 | G74: =IF($P$1,SUMIFS(Breakdowns!M:M,Breakdowns!$C:$C,"="&$A74,Breakdowns!$AA:$AA,"=No"),SUMIFS(Breakdowns!M:M,Breakdowns!$C:$C,"="&$A74)) -> 7549 | H74: =IF($P$1,SUMIFS(Breakdowns!O:O,Breakdowns!$C:$C,"="&$A74,Breakdowns!$AA:$AA,"=No"),SUMIFS(Breakdowns!O:O,Breakdowns!$C:$C,"="&$A74)) -> 3313 | I74: =IF($P$1,SUMIFS(Breakdowns!Q:Q,Breakdowns!$C:$C,"="&$A74,Breakdowns!$AA:$AA,"=No"),SUMIFS(Breakdowns!Q:Q,Breakdowns!$C:$C,"="&$A74)) -> 10862 | J74: =IF($P$1,SUMIFS(Breakdowns!S:S,Breakdowns!$C:$C,"="&$A74,Breakdowns!$AA:$AA,"=No"),SUMIFS(Breakdowns!S:S,Breakdowns!$C:$C,"="&$A74)) -> 162421266 | K74: =IF($P$1,SUMIFS(Breakdowns!U:U,Breakdowns!$C:$C,"="&$A74,Breakdowns!$AA:$AA,"=No"),SUMIFS(Breakdowns!U:U,Breakdowns!$C:$C,"="&$A74)) -> 144027296 | L74: =IF($P$1,SUMIFS(Breakdowns!W:W,Breakdowns!$C:$C,"="&$A74,Breakdowns!$AA:$AA,"=No"),SUMIFS(Breakdowns!W:W,Breakdowns!$C:$C,"="&$A74)) -> 13968996 | M74: =IF($P$1,SUMIFS(Breakdowns!Y:Y,Breakdowns!$C:$C,"="&$A74,Breakdowns!$AA:$AA,"=No"),SUMIFS(Breakdowns!Y:Y,Breakdowns!$C:$C,"="&$A74)) -> 13505592
A75: DE | B75: Delaware | F75: =IF($P$1,SUMIFS(Breakdowns!L:L,Breakdowns!$C:$C,"="&$A75,Breakdowns!$AA:$AA,"=No"),SUMIFS(Breakdowns!L:L,Breakdowns!$C:$C,"="&$A75)) -> 445 | G75: =IF($P$1,SUMIFS(Breakdowns!M:M,Breakdowns!$C:$C,"="&$A75,Breakdowns!$AA:$AA,"=No"),SUMIFS(Breakdowns!M:M,Breakdowns!$C:$C,"="&$A75)) -> 985 | H75: =IF($P$1,SUMIFS(Breakdowns!O:O,Breakdowns!$C:$C,"="&$A75,Breakdowns!$AA:$AA,"=No"),SUMIFS(Breakdowns!O:O,Breakdowns!$C:$C,"="&$A75)) -> 598 | I75: =IF($P$1,SUMIFS(Breakdowns!Q:Q,Breakdowns!$C:$C,"="&$A75,Breakdowns!$AA:$AA,"=No"),SUMIFS(Breakdowns!Q:Q,Breakdowns!$C:$C,"="&$A75)) -> 1583 | J75: =IF($P$1,SUMIFS(Breakdowns!S:S,Breakdowns!$C:$C,"="&$A75,Breakdowns!$AA:$AA,"=No"),SUMIFS(Breakdowns!S:S,Breakdowns!$C:$C,"="&$A75)) -> 18090937 | K75: =IF($P$1,SUMIFS(Breakdowns!U:U,Breakdowns!$C:$C,"="&$A75,Breakdowns!$AA:$AA,"=No"),SUMIFS(Breakdowns!U:U,Breakdowns!$C:$C,"="&$A75)) -> 15953206 | L75: =IF($P$1,SUMIFS(Breakdowns!W:W,Breakdowns!$C:$C,"="&$A75,Breakdowns!$AA:$AA,"=No"),SUMIFS(Breakdowns!W:W,Breakdowns!$C:$C,"="&$A75)) -> 0 | M75: =IF($P$1,SUMIFS(Breakdowns!Y:Y,Breakdowns!$C:$C,"="&$A75,Breakdowns!$AA:$AA,"=No"),SUMIFS(Breakdowns!Y:Y,Breakdowns!$C:$C,"="&$A75)) -> 0
A76: FL | B76: Florida | F76: =IF($P$1,SUMIFS(Breakdowns!L:L,Breakdowns!$C:$C,"="&$A76,Breakdowns!$AA:$AA,"=No"),SUMIFS(Breakdowns!L:L,Breakdowns!$C:$C,"="&$A76)) -> 5021 | G76: =IF($P$1,SUMIFS(Breakdowns!M:M,Breakdowns!$C:$C,"="&$A76,Breakdowns!$AA:$AA,"=No"),SUMIFS(Breakdowns!M:M,Breakdowns!$C:$C,"="&$A76)) -> 20449 | H76: =IF($P$1,SUMIFS(Breakdowns!O:O,Breakdowns!$C:$C,"="&$A76,Breakdowns!$AA:$AA,"=No"),SUMIFS(Breakdowns!O:O,Breakdowns!$C:$C,"="&$A76)) -> 19641 | I76: =IF($P$1,SUMIFS(Breakdowns!Q:Q,Breakdowns!$C:$C,"="&$A76,Breakdowns!$AA:$AA,"=No"),SUMIFS(Breakdowns!Q:Q,Breakdowns!$C:$C,"="&$A76)) -> 40090 | J76: =IF($P$1,SUMIFS(Breakdowns!S:S,Breakdowns!$C:$C,"="&$A76,Breakdowns!$AA:$AA,"=No"),SUMIFS(Breakdowns!S:S,Breakdowns!$C:$C,"="&$A76)) -> 230225775 | K76: =IF($P$1,SUMIFS(Breakdowns!U:U,Breakdowns!$C:$C,"="&$A76,Breakdowns!$AA:$AA,"=No"),SUMIFS(Breakdowns!U:U,Breakdowns!$C:$C,"="&$A76)) -> 204726611 | L76: =IF($P$1,SUMIFS(Breakdowns!W:W,Breakdowns!$C:$C,"="&$A76,Breakdowns!$AA:$AA,"=No"),SUMIFS(Breakdowns!W:W,Breakdowns!$C:$C,"="&$A76)) -> 4723177 | M76: =IF($P$1,SUMIFS(Breakdowns!Y:Y,Breakdowns!$C:$C,"="&$A76,Breakdowns!$AA:$AA,"=No"),SUMIFS(Breakdowns!Y:Y,Breakdowns!$C:$C,"="&$A76)) -> 4534965
A77: GA | B77: Georgia | F77: =IF($P$1,SUMIFS(Breakdowns!L:L,Breakdowns!$C:$C,"="&$A77,Breakdowns!$AA:$AA,"=No"),SUMIFS(Breakdowns!L:L,Breakdowns!$C:$C,"="&$A77)) -> 1745 | G77: =IF($P$1,SUMIFS(Breakdowns!M:M,Breakdowns!$C:$C,"="&$A77,Breakdowns!$AA:$AA,"=No"),SUMIFS(Breakdowns!M:M,Breakdowns!$C:$C,"="&$A77)) -> 7258 | H77: =IF($P$1,SUMIFS(Breakdowns!O:O,Breakdowns!$C:$C,"="&$A77,Breakdowns!$AA:$AA,"=No"),SUMIFS(Breakdowns!O:O,Breakdowns!$C:$C,"="&$A77)) -> 3728 | I77: =IF($P$1,SUMIFS(Breakdowns!Q:Q,Breakdowns!$C:$C,"="&$A77,Breakdowns!$AA:$AA,"=No"),SUMIFS(Breakdowns!Q:Q,Breakdowns!$C:$C,"="&$A77)) -> 10986 | J77: =IF($P$1,SUMIFS(Breakdowns!S:S,Breakdowns!$C:$C,"="&$A77,Breakdowns!$AA:$AA,"=No"),SUMIFS(Breakdowns!S:S,Breakdowns!$C:$C,"="&$A77)) -> 83814059 | K77: =IF($P$1,SUMIFS(Breakdowns!U:U,Breakdowns!$C:$C,"="&$A77,Breakdowns!$AA:$AA,"=No"),SUMIFS(Breakdowns!U:U,Breakdowns!$C:$C,"="&$A77)) -> 74192622 | L77: =IF($P$1,SUMIFS(Breakdowns!W:W,Breakdowns!$C:$C,"="&$A77,Breakdowns!$AA:$AA,"=No"),SUMIFS(Breakdowns!W:W,Breakdowns!$C:$C,"="&$A77)) -> 4057223 | M77: =IF($P$1,SUMIFS(Breakdowns!Y:Y,Breakdowns!$C:$C,"="&$A77,Breakdowns!$AA:$AA,"=No"),SUMIFS(Breakdowns!Y:Y,Breakdowns!$C:$C,"="&$A77)) -> 3955298
A78: GU | B78: Guam | F78: =IF($P$1,SUMIFS(Breakdowns!L:L,Breakdowns!$C:$C,"="&$A78,Breakdowns!$AA:$AA,"=No"),SUMIFS(Breakdowns!L:L,Breakdowns!$C:$C,"="&$A78)) -> 0 | G78: =IF($P$1,SUMIFS(Breakdowns!M:M,Breakdowns!$C:$C,"="&$A78,Breakdowns!$AA:$AA,"=No"),SUMIFS(Breakdowns!M:M,Breakdowns!$C:$C,"="&$A78)) -> 0 | H78: =IF($P$1,SUMIFS(Breakdowns!O:O,Breakdowns!$C:$C,"="&$A78,Breakdowns!$AA:$AA,"=No"),SUMIFS(Breakdowns!O:O,Breakdowns!$C:$C,"="&$A78)) -> 0 | I78: =IF($P$1,SUMIFS(Breakdowns!Q:Q,Breakdowns!$C:$C,"="&$A78,Breakdowns!$AA:$AA,"=No"),SUMIFS(Breakdowns!Q:Q,Breakdowns!$C:$C,"="&$A78)) -> 0 | J78: =IF($P$1,SUMIFS(Breakdowns!S:S,Breakdowns!$C:$C,"="&$A78,Breakdowns!$AA:$AA,"=No"),SUMIFS(Breakdowns!S:S,Breakdowns!$C:$C,"="&$A78)) -> 0 | K78: =IF($P$1,SUMIFS(Breakdowns!U:U,Breakdowns!$C:$C,"="&$A78,Breakdowns!$AA:$AA,"=No"),SUMIFS(Breakdowns!U:U,Breakdowns!$C:$C,"="&$A78)) -> 0 | L78: =IF($P$1,SUMIFS(Breakdowns!W:W,Breakdowns!$C:$C,"="&$A78,Breakdowns!$AA:$AA,"=No"),SUMIFS(Breakdowns!W:W,Breakdowns!$C:$C,"="&$A78)) -> 0 | M78: =IF($P$1,SUMIFS(Breakdowns!Y:Y,Breakdowns!$C:$C,"="&$A78,Breakdowns!$AA:$AA,"=No"),SUMIFS(Breakdowns!Y:Y,Breakdowns!$C:$C,"="&$A78)) -> 0
A79: HI | B79: Hawaii | F79: =IF($P$1,SUMIFS(Breakdowns!L:L,Breakdowns!$C:$C,"="&$A79,Breakdowns!$AA:$AA,"=No"),SUMIFS(Breakdowns!L:L,Breakdowns!$C:$C,"="&$A79)) -> 754 | G79: =IF($P$1,SUMIFS(Breakdowns!M:M,Breakdowns!$C:$C,"="&$A79,Breakdowns!$AA:$AA,"=No"),SUMIFS(Breakdowns!M:M,Breakdowns!$C:$C,"="&$A79)) -> 1966 | H79: =IF($P$1,SUMIFS(Breakdowns!O:O,Breakdowns!$C:$C,"="&$A79,Breakdowns!$AA:$AA,"=No"),SUMIFS(Breakdowns!O:O,Breakdowns!$C:$C,"="&$A79)) -> 5095 | I79: =IF($P$1,SUMIFS(Breakdowns!Q:Q,Breakdowns!$C:$C,"="&$A79,Breakdowns!$AA:$AA,"=No"),SUMIFS(Breakdowns!Q:Q,Breakdowns!$C:$C,"="&$A79)) -> 7061 | J79: =IF($P$1,SUMIFS(Breakdowns!S:S,Breakdowns!$C:$C,"="&$A79,Breakdowns!$AA:$AA,"=No"),SUMIFS(Breakdowns!S:S,Breakdowns!$C:$C,"="&$A79)) -> 31984665 | K79: =IF($P$1,SUMIFS(Breakdowns!U:U,Breakdowns!$C:$C,"="&$A79,Breakdowns!$AA:$AA,"=No"),SUMIFS(Breakdowns!U:U,Breakdowns!$C:$C,"="&$A79)) -> 26763622 | L79: =IF($P$1,SUMIFS(Breakdowns!W:W,Breakdowns!$C:$C,"="&$A79,Breakdowns!$AA:$AA,"=No"),SUMIFS(Breakdowns!W:W,Breakdowns!$C:$C,"="&$A79)) -> 0 | M79: =IF($P$1,SUMIFS(Breakdowns!Y:Y,Breakdowns!$C:$C,"="&$A79,Breakdowns!$AA:$AA,"=No"),SUMIFS(Breakdowns!Y:Y,Breakdowns!$C:$C,"="&$A79)) -> 0
A80: IA | B80: Iowa | F80: =IF($P$1,SUMIFS(Breakdowns!L:L,Breakdowns!$C:$C,"="&$A80,Breakdowns!$AA:$AA,"=No"),SUMIFS(Breakdowns!L:L,Breakdowns!$C:$C,"="&$A80)) -> 486 | G80: =IF($P$1,SUMIFS(Breakdowns!M:M,Breakdowns!$C:$C,"="&$A80,Breakdowns!$AA:$AA,"=No"),SUMIFS(Breakdowns!M:M,Breakdowns!$C:$C,"="&$A80)) -> 928 | H80: =IF($P$1,SUMIFS(Breakdowns!O:O,Breakdowns!$C:$C,"="&$A80,Breakdowns!$AA:$AA,"=No"),SUMIFS(Breakdowns!O:O,Breakdowns!$C:$C,"="&$A80)) -> 632 | I80: =IF($P$1,SUMIFS(Breakdowns!Q:Q,Breakdowns!$C:$C,"="&$A80,Breakdowns!$AA:$AA,"=No"),SUMIFS(Breakdowns!Q:Q,Breakdowns!$C:$C,"="&$A80)) -> 1560 | J80: =IF($P$1,SUMIFS(Breakdowns!S:S,Breakdowns!$C:$C,"="&$A80,Breakdowns!$AA:$AA,"=No"),SUMIFS(Breakdowns!S:S,Breakdowns!$C:$C,"="&$A80)) -> 12553886 | K80: =IF($P$1,SUMIFS(Breakdowns!U:U,Breakdowns!$C:$C,"="&$A80,Breakdowns!$AA:$AA,"=No"),SUMIFS(Breakdowns!U:U,Breakdowns!$C:$C,"="&$A80)) -> 11447644 | L80: =IF($P$1,SUMIFS(Breakdowns!W:W,Breakdowns!$C:$C,"="&$A80,Breakdowns!$AA:$AA,"=No"),SUMIFS(Breakdowns!W:W,Breakdowns!$C:$C,"="&$A80)) -> 0 | M80: =IF($P$1,SUMIFS(Breakdowns!Y:Y,Breakdowns!$C:$C,"="&$A80,Breakdowns!$AA:$AA,"=No"),SUMIFS(Breakdowns!Y:Y,Breakdowns!$C:$C,"="&$A80)) -> 0
A81: ID | B81: Idaho | F81: =IF($P$1,SUMIFS(Breakdowns!L:L,Breakdowns!$C:$C,"="&$A81,Breakdowns!$AA:$AA,"=No"),SUMIFS(Breakdowns!L:L,Breakdowns!$C:$C,"="&$A81)) -> 63 | G81: =IF($P$1,SUMIFS(Breakdowns!M:M,Breakdowns!$C:$C,"="&$A81,Breakdowns!$AA:$AA,"=No"),SUMIFS(Breakdowns!M:M,Breakdowns!$C:$C,"="&$A81)) -> 93 | H81: =IF($P$1,SUMIFS(Breakdowns!O:O,Breakdowns!$C:$C,"="&$A81,Breakdowns!$AA:$AA,"=No"),SUMIFS(Breakdowns!O:O,Breakdowns!$C:$C,"="&$A81)) -> 127 | I81: =IF($P$1,SUMIFS(Breakdowns!Q:Q,Breakdowns!$C:$C,"="&$A81,Breakdowns!$AA:$AA,"=No"),SUMIFS(Breakdowns!Q:Q,Breakdowns!$C:$C,"="&$A81)) -> 220 | J81: =IF($P$1,SUMIFS(Breakdowns!S:S,Breakdowns!$C:$C,"="&$A81,Breakdowns!$AA:$AA,"=No"),SUMIFS(Breakdowns!S:S,Breakdowns!$C:$C,"="&$A81)) -> 2025504 | K81: =IF($P$1,SUMIFS(Breakdowns!U:U,Breakdowns!$C:$C,"="&$A81,Breakdowns!$AA:$AA,"=No"),SUMIFS(Breakdowns!U:U,Breakdowns!$C:$C,"="&$A81)) -> 1730130 | L81: =IF($P$1,SUMIFS(Breakdowns!W:W,Breakdowns!$C:$C,"="&$A81,Breakdowns!$AA:$AA,"=No"),SUMIFS(Breakdowns!W:W,Breakdowns!$C:$C,"="&$A81)) -> 0 | M81: =IF($P$1,SUMIFS(Breakdowns!Y:Y,Breakdowns!$C:$C,"="&$A81,Breakdowns!$AA:$AA,"=No"),SUMIFS(Breakdowns!Y:Y,Breakdowns!$C:$C,"="&$A81)) -> 0
A82: IL | B82: Illinois | F82: =IF($P$1,SUMIFS(Breakdowns!L:L,Breakdowns!$C:$C,"="&$A82,Breakdowns!$AA:$AA,"=No"),SUMIFS(Breakdowns!L:L,Breakdowns!$C:$C,"="&$A82)) -> 6954 | G82: =IF($P$1,SUMIFS(Breakdowns!M:M,Breakdowns!$C:$C,"="&$A82,Breakdowns!$AA:$AA,"=No"),SUMIFS(Breakdowns!M:M,Breakdowns!$C:$C,"="&$A82)) -> 11000 | H82: =IF($P$1,SUMIFS(Breakdowns!O:O,Breakdowns!$C:$C,"="&$A82,Breakdowns!$AA:$AA,"=No"),SUMIFS(Breakdowns!O:O,Breakdowns!$C:$C,"="&$A82)) -> 22893 | I82: =IF($P$1,SUMIFS(Breakdowns!Q:Q,Breakdowns!$C:$C,"="&$A82,Breakdowns!$AA:$AA,"=No"),SUMIFS(Breakdowns!Q:Q,Breakdowns!$C:$C,"="&$A82)) -> 33893 | J82: =IF($P$1,SUMIFS(Breakdowns!S:S,Breakdowns!$C:$C,"="&$A82,Breakdowns!$AA:$AA,"=No"),SUMIFS(Breakdowns!S:S,Breakdowns!$C:$C,"="&$A82)) -> 285503900 | K82: =IF($P$1,SUMIFS(Breakdowns!U:U,Breakdowns!$C:$C,"="&$A82,Breakdowns!$AA:$AA,"=No"),SUMIFS(Breakdowns!U:U,Breakdowns!$C:$C,"="&$A82)) -> 263225943 | L82: =IF($P$1,SUMIFS(Breakdowns!W:W,Breakdowns!$C:$C,"="&$A82,Breakdowns!$AA:$AA,"=No"),SUMIFS(Breakdowns!W:W,Breakdowns!$C:$C,"="&$A82)) -> 19142365 | M82: =IF($P$1,SUMIFS(Breakdowns!Y:Y,Breakdowns!$C:$C,"="&$A82,Breakdowns!$AA:$AA,"=No"),SUMIFS(Breakdowns!Y:Y,Breakdowns!$C:$C,"="&$A82)) -> 18696198
A83: IN | B83: Indiana | F83: =IF($P$1,SUMIFS(Breakdowns!L:L,Breakdowns!$C:$C,"="&$A83,Breakdowns!$AA:$AA,"=No"),SUMIFS(Breakdowns!L:L,Breakdowns!$C:$C,"="&$A83)) -> 650 | G83: =IF($P$1,SUMIFS(Breakdowns!M:M,Breakdowns!$C:$C,"="&$A83,Breakdowns!$AA:$AA,"=No"),SUMIFS(Breakdowns!M:M,Breakdowns!$C:$C,"="&$A83)) -> 2277 | H83: =IF($P$1,SUMIFS(Breakdowns!O:O,Breakdowns!$C:$C,"="&$A83,Breakdowns!$AA:$AA,"=No"),SUMIFS(Breakdowns!O:O,Breakdowns!$C:$C,"="&$A83)) -> 1235 | I83: =IF($P$1,SUMIFS(Breakdowns!Q:Q,Breakdowns!$C:$C,"="&$A83,Breakdowns!$AA:$AA,"=No"),SUMIFS(Breakdowns!Q:Q,Breakdowns!$C:$C,"="&$A83)) -> 3512 | J83: =IF($P$1,SUMIFS(Breakdowns!S:S,Breakdowns!$C:$C,"="&$A83,Breakdowns!$AA:$AA,"=No"),SUMIFS(Breakdowns!S:S,Breakdowns!$C:$C,"="&$A83)) -> 29471298 | K83: =IF($P$1,SUMIFS(Breakdowns!U:U,Breakdowns!$C:$C,"="&$A83,Breakdowns!$AA:$AA,"=No"),SUMIFS(Breakdowns!U:U,Breakdowns!$C:$C,"="&$A83)) -> 26798944 | L83: =IF($P$1,SUMIFS(Breakdowns!W:W,Breakdowns!$C:$C,"="&$A83,Breakdowns!$AA:$AA,"=No"),SUMIFS(Breakdowns!W:W,Breakdowns!$C:$C,"="&$A83)) -> 791353 | M83: =IF($P$1,SUMIFS(Breakdowns!Y:Y,Breakdowns!$C:$C,"="&$A83,Breakdowns!$AA:$AA,"=No"),SUMIFS(Breakdowns!Y:Y,Breakdowns!$C:$C,"="&$A83)) -> 777442
A84: KS | B84: Kansas | F84: =IF($P$1,SUMIFS(Breakdowns!L:L,Breakdowns!$C:$C,"="&$A84,Breakdowns!$AA:$AA,"=No"),SUMIFS(Breakdowns!L:L,Breakdowns!$C:$C,"="&$A84)) -> 304 | G84: =IF($P$1,SUMIFS(Breakdowns!M:M,Breakdowns!$C:$C,"="&$A84,Breakdowns!$AA:$AA,"=No"),SUMIFS(Breakdowns!M:M,Breakdowns!$C:$C,"="&$A84)) -> 537 | H84: =IF($P$1,SUMIFS(Breakdowns!O:O,Breakdowns!$C:$C,"="&$A84,Breakdowns!$AA:$AA,"=No"),SUMIFS(Breakdowns!O:O,Breakdowns!$C:$C,"="&$A84)) -> 233 | I84: =IF($P$1,SUMIFS(Breakdowns!Q:Q,Breakdowns!$C:$C,"="&$A84,Breakdowns!$AA:$AA,"=No"),SUMIFS(Breakdowns!Q:Q,Breakdowns!$C:$C,"="&$A84)) -> 770 | J84: =IF($P$1,SUMIFS(Breakdowns!S:S,Breakdowns!$C:$C,"="&$A84,Breakdowns!$AA:$AA,"=No"),SUMIFS(Breakdowns!S:S,Breakdowns!$C:$C,"="&$A84)) -> 8089202 | K84: =IF($P$1,SUMIFS(Breakdowns!U:U,Breakdowns!$C:$C,"="&$A84,Breakdowns!$AA:$AA,"=No"),SUMIFS(Breakdowns!U:U,Breakdowns!$C:$C,"="&$A84)) -> 6715899 | L84: =IF($P$1,SUMIFS(Breakdowns!W:W,Breakdowns!$C:$C,"="&$A84,Breakdowns!$AA:$AA,"=No"),SUMIFS(Breakdowns!W:W,Breakdowns!$C:$C,"="&$A84)) -> 0 | M84: =IF($P$1,SUMIFS(Breakdowns!Y:Y,Breakdowns!$C:$C,"="&$A84,Breakdowns!$AA:$AA,"=No"),SUMIFS(Breakdowns!Y:Y,Breakdowns!$C:$C,"="&$A84)) -> 0
A85: KY | B85: Kentucky | F85: =IF($P$1,SUMIFS(Breakdowns!L:L,Breakdowns!$C:$C,"="&$A85,Breakdowns!$AA:$AA,"=No"),SUMIFS(Breakdowns!L:L,Breakdowns!$C:$C,"="&$A85)) -> 619 | G85: =IF($P$1,SUMIFS(Breakdowns!M:M,Breakdowns!$C:$C,"="&$A85,Breakdowns!$AA:$AA,"=No"),SUMIFS(Breakdowns!M:M,Breakdowns!$C:$C,"="&$A85)) -> 1969 | H85: =IF($P$1,SUMIFS(Breakdowns!O:O,Breakdowns!$C:$C,"="&$A85,Breakdowns!$AA:$AA,"=No"),SUMIFS(Breakdowns!O:O,Breakdowns!$C:$C,"="&$A85)) -> 2966 | I85: =IF($P$1,SUMIFS(Breakdowns!Q:Q,Breakdowns!$C:$C,"="&$A85,Breakdowns!$AA:$AA,"=No"),SUMIFS(Breakdowns!Q:Q,Breakdowns!$C:$C,"="&$A85)) -> 4935 | J85: =IF($P$1,SUMIFS(Breakdowns!S:S,Breakdowns!$C:$C,"="&$A85,Breakdowns!$AA:$AA,"=No"),SUMIFS(Breakdowns!S:S,Breakdowns!$C:$C,"="&$A85)) -> 24141663 | K85: =IF($P$1,SUMIFS(Breakdowns!U:U,Breakdowns!$C:$C,"="&$A85,Breakdowns!$AA:$AA,"=No"),SUMIFS(Breakdowns!U:U,Breakdowns!$C:$C,"="&$A85)) -> 21259944 | L85: =IF($P$1,SUMIFS(Breakdowns!W:W,Breakdowns!$C:$C,"="&$A85,Breakdowns!$AA:$AA,"=No"),SUMIFS(Breakdowns!W:W,Breakdowns!$C:$C,"="&$A85)) -> 0 | M85: =IF($P$1,SUMIFS(Breakdowns!Y:Y,Breakdowns!$C:$C,"="&$A85,Breakdowns!$AA:$AA,"=No"),SUMIFS(Breakdowns!Y:Y,Breakdowns!$C:$C,"="&$A85)) -> 0
A86: LA | B86: Lousiana | F86: =IF($P$1,SUMIFS(Breakdowns!L:L,Breakdowns!$C:$C,"="&$A86,Breakdowns!$AA:$AA,"=No"),SUMIFS(Breakdowns!L:L,Breakdowns!$C:$C,"="&$A86)) -> 384 | G86: =IF($P$1,SUMIFS(Breakdowns!M:M,Breakdowns!$C:$C,"="&$A86,Breakdowns!$AA:$AA,"=No"),SUMIFS(Breakdowns!M:M,Breakdowns!$C:$C,"="&$A86)) -> 2202 | H86: =IF($P$1,SUMIFS(Breakdowns!O:O,Breakdowns!$C:$C,"="&$A86,Breakdowns!$AA:$AA,"=No"),SUMIFS(Breakdowns!O:O,Breakdowns!$C:$C,"="&$A86)) -> 2172 | I86: =IF($P$1,SUMIFS(Breakdowns!Q:Q,Breakdowns!$C:$C,"="&$A86,Breakdowns!$AA:$AA,"=No"),SUMIFS(Breakdowns!Q:Q,Breakdowns!$C:$C,"="&$A86)) -> 4374 | J86: =IF($P$1,SUMIFS(Breakdowns!S:S,Breakdowns!$C:$C,"="&$A86,Breakdowns!$AA:$AA,"=No"),SUMIFS(Breakdowns!S:S,Breakdowns!$C:$C,"="&$A86)) -> 17831346 | K86: =IF($P$1,SUMIFS(Breakdowns!U:U,Breakdowns!$C:$C,"="&$A86,Breakdowns!$AA:$AA,"=No"),SUMIFS(Breakdowns!U:U,Breakdowns!$C:$C,"="&$A86)) -> 16730038 | L86: =IF($P$1,SUMIFS(Breakdowns!W:W,Breakdowns!$C:$C,"="&$A86,Breakdowns!$AA:$AA,"=No"),SUMIFS(Breakdowns!W:W,Breakdowns!$C:$C,"="&$A86)) -> 970194 | M86: =IF($P$1,SUMIFS(Breakdowns!Y:Y,Breakdowns!$C:$C,"="&$A86,Breakdowns!$AA:$AA,"=No"),SUMIFS(Breakdowns!Y:Y,Breakdowns!$C:$C,"="&$A86)) -> 952665
A87: MA | B87: Massachusetts | F87: =IF($P$1,SUMIFS(Breakdowns!L:L,Breakdowns!$C:$C,"="&$A87,Breakdowns!$AA:$AA,"=No"),SUMIFS(Breakdowns!L:L,Breakdowns!$C:$C,"="&$A87)) -> 3749 | G87: =IF($P$1,SUMIFS(Breakdowns!M:M,Breakdowns!$C:$C,"="&$A87,Breakdowns!$AA:$AA,"=No"),SUMIFS(Breakdowns!M:M,Breakdowns!$C:$C,"="&$A87)) -> 5943 | H87: =IF($P$1,SUMIFS(Breakdowns!O:O,Breakdowns!$C:$C,"="&$A87,Breakdowns!$AA:$AA,"=No"),SUMIFS(Breakdowns!O:O,Breakdowns!$C:$C,"="&$A87)) -> 5947 | I87: =IF($P$1,SUMIFS(Breakdowns!Q:Q,Breakdowns!$C:$C,"="&$A87,Breakdowns!$AA:$AA,"=No"),SUMIFS(Breakdowns!Q:Q,Breakdowns!$C:$C,"="&$A87)) -> 11890 | J87: =IF($P$1,SUMIFS(Breakdowns!S:S,Breakdowns!$C:$C,"="&$A87,Breakdowns!$AA:$AA,"=No"),SUMIFS(Breakdowns!S:S,Breakdowns!$C:$C,"="&$A87)) -> 141836609 | K87: =IF($P$1,SUMIFS(Breakdowns!U:U,Breakdowns!$C:$C,"="&$A87,Breakdowns!$AA:$AA,"=No"),SUMIFS(Breakdowns!U:U,Breakdowns!$C:$C,"="&$A87)) -> 129241000 | L87: =IF($P$1,SUMIFS(Breakdowns!W:W,Breakdowns!$C:$C,"="&$A87,Breakdowns!$AA:$AA,"=No"),SUMIFS(Breakdowns!W:W,Breakdowns!$C:$C,"="&$A87)) -> 11518475 | M87: =IF($P$1,SUMIFS(Breakdowns!Y:Y,Breakdowns!$C:$C,"="&$A87,Breakdowns!$AA:$AA,"=No"),SUMIFS(Breakdowns!Y:Y,Breakdowns!$C:$C,"="&$A87)) -> 11305041
A88: MD | B88: Maryland | F88: =IF($P$1,SUMIFS(Breakdowns!L:L,Breakdowns!$C:$C,"="&$A88,Breakdowns!$AA:$AA,"=No"),SUMIFS(Breakdowns!L:L,Breakdowns!$C:$C,"="&$A88)) -> 1990 | G88: =IF($P$1,SUMIFS(Breakdowns!M:M,Breakdowns!$C:$C,"="&$A88,Breakdowns!$AA:$AA,"=No"),SUMIFS(Breakdowns!M:M,Breakdowns!$C:$C,"="&$A88)) -> 6407 | H88: =IF($P$1,SUMIFS(Breakdowns!O:O,Breakdowns!$C:$C,"="&$A88,Breakdowns!$AA:$AA,"=No"),SUMIFS(Breakdowns!O:O,Breakdowns!$C:$C,"="&$A88)) -> 9276 | I88: =IF($P$1,SUMIFS(Breakdowns!Q:Q,Breakdowns!$C:$C,"="&$A88,Breakdowns!$AA:$AA,"=No"),SUMIFS(Breakdowns!Q:Q,Breakdowns!$C:$C,"="&$A88)) -> 15683 | J88: =IF($P$1,SUMIFS(Breakdowns!S:S,Breakdowns!$C:$C,"="&$A88,Breakdowns!$AA:$AA,"=No"),SUMIFS(Breakdowns!S:S,Breakdowns!$C:$C,"="&$A88)) -> 87968793 | K88: =IF($P$1,SUMIFS(Breakdowns!U:U,Breakdowns!$C:$C,"="&$A88,Breakdowns!$AA:$AA,"=No"),SUMIFS(Breakdowns!U:U,Breakdowns!$C:$C,"="&$A88)) -> 78210324 | L88: =IF($P$1,SUMIFS(Breakdowns!W:W,Breakdowns!$C:$C,"="&$A88,Breakdowns!$AA:$AA,"=No"),SUMIFS(Breakdowns!W:W,Breakdowns!$C:$C,"="&$A88)) -> 4016019 | M88: =IF($P$1,SUMIFS(Breakdowns!Y:Y,Breakdowns!$C:$C,"="&$A88,Breakdowns!$AA:$AA,"=No"),SUMIFS(Breakdowns!Y:Y,Breakdowns!$C:$C,"="&$A88)) -> 3890875
A89: ME | B89: Maine | F89: =IF($P$1,SUMIFS(Breakdowns!L:L,Breakdowns!$C:$C,"="&$A89,Breakdowns!$AA:$AA,"=No"),SUMIFS(Breakdowns!L:L,Breakdowns!$C:$C,"="&$A89)) -> 50 | G89: =IF($P$1,SUMIFS(Breakdowns!M:M,Breakdowns!$C:$C,"="&$A89,Breakdowns!$AA:$AA,"=No"),SUMIFS(Breakdowns!M:M,Breakdowns!$C:$C,"="&$A89)) -> 72 | H89: =IF($P$1,SUMIFS(Breakdowns!O:O,Breakdowns!$C:$C,"="&$A89,Breakdowns!$AA:$AA,"=No"),SUMIFS(Breakdowns!O:O,Breakdowns!$C:$C,"="&$A89)) -> 326 | I89: =IF($P$1,SUMIFS(Breakdowns!Q:Q,Breakdowns!$C:$C,"="&$A89,Breakdowns!$AA:$AA,"=No"),SUMIFS(Breakdowns!Q:Q,Breakdowns!$C:$C,"="&$A89)) -> 398 | J89: =IF($P$1,SUMIFS(Breakdowns!S:S,Breakdowns!$C:$C,"="&$A89,Breakdowns!$AA:$AA,"=No"),SUMIFS(Breakdowns!S:S,Breakdowns!$C:$C,"="&$A89)) -> 2760732 | K89: =IF($P$1,SUMIFS(Breakdowns!U:U,Breakdowns!$C:$C,"="&$A89,Breakdowns!$AA:$AA,"=No"),SUMIFS(Breakdowns!U:U,Breakdowns!$C:$C,"="&$A89)) -> 2645078 | L89: =IF($P$1,SUMIFS(Breakdowns!W:W,Breakdowns!$C:$C,"="&$A89,Breakdowns!$AA:$AA,"=No"),SUMIFS(Breakdowns!W:W,Breakdowns!$C:$C,"="&$A89)) -> 400245 | M89: =IF($P$1,SUMIFS(Breakdowns!Y:Y,Breakdowns!$C:$C,"="&$A89,Breakdowns!$AA:$AA,"=No"),SUMIFS(Breakdowns!Y:Y,Breakdowns!$C:$C,"="&$A89)) -> 381068
A90: MI | B90: Michigan | F90: =IF($P$1,SUMIFS(Breakdowns!L:L,Breakdowns!$C:$C,"="&$A90,Breakdowns!$AA:$AA,"=No"),SUMIFS(Breakdowns!L:L,Breakdowns!$C:$C,"="&$A90)) -> 2279 | G90: =IF($P$1,SUMIFS(Breakdowns!M:M,Breakdowns!$C:$C,"="&$A90,Breakdowns!$AA:$AA,"=No"),SUMIFS(Breakdowns!M:M,Breakdowns!$C:$C,"="&$A90)) -> 8674 | H90: =IF($P$1,SUMIFS(Breakdowns!O:O,Breakdowns!$C:$C,"="&$A90,Breakdowns!$AA:$AA,"=No"),SUMIFS(Breakdowns!O:O,Breakdowns!$C:$C,"="&$A90)) -> 7131 | I90: =IF($P$1,SUMIFS(Breakdowns!Q:Q,Breakdowns!$C:$C,"="&$A90,Breakdowns!$AA:$AA,"=No"),SUMIFS(Breakdowns!Q:Q,Breakdowns!$C:$C,"="&$A90)) -> 15805 | J90: =IF($P$1,SUMIFS(Breakdowns!S:S,Breakdowns!$C:$C,"="&$A90,Breakdowns!$AA:$AA,"=No"),SUMIFS(Breakdowns!S:S,Breakdowns!$C:$C,"="&$A90)) -> 73366324 | K90: =IF($P$1,SUMIFS(Breakdowns!U:U,Breakdowns!$C:$C,"="&$A90,Breakdowns!$AA:$AA,"=No"),SUMIFS(Breakdowns!U:U,Breakdowns!$C:$C,"="&$A90)) -> 66363515 | L90: =IF($P$1,SUMIFS(Breakdowns!W:W,Breakdowns!$C:$C,"="&$A90,Breakdowns!$AA:$AA,"=No"),SUMIFS(Breakdowns!W:W,Breakdowns!$C:$C,"="&$A90)) -> 277663 | M90: =IF($P$1,SUMIFS(Breakdowns!Y:Y,Breakdowns!$C:$C,"="&$A90,Breakdowns!$AA:$AA,"=No"),SUMIFS(Breakdowns!Y:Y,Breakdowns!$C:$C,"="&$A90)) -> 275318
A91: MN | B91: Minnesota | F91: =IF($P$1,SUMIFS(Breakdowns!L:L,Breakdowns!$C:$C,"="&$A91,Breakdowns!$AA:$AA,"=No"),SUMIFS(Breakdowns!L:L,Breakdowns!$C:$C,"="&$A91)) -> 1970 | G91: =IF($P$1,SUMIFS(Breakdowns!M:M,Breakdowns!$C:$C,"="&$A91,Breakdowns!$AA:$AA,"=No"),SUMIFS(Breakdowns!M:M,Breakdowns!$C:$C,"="&$A91)) -> 1740 | H91: =IF($P$1,SUMIFS(Breakdowns!O:O,Breakdowns!$C:$C,"="&$A91,Breakdowns!$AA:$AA,"=No"),SUMIFS(Breakdowns!O:O,Breakdowns!$C:$C,"="&$A91)) -> 8529 | I91: =IF($P$1,SUMIFS(Breakdowns!Q:Q,Breakdowns!$C:$C,"="&$A91,Breakdowns!$AA:$AA,"=No"),SUMIFS(Breakdowns!Q:Q,Breakdowns!$C:$C,"="&$A91)) -> 10269 | J91: =IF($P$1,SUMIFS(Breakdowns!S:S,Breakdowns!$C:$C,"="&$A91,Breakdowns!$AA:$AA,"=No"),SUMIFS(Breakdowns!S:S,Breakdowns!$C:$C,"="&$A91)) -> 83169542 | K91: =IF($P$1,SUMIFS(Breakdowns!U:U,Breakdowns!$C:$C,"="&$A91,Breakdowns!$AA:$AA,"=No"),SUMIFS(Breakdowns!U:U,Breakdowns!$C:$C,"="&$A91)) -> 67930855 | L91: =IF($P$1,SUMIFS(Breakdowns!W:W,Breakdowns!$C:$C,"="&$A91,Breakdowns!$AA:$AA,"=No"),SUMIFS(Breakdowns!W:W,Breakdowns!$C:$C,"="&$A91)) -> 2083689 | M91: =IF($P$1,SUMIFS(Breakdowns!Y:Y,Breakdowns!$C:$C,"="&$A91,Breakdowns!$AA:$AA,"=No"),SUMIFS(Breakdowns!Y:Y,Breakdowns!$C:$C,"="&$A91)) -> 2056357
A92: MO | B92: Missouri | F92: =IF($P$1,SUMIFS(Breakdowns!L:L,Breakdowns!$C:$C,"="&$A92,Breakdowns!$AA:$AA,"=No"),SUMIFS(Breakdowns!L:L,Breakdowns!$C:$C,"="&$A92)) -> 818 | G92: =IF($P$1,SUMIFS(Breakdowns!M:M,Breakdowns!$C:$C,"="&$A92,Breakdowns!$AA:$AA,"=No"),SUMIFS(Breakdowns!M:M,Breakdowns!$C:$C,"="&$A92)) -> 1838 | H92: =IF($P$1,SUMIFS(Breakdowns!O:O,Breakdowns!$C:$C,"="&$A92,Breakdowns!$AA:$AA,"=No"),SUMIFS(Breakdowns!O:O,Breakdowns!$C:$C,"="&$A92)) -> 874 | I92: =IF($P$1,SUMIFS(Breakdowns!Q:Q,Breakdowns!$C:$C,"="&$A92,Breakdowns!$AA:$AA,"=No"),SUMIFS(Breakdowns!Q:Q,Breakdowns!$C:$C,"="&$A92)) -> 2712 | J92: =IF($P$1,SUMIFS(Breakdowns!S:S,Breakdowns!$C:$C,"="&$A92,Breakdowns!$AA:$AA,"=No"),SUMIFS(Breakdowns!S:S,Breakdowns!$C:$C,"="&$A92)) -> 48284173 | K92: =IF($P$1,SUMIFS(Breakdowns!U:U,Breakdowns!$C:$C,"="&$A92,Breakdowns!$AA:$AA,"=No"),SUMIFS(Breakdowns!U:U,Breakdowns!$C:$C,"="&$A92)) -> 43602025 | L92: =IF($P$1,SUMIFS(Breakdowns!W:W,Breakdowns!$C:$C,"="&$A92,Breakdowns!$AA:$AA,"=No"),SUMIFS(Breakdowns!W:W,Breakdowns!$C:$C,"="&$A92)) -> 3150960 | M92: =IF($P$1,SUMIFS(Breakdowns!Y:Y,Breakdowns!$C:$C,"="&$A92,Breakdowns!$AA:$AA,"=No"),SUMIFS(Breakdowns!Y:Y,Breakdowns!$C:$C,"="&$A92)) -> 3123475
A93: MP | B93: Northern Marianas | F93: =IF($P$1,SUMIFS(Breakdowns!L:L,Breakdowns!$C:$C,"="&$A93,Breakdowns!$AA:$AA,"=No"),SUMIFS(Breakdowns!L:L,Breakdowns!$C:$C,"="&$A93)) -> 0 | G93: =IF($P$1,SUMIFS(Breakdowns!M:M,Breakdowns!$C:$C,"="&$A93,Breakdowns!$AA:$AA,"=No"),SUMIFS(Breakdowns!M:M,Breakdowns!$C:$C,"="&$A93)) -> 0 | H93: =IF($P$1,SUMIFS(Breakdowns!O:O,Breakdowns!$C:$C,"="&$A93,Breakdowns!$AA:$AA,"=No"),SUMIFS(Breakdowns!O:O,Breakdowns!$C:$C,"="&$A93)) -> 0 | I93: =IF($P$1,SUMIFS(Breakdowns!Q:Q,Breakdowns!$C:$C,"="&$A93,Breakdowns!$AA:$AA,"=No"),SUMIFS(Breakdowns!Q:Q,Breakdowns!$C:$C,"="&$A93)) -> 0 | J93: =IF($P$1,SUMIFS(Breakdowns!S:S,Breakdowns!$C:$C,"="&$A93,Breakdowns!$AA:$AA,"=No"),SUMIFS(Breakdowns!S:S,Breakdowns!$C:$C,"="&$A93)) -> 0 | K93: =IF($P$1,SUMIFS(Breakdowns!U:U,Breakdowns!$C:$C,"="&$A93,Breakdowns!$AA:$AA,"=No"),SUMIFS(Breakdowns!U:U,Breakdowns!$C:$C,"="&$A93)) -> 0 | L93: =IF($P$1,SUMIFS(Breakdowns!W:W,Breakdowns!$C:$C,"="&$A93,Breakdowns!$AA:$AA,"=No"),SUMIFS(Breakdowns!W:W,Breakdowns!$C:$C,"="&$A93)) -> 0 | M93: =IF($P$1,SUMIFS(Breakdowns!Y:Y,Breakdowns!$C:$C,"="&$A93,Breakdowns!$AA:$AA,"=No"),SUMIFS(Breakdowns!Y:Y,Breakdowns!$C:$C,"="&$A93)) -> 0
A94: MS | B94: Mississippi | F94: =IF($P$1,SUMIFS(Breakdowns!L:L,Breakdowns!$C:$C,"="&$A94,Breakdowns!$AA:$AA,"=No"),SUMIFS(Breakdowns!L:L,Breakdowns!$C:$C,"="&$A94)) -> 106 | G94: =IF($P$1,SUMIFS(Breakdowns!M:M,Breakdowns!$C:$C,"="&$A94,Breakdowns!$AA:$AA,"=No"),SUMIFS(Breakdowns!M:M,Breakdowns!$C:$C,"="&$A94)) -> 261 | H94: =IF($P$1,SUMIFS(Breakdowns!O:O,Breakdowns!$C:$C,"="&$A94,Breakdowns!$AA:$AA,"=No"),SUMIFS(Breakdowns!O:O,Breakdowns!$C:$C,"="&$A94)) -> 800 | I94: =IF($P$1,SUMIFS(Breakdowns!Q:Q,Breakdowns!$C:$C,"="&$A94,Breakdowns!$AA:$AA,"=No"),SUMIFS(Breakdowns!Q:Q,Breakdowns!$C:$C,"="&$A94)) -> 1061 | J94: =IF($P$1,SUMIFS(Breakdowns!S:S,Breakdowns!$C:$C,"="&$A94,Breakdowns!$AA:$AA,"=No"),SUMIFS(Breakdowns!S:S,Breakdowns!$C:$C,"="&$A94)) -> 3353509 | K94: =IF($P$1,SUMIFS(Breakdowns!U:U,Breakdowns!$C:$C,"="&$A94,Breakdowns!$AA:$AA,"=No"),SUMIFS(Breakdowns!U:U,Breakdowns!$C:$C,"="&$A94)) -> 3185307 | L94: =IF($P$1,SUMIFS(Breakdowns!W:W,Breakdowns!$C:$C,"="&$A94,Breakdowns!$AA:$AA,"=No"),SUMIFS(Breakdowns!W:W,Breakdowns!$C:$C,"="&$A94)) -> 0 | M94: =IF($P$1,SUMIFS(Breakdowns!Y:Y,Breakdowns!$C:$C,"="&$A94,Breakdowns!$AA:$AA,"=No"),SUMIFS(Breakdowns!Y:Y,Breakdowns!$C:$C,"="&$A94)) -> 0
A95: MT | B95: Montana | F95: =IF($P$1,SUMIFS(Breakdowns!L:L,Breakdowns!$C:$C,"="&$A95,Breakdowns!$AA:$AA,"=No"),SUMIFS(Breakdowns!L:L,Breakdowns!$C:$C,"="&$A95)) -> 85 | G95: =IF($P$1,SUMIFS(Breakdowns!M:M,Breakdowns!$C:$C,"="&$A95,Breakdowns!$AA:$AA,"=No"),SUMIFS(Breakdowns!M:M,Breakdowns!$C:$C,"="&$A95)) -> 390 | H95: =IF($P$1,SUMIFS(Breakdowns!O:O,Breakdowns!$C:$C,"="&$A95,Breakdowns!$AA:$AA,"=No"),SUMIFS(Breakdowns!O:O,Breakdowns!$C:$C,"="&$A95)) -> 367 | I95: =IF($P$1,SUMIFS(Breakdowns!Q:Q,Breakdowns!$C:$C,"="&$A95,Breakdowns!$AA:$AA,"=No"),SUMIFS(Breakdowns!Q:Q,Breakdowns!$C:$C,"="&$A95)) -> 757 | J95: =IF($P$1,SUMIFS(Breakdowns!S:S,Breakdowns!$C:$C,"="&$A95,Breakdowns!$AA:$AA,"=No"),SUMIFS(Breakdowns!S:S,Breakdowns!$C:$C,"="&$A95)) -> 2357811 | K95: =IF($P$1,SUMIFS(Breakdowns!U:U,Breakdowns!$C:$C,"="&$A95,Breakdowns!$AA:$AA,"=No"),SUMIFS(Breakdowns!U:U,Breakdowns!$C:$C,"="&$A95)) -> 2160134 | L95: =IF($P$1,SUMIFS(Breakdowns!W:W,Breakdowns!$C:$C,"="&$A95,Breakdowns!$AA:$AA,"=No"),SUMIFS(Breakdowns!W:W,Breakdowns!$C:$C,"="&$A95)) -> 0 | M95: =IF($P$1,SUMIFS(Breakdowns!Y:Y,Breakdowns!$C:$C,"="&$A95,Breakdowns!$AA:$AA,"=No"),SUMIFS(Breakdowns!Y:Y,Breakdowns!$C:$C,"="&$A95)) -> 0
A96: NC | B96: North Carolina | F96: =IF($P$1,SUMIFS(Breakdowns!L:L,Breakdowns!$C:$C,"="&$A96,Breakdowns!$AA:$AA,"=No"),SUMIFS(Breakdowns!L:L,Breakdowns!$C:$C,"="&$A96)) -> 1317 | G96: =IF($P$1,SUMIFS(Breakdowns!M:M,Breakdowns!$C:$C,"="&$A96,Breakdowns!$AA:$AA,"=No"),SUMIFS(Breakdowns!M:M,Breakdowns!$C:$C,"="&$A96)) -> 2759 | H96: =IF($P$1,SUMIFS(Breakdowns!O:O,Breakdowns!$C:$C,"="&$A96,Breakdowns!$AA:$AA,"=No"),SUMIFS(Breakdowns!O:O,Breakdowns!$C:$C,"="&$A96)) -> 8590 | I96: =IF($P$1,SUMIFS(Breakdowns!Q:Q,Breakdowns!$C:$C,"="&$A96,Breakdowns!$AA:$AA,"=No"),SUMIFS(Breakdowns!Q:Q,Breakdowns!$C:$C,"="&$A96)) -> 11349 | J96: =IF($P$1,SUMIFS(Breakdowns!S:S,Breakdowns!$C:$C,"="&$A96,Breakdowns!$AA:$AA,"=No"),SUMIFS(Breakdowns!S:S,Breakdowns!$C:$C,"="&$A96)) -> 53204490 | K96: =IF($P$1,SUMIFS(Breakdowns!U:U,Breakdowns!$C:$C,"="&$A96,Breakdowns!$AA:$AA,"=No"),SUMIFS(Breakdowns!U:U,Breakdowns!$C:$C,"="&$A96)) -> 47968583 | L96: =IF($P$1,SUMIFS(Breakdowns!W:W,Breakdowns!$C:$C,"="&$A96,Breakdowns!$AA:$AA,"=No"),SUMIFS(Breakdowns!W:W,Breakdowns!$C:$C,"="&$A96)) -> 528350 | M96: =IF($P$1,SUMIFS(Breakdowns!Y:Y,Breakdowns!$C:$C,"="&$A96,Breakdowns!$AA:$AA,"=No"),SUMIFS(Breakdowns!Y:Y,Breakdowns!$C:$C,"="&$A96)) -> 509574
A97: ND | B97: North Dakota | F97: =IF($P$1,SUMIFS(Breakdowns!L:L,Breakdowns!$C:$C,"="&$A97,Breakdowns!$AA:$AA,"=No"),SUMIFS(Breakdowns!L:L,Breakdowns!$C:$C,"="&$A97)) -> 54 | G97: =IF($P$1,SUMIFS(Breakdowns!M:M,Breakdowns!$C:$C,"="&$A97,Breakdowns!$AA:$AA,"=No"),SUMIFS(Breakdowns!M:M,Breakdowns!$C:$C,"="&$A97)) -> 41 | H97: =IF($P$1,SUMIFS(Breakdowns!O:O,Breakdowns!$C:$C,"="&$A97,Breakdowns!$AA:$AA,"=No"),SUMIFS(Breakdowns!O:O,Breakdowns!$C:$C,"="&$A97)) -> 221 | I97: =IF($P$1,SUMIFS(Breakdowns!Q:Q,Breakdowns!$C:$C,"="&$A97,Breakdowns!$AA:$AA,"=No"),SUMIFS(Breakdowns!Q:Q,Breakdowns!$C:$C,"="&$A97)) -> 262 | J97: =IF($P$1,SUMIFS(Breakdowns!S:S,Breakdowns!$C:$C,"="&$A97,Breakdowns!$AA:$AA,"=No"),SUMIFS(Breakdowns!S:S,Breakdowns!$C:$C,"="&$A97)) -> 1925520 | K97: =IF($P$1,SUMIFS(Breakdowns!U:U,Breakdowns!$C:$C,"="&$A97,Breakdowns!$AA:$AA,"=No"),SUMIFS(Breakdowns!U:U,Breakdowns!$C:$C,"="&$A97)) -> 1816959 | L97: =IF($P$1,SUMIFS(Breakdowns!W:W,Breakdowns!$C:$C,"="&$A97,Breakdowns!$AA:$AA,"=No"),SUMIFS(Breakdowns!W:W,Breakdowns!$C:$C,"="&$A97)) -> 0 | M97: =IF($P$1,SUMIFS(Breakdowns!Y:Y,Breakdowns!$C:$C,"="&$A97,Breakdowns!$AA:$AA,"=No"),SUMIFS(Breakdowns!Y:Y,Breakdowns!$C:$C,"="&$A97)) -> 0
A98: NE | B98: Nebraska | F98: =IF($P$1,SUMIFS(Breakdowns!L:L,Breakdowns!$C:$C,"="&$A98,Breakdowns!$AA:$AA,"=No"),SUMIFS(Breakdowns!L:L,Breakdowns!$C:$C,"="&$A98)) -> 190 | G98: =IF($P$1,SUMIFS(Breakdowns!M:M,Breakdowns!$C:$C,"="&$A98,Breakdowns!$AA:$AA,"=No"),SUMIFS(Breakdowns!M:M,Breakdowns!$C:$C,"="&$A98)) -> 526 | H98: =IF($P$1,SUMIFS(Breakdowns!O:O,Breakdowns!$C:$C,"="&$A98,Breakdowns!$AA:$AA,"=No"),SUMIFS(Breakdowns!O:O,Breakdowns!$C:$C,"="&$A98)) -> 3009 | I98: =IF($P$1,SUMIFS(Breakdowns!Q:Q,Breakdowns!$C:$C,"="&$A98,Breakdowns!$AA:$AA,"=No"),SUMIFS(Breakdowns!Q:Q,Breakdowns!$C:$C,"="&$A98)) -> 3535 | J98: =IF($P$1,SUMIFS(Breakdowns!S:S,Breakdowns!$C:$C,"="&$A98,Breakdowns!$AA:$AA,"=No"),SUMIFS(Breakdowns!S:S,Breakdowns!$C:$C,"="&$A98)) -> 6737570 | K98: =IF($P$1,SUMIFS(Breakdowns!U:U,Breakdowns!$C:$C,"="&$A98,Breakdowns!$AA:$AA,"=No"),SUMIFS(Breakdowns!U:U,Breakdowns!$C:$C,"="&$A98)) -> 6527393 | L98: =IF($P$1,SUMIFS(Breakdowns!W:W,Breakdowns!$C:$C,"="&$A98,Breakdowns!$AA:$AA,"=No"),SUMIFS(Breakdowns!W:W,Breakdowns!$C:$C,"="&$A98)) -> 0 | M98: =IF($P$1,SUMIFS(Breakdowns!Y:Y,Breakdowns!$C:$C,"="&$A98,Breakdowns!$AA:$AA,"=No"),SUMIFS(Breakdowns!Y:Y,Breakdowns!$C:$C,"="&$A98)) -> 0
A99: NH | B99: New Hampshire | F99: =IF($P$1,SUMIFS(Breakdowns!L:L,Breakdowns!$C:$C,"="&$A99,Breakdowns!$AA:$AA,"=No"),SUMIFS(Breakdowns!L:L,Breakdowns!$C:$C,"="&$A99)) -> 57 | G99: =IF($P$1,SUMIFS(Breakdowns!M:M,Breakdowns!$C:$C,"="&$A99,Breakdowns!$AA:$AA,"=No"),SUMIFS(Breakdowns!M:M,Breakdowns!$C:$C,"="&$A99)) -> 143 | H99: =IF($P$1,SUMIFS(Breakdowns!O:O,Breakdowns!$C:$C,"="&$A99,Breakdowns!$AA:$AA,"=No"),SUMIFS(Breakdowns!O:O,Breakdowns!$C:$C,"="&$A99)) -> 427 | I99: =IF($P$1,SUMIFS(Breakdowns!Q:Q,Breakdowns!$C:$C,"="&$A99,Breakdowns!$AA:$AA,"=No"),SUMIFS(Breakdowns!Q:Q,Breakdowns!$C:$C,"="&$A99)) -> 570 | J99: =IF($P$1,SUMIFS(Breakdowns!S:S,Breakdowns!$C:$C,"="&$A99,Breakdowns!$AA:$AA,"=No"),SUMIFS(Breakdowns!S:S,Breakdowns!$C:$C,"="&$A99)) -> 2240514 | K99: =IF($P$1,SUMIFS(Breakdowns!U:U,Breakdowns!$C:$C,"="&$A99,Breakdowns!$AA:$AA,"=No"),SUMIFS(Breakdowns!U:U,Breakdowns!$C:$C,"="&$A99)) -> 2008546 | L99: =IF($P$1,SUMIFS(Breakdowns!W:W,Breakdowns!$C:$C,"="&$A99,Breakdowns!$AA:$AA,"=No"),SUMIFS(Breakdowns!W:W,Breakdowns!$C:$C,"="&$A99)) -> 0 | M99: =IF($P$1,SUMIFS(Breakdowns!Y:Y,Breakdowns!$C:$C,"="&$A99,Breakdowns!$AA:$AA,"=No"),SUMIFS(Breakdowns!Y:Y,Breakdowns!$C:$C,"="&$A99)) -> 0
A100: NJ | B100: New Jersey | F100: =IF($P$1,SUMIFS(Breakdowns!L:L,Breakdowns!$C:$C,"="&$A100,Breakdowns!$AA:$AA,"=No"),SUMIFS(Breakdowns!L:L,Breakdowns!$C:$C,"="&$A100)) -> 5517 | G100: =IF($P$1,SUMIFS(Breakdowns!M:M,Breakdowns!$C:$C,"="&$A100,Breakdowns!$AA:$AA,"=No"),SUMIFS(Breakdowns!M:M,Breakdowns!$C:$C,"="&$A100)) -> 8533 | H100: =IF($P$1,SUMIFS(Breakdowns!O:O,Breakdowns!$C:$C,"="&$A100,Breakdowns!$AA:$AA,"=No"),SUMIFS(Breakdowns!O:O,Breakdowns!$C:$C,"="&$A100)) -> 6725 | I100: =IF($P$1,SUMIFS(Breakdowns!Q:Q,Breakdowns!$C:$C,"="&$A100,Breakdowns!$AA:$AA,"=No"),SUMIFS(Breakdowns!Q:Q,Breakdowns!$C:$C,"="&$A100)) -> 15258 | J100: =IF($P$1,SUMIFS(Breakdowns!S:S,Breakdowns!$C:$C,"="&$A100,Breakdowns!$AA:$AA,"=No"),SUMIFS(Breakdowns!S:S,Breakdowns!$C:$C,"="&$A100)) -> 256934197 | K100: =IF($P$1,SUMIFS(Breakdowns!U:U,Breakdowns!$C:$C,"="&$A100,Breakdowns!$AA:$AA,"=No"),SUMIFS(Breakdowns!U:U,Breakdowns!$C:$C,"="&$A100)) -> 219430847 | L100: =IF($P$1,SUMIFS(Breakdowns!W:W,Breakdowns!$C:$C,"="&$A100,Breakdowns!$AA:$AA,"=No"),SUMIFS(Breakdowns!W:W,Breakdowns!$C:$C,"="&$A100)) -> 15299033 | M100: =IF($P$1,SUMIFS(Breakdowns!Y:Y,Breakdowns!$C:$C,"="&$A100,Breakdowns!$AA:$AA,"=No"),SUMIFS(Breakdowns!Y:Y,Breakdowns!$C:$C,"="&$A100)) -> 14586746
A101: NM | B101: New Mexico | F101: =IF($P$1,SUMIFS(Breakdowns!L:L,Breakdowns!$C:$C,"="&$A101,Breakdowns!$AA:$AA,"=No"),SUMIFS(Breakdowns!L:L,Breakdowns!$C:$C,"="&$A101)) -> 280 | G101: =IF($P$1,SUMIFS(Breakdowns!M:M,Breakdowns!$C:$C,"="&$A101,Breakdowns!$AA:$AA,"=No"),SUMIFS(Breakdowns!M:M,Breakdowns!$C:$C,"="&$A101)) -> 209 | H101: =IF($P$1,SUMIFS(Breakdowns!O:O,Breakdowns!$C:$C,"="&$A101,Breakdowns!$AA:$AA,"=No"),SUMIFS(Breakdowns!O:O,Breakdowns!$C:$C,"="&$A101)) -> 414 | I101: =IF($P$1,SUMIFS(Breakdowns!Q:Q,Breakdowns!$C:$C,"="&$A101,Breakdowns!$AA:$AA,"=No"),SUMIFS(Breakdowns!Q:Q,Breakdowns!$C:$C,"="&$A101)) -> 623 | J101: =IF($P$1,SUMIFS(Breakdowns!S:S,Breakdowns!$C:$C,"="&$A101,Breakdowns!$AA:$AA,"=No"),SUMIFS(Breakdowns!S:S,Breakdowns!$C:$C,"="&$A101)) -> 12187976 | K101: =IF($P$1,SUMIFS(Breakdowns!U:U,Breakdowns!$C:$C,"="&$A101,Breakdowns!$AA:$AA,"=No"),SUMIFS(Breakdowns!U:U,Breakdowns!$C:$C,"="&$A101)) -> 10580266 | L101: =IF($P$1,SUMIFS(Breakdowns!W:W,Breakdowns!$C:$C,"="&$A101,Breakdowns!$AA:$AA,"=No"),SUMIFS(Breakdowns!W:W,Breakdowns!$C:$C,"="&$A101)) -> 528063 | M101: =IF($P$1,SUMIFS(Breakdowns!Y:Y,Breakdowns!$C:$C,"="&$A101,Breakdowns!$AA:$AA,"=No"),SUMIFS(Breakdowns!Y:Y,Breakdowns!$C:$C,"="&$A101)) -> 517423
A102: NV | B102: Nevada | F102: =IF($P$1,SUMIFS(Breakdowns!L:L,Breakdowns!$C:$C,"="&$A102,Breakdowns!$AA:$AA,"=No"),SUMIFS(Breakdowns!L:L,Breakdowns!$C:$C,"="&$A102)) -> 882 | G102: =IF($P$1,SUMIFS(Breakdowns!M:M,Breakdowns!$C:$C,"="&$A102,Breakdowns!$AA:$AA,"=No"),SUMIFS(Breakdowns!M:M,Breakdowns!$C:$C,"="&$A102)) -> 1311 | H102: =IF($P$1,SUMIFS(Breakdowns!O:O,Breakdowns!$C:$C,"="&$A102,Breakdowns!$AA:$AA,"=No"),SUMIFS(Breakdowns!O:O,Breakdowns!$C:$C,"="&$A102)) -> 1049 | I102: =IF($P$1,SUMIFS(Breakdowns!Q:Q,Breakdowns!$C:$C,"="&$A102,Breakdowns!$AA:$AA,"=No"),SUMIFS(Breakdowns!Q:Q,Breakdowns!$C:$C,"="&$A102)) -> 2360 | J102: =IF($P$1,SUMIFS(Breakdowns!S:S,Breakdowns!$C:$C,"="&$A102,Breakdowns!$AA:$AA,"=No"),SUMIFS(Breakdowns!S:S,Breakdowns!$C:$C,"="&$A102)) -> 36470322 | K102: =IF($P$1,SUMIFS(Breakdowns!U:U,Breakdowns!$C:$C,"="&$A102,Breakdowns!$AA:$AA,"=No"),SUMIFS(Breakdowns!U:U,Breakdowns!$C:$C,"="&$A102)) -> 32824812 | L102: =IF($P$1,SUMIFS(Breakdowns!W:W,Breakdowns!$C:$C,"="&$A102,Breakdowns!$AA:$AA,"=No"),SUMIFS(Breakdowns!W:W,Breakdowns!$C:$C,"="&$A102)) -> 444665 | M102: =IF($P$1,SUMIFS(Breakdowns!Y:Y,Breakdowns!$C:$C,"="&$A102,Breakdowns!$AA:$AA,"=No"),SUMIFS(Breakdowns!Y:Y,Breakdowns!$C:$C,"="&$A102)) -> 441680
A103: NY | B103: New York | F103: =IF($P$1,SUMIFS(Breakdowns!L:L,Breakdowns!$C:$C,"="&$A103,Breakdowns!$AA:$AA,"=No"),SUMIFS(Breakdowns!L:L,Breakdowns!$C:$C,"="&$A103)) -> 16859 | G103: =IF($P$1,SUMIFS(Breakdowns!M:M,Breakdowns!$C:$C,"="&$A103,Breakdowns!$AA:$AA,"=No"),SUMIFS(Breakdowns!M:M,Breakdowns!$C:$C,"="&$A103)) -> 34991 | H103: =IF($P$1,SUMIFS(Breakdowns!O:O,Breakdowns!$C:$C,"="&$A103,Breakdowns!$AA:$AA,"=No"),SUMIFS(Breakdowns!O:O,Breakdowns!$C:$C,"="&$A103)) -> 30053 | I103: =IF($P$1,SUMIFS(Breakdowns!Q:Q,Breakdowns!$C:$C,"="&$A103,Breakdowns!$AA:$AA,"=No"),SUMIFS(Breakdowns!Q:Q,Breakdowns!$C:$C,"="&$A103)) -> 65044 | J103: =IF($P$1,SUMIFS(Breakdowns!S:S,Breakdowns!$C:$C,"="&$A103,Breakdowns!$AA:$AA,"=No"),SUMIFS(Breakdowns!S:S,Breakdowns!$C:$C,"="&$A103)) -> 838811535 | K103: =IF($P$1,SUMIFS(Breakdowns!U:U,Breakdowns!$C:$C,"="&$A103,Breakdowns!$AA:$AA,"=No"),SUMIFS(Breakdowns!U:U,Breakdowns!$C:$C,"="&$A103)) -> 755117022 | L103: =IF($P$1,SUMIFS(Breakdowns!W:W,Breakdowns!$C:$C,"="&$A103,Breakdowns!$AA:$AA,"=No"),SUMIFS(Breakdowns!W:W,Breakdowns!$C:$C,"="&$A103)) -> 59612344 | M103: =IF($P$1,SUMIFS(Breakdowns!Y:Y,Breakdowns!$C:$C,"="&$A103,Breakdowns!$AA:$AA,"=No"),SUMIFS(Breakdowns!Y:Y,Breakdowns!$C:$C,"="&$A103)) -> 56119562
A104: OH | B104: Ohio | F104: =IF($P$1,SUMIFS(Breakdowns!L:L,Breakdowns!$C:$C,"="&$A104,Breakdowns!$AA:$AA,"=No"),SUMIFS(Breakdowns!L:L,Breakdowns!$C:$C,"="&$A104)) -> 2334 | G104: =IF($P$1,SUMIFS(Breakdowns!M:M,Breakdowns!$C:$C,"="&$A104,Breakdowns!$AA:$AA,"=No"),SUMIFS(Breakdowns!M:M,Breakdowns!$C:$C,"="&$A104)) -> 10689 | H104: =IF($P$1,SUMIFS(Breakdowns!O:O,Breakdowns!$C:$C,"="&$A104,Breakdowns!$AA:$AA,"=No"),SUMIFS(Breakdowns!O:O,Breakdowns!$C:$C,"="&$A104)) -> 5316 | I104: =IF($P$1,SUMIFS(Breakdowns!Q:Q,Breakdowns!$C:$C,"="&$A104,Breakdowns!$AA:$AA,"=No"),SUMIFS(Breakdowns!Q:Q,Breakdowns!$C:$C,"="&$A104)) -> 16005 | J104: =IF($P$1,SUMIFS(Breakdowns!S:S,Breakdowns!$C:$C,"="&$A104,Breakdowns!$AA:$AA,"=No"),SUMIFS(Breakdowns!S:S,Breakdowns!$C:$C,"="&$A104)) -> 98094078 | K104: =IF($P$1,SUMIFS(Breakdowns!U:U,Breakdowns!$C:$C,"="&$A104,Breakdowns!$AA:$AA,"=No"),SUMIFS(Breakdowns!U:U,Breakdowns!$C:$C,"="&$A104)) -> 84912865 | L104: =IF($P$1,SUMIFS(Breakdowns!W:W,Breakdowns!$C:$C,"="&$A104,Breakdowns!$AA:$AA,"=No"),SUMIFS(Breakdowns!W:W,Breakdowns!$C:$C,"="&$A104)) -> 2098418 | M104: =IF($P$1,SUMIFS(Breakdowns!Y:Y,Breakdowns!$C:$C,"="&$A104,Breakdowns!$AA:$AA,"=No"),SUMIFS(Breakdowns!Y:Y,Breakdowns!$C:$C,"="&$A104)) -> 2079781
A105: OK | B105: Oklahoma | F105: =IF($P$1,SUMIFS(Breakdowns!L:L,Breakdowns!$C:$C,"="&$A105,Breakdowns!$AA:$AA,"=No"),SUMIFS(Breakdowns!L:L,Breakdowns!$C:$C,"="&$A105)) -> 167 | G105: =IF($P$1,SUMIFS(Breakdowns!M:M,Breakdowns!$C:$C,"="&$A105,Breakdowns!$AA:$AA,"=No"),SUMIFS(Breakdowns!M:M,Breakdowns!$C:$C,"="&$A105)) -> 404 | H105: =IF($P$1,SUMIFS(Breakdowns!O:O,Breakdowns!$C:$C,"="&$A105,Breakdowns!$AA:$AA,"=No"),SUMIFS(Breakdowns!O:O,Breakdowns!$C:$C,"="&$A105)) -> 217 | I105: =IF($P$1,SUMIFS(Breakdowns!Q:Q,Breakdowns!$C:$C,"="&$A105,Breakdowns!$AA:$AA,"=No"),SUMIFS(Breakdowns!Q:Q,Breakdowns!$C:$C,"="&$A105)) -> 621 | J105: =IF($P$1,SUMIFS(Breakdowns!S:S,Breakdowns!$C:$C,"="&$A105,Breakdowns!$AA:$AA,"=No"),SUMIFS(Breakdowns!S:S,Breakdowns!$C:$C,"="&$A105)) -> 7544779 | K105: =IF($P$1,SUMIFS(Breakdowns!U:U,Breakdowns!$C:$C,"="&$A105,Breakdowns!$AA:$AA,"=No"),SUMIFS(Breakdowns!U:U,Breakdowns!$C:$C,"="&$A105)) -> 7122027 | L105: =IF($P$1,SUMIFS(Breakdowns!W:W,Breakdowns!$C:$C,"="&$A105,Breakdowns!$AA:$AA,"=No"),SUMIFS(Breakdowns!W:W,Breakdowns!$C:$C,"="&$A105)) -> 0 | M105: =IF($P$1,SUMIFS(Breakdowns!Y:Y,Breakdowns!$C:$C,"="&$A105,Breakdowns!$AA:$AA,"=No"),SUMIFS(Breakdowns!Y:Y,Breakdowns!$C:$C,"="&$A105)) -> 0
A106: OR | B106: Oregon | F106: =IF($P$1,SUMIFS(Breakdowns!L:L,Breakdowns!$C:$C,"="&$A106,Breakdowns!$AA:$AA,"=No"),SUMIFS(Breakdowns!L:L,Breakdowns!$C:$C,"="&$A106)) -> 1383 | G106: =IF($P$1,SUMIFS(Breakdowns!M:M,Breakdowns!$C:$C,"="&$A106,Breakdowns!$AA:$AA,"=No"),SUMIFS(Breakdowns!M:M,Breakdowns!$C:$C,"="&$A106)) -> 2867 | H106: =IF($P$1,SUMIFS(Breakdowns!O:O,Breakdowns!$C:$C,"="&$A106,Breakdowns!$AA:$AA,"=No"),SUMIFS(Breakdowns!O:O,Breakdowns!$C:$C,"="&$A106)) -> 6249 | I106: =IF($P$1,SUMIFS(Breakdowns!Q:Q,Breakdowns!$C:$C,"="&$A106,Breakdowns!$AA:$AA,"=No"),SUMIFS(Breakdowns!Q:Q,Breakdowns!$C:$C,"="&$A106)) -> 9116 | J106: =IF($P$1,SUMIFS(Breakdowns!S:S,Breakdowns!$C:$C,"="&$A106,Breakdowns!$AA:$AA,"=No"),SUMIFS(Breakdowns!S:S,Breakdowns!$C:$C,"="&$A106)) -> 56579469 | K106: =IF($P$1,SUMIFS(Breakdowns!U:U,Breakdowns!$C:$C,"="&$A106,Breakdowns!$AA:$AA,"=No"),SUMIFS(Breakdowns!U:U,Breakdowns!$C:$C,"="&$A106)) -> 50675200 | L106: =IF($P$1,SUMIFS(Breakdowns!W:W,Breakdowns!$C:$C,"="&$A106,Breakdowns!$AA:$AA,"=No"),SUMIFS(Breakdowns!W:W,Breakdowns!$C:$C,"="&$A106)) -> 4454378 | M106: =IF($P$1,SUMIFS(Breakdowns!Y:Y,Breakdowns!$C:$C,"="&$A106,Breakdowns!$AA:$AA,"=No"),SUMIFS(Breakdowns!Y:Y,Breakdowns!$C:$C,"="&$A106)) -> 4395349
A107: PA | B107: Pennsylvania | F107: =IF($P$1,SUMIFS(Breakdowns!L:L,Breakdowns!$C:$C,"="&$A107,Breakdowns!$AA:$AA,"=No"),SUMIFS(Breakdowns!L:L,Breakdowns!$C:$C,"="&$A107)) -> 4764 | G107: =IF($P$1,SUMIFS(Breakdowns!M:M,Breakdowns!$C:$C,"="&$A107,Breakdowns!$AA:$AA,"=No"),SUMIFS(Breakdowns!M:M,Breakdowns!$C:$C,"="&$A107)) -> 12701 | H107: =IF($P$1,SUMIFS(Breakdowns!O:O,Breakdowns!$C:$C,"="&$A107,Breakdowns!$AA:$AA,"=No"),SUMIFS(Breakdowns!O:O,Breakdowns!$C:$C,"="&$A107)) -> 13784 | I107: =IF($P$1,SUMIFS(Breakdowns!Q:Q,Breakdowns!$C:$C,"="&$A107,Breakdowns!$AA:$AA,"=No"),SUMIFS(Breakdowns!Q:Q,Breakdowns!$C:$C,"="&$A107)) -> 26485 | J107: =IF($P$1,SUMIFS(Breakdowns!S:S,Breakdowns!$C:$C,"="&$A107,Breakdowns!$AA:$AA,"=No"),SUMIFS(Breakdowns!S:S,Breakdowns!$C:$C,"="&$A107)) -> 196575427 | K107: =IF($P$1,SUMIFS(Breakdowns!U:U,Breakdowns!$C:$C,"="&$A107,Breakdowns!$AA:$AA,"=No"),SUMIFS(Breakdowns!U:U,Breakdowns!$C:$C,"="&$A107)) -> 174769458 | L107: =IF($P$1,SUMIFS(Breakdowns!W:W,Breakdowns!$C:$C,"="&$A107,Breakdowns!$AA:$AA,"=No"),SUMIFS(Breakdowns!W:W,Breakdowns!$C:$C,"="&$A107)) -> 14576717 | M107: =IF($P$1,SUMIFS(Breakdowns!Y:Y,Breakdowns!$C:$C,"="&$A107,Breakdowns!$AA:$AA,"=No"),SUMIFS(Breakdowns!Y:Y,Breakdowns!$C:$C,"="&$A107)) -> 14023249
A108: PR | B108: Puerto Rico | F108: =IF($P$1,SUMIFS(Breakdowns!L:L,Breakdowns!$C:$C,"="&$A108,Breakdowns!$AA:$AA,"=No"),SUMIFS(Breakdowns!L:L,Breakdowns!$C:$C,"="&$A108)) -> 187 | G108: =IF($P$1,SUMIFS(Breakdowns!M:M,Breakdowns!$C:$C,"="&$A108,Breakdowns!$AA:$AA,"=No"),SUMIFS(Breakdowns!M:M,Breakdowns!$C:$C,"="&$A108)) -> 3911 | H108: =IF($P$1,SUMIFS(Breakdowns!O:O,Breakdowns!$C:$C,"="&$A108,Breakdowns!$AA:$AA,"=No"),SUMIFS(Breakdowns!O:O,Breakdowns!$C:$C,"="&$A108)) -> 2943 | I108: =IF($P$1,SUMIFS(Breakdowns!Q:Q,Breakdowns!$C:$C,"="&$A108,Breakdowns!$AA:$AA,"=No"),SUMIFS(Breakdowns!Q:Q,Breakdowns!$C:$C,"="&$A108)) -> 6854 | J108: =IF($P$1,SUMIFS(Breakdowns!S:S,Breakdowns!$C:$C,"="&$A108,Breakdowns!$AA:$AA,"=No"),SUMIFS(Breakdowns!S:S,Breakdowns!$C:$C,"="&$A108)) -> 7248777 | K108: =IF($P$1,SUMIFS(Breakdowns!U:U,Breakdowns!$C:$C,"="&$A108,Breakdowns!$AA:$AA,"=No"),SUMIFS(Breakdowns!U:U,Breakdowns!$C:$C,"="&$A108)) -> 6567587 | L108: =IF($P$1,SUMIFS(Breakdowns!W:W,Breakdowns!$C:$C,"="&$A108,Breakdowns!$AA:$AA,"=No"),SUMIFS(Breakdowns!W:W,Breakdowns!$C:$C,"="&$A108)) -> 612762 | M108: =IF($P$1,SUMIFS(Breakdowns!Y:Y,Breakdowns!$C:$C,"="&$A108,Breakdowns!$AA:$AA,"=No"),SUMIFS(Breakdowns!Y:Y,Breakdowns!$C:$C,"="&$A108)) -> 590548
A109: RI | B109: Rhode Island | F109: =IF($P$1,SUMIFS(Breakdowns!L:L,Breakdowns!$C:$C,"="&$A109,Breakdowns!$AA:$AA,"=No"),SUMIFS(Breakdowns!L:L,Breakdowns!$C:$C,"="&$A109)) -> 293 | G109: =IF($P$1,SUMIFS(Breakdowns!M:M,Breakdowns!$C:$C,"="&$A109,Breakdowns!$AA:$AA,"=No"),SUMIFS(Breakdowns!M:M,Breakdowns!$C:$C,"="&$A109)) -> 679 | H109: =IF($P$1,SUMIFS(Breakdowns!O:O,Breakdowns!$C:$C,"="&$A109,Breakdowns!$AA:$AA,"=No"),SUMIFS(Breakdowns!O:O,Breakdowns!$C:$C,"="&$A109)) -> 1264 | I109: =IF($P$1,SUMIFS(Breakdowns!Q:Q,Breakdowns!$C:$C,"="&$A109,Breakdowns!$AA:$AA,"=No"),SUMIFS(Breakdowns!Q:Q,Breakdowns!$C:$C,"="&$A109)) -> 1943 | J109: =IF($P$1,SUMIFS(Breakdowns!S:S,Breakdowns!$C:$C,"="&$A109,Breakdowns!$AA:$AA,"=No"),SUMIFS(Breakdowns!S:S,Breakdowns!$C:$C,"="&$A109)) -> 13154778 | K109: =IF($P$1,SUMIFS(Breakdowns!U:U,Breakdowns!$C:$C,"="&$A109,Breakdowns!$AA:$AA,"=No"),SUMIFS(Breakdowns!U:U,Breakdowns!$C:$C,"="&$A109)) -> 11164300 | L109: =IF($P$1,SUMIFS(Breakdowns!W:W,Breakdowns!$C:$C,"="&$A109,Breakdowns!$AA:$AA,"=No"),SUMIFS(Breakdowns!W:W,Breakdowns!$C:$C,"="&$A109)) -> 0 | M109: =IF($P$1,SUMIFS(Breakdowns!Y:Y,Breakdowns!$C:$C,"="&$A109,Breakdowns!$AA:$AA,"=No"),SUMIFS(Breakdowns!Y:Y,Breakdowns!$C:$C,"="&$A109)) -> 0
A110: SC | B110: South Carolina | F110: =IF($P$1,SUMIFS(Breakdowns!L:L,Breakdowns!$C:$C,"="&$A110,Breakdowns!$AA:$AA,"=No"),SUMIFS(Breakdowns!L:L,Breakdowns!$C:$C,"="&$A110)) -> 274 | G110: =IF($P$1,SUMIFS(Breakdowns!M:M,Breakdowns!$C:$C,"="&$A110,Breakdowns!$AA:$AA,"=No"),SUMIFS(Breakdowns!M:M,Breakdowns!$C:$C,"="&$A110)) -> 864 | H110: =IF($P$1,SUMIFS(Breakdowns!O:O,Breakdowns!$C:$C,"="&$A110,Breakdowns!$AA:$AA,"=No"),SUMIFS(Breakdowns!O:O,Breakdowns!$C:$C,"="&$A110)) -> 2095 | I110: =IF($P$1,SUMIFS(Breakdowns!Q:Q,Breakdowns!$C:$C,"="&$A110,Breakdowns!$AA:$AA,"=No"),SUMIFS(Breakdowns!Q:Q,Breakdowns!$C:$C,"="&$A110)) -> 2959 | J110: =IF($P$1,SUMIFS(Breakdowns!S:S,Breakdowns!$C:$C,"="&$A110,Breakdowns!$AA:$AA,"=No"),SUMIFS(Breakdowns!S:S,Breakdowns!$C:$C,"="&$A110)) -> 11225455 | K110: =IF($P$1,SUMIFS(Breakdowns!U:U,Breakdowns!$C:$C,"="&$A110,Breakdowns!$AA:$AA,"=No"),SUMIFS(Breakdowns!U:U,Breakdowns!$C:$C,"="&$A110)) -> 10148352 | L110: =IF($P$1,SUMIFS(Breakdowns!W:W,Breakdowns!$C:$C,"="&$A110,Breakdowns!$AA:$AA,"=No"),SUMIFS(Breakdowns!W:W,Breakdowns!$C:$C,"="&$A110)) -> 0 | M110: =IF($P$1,SUMIFS(Breakdowns!Y:Y,Breakdowns!$C:$C,"="&$A110,Breakdowns!$AA:$AA,"=No"),SUMIFS(Breakdowns!Y:Y,Breakdowns!$C:$C,"="&$A110)) -> 0
A111: SD | B111: South Dakota | F111: =IF($P$1,SUMIFS(Breakdowns!L:L,Breakdowns!$C:$C,"="&$A111,Breakdowns!$AA:$AA,"=No"),SUMIFS(Breakdowns!L:L,Breakdowns!$C:$C,"="&$A111)) -> 42 | G111: =IF($P$1,SUMIFS(Breakdowns!M:M,Breakdowns!$C:$C,"="&$A111,Breakdowns!$AA:$AA,"=No"),SUMIFS(Breakdowns!M:M,Breakdowns!$C:$C,"="&$A111)) -> 39 | H111: =IF($P$1,SUMIFS(Breakdowns!O:O,Breakdowns!$C:$C,"="&$A111,Breakdowns!$AA:$AA,"=No"),SUMIFS(Breakdowns!O:O,Breakdowns!$C:$C,"="&$A111)) -> 83 | I111: =IF($P$1,SUMIFS(Breakdowns!Q:Q,Breakdowns!$C:$C,"="&$A111,Breakdowns!$AA:$AA,"=No"),SUMIFS(Breakdowns!Q:Q,Breakdowns!$C:$C,"="&$A111)) -> 122 | J111: =IF($P$1,SUMIFS(Breakdowns!S:S,Breakdowns!$C:$C,"="&$A111,Breakdowns!$AA:$AA,"=No"),SUMIFS(Breakdowns!S:S,Breakdowns!$C:$C,"="&$A111)) -> 1379922 | K111: =IF($P$1,SUMIFS(Breakdowns!U:U,Breakdowns!$C:$C,"="&$A111,Breakdowns!$AA:$AA,"=No"),SUMIFS(Breakdowns!U:U,Breakdowns!$C:$C,"="&$A111)) -> 1360872 | L111: =IF($P$1,SUMIFS(Breakdowns!W:W,Breakdowns!$C:$C,"="&$A111,Breakdowns!$AA:$AA,"=No"),SUMIFS(Breakdowns!W:W,Breakdowns!$C:$C,"="&$A111)) -> 0 | M111: =IF($P$1,SUMIFS(Breakdowns!Y:Y,Breakdowns!$C:$C,"="&$A111,Breakdowns!$AA:$AA,"=No"),SUMIFS(Breakdowns!Y:Y,Breakdowns!$C:$C,"="&$A111)) -> 0
A112: TN | B112: Tennessee | F112: =IF($P$1,SUMIFS(Breakdowns!L:L,Breakdowns!$C:$C,"="&$A112,Breakdowns!$AA:$AA,"=No"),SUMIFS(Breakdowns!L:L,Breakdowns!$C:$C,"="&$A112)) -> 657 | G112: =IF($P$1,SUMIFS(Breakdowns!M:M,Breakdowns!$C:$C,"="&$A112,Breakdowns!$AA:$AA,"=No"),SUMIFS(Breakdowns!M:M,Breakdowns!$C:$C,"="&$A112)) -> 1467 | H112: =IF($P$1,SUMIFS(Breakdowns!O:O,Breakdowns!$C:$C,"="&$A112,Breakdowns!$AA:$AA,"=No"),SUMIFS(Breakdowns!O:O,Breakdowns!$C:$C,"="&$A112)) -> 2512 | I112: =IF($P$1,SUMIFS(Breakdowns!Q:Q,Breakdowns!$C:$C,"="&$A112,Breakdowns!$AA:$AA,"=No"),SUMIFS(Breakdowns!Q:Q,Breakdowns!$C:$C,"="&$A112)) -> 3979 | J112: =IF($P$1,SUMIFS(Breakdowns!S:S,Breakdowns!$C:$C,"="&$A112,Breakdowns!$AA:$AA,"=No"),SUMIFS(Breakdowns!S:S,Breakdowns!$C:$C,"="&$A112)) -> 27680041 | K112: =IF($P$1,SUMIFS(Breakdowns!U:U,Breakdowns!$C:$C,"="&$A112,Breakdowns!$AA:$AA,"=No"),SUMIFS(Breakdowns!U:U,Breakdowns!$C:$C,"="&$A112)) -> 24347156 | L112: =IF($P$1,SUMIFS(Breakdowns!W:W,Breakdowns!$C:$C,"="&$A112,Breakdowns!$AA:$AA,"=No"),SUMIFS(Breakdowns!W:W,Breakdowns!$C:$C,"="&$A112)) -> 107003 | M112: =IF($P$1,SUMIFS(Breakdowns!Y:Y,Breakdowns!$C:$C,"="&$A112,Breakdowns!$AA:$AA,"=No"),SUMIFS(Breakdowns!Y:Y,Breakdowns!$C:$C,"="&$A112)) -> 100892
A113: TX | B113: Texas | F113: =IF($P$1,SUMIFS(Breakdowns!L:L,Breakdowns!$C:$C,"="&$A113,Breakdowns!$AA:$AA,"=No"),SUMIFS(Breakdowns!L:L,Breakdowns!$C:$C,"="&$A113)) -> 6060 | G113: =IF($P$1,SUMIFS(Breakdowns!M:M,Breakdowns!$C:$C,"="&$A113,Breakdowns!$AA:$AA,"=No"),SUMIFS(Breakdowns!M:M,Breakdowns!$C:$C,"="&$A113)) -> 18810 | H113: =IF($P$1,SUMIFS(Breakdowns!O:O,Breakdowns!$C:$C,"="&$A113,Breakdowns!$AA:$AA,"=No"),SUMIFS(Breakdowns!O:O,Breakdowns!$C:$C,"="&$A113)) -> 9714 | I113: =IF($P$1,SUMIFS(Breakdowns!Q:Q,Breakdowns!$C:$C,"="&$A113,Breakdowns!$AA:$AA,"=No"),SUMIFS(Breakdowns!Q:Q,Breakdowns!$C:$C,"="&$A113)) -> 28524 | J113: =IF($P$1,SUMIFS(Breakdowns!S:S,Breakdowns!$C:$C,"="&$A113,Breakdowns!$AA:$AA,"=No"),SUMIFS(Breakdowns!S:S,Breakdowns!$C:$C,"="&$A113)) -> 252589149 | K113: =IF($P$1,SUMIFS(Breakdowns!U:U,Breakdowns!$C:$C,"="&$A113,Breakdowns!$AA:$AA,"=No"),SUMIFS(Breakdowns!U:U,Breakdowns!$C:$C,"="&$A113)) -> 220554367 | L113: =IF($P$1,SUMIFS(Breakdowns!W:W,Breakdowns!$C:$C,"="&$A113,Breakdowns!$AA:$AA,"=No"),SUMIFS(Breakdowns!W:W,Breakdowns!$C:$C,"="&$A113)) -> 8125422 | M113: =IF($P$1,SUMIFS(Breakdowns!Y:Y,Breakdowns!$C:$C,"="&$A113,Breakdowns!$AA:$AA,"=No"),SUMIFS(Breakdowns!Y:Y,Breakdowns!$C:$C,"="&$A113)) -> 7939270
A114: UT | B114: Utah | F114: =IF($P$1,SUMIFS(Breakdowns!L:L,Breakdowns!$C:$C,"="&$A114,Breakdowns!$AA:$AA,"=No"),SUMIFS(Breakdowns!L:L,Breakdowns!$C:$C,"="&$A114)) -> 1126 | G114: =IF($P$1,SUMIFS(Breakdowns!M:M,Breakdowns!$C:$C,"="&$A114,Breakdowns!$AA:$AA,"=No"),SUMIFS(Breakdowns!M:M,Breakdowns!$C:$C,"="&$A114)) -> 2267 | H114: =IF($P$1,SUMIFS(Breakdowns!O:O,Breakdowns!$C:$C,"="&$A114,Breakdowns!$AA:$AA,"=No"),SUMIFS(Breakdowns!O:O,Breakdowns!$C:$C,"="&$A114)) -> 608 | I114: =IF($P$1,SUMIFS(Breakdowns!Q:Q,Breakdowns!$C:$C,"="&$A114,Breakdowns!$AA:$AA,"=No"),SUMIFS(Breakdowns!Q:Q,Breakdowns!$C:$C,"="&$A114)) -> 2875 | J114: =IF($P$1,SUMIFS(Breakdowns!S:S,Breakdowns!$C:$C,"="&$A114,Breakdowns!$AA:$AA,"=No"),SUMIFS(Breakdowns!S:S,Breakdowns!$C:$C,"="&$A114)) -> 40628585 | K114: =IF($P$1,SUMIFS(Breakdowns!U:U,Breakdowns!$C:$C,"="&$A114,Breakdowns!$AA:$AA,"=No"),SUMIFS(Breakdowns!U:U,Breakdowns!$C:$C,"="&$A114)) -> 37316152 | L114: =IF($P$1,SUMIFS(Breakdowns!W:W,Breakdowns!$C:$C,"="&$A114,Breakdowns!$AA:$AA,"=No"),SUMIFS(Breakdowns!W:W,Breakdowns!$C:$C,"="&$A114)) -> 4203963 | M114: =IF($P$1,SUMIFS(Breakdowns!Y:Y,Breakdowns!$C:$C,"="&$A114,Breakdowns!$AA:$AA,"=No"),SUMIFS(Breakdowns!Y:Y,Breakdowns!$C:$C,"="&$A114)) -> 4172415
A115: VA | B115: Virginia | F115: =IF($P$1,SUMIFS(Breakdowns!L:L,Breakdowns!$C:$C,"="&$A115,Breakdowns!$AA:$AA,"=No"),SUMIFS(Breakdowns!L:L,Breakdowns!$C:$C,"="&$A115)) -> 1954 | G115: =IF($P$1,SUMIFS(Breakdowns!M:M,Breakdowns!$C:$C,"="&$A115,Breakdowns!$AA:$AA,"=No"),SUMIFS(Breakdowns!M:M,Breakdowns!$C:$C,"="&$A115)) -> 5189 | H115: =IF($P$1,SUMIFS(Breakdowns!O:O,Breakdowns!$C:$C,"="&$A115,Breakdowns!$AA:$AA,"=No"),SUMIFS(Breakdowns!O:O,Breakdowns!$C:$C,"="&$A115)) -> 3915 | I115: =IF($P$1,SUMIFS(Breakdowns!Q:Q,Breakdowns!$C:$C,"="&$A115,Breakdowns!$AA:$AA,"=No"),SUMIFS(Breakdowns!Q:Q,Breakdowns!$C:$C,"="&$A115)) -> 9104 | J115: =IF($P$1,SUMIFS(Breakdowns!S:S,Breakdowns!$C:$C,"="&$A115,Breakdowns!$AA:$AA,"=No"),SUMIFS(Breakdowns!S:S,Breakdowns!$C:$C,"="&$A115)) -> 69899192 | K115: =IF($P$1,SUMIFS(Breakdowns!U:U,Breakdowns!$C:$C,"="&$A115,Breakdowns!$AA:$AA,"=No"),SUMIFS(Breakdowns!U:U,Breakdowns!$C:$C,"="&$A115)) -> 62354413 | L115: =IF($P$1,SUMIFS(Breakdowns!W:W,Breakdowns!$C:$C,"="&$A115,Breakdowns!$AA:$AA,"=No"),SUMIFS(Breakdowns!W:W,Breakdowns!$C:$C,"="&$A115)) -> 764116 | M115: =IF($P$1,SUMIFS(Breakdowns!Y:Y,Breakdowns!$C:$C,"="&$A115,Breakdowns!$AA:$AA,"=No"),SUMIFS(Breakdowns!Y:Y,Breakdowns!$C:$C,"="&$A115)) -> 713601
A116: VI | B116: Virgin Islands | F116: =IF($P$1,SUMIFS(Breakdowns!L:L,Breakdowns!$C:$C,"="&$A116,Breakdowns!$AA:$AA,"=No"),SUMIFS(Breakdowns!L:L,Breakdowns!$C:$C,"="&$A116)) -> 0 | G116: =IF($P$1,SUMIFS(Breakdowns!M:M,Breakdowns!$C:$C,"="&$A116,Breakdowns!$AA:$AA,"=No"),SUMIFS(Breakdowns!M:M,Breakdowns!$C:$C,"="&$A116)) -> 0 | H116: =IF($P$1,SUMIFS(Breakdowns!O:O,Breakdowns!$C:$C,"="&$A116,Breakdowns!$AA:$AA,"=No"),SUMIFS(Breakdowns!O:O,Breakdowns!$C:$C,"="&$A116)) -> 0 | I116: =IF($P$1,SUMIFS(Breakdowns!Q:Q,Breakdowns!$C:$C,"="&$A116,Breakdowns!$AA:$AA,"=No"),SUMIFS(Breakdowns!Q:Q,Breakdowns!$C:$C,"="&$A116)) -> 0 | J116: =IF($P$1,SUMIFS(Breakdowns!S:S,Breakdowns!$C:$C,"="&$A116,Breakdowns!$AA:$AA,"=No"),SUMIFS(Breakdowns!S:S,Breakdowns!$C:$C,"="&$A116)) -> 0 | K116: =IF($P$1,SUMIFS(Breakdowns!U:U,Breakdowns!$C:$C,"="&$A116,Breakdowns!$AA:$AA,"=No"),SUMIFS(Breakdowns!U:U,Breakdowns!$C:$C,"="&$A116)) -> 0 | L116: =IF($P$1,SUMIFS(Breakdowns!W:W,Breakdowns!$C:$C,"="&$A116,Breakdowns!$AA:$AA,"=No"),SUMIFS(Breakdowns!W:W,Breakdowns!$C:$C,"="&$A116)) -> 0 | M116: =IF($P$1,SUMIFS(Breakdowns!Y:Y,Breakdowns!$C:$C,"="&$A116,Breakdowns!$AA:$AA,"=No"),SUMIFS(Breakdowns!Y:Y,Breakdowns!$C:$C,"="&$A116)) -> 0
A117: VT | B117: Vermont | F117: =IF($P$1,SUMIFS(Breakdowns!L:L,Breakdowns!$C:$C,"="&$A117,Breakdowns!$AA:$AA,"=No"),SUMIFS(Breakdowns!L:L,Breakdowns!$C:$C,"="&$A117)) -> 74 | G117: =IF($P$1,SUMIFS(Breakdowns!M:M,Breakdowns!$C:$C,"="&$A117,Breakdowns!$AA:$AA,"=No"),SUMIFS(Breakdowns!M:M,Breakdowns!$C:$C,"="&$A117)) -> 47 | H117: =IF($P$1,SUMIFS(Breakdowns!O:O,Breakdowns!$C:$C,"="&$A117,Breakdowns!$AA:$AA,"=No"),SUMIFS(Breakdowns!O:O,Breakdowns!$C:$C,"="&$A117)) -> 34 | I117: =IF($P$1,SUMIFS(Breakdowns!Q:Q,Breakdowns!$C:$C,"="&$A117,Breakdowns!$AA:$AA,"=No"),SUMIFS(Breakdowns!Q:Q,Breakdowns!$C:$C,"="&$A117)) -> 81 | J117: =IF($P$1,SUMIFS(Breakdowns!S:S,Breakdowns!$C:$C,"="&$A117,Breakdowns!$AA:$AA,"=No"),SUMIFS(Breakdowns!S:S,Breakdowns!$C:$C,"="&$A117)) -> 2214825 | K117: =IF($P$1,SUMIFS(Breakdowns!U:U,Breakdowns!$C:$C,"="&$A117,Breakdowns!$AA:$AA,"=No"),SUMIFS(Breakdowns!U:U,Breakdowns!$C:$C,"="&$A117)) -> 1944414 | L117: =IF($P$1,SUMIFS(Breakdowns!W:W,Breakdowns!$C:$C,"="&$A117,Breakdowns!$AA:$AA,"=No"),SUMIFS(Breakdowns!W:W,Breakdowns!$C:$C,"="&$A117)) -> 0 | M117: =IF($P$1,SUMIFS(Breakdowns!Y:Y,Breakdowns!$C:$C,"="&$A117,Breakdowns!$AA:$AA,"=No"),SUMIFS(Breakdowns!Y:Y,Breakdowns!$C:$C,"="&$A117)) -> 0
A118: WA | B118: Washington | F118: =IF($P$1,SUMIFS(Breakdowns!L:L,Breakdowns!$C:$C,"="&$A118,Breakdowns!$AA:$AA,"=No"),SUMIFS(Breakdowns!L:L,Breakdowns!$C:$C,"="&$A118)) -> 6174 | G118: =IF($P$1,SUMIFS(Breakdowns!M:M,Breakdowns!$C:$C,"="&$A118,Breakdowns!$AA:$AA,"=No"),SUMIFS(Breakdowns!M:M,Breakdowns!$C:$C,"="&$A118)) -> 13808 | H118: =IF($P$1,SUMIFS(Breakdowns!O:O,Breakdowns!$C:$C,"="&$A118,Breakdowns!$AA:$AA,"=No"),SUMIFS(Breakdowns!O:O,Breakdowns!$C:$C,"="&$A118)) -> 13738 | I118: =IF($P$1,SUMIFS(Breakdowns!Q:Q,Breakdowns!$C:$C,"="&$A118,Breakdowns!$AA:$AA,"=No"),SUMIFS(Breakdowns!Q:Q,Breakdowns!$C:$C,"="&$A118)) -> 27546 | J118: =IF($P$1,SUMIFS(Breakdowns!S:S,Breakdowns!$C:$C,"="&$A118,Breakdowns!$AA:$AA,"=No"),SUMIFS(Breakdowns!S:S,Breakdowns!$C:$C,"="&$A118)) -> 166288826 | K118: =IF($P$1,SUMIFS(Breakdowns!U:U,Breakdowns!$C:$C,"="&$A118,Breakdowns!$AA:$AA,"=No"),SUMIFS(Breakdowns!U:U,Breakdowns!$C:$C,"="&$A118)) -> 144459755 | L118: =IF($P$1,SUMIFS(Breakdowns!W:W,Breakdowns!$C:$C,"="&$A118,Breakdowns!$AA:$AA,"=No"),SUMIFS(Breakdowns!W:W,Breakdowns!$C:$C,"="&$A118)) -> 1905506 | M118: =IF($P$1,SUMIFS(Breakdowns!Y:Y,Breakdowns!$C:$C,"="&$A118,Breakdowns!$AA:$AA,"=No"),SUMIFS(Breakdowns!Y:Y,Breakdowns!$C:$C,"="&$A118)) -> 1853916
A119: WI | B119: Wisconsin | F119: =IF($P$1,SUMIFS(Breakdowns!L:L,Breakdowns!$C:$C,"="&$A119,Breakdowns!$AA:$AA,"=No"),SUMIFS(Breakdowns!L:L,Breakdowns!$C:$C,"="&$A119)) -> 1118 | G119: =IF($P$1,SUMIFS(Breakdowns!M:M,Breakdowns!$C:$C,"="&$A119,Breakdowns!$AA:$AA,"=No"),SUMIFS(Breakdowns!M:M,Breakdowns!$C:$C,"="&$A119)) -> 1916 | H119: =IF($P$1,SUMIFS(Breakdowns!O:O,Breakdowns!$C:$C,"="&$A119,Breakdowns!$AA:$AA,"=No"),SUMIFS(Breakdowns!O:O,Breakdowns!$C:$C,"="&$A119)) -> 2029 | I119: =IF($P$1,SUMIFS(Breakdowns!Q:Q,Breakdowns!$C:$C,"="&$A119,Breakdowns!$AA:$AA,"=No"),SUMIFS(Breakdowns!Q:Q,Breakdowns!$C:$C,"="&$A119)) -> 3945 | J119: =IF($P$1,SUMIFS(Breakdowns!S:S,Breakdowns!$C:$C,"="&$A119,Breakdowns!$AA:$AA,"=No"),SUMIFS(Breakdowns!S:S,Breakdowns!$C:$C,"="&$A119)) -> 43990842 | K119: =IF($P$1,SUMIFS(Breakdowns!U:U,Breakdowns!$C:$C,"="&$A119,Breakdowns!$AA:$AA,"=No"),SUMIFS(Breakdowns!U:U,Breakdowns!$C:$C,"="&$A119)) -> 39109295 | L119: =IF($P$1,SUMIFS(Breakdowns!W:W,Breakdowns!$C:$C,"="&$A119,Breakdowns!$AA:$AA,"=No"),SUMIFS(Breakdowns!W:W,Breakdowns!$C:$C,"="&$A119)) -> 17303 | M119: =IF($P$1,SUMIFS(Breakdowns!Y:Y,Breakdowns!$C:$C,"="&$A119,Breakdowns!$AA:$AA,"=No"),SUMIFS(Breakdowns!Y:Y,Breakdowns!$C:$C,"="&$A119)) -> 17233
A120: WV | B120: West Virginia | F120: =IF($P$1,SUMIFS(Breakdowns!L:L,Breakdowns!$C:$C,"="&$A120,Breakdowns!$AA:$AA,"=No"),SUMIFS(Breakdowns!L:L,Breakdowns!$C:$C,"="&$A120)) -> 175 | G120: =IF($P$1,SUMIFS(Breakdowns!M:M,Breakdowns!$C:$C,"="&$A120,Breakdowns!$AA:$AA,"=No"),SUMIFS(Breakdowns!M:M,Breakdowns!$C:$C,"="&$A120)) -> 559 | H120: =IF($P$1,SUMIFS(Breakdowns!O:O,Breakdowns!$C:$C,"="&$A120,Breakdowns!$AA:$AA,"=No"),SUMIFS(Breakdowns!O:O,Breakdowns!$C:$C,"="&$A120)) -> 1517 | I120: =IF($P$1,SUMIFS(Breakdowns!Q:Q,Breakdowns!$C:$C,"="&$A120,Breakdowns!$AA:$AA,"=No"),SUMIFS(Breakdowns!Q:Q,Breakdowns!$C:$C,"="&$A120)) -> 2076 | J120: =IF($P$1,SUMIFS(Breakdowns!S:S,Breakdowns!$C:$C,"="&$A120,Breakdowns!$AA:$AA,"=No"),SUMIFS(Breakdowns!S:S,Breakdowns!$C:$C,"="&$A120)) -> 5783039 | K120: =IF($P$1,SUMIFS(Breakdowns!U:U,Breakdowns!$C:$C,"="&$A120,Breakdowns!$AA:$AA,"=No"),SUMIFS(Breakdowns!U:U,Breakdowns!$C:$C,"="&$A120)) -> 5576419 | L120: =IF($P$1,SUMIFS(Breakdowns!W:W,Breakdowns!$C:$C,"="&$A120,Breakdowns!$AA:$AA,"=No"),SUMIFS(Breakdowns!W:W,Breakdowns!$C:$C,"="&$A120)) -> 758589 | M120: =IF($P$1,SUMIFS(Breakdowns!Y:Y,Breakdowns!$C:$C,"="&$A120,Breakdowns!$AA:$AA,"=No"),SUMIFS(Breakdowns!Y:Y,Breakdowns!$C:$C,"="&$A120)) -> 736520
A121: WY | B121: Wyoming | F121: =IF($P$1,SUMIFS(Breakdowns!L:L,Breakdowns!$C:$C,"="&$A121,Breakdowns!$AA:$AA,"=No"),SUMIFS(Breakdowns!L:L,Breakdowns!$C:$C,"="&$A121)) -> 0 | G121: =IF($P$1,SUMIFS(Breakdowns!M:M,Breakdowns!$C:$C,"="&$A121,Breakdowns!$AA:$AA,"=No"),SUMIFS(Breakdowns!M:M,Breakdowns!$C:$C,"="&$A121)) -> 0 | H121: =IF($P$1,SUMIFS(Breakdowns!O:O,Breakdowns!$C:$C,"="&$A121,Breakdowns!$AA:$AA,"=No"),SUMIFS(Breakdowns!O:O,Breakdowns!$C:$C,"="&$A121)) -> 0 | I121: =IF($P$1,SUMIFS(Breakdowns!Q:Q,Breakdowns!$C:$C,"="&$A121,Breakdowns!$AA:$AA,"=No"),SUMIFS(Breakdowns!Q:Q,Breakdowns!$C:$C,"="&$A121)) -> 0 | J121: =IF($P$1,SUMIFS(Breakdowns!S:S,Breakdowns!$C:$C,"="&$A121,Breakdowns!$AA:$AA,"=No"),SUMIFS(Breakdowns!S:S,Breakdowns!$C:$C,"="&$A121)) -> 0 | K121: =IF($P$1,SUMIFS(Breakdowns!U:U,Breakdowns!$C:$C,"="&$A121,Breakdowns!$AA:$AA,"=No"),SUMIFS(Breakdowns!U:U,Breakdowns!$C:$C,"="&$A121)) -> 0 | L121: =IF($P$1,SUMIFS(Breakdowns!W:W,Breakdowns!$C:$C,"="&$A121,Breakdowns!$AA:$AA,"=No"),SUMIFS(Breakdowns!W:W,Breakdowns!$C:$C,"="&$A121)) -> 0 | M121: =IF($P$1,SUMIFS(Breakdowns!Y:Y,Breakdowns!$C:$C,"="&$A121,Breakdowns!$AA:$AA,"=No"),SUMIFS(Breakdowns!Y:Y,Breakdowns!$C:$C,"="&$A121)) -> 0
